Workbook

Sheet Overview
B1: Cash Flow Scenario Planning
B2: ="High Level 3-Way Financial Model"&Err_Chks_Msg&Sens_Chks_Msg&Alt_Chks_Msg -> High Level 3-Way Financial Model
B3: Primary Developer: Ravit Insights
B5: Notes & Disclaimer
B7: ="This model has been prepared by Ravit Insights ('us' or 'we') for "&HL_Home&"." -> This model has been prepared by Ravit Insights ('us' or 'we') for Cash Flow Scenario Planning.
B9: 1 | C9: Begin by navigating to the Questionnaire tab where you will find a list of assumptions for you to input by answering questions. All green filled cells are "Inputs" / "Assumptions".
B10: 2 | C10: We have keyed in some example data in all sheets for your reference.
B11: 3 | C11: Input your revenue and expenses into the Revenue & Expenses worksheet on a conservative basis - your "base case".
B12: 4 | C12: Once assumptions are finalised, navigate to the Scenario Planning sheet by returning back to the Table of Contents.
B13: 5 | C13: The Scenario Planning worksheet will allow you to test various scenarios where you can adjust key items. This will allow you to see your cash low/cash runway for the next 12 months.
B14: 6 | C14: We have included the full set of financial outputs that would come with our standard models, this is for reference purposes only.
B15: 7 | C15: Unless Ravit Insights provides express written consent, this model should not be copied, reproduced, distributed or disclosed to any party.
B16: 8 | C16: If there are any queries about the model with regards to the structure, logic and calculations, please contact us at info@ravitinsights.com.au.
B18: Table of Contents
B20: a. | C20: =Questionnaire!B1 -> Questionnaire
B21: b. | C21: =Scenarios!B1 -> Scenario Planning
B22: c. | C22: =RevExp!B1 -> Revenue & Expenses
C23: - | D23: =TOC_Hdg_58 -> Revenue
C24: - | D24: =TOC_Hdg_59 -> Cost of Sales
C25: - | D25: =TOC_Hdg_40 -> Salaries & Wages
C26: - | D26: =TOC_Hdg_60 -> Operating Expenditure
C27: - | D27: =TOC_Hdg_61 -> Other Revenue (Amounts, Driver)
C28: - | D28: =TOC_Hdg_62 -> Other Expenses
C29: - | D29: =TOC_Hdg_11 -> Interest Income
B30: d. | C30: ='Financial Statements'!B1 -> Monthly Financial Statements (Full)
C31: - | D31: =TOC_Hdg_23 -> Monthly Income Statement
C32: - | D32: =TOC_Hdg_5 -> Monthly Balance Sheet
C33: - | D33: =TOC_Hdg_8 -> Monthly Cash Flow Statement

Sheet Questionnaire
A1: ± | B1: Questionnaire
B2: =Model_Name -> High Level 3-Way Financial Model
B4: Questionnaire
B6: Starting Position | M6: Notes
B8: What is your current cash position? | K8: 50000 | M8: ="As at the end of "&TEXT(INDEX(LU_Ts_All_Mths,DD_Ts_Last_Hist_Mth),"mmmm yyyy") -> As at the end of March 2020
B10: How much do clients owe you (Accounts Receivable)? | K10: 50000 | M10: ="As at the end of "&TEXT(INDEX(LU_Ts_All_Mths,DD_Ts_Last_Hist_Mth),"mmmm yyyy") -> As at the end of March 2020
B11: How long does it usually take clients to pay you? | K11: 30 | M11: Your accounting package will be able to tell you.
B13: How much do you owe your suppliers (Accounts Payable)? | K13: 20000 | M13: ="As at the end of "&TEXT(INDEX(LU_Ts_All_Mths,DD_Ts_Last_Hist_Mth),"mmmm yyyy") -> As at the end of March 2020
B14: How long does it usually take you to pay suppliers? | K14: 45 | M14: Your accounting package will be able to tell you.
B16: How much inventory do you have on hand? | K16: 15000 | M16: ="As at the end of "&TEXT(INDEX(LU_Ts_All_Mths,DD_Ts_Last_Hist_Mth),"mmmm yyyy") -> As at the end of March 2020
B17: How long does it usually take for your inventory to turnover? | K17: 60 | M17: Your accounting package will be able to tell you.
B19: Statutory Obligations | M19: Notes
B21: Current GST Payable | K21: 1500 | M21: ="As at the end of "&TEXT(INDEX(LU_Ts_All_Mths,DD_Ts_Last_Hist_Mth),"mmmm yyyy") -> As at the end of March 2020
B22: Are these assessed and paid Monthly / Quarterly? | K22: Quarterly | M22: Payment is assumed to be 1 month after period end
B24: Current PAYG Withholding Payable | K24: 5000 | M24: ="As at the end of "&TEXT(INDEX(LU_Ts_All_Mths,DD_Ts_Last_Hist_Mth),"mmmm yyyy") -> As at the end of March 2020
B25: Are these assessed and paid Monthly / Quarterly? | K25: Quarterly | M25: Payment is assumed to be 1 month after period end
B26: What is the average % of PAYG Withheld for employees? | K26: 0.275
B28: Current Super Payable | K28: 5000 | M28: ="As at the end of "&TEXT(INDEX(LU_Ts_All_Mths,DD_Ts_Last_Hist_Mth),"mmmm yyyy") -> As at the end of March 2020
B29: Are these assessed and paid Monthly / Quarterly? | K29: Quarterly | M29: Payment is assumed to be 1 month after period end
B31: Current Payroll Tax Payable | K31: 2000 | M31: ="As at the end of "&TEXT(INDEX(LU_Ts_All_Mths,DD_Ts_Last_Hist_Mth),"mmmm yyyy") -> As at the end of March 2020
B32: Current Corprate Tax Payable | K32: 2000 | M32: ="As at the end of "&TEXT(INDEX(LU_Ts_All_Mths,DD_Ts_Last_Hist_Mth),"mmmm yyyy") -> As at the end of March 2020
B34: Loans | M34: Notes
B36: Loan Name | J36: Business Loan
B37: Repayment Arrangement | J37: Principal & Interest | M37: P&I refers to same repayment every period with principal (like a standard home loan)
B38: Maturity Date | K38: 2021-12-31
B39: Loan Balance | G39: =J36 -> Business Loan | K39: 100000 | M39: As at the end of March 2020. For overdrafts, input an average Balance.
B40: Interest Rate | K40: 0.045 | M40: Input an all inclusive rate (like a comparison rate)
B42: Loan Name | J42: Ovedraft
B43: Repayment Arrangement | J43: Interest Only | M43: P&I refers to same repayment every period with principal (like a standard home loan)
B44: Maturity Date | K44: 2020-12-31
B45: Loan Balance | G45: =J42 -> Ovedraft | K45: 10000 | M45: As at the end of March 2020. For overdrafts, input an average Balance.
B46: Interest Rate | K46: 0.08 | M46: Input an all inclusive rate (like a comparison rate)
B48: Loan Name | J48: Business Support Loan
B49: Repayment Arrangement | J49: Principal & Interest | M49: P&I refers to same repayment every period with principal (like a standard home loan)
B50: Maturity Date | K50: 2020-04-30
B51: Loan Balance | G51: =J48 -> Business Support Loan | K51: 0 | M51: As at the end of March 2020. For overdrafts, input an average Balance.
B52: Interest Rate | K52: 0 | M52: Input an all inclusive rate (like a comparison rate)
B54: Support Packages | M54: Notes
B56: As an employer, are you eligible for JobKeeper payments? | K56: Yes | L56: =MATCH(K56,LU_Quest_Binary,0) -> 1 | M56: Refer to government guidance on employer eligibility criteria
B57: Employees eligible for JobKeeper package | K57: 3 | L57: =IF(L56,K57,0) -> 3 | M57: Refer to government guidance on employee eligibility criteria
B59: Is your annual Salary & Wages bill over $3 million? | K59: No | L59: =IF(MATCH(K59,LU_Quest_Binary,0)=1,0,1) -> 1 | M59: This relates to the Payroll Tax stimulus package for Victoria, Australia
B60: Have you applied for a refund of Payrol Taxes paid to date? | K60: Yes | L60: =IF(L59<>1,0,MATCH(K60,LU_Quest_Binary,0)) -> 1 | M60: Please ensure you apply for this refund if the SRO has not contacted you directly
B61: When are you expecting to get reimbursed? | K61: 2020-05-31 | L61: =IF(OR(K61=0,K61="",L60<>1),0,1) -> 1 | M61: This is the expected payment period advised once you've discussed with SRO
B62: How much have you paid in Payroll Taxes to date? | K62: 5000 | L62: =IF(L61<>1,0,K62) -> 5000 | M62: This relates to the Payroll Tax stimulus package items
B64: Have you applied for the Business Support Loan? | K64: No | L64: =MATCH(K64,LU_Quest_Binary,0) -> 2 | M64: This is the Government guaranteed loan provided through the banks
B65: How much did you apply for? | K65: 250000 | L65: =IF(L64<>1,0,K65) -> 0 | M65: Ensure you speak with your bank to confirm
B66: Interest Rate on the Loan | K66: 0.045 | L66: =IF($L$64<>1,0,K66) -> 0 | M66: Ensure you speak with your bank to confirm
B67: Payment Deferral Period (Months) | K67: 6 | L67: =IF($L$64<>1,0,K67) -> 0 | M67: Ensure you speak with your bank to confirm
B68: Loan Term (Years) | K68: 3 | L68: =IF($L$64<>1,0,K68) -> 0 | M68: Ensure you speak with your bank to confirm

Sheet P (hidden)
C9: Presentations
C10: Section 1.
C11: =Model_Name -> High Level 3-Way Financial Model
C12: Go to Table of Contents
C13: ç | D13: è
C17: Section Cover Notes:
C18: [Insert section cover note 1]
C19: [Insert section cover note 2]
C20: [Insert section cover note 3]

Sheet RevExp
A1: ± | B1: Revenue & Expenses
B2: =Model_Name -> High Level 3-Way Financial Model
B4: Month Ending | J4: =TEXT(J7,"mmm-yy") -> Mar-20 | K4: Apr-20 | L4: May-20 | M4: Jun-20 | N4: Jul-20 | O4: Aug-20 | P4: Sep-20 | Q4: Oct-20 | R4: Nov-20 | S4: Dec-20 | T4: Jan-21 | U4: Feb-21 | V4: Mar-21
B5: Month | J5: ="M"&J11&IF(J8>DD_Ts_Last_Hist_Mth,Ts_Fcast_Per_ID,Ts_Hist_Per_ID) -> M9 (H) | K5: M10 (F) | L5: M11 (F) | M5: M12 (F) | N5: M1 (F) | O5: M2 (F) | P5: M3 (F) | Q5: M4 (F) | R5: M5 (F) | S5: M6 (F) | T5: M7 (F) | U5: M8 (F) | V5: M9 (F)
B6: Period Start Date | J6: =EDATE(Ts_Start_Date,J8-1) -> 2020-03-01 | K6: 2020-04-01 | L6: 2020-05-01 | M6: 2020-06-01 | N6: 2020-07-01 | O6: 2020-08-01 | P6: 2020-09-01 | Q6: 2020-10-01 | R6: 2020-11-01 | S6: 2020-12-01 | T6: 2021-01-01 | U6: 2021-02-01 | V6: 2021-03-01
B7: Period End Date | J7: =EDATE(Ts_Start_Date,J8)-1 -> 2020-03-31 | K7: 2020-04-30 | L7: 2020-05-31 | M7: 2020-06-30 | N7: 2020-07-31 | O7: 2020-08-31 | P7: 2020-09-30 | Q7: 2020-10-31 | R7: 2020-11-30 | S7: 2020-12-31 | T7: 2021-01-31 | U7: 2021-02-28 | V7: 2021-03-31
B8: Counter | J8: =COLUMNS($J8:J8) -> 1 | K8: =COLUMNS($J8:K8) -> 2 | L8: =COLUMNS($J8:L8) -> 3 | M8: =COLUMNS($J8:M8) -> 4 | N8: =COLUMNS($J8:N8) -> 5 | O8: =COLUMNS($J8:O8) -> 6 | P8: =COLUMNS($J8:P8) -> 7 | Q8: =COLUMNS($J8:Q8) -> 8 | R8: =COLUMNS($J8:R8) -> 9 | S8: =COLUMNS($J8:S8) -> 10 | T8: =COLUMNS($J8:T8) -> 11 | U8: =COLUMNS($J8:U8) -> 12 | V8: =COLUMNS($J8:V8) -> 13
B9: Financial Year | J9: =YEAR(J7)+IF(MONTH(J7)>DD_Ts_Fin_Yr_End_Mth,1,0) -> 2020 | K9: 2020 | L9: 2020 | M9: 2020 | N9: 2021 | O9: 2021 | P9: 2021 | Q9: 2021 | R9: 2021 | S9: 2021 | T9: 2021 | U9: 2021 | V9: 2021
B10: Active Column Number | J10: =IF(AND(J8>DD_Ts_Last_Hist_Mth,J8<=Ts_Term),J8-DD_Ts_Last_Hist_Mth,0) -> 0 | K10: 1 | L10: 2 | M10: 3 | N10: 4 | O10: 5 | P10: 6 | Q10: 7 | R10: 8 | S10: 9 | T10: 10 | U10: 11 | V10: 12
B11: Month Number | J11: =MOD(MONTH(J7)-DD_Ts_Fin_Yr_End_Mth-1,Ts_Mths_In_Yr)+1 -> 9 | K11: 10 | L11: 11 | M11: 12 | N11: 1 | O11: 2 | P11: 3 | Q11: 4 | R11: 5 | S11: 6 | T11: 7 | U11: 8 | V11: 9
B12: Month Key | J12: ="M"&J11&"-"&J9 -> M9-2020 | K12: M10-2020 | L12: M11-2020 | M12: M12-2020 | N12: M1-2021 | O12: M2-2021 | P12: M3-2021 | Q12: M4-2021 | R12: M5-2021 | S12: M6-2021 | T12: M7-2021 | U12: M8-2021 | V12: M9-2021
B13: Quarter Key | J13: ="Q"&INT((J11-1)/Ts_Mths_In_Qtr)+1&"-"&J9 -> Q3-2020 | K13: Q4-2020 | L13: Q4-2020 | M13: Q4-2020 | N13: Q1-2021 | O13: Q1-2021 | P13: Q1-2021 | Q13: Q2-2021 | R13: Q2-2021 | S13: Q2-2021 | T13: Q3-2021 | U13: Q3-2021 | V13: Q3-2021
B14: Half Key | J14: ="H"&INT((J11-1)/Ts_Mths_In_Half)+1&"-"&J9 -> H2-2020 | K14: H2-2020 | L14: H2-2020 | M14: H2-2020 | N14: H1-2021 | O14: H1-2021 | P14: H1-2021 | Q14: H1-2021 | R14: H1-2021 | S14: H1-2021 | T14: H2-2021 | U14: H2-2021 | V14: H2-2021
B16: Revenue
B18: Sensitivity | H18: =Scenarios!AP19 -> 0
B20: Revenue
B21: =B25 -> Revenue Category 1 | J21: =IF(J$8<=DD_Ts_Last_Hist_Mth,0,J25*(1+$H$18)) -> 0 | K21: 20000 | L21: 20000 | M21: 20000 | N21: 20000 | O21: 20000 | P21: 20000 | Q21: 20000 | R21: 20000 | S21: 20000 | T21: 20000 | U21: 20000 | V21: 20000
B22: =B26 -> Revenue Category 2 | J22: =IF(J$8<=DD_Ts_Last_Hist_Mth,0,J26*(1+$H$18)) -> 0 | K22: 20000 | L22: 20000 | M22: 20000 | N22: 20000 | O22: 20000 | P22: 20000 | Q22: 20000 | R22: 20000 | S22: 20000 | T22: 20000 | U22: 20000 | V22: 20000
B23: ="Total "&B20 -> Total Revenue | J23: =SUM(J21:J22) -> 0 | K23: 40000 | L23: 40000 | M23: 40000 | N23: 40000 | O23: 40000 | P23: 40000 | Q23: 40000 | R23: 40000 | S23: 40000 | T23: 40000 | U23: 40000 | V23: 40000
B25: Revenue Category 1 | J25: 0 | K25: 20000 | L25: 20000 | M25: 20000 | N25: 20000 | O25: 20000 | P25: 20000 | Q25: 20000 | R25: 20000 | S25: 20000 | T25: 20000 | U25: 20000 | V25: 20000
B26: Revenue Category 2 | J26: 0 | K26: 20000 | L26: 20000 | M26: 20000 | N26: 20000 | O26: 20000 | P26: 20000 | Q26: 20000 | R26: 20000 | S26: 20000 | T26: 20000 | U26: 20000 | V26: 20000
B27: =B23 -> Total Revenue | J27: =SUM(J25:J26) -> 0 | K27: 40000 | L27: 40000 | M27: 40000 | N27: 40000 | O27: 40000 | P27: 40000 | Q27: 40000 | R27: 40000 | S27: 40000 | T27: 40000 | U27: 40000 | V27: 40000
B29: Cost of Sales
B31: Sensitivity | H31: =Scenarios!AP20 -> 0
B33: Cost of Sales
B34: =B38 -> Cost of Sales Category 1 | I34: 0 | J34: =IF(J$8<=DD_Ts_Last_Hist_Mth,0,J38*(1+$H$31)) -> 0 | K34: 8000 | L34: 8000 | M34: 8000 | N34: 8000 | O34: 8000 | P34: 8000 | Q34: 8000 | R34: 8000 | S34: 8000 | T34: 8000 | U34: 8000 | V34: 8000
B35: =B39 -> Cost of Sales Category 2 | I35: 0 | J35: =IF(J$8<=DD_Ts_Last_Hist_Mth,0,J39*(1+$H$31)) -> 0 | K35: 8000 | L35: 8000 | M35: 8000 | N35: 8000 | O35: 8000 | P35: 8000 | Q35: 8000 | R35: 8000 | S35: 8000 | T35: 8000 | U35: 8000 | V35: 8000
B36: ="Total "&B33 -> Total Cost of Sales | J36: =SUM(J34:J35) -> 0 | K36: 16000 | L36: 16000 | M36: 16000 | N36: 16000 | O36: 16000 | P36: 16000 | Q36: 16000 | R36: 16000 | S36: 16000 | T36: 16000 | U36: 16000 | V36: 16000
B38: Cost of Sales Category 1 | J38: 0 | K38: 8000 | L38: 8000 | M38: 8000 | N38: 8000 | O38: 8000 | P38: 8000 | Q38: 8000 | R38: 8000 | S38: 8000 | T38: 8000 | U38: 8000 | V38: 8000
B39: Cost of Sales Category 2 | J39: 0 | K39: 8000 | L39: 8000 | M39: 8000 | N39: 8000 | O39: 8000 | P39: 8000 | Q39: 8000 | R39: 8000 | S39: 8000 | T39: 8000 | U39: 8000 | V39: 8000
B40: =B36 -> Total Cost of Sales | J40: =SUM(J38:J39) -> 0 | K40: 16000 | L40: 16000 | M40: 16000 | N40: 16000 | O40: 16000 | P40: 16000 | Q40: 16000 | R40: 16000 | S40: 16000 | T40: 16000 | U40: 16000 | V40: 16000
B42: Salaries & Wages
B44: Sensitivity | H44: =Scenarios!AP21 -> 0
B46: Base Salaries (Excluding Superannuation)
B48: No. Payments in Period (Applies to Fortnightly Only) | I48: =IF(ISERROR(MATCH(3,I$52:I$53,0)),0,1) -> 0 | J48: 2 | K48: 3 | L48: 2 | M48: 2 | N48: 2 | O48: 2 | P48: 2 | Q48: 2 | R48: 2 | S48: 2 | T48: 2 | U48: 2 | V48: 2
B49: No. Payments in Period (Applies to Weekly Only) | I49: =IF(MAX(I52:I53)=4,1,0) -> 0 | J49: 4 | K49: 4 | L49: 4 | M49: 4 | N49: 4 | O49: 4 | P49: 4 | Q49: 4 | R49: 4 | S49: 4 | T49: 4 | U49: 4 | V49: 4
B51: Average Base Salaries | H51: Quoted As | I51: Helper | J51: =" "&Ts_Currency&" (Excluding Superannuation)" -> $ (Excluding Superannuation)
B52: Salaries & Wages | H52: Monthly | I52: =IFERROR(MATCH(H52,LU_Salaries_Per,0),0) -> 2 | J52: 0 | K52: 16000 | L52: 16000 | M52: 16000 | N52: 16000 | O52: 16000 | P52: 16000 | Q52: 16000 | R52: 16000 | S52: 16000 | T52: 16000 | U52: 16000 | V52: 16000
B53: Casuals | H53: Monthly | I53: =IFERROR(MATCH(H53,LU_Salaries_Per,0),0) -> 2 | J53: 0 | K53: 1000 | L53: 1000 | M53: 1000 | N53: 1000 | O53: 1000 | P53: 1000 | Q53: 1000 | R53: 1000 | S53: 1000 | T53: 1000 | U53: 1000 | V53: 1000
B55: =B52 -> Salaries & Wages | J55: =IF(OR(J$8<=DD_Ts_Last_Hist_Mth,$I52=0),0,CHOOSE($I52,J52/Ts_Mths_In_Yr,J52,J$48*J52,J$49*J52)*(1+$H$44)) -> 0 | K55: 16000 | L55: 16000 | M55: 16000 | N55: 16000 | O55: 16000 | P55: 16000 | Q55: 16000 | R55: 16000 | S55: 16000 | T55: 16000 | U55: 16000 | V55: 16000
B56: =B53 -> Casuals | J56: =IF(OR(J$8<=DD_Ts_Last_Hist_Mth,$I53=0),0,CHOOSE($I53,J53/Ts_Mths_In_Yr,J53,J$48*J53,J$49*J53)*(1+$H$44)) -> 0 | K56: 1000 | L56: 1000 | M56: 1000 | N56: 1000 | O56: 1000 | P56: 1000 | Q56: 1000 | R56: 1000 | S56: 1000 | T56: 1000 | U56: 1000 | V56: 1000
B57: Total Base Salaries & Wages | J57: =SUM(J55:J56) -> 0 | K57: 17000 | L57: 17000 | M57: 17000 | N57: 17000 | O57: 17000 | P57: 17000 | Q57: 17000 | R57: 17000 | S57: 17000 | T57: 17000 | U57: 17000 | V57: 17000
B59: Taxes Withheld
B61: Taxes Withheld (PAYG) | J61: Average Personal Tax Rate (%)
B62: Avg. PAYG Rate | I62: =Questionnaire!K26 -> 0.275 | J62: =IF(J$8<=DD_Ts_Last_Hist_Mth,0,$I62) -> 0 | K62: 0.275 | L62: 0.275 | M62: 0.275 | N62: 0.275 | O62: 0.275 | P62: 0.275 | Q62: 0.275 | R62: 0.275 | S62: 0.275 | T62: 0.275 | U62: 0.275 | V62: 0.275
B64: =B52 -> Salaries & Wages | J64: =J55*J$62 -> 0 | K64: 4400 | L64: 4400 | M64: 4400 | N64: 4400 | O64: 4400 | P64: 4400 | Q64: 4400 | R64: 4400 | S64: 4400 | T64: 4400 | U64: 4400 | V64: 4400
B65: =B53 -> Casuals | J65: =J56*J$62 -> 0 | K65: 275 | L65: 275 | M65: 275 | N65: 275 | O65: 275 | P65: 275 | Q65: 275 | R65: 275 | S65: 275 | T65: 275 | U65: 275 | V65: 275
B66: Total Taxes Withheld (PAYG) | J66: =SUM(J64:J65) -> 0 | K66: 4675 | L66: 4675 | M66: 4675 | N66: 4675 | O66: 4675 | P66: 4675 | Q66: 4675 | R66: 4675 | S66: 4675 | T66: 4675 | U66: 4675 | V66: 4675
B68: Superannuation
B70: Superannuation | J70: Average Contribution (%)
B71: Superannuation Rate | J71: 0.095 | K71: 0.095 | L71: 0.095 | M71: 0.095 | N71: 0.095 | O71: 0.095 | P71: 0.095 | Q71: 0.095 | R71: 0.095 | S71: 0.095 | T71: 0.095 | U71: 0.095 | V71: 0.095
B73: =B52 -> Salaries & Wages | J73: =J55*J$71 -> 0 | K73: 1520 | L73: 1520 | M73: 1520 | N73: 1520 | O73: 1520 | P73: 1520 | Q73: 1520 | R73: 1520 | S73: 1520 | T73: 1520 | U73: 1520 | V73: 1520
B74: =B53 -> Casuals | J74: =J56*J$71 -> 0 | K74: 95 | L74: 95 | M74: 95 | N74: 95 | O74: 95 | P74: 95 | Q74: 95 | R74: 95 | S74: 95 | T74: 95 | U74: 95 | V74: 95
B75: Total Superannuation Withheld | J75: =SUM(J73:J74) -> 0 | K75: 1615 | L75: 1615 | M75: 1615 | N75: 1615 | O75: 1615 | P75: 1615 | Q75: 1615 | R75: 1615 | S75: 1615 | T75: 1615 | U75: 1615 | V75: 1615
B77: Summary
B79: Average Base Salaries | J79: =" "&Ts_Currency&" (Including Superannuation)" -> $ (Including Superannuation)
B80: =B52 -> Salaries & Wages | J80: =J55+J73 -> 0 | K80: 17520 | L80: 17520 | M80: 17520 | N80: 17520 | O80: 17520 | P80: 17520 | Q80: 17520 | R80: 17520 | S80: 17520 | T80: 17520 | U80: 17520 | V80: 17520
B81: =B53 -> Casuals | J81: =J56+J74 -> 0 | K81: 1095 | L81: 1095 | M81: 1095 | N81: 1095 | O81: 1095 | P81: 1095 | Q81: 1095 | R81: 1095 | S81: 1095 | T81: 1095 | U81: 1095 | V81: 1095
B82: Total Salaries & Wages Expense | J82: =SUM(J80:J81) -> 0 | K82: 18615 | L82: 18615 | M82: 18615 | N82: 18615 | O82: 18615 | P82: 18615 | Q82: 18615 | R82: 18615 | S82: 18615 | T82: 18615 | U82: 18615 | V82: 18615
B84: Operating Expenditure
B86: Sensitivity | H86: =Scenarios!AP22 -> 0
B88: Operating Expenditure
B89: =B103 -> Advertising | J89: =IF(J$8<=DD_Ts_Last_Hist_Mth,0,J103*(1+$H$86)) -> 0 | K89: 1500 | L89: 1500 | M89: 1500 | N89: 1500 | O89: 1500 | P89: 1500 | Q89: 1500 | R89: 1500 | S89: 1500 | T89: 1500 | U89: 1500 | V89: 1500
B90: Accounting & Bookkeeping | J90: =IF(J$8<=DD_Ts_Last_Hist_Mth,0,J104*(1+$H$86)) -> 0 | K90: 300 | L90: 300 | M90: 300 | N90: 300 | O90: 300 | P90: 300 | Q90: 300 | R90: 300 | S90: 300 | T90: 300 | U90: 300 | V90: 300
B91: Bank Fees | J91: =IF(J$8<=DD_Ts_Last_Hist_Mth,0,J105*(1+$H$86)) -> 0 | K91: 30 | L91: 30 | M91: 30 | N91: 30 | O91: 30 | P91: 30 | Q91: 30 | R91: 30 | S91: 30 | T91: 30 | U91: 30 | V91: 30
B92: Insurance | J92: =IF(J$8<=DD_Ts_Last_Hist_Mth,0,J106*(1+$H$86)) -> 0 | K92: 300 | L92: 300 | M92: 300 | N92: 300 | O92: 300 | P92: 300 | Q92: 300 | R92: 300 | S92: 300 | T92: 300 | U92: 300 | V92: 300
B93: Legal Expenses | J93: =IF(J$8<=DD_Ts_Last_Hist_Mth,0,J107*(1+$H$86)) -> 0 | K93: 0 | L93: 1500 | M93: 0 | N93: 0 | O93: 0 | P93: 0 | Q93: 0 | R93: 0 | S93: 1500 | T93: 0 | U93: 0 | V93: 0
B94: Motor Vehicle Expenses | J94: =IF(J$8<=DD_Ts_Last_Hist_Mth,0,J108*(1+$H$86)) -> 0 | K94: 100 | L94: 100 | M94: 100 | N94: 100 | O94: 100 | P94: 100 | Q94: 100 | R94: 100 | S94: 100 | T94: 100 | U94: 100 | V94: 100
B95: Office Expenses | J95: =IF(J$8<=DD_Ts_Last_Hist_Mth,0,J109*(1+$H$86)) -> 0 | K95: 50 | L95: 50 | M95: 50 | N95: 50 | O95: 50 | P95: 50 | Q95: 50 | R95: 50 | S95: 50 | T95: 50 | U95: 50 | V95: 50
B96: Printing & Stationery | J96: =IF(J$8<=DD_Ts_Last_Hist_Mth,0,J110*(1+$H$86)) -> 0 | K96: 10 | L96: 10 | M96: 10 | N96: 10 | O96: 10 | P96: 10 | Q96: 10 | R96: 10 | S96: 10 | T96: 10 | U96: 10 | V96: 10
B97: Rent | J97: =IF(J$8<=DD_Ts_Last_Hist_Mth,0,J111*(1+$H$86)) -> 0 | K97: 2000 | L97: 2000 | M97: 2000 | N97: 2000 | O97: 2000 | P97: 2000 | Q97: 2000 | R97: 2000 | S97: 2000 | T97: 2000 | U97: 2000 | V97: 2000
B98: Subscriptions | J98: =IF(J$8<=DD_Ts_Last_Hist_Mth,0,J112*(1+$H$86)) -> 0 | K98: 300 | L98: 300 | M98: 300 | N98: 300 | O98: 300 | P98: 300 | Q98: 300 | R98: 300 | S98: 300 | T98: 300 | U98: 300 | V98: 300
B99: Telephone & Internet | J99: =IF(J$8<=DD_Ts_Last_Hist_Mth,0,J113*(1+$H$86)) -> 0 | K99: 200 | L99: 200 | M99: 200 | N99: 200 | O99: 200 | P99: 200 | Q99: 200 | R99: 200 | S99: 200 | T99: 200 | U99: 200 | V99: 200
B100: Travel | J100: =IF(J$8<=DD_Ts_Last_Hist_Mth,0,J114*(1+$H$86)) -> 0 | K100: 300 | L100: 300 | M100: 300 | N100: 300 | O100: 300 | P100: 300 | Q100: 300 | R100: 300 | S100: 300 | T100: 300 | U100: 300 | V100: 300
B101: ="Total "&B88 -> Total Operating Expenditure | J101: =SUM(J89:J100) -> 0 | K101: 5090 | L101: 6590 | M101: 5090 | N101: 5090 | O101: 5090 | P101: 5090 | Q101: 5090 | R101: 5090 | S101: 6590 | T101: 5090 | U101: 5090 | V101: 5090
B103: Advertising | J103: 0 | K103: 1500 | L103: 1500 | M103: 1500 | N103: 1500 | O103: 1500 | P103: 1500 | Q103: 1500 | R103: 1500 | S103: 1500 | T103: 1500 | U103: 1500 | V103: 1500
B104: Accounting & Bookkeeping | J104: 0 | K104: 300 | L104: 300 | M104: 300 | N104: 300 | O104: 300 | P104: 300 | Q104: 300 | R104: 300 | S104: 300 | T104: 300 | U104: 300 | V104: 300
B105: Bank Fees | J105: 0 | K105: 30 | L105: 30 | M105: 30 | N105: 30 | O105: 30 | P105: 30 | Q105: 30 | R105: 30 | S105: 30 | T105: 30 | U105: 30 | V105: 30
B106: Insurance | J106: 0 | K106: 300 | L106: 300 | M106: 300 | N106: 300 | O106: 300 | P106: 300 | Q106: 300 | R106: 300 | S106: 300 | T106: 300 | U106: 300 | V106: 300
B107: Legal Expenses | J107: 0 | K107: 0 | L107: 1500 | M107: 0 | N107: 0 | O107: 0 | P107: 0 | Q107: 0 | R107: 0 | S107: 1500 | T107: 0 | U107: 0 | V107: 0
B108: Motor Vehicle Expenses | J108: 0 | K108: 100 | L108: 100 | M108: 100 | N108: 100 | O108: 100 | P108: 100 | Q108: 100 | R108: 100 | S108: 100 | T108: 100 | U108: 100 | V108: 100
B109: Office Expenses | J109: 0 | K109: 50 | L109: 50 | M109: 50 | N109: 50 | O109: 50 | P109: 50 | Q109: 50 | R109: 50 | S109: 50 | T109: 50 | U109: 50 | V109: 50
B110: Printing & Stationery | J110: 0 | K110: 10 | L110: 10 | M110: 10 | N110: 10 | O110: 10 | P110: 10 | Q110: 10 | R110: 10 | S110: 10 | T110: 10 | U110: 10 | V110: 10
B111: Rent | J111: 0 | K111: 2000 | L111: 2000 | M111: 2000 | N111: 2000 | O111: 2000 | P111: 2000 | Q111: 2000 | R111: 2000 | S111: 2000 | T111: 2000 | U111: 2000 | V111: 2000
B112: Subscriptions | J112: 0 | K112: 300 | L112: 300 | M112: 300 | N112: 300 | O112: 300 | P112: 300 | Q112: 300 | R112: 300 | S112: 300 | T112: 300 | U112: 300 | V112: 300
B113: Telephone & Internet | J113: 0 | K113: 200 | L113: 200 | M113: 200 | N113: 200 | O113: 200 | P113: 200 | Q113: 200 | R113: 200 | S113: 200 | T113: 200 | U113: 200 | V113: 200
B114: Travel | J114: 0 | K114: 300 | L114: 300 | M114: 300 | N114: 300 | O114: 300 | P114: 300 | Q114: 300 | R114: 300 | S114: 300 | T114: 300 | U114: 300 | V114: 300
B115: =B101 -> Total Operating Expenditure | J115: =SUM(J103:J114) -> 0 | K115: 5090 | L115: 6590 | M115: 5090 | N115: 5090 | O115: 5090 | P115: 5090 | Q115: 5090 | R115: 5090 | S115: 6590 | T115: 5090 | U115: 5090 | V115: 5090
B117: Other Revenue (Amounts, Driver)
B119: Other Revenue
B120: Other Revenue | J120: 0 | K120: 0 | L120: 0 | M120: 0 | N120: 0 | O120: 0 | P120: 0 | Q120: 0 | R120: 0 | S120: 0 | T120: 0 | U120: 0 | V120: 0
B121: ="Total "&B119 -> Total Other Revenue | J121: =SUM(J120:J120) -> 0 | K121: 0 | L121: 0 | M121: 0 | N121: 0 | O121: 0 | P121: 0 | Q121: 0 | R121: 0 | S121: 0 | T121: 0 | U121: 0 | V121: 0
B123: Other Expenses
B125: Other Expenses
B126: Other Expenses | J126: 0 | K126: 0 | L126: 0 | M126: 0 | N126: 0 | O126: 0 | P126: 0 | Q126: 0 | R126: 0 | S126: 0 | T126: 0 | U126: 0 | V126: 0
B127: ="Total "&B125 -> Total Other Expenses | J127: =SUM(J126:J126) -> 0 | K127: 0 | L127: 0 | M127: 0 | N127: 0 | O127: 0 | P127: 0 | Q127: 0 | R127: 0 | S127: 0 | T127: 0 | U127: 0 | V127: 0
B129: Interest Income
B131: Opening Cash at Bank | J131: =IF(J$8<=DD_Ts_Last_Hist_Mth,0,'Financial Statements'!J100) -> 0 | K131: =IF(K$8<=DD_Ts_Last_Hist_Mth,0,'Financial Statements'!K100) -> 50000 | L131: =IF(L$8<=DD_Ts_Last_Hist_Mth,0,'Financial Statements'!L100) -> 45883.2917 | M131: =IF(M$8<=DD_Ts_Last_Hist_Mth,0,'Financial Statements'!M100) -> 58925.83155 | N131: =IF(N$8<=DD_Ts_Last_Hist_Mth,0,'Financial Statements'!N100) -> 74853.8789 | O131: =IF(O$8<=DD_Ts_Last_Hist_Mth,0,'Financial Statements'!O100) -> 66180.46499 | P131: =IF(P$8<=DD_Ts_Last_Hist_Mth,0,'Financial Statements'!P100) -> 69074.09425 | Q131: =IF(Q$8<=DD_Ts_Last_Hist_Mth,0,'Financial Statements'!Q100) -> 71609.31198 | R131: =IF(R$8<=DD_Ts_Last_Hist_Mth,0,'Financial Statements'!R100) -> 63397.50111 | S131: =IF(S$8<=DD_Ts_Last_Hist_Mth,0,'Financial Statements'!S100) -> 56154.02457 | T131: =IF(T$8<=DD_Ts_Last_Hist_Mth,0,'Financial Statements'!T100) -> 58798.74711 | U131: =IF(U$8<=DD_Ts_Last_Hist_Mth,0,'Financial Statements'!U100) -> 36581.99958 | V131: =IF(V$8<=DD_Ts_Last_Hist_Mth,0,'Financial Statements'!V100) -> 36932.16555
B132: Effective Interest Rate (% p.a. | % p.m.) | H132: 0.005 | J132: =IF(J$8<=DD_Ts_Last_Hist_Mth,0,$H132/Ts_Mths_In_Yr) -> 0 | K132: 0.0004166666667 | L132: 0.0004166666667 | M132: 0.0004166666667 | N132: 0.0004166666667 | O132: 0.0004166666667 | P132: 0.0004166666667 | Q132: 0.0004166666667 | R132: 0.0004166666667 | S132: 0.0004166666667 | T132: 0.0004166666667 | U132: 0.0004166666667 | V132: 0.0004166666667
B133: Interest Income | J133: =IF(J$8<=DD_Ts_Last_Hist_Mth,'FS Opening'!J49,MAX(0,J131*J132)) -> 0 | K133: =IF(K$8<=DD_Ts_Last_Hist_Mth,'FS Opening'!K49,MAX(0,K131*K132)) -> 20.83333333 | L133: =IF(L$8<=DD_Ts_Last_Hist_Mth,'FS Opening'!L49,MAX(0,L131*L132)) -> 19.11803821 | M133: =IF(M$8<=DD_Ts_Last_Hist_Mth,'FS Opening'!M49,MAX(0,M131*M132)) -> 24.55242981 | N133: =IF(N$8<=DD_Ts_Last_Hist_Mth,'FS Opening'!N49,MAX(0,N131*N132)) -> 31.18911621 | O133: =IF(O$8<=DD_Ts_Last_Hist_Mth,'FS Opening'!O49,MAX(0,O131*O132)) -> 27.57519375 | P133: =IF(P$8<=DD_Ts_Last_Hist_Mth,'FS Opening'!P49,MAX(0,P131*P132)) -> 28.7808726 | Q133: =IF(Q$8<=DD_Ts_Last_Hist_Mth,'FS Opening'!Q49,MAX(0,Q131*Q132)) -> 29.83721333 | R133: =IF(R$8<=DD_Ts_Last_Hist_Mth,'FS Opening'!R49,MAX(0,R131*R132)) -> 26.41562546 | S133: =IF(S$8<=DD_Ts_Last_Hist_Mth,'FS Opening'!S49,MAX(0,S131*S132)) -> 23.39751024 | T133: =IF(T$8<=DD_Ts_Last_Hist_Mth,'FS Opening'!T49,MAX(0,T131*T132)) -> 24.49947796 | U133: =IF(U$8<=DD_Ts_Last_Hist_Mth,'FS Opening'!U49,MAX(0,U131*U132)) -> 15.24249982 | V133: =IF(V$8<=DD_Ts_Last_Hist_Mth,'FS Opening'!V49,MAX(0,V131*V132)) -> 15.38840231

Sheet Scenarios
A1: ± | B1: Scenario Planning
B2: =Model_Name -> High Level 3-Way Financial Model
B4: Scenario Planning
D7: Starting Cash | M7: Cash Low | R7: Date | U7: Amount | Y7: Cash Runway | AJ7: Active Scenario in Model | AR7: Base
D8: =Questionnaire!K8 -> 50000 | M8: =IF('Cash Data'!H25=1,'Cash Data'!H25&" Month",'Cash Data'!H25&" Month/s") -> 10 Month/s | R8: ='Cash Data'!H24 -> Jan-21 | U8: ='Cash Data'!H23 -> 36581.99958 | Y8: =IF(T36=0,"Surplus",IF('Cash Data'!H29=1,'Cash Data'!H29&" Month",'Cash Data'!H29&" Months")) -> Surplus
AJ9: Key in Scenarios for planning
AI10: =ROWS(AI$10:AI10) -> 1 | AJ10: Base | AU10: =IF(AI10=1,"Base","Scenario "&AI10-1) -> Base
AI11: =ROWS(AI$10:AI11) -> 2 | AJ11: Revenue lower by 20% | AU11: Scenario 1
AI12: =ROWS(AI$10:AI12) -> 3 | AJ12: Revenue lower by 10% and people taking slightly longer to pay | AU12: Scenario 2
AI13: =ROWS(AI$10:AI13) -> 4 | AJ13: People taking longer to pay | AU13: Scenario 3
AJ16: What would happen if…
AP17: Active | AR17: =IF(COLUMNS($AR17:AR17)=1,"Base","Scenario "&COLUMNS($AR17:AR17)-1) -> Base | AS17: =IF(COLUMNS($AR17:AS17)=1,"Base","Scenario "&COLUMNS($AR17:AS17)-1) -> Scenario 1 | AT17: =IF(COLUMNS($AR17:AT17)=1,"Base","Scenario "&COLUMNS($AR17:AT17)-1) -> Scenario 2 | AU17: =IF(COLUMNS($AR17:AU17)=1,"Base","Scenario "&COLUMNS($AR17:AU17)-1) -> Scenario 3
AJ18: Profit & Loss
AJ19: Revenue | AP19: =IF(Cash_Sen_Selection=1,0,INDEX($AR19:$AU19,Cash_Sen_Selection)) -> 0 | AR19: 0 | AS19: -0.2 | AT19: -0.1 | AU19: 0
AJ20: Cost of Goods | AP20: =IF(Cash_Sen_Selection=1,0,INDEX($AR20:$AU20,Cash_Sen_Selection)) -> 0 | AR20: 0 | AS20: 0 | AT20: 0 | AU20: 0
AJ21: Salaries & Wages | AP21: =IF(Cash_Sen_Selection=1,0,INDEX($AR21:$AU21,Cash_Sen_Selection)) -> 0 | AR21: 0 | AS21: 0 | AT21: 0 | AU21: 0
AJ22: Operating Expenditure | AP22: =IF(Cash_Sen_Selection=1,0,INDEX($AR22:$AU22,Cash_Sen_Selection)) -> 0 | AR22: 0 | AS22: 0 | AT22: 0 | AU22: 0
AJ24: Balance Sheet
AJ25: Debtor Days | AP25: =IF(Cash_Sen_Selection=1,0,INDEX($AR25:$AU25,Cash_Sen_Selection)) -> 0 | AR25: 0 | AS25: 0 | AT25: 10 | AU25: 30
AJ26: Inventory Days | AP26: =IF(Cash_Sen_Selection=1,0,INDEX($AR26:$AU26,Cash_Sen_Selection)) -> 0 | AR26: 0 | AS26: 0 | AT26: 0 | AU26: 0
AJ27: Creditor Days | AP27: =IF(Cash_Sen_Selection=1,0,INDEX($AR27:$AU27,Cash_Sen_Selection)) -> 0 | AR27: 0 | AS27: 0 | AT27: 0 | AU27: 0
AJ29: Note: Key all items as adjustments
AJ30: e.g. | AK30: Revenue -10% reflects an decrease in revenue by 10%
AJ31: e.g. | AK31: Debtor days input of 15 reflects on average slower customer payments by 15 days
AJ33: Support Packages
AJ34: JobKeeper Eligibility | AP34: =IF(Cash_Sen_Selection=1,0,IF(AV34<>1,0,INDEX($AR34:$AU34,'Cash Data'!$I$33))) -> 0 | AR34: Yes | AS34: Yes | AT34: No | AU34: Yes | AV34: =Questionnaire!L56 -> 1 | AW34: =IF(AP34="Yes",1,0) -> 0
T36: ='Cash Data'!H27 -> 0
AJ37: Note: these items will not override the Questionnaire if not eligible
AJ38: e.g. | AK38: If JobKeeper is not eligible in the Questionnaire there will be no option to turn it on
AJ39: e.g. | AK39: If JobKeeper is eligible in the Questionnaire, then the options to change scenarios will be available

Sheet A (hidden)
C9: Assumptions
C10: Section 2.
C11: =Model_Name -> High Level 3-Way Financial Model
C12: Go to Table of Contents
C13: ç | D13: è
C17: Section Cover Notes:
C18: [Insert section cover note 1]
C19: [Insert section cover note 2]
C20: [Insert section cover note 3]

Sheet Time (hidden)
A1: ± | B1: Time Series
A2: x | B2: =Model_Name -> High Level 3-Way Financial Model
B4: Time Series - Assumptions
B6: Core Time Series Assumptions
B8: Primary Periodicity | H8: Monthly
B9: Financial Year End | H9: 6
B10: First Financial Year | H10: 2020
B11: Model Start Month | H11: 9
B12: Term (Months) | H12: 13
B13: Model Start Date | H13: =DATE(Ts_First_Fin_Yr-1,DD_Ts_Fin_Yr_End_Mth+DD_Ts_Model_Start_Mth,1) -> 2020-03-01
B14: Model End Date | H14: =EDATE(Ts_Start_Date,Ts_Term)-1 -> 2021-03-31
B15: Quarters In Model | H15: =YEAR(EDATE(Ts_End_Date,-DD_Ts_Fin_Yr_End_Mth))*Ts_Qtrs_In_Yr+ROUNDUP(MONTH(EDATE(Ts_End_Date,-DD_Ts_Fin_Yr_End_Mth))/Ts_Mths_In_Qtr,0) -(YEAR(EDATE(Ts_Start_Date,-DD_Ts_Fin_Yr_End_Mth))*Ts_Qtrs_In_Yr+ROUNDUP(MONTH(EDATE(Ts_Start_Date,-DD_Ts_Fin_Yr_End_Mth))/Ts_Mths_In_Qtr,0))+1 -> 5
B16: Halves In Model | H16: =YEAR(EDATE(Ts_End_Date,-DD_Ts_Fin_Yr_End_Mth))*Ts_Halves_In_Yr+ROUNDUP(MONTH(EDATE(Ts_End_Date,-DD_Ts_Fin_Yr_End_Mth))/Ts_Mths_In_Half,0) -(YEAR(EDATE(Ts_Start_Date,-DD_Ts_Fin_Yr_End_Mth))*Ts_Halves_In_Yr+ROUNDUP(MONTH(EDATE(Ts_Start_Date,-DD_Ts_Fin_Yr_End_Mth))/Ts_Mths_In_Half,0))+1 -> 3
B17: Years In Model | H17: =(YEAR(Ts_End_Date)+IF(MONTH(Ts_End_Date)>DD_Ts_Fin_Yr_End_Mth,1,0))-(YEAR(Ts_Start_Date)+IF(MONTH(Ts_Start_Date)>DD_Ts_Fin_Yr_End_Mth,1,0))+1 -> 2
B18: Partial Period Identifier | H18: *
B19: Blended Period Identifier | H19: (B)
B20: Denomination | H20: $ | I20: 1
B21: Denomination Conversion Factor | H21: =INDEX(LU_Ts_Denom_Conv,DD_Ts_Denom) -> 1
B23: Historical & Forecast Time Frames
B25: Last Historical Month | H25: 1
B26: Auto-Hide Inactive Columns | H26: TRUE
B27: Last Historical Month End Date | H27: =EDATE(Ts_Start_Date,DD_Ts_Last_Hist_Mth)-1 -> 2020-03-31
B28: Historical Period Identifier | H28: (H)
B29: Forecast Period Identifier | H29: (F)
B31: Budget Time Frame
B33: First Budget Month | H33: 1
B34: Budget Term (Months) | H34: 12
B35: Budget Start Date | H35: =EDATE(Ts_Start_Date,DD_Ts_First_Budget_Mth-1) -> 2020-03-01
B36: Budget End Date | H36: =EDATE(Ts_Budget_Start_Date,Ts_Budget_Term)-1 -> 2021-02-28

Sheet FS Opening (hidden)
A1: ± | B1: Historical Financial Statements
A2: x | B2: =Model_Name -> High Level 3-Way Financial Model
B4: Month Ending | J4: =TEXT(J7,"mmm-yy") -> Mar-20
B5: Month | J5: ="M"&J11&IF(J8>DD_Ts_Last_Hist_Mth,Ts_Fcast_Per_ID,Ts_Hist_Per_ID) -> M9 (H)
B6: Period Start Date | J6: =EDATE(Ts_Start_Date,J8-1) -> 2020-03-01
B7: Period End Date | J7: =EDATE(Ts_Start_Date,J8)-1 -> 2020-03-31
B8: Counter | J8: =COLUMNS($J8:J8) -> 1
B9: Financial Year | J9: =YEAR(J7)+IF(MONTH(J7)>DD_Ts_Fin_Yr_End_Mth,1,0) -> 2020
B10: Active Column Number | J10: =IF(J8<=MIN(DD_Ts_Last_Hist_Mth,Ts_Term),J8,0) -> 1
B11: Month Number | J11: =MOD(MONTH(J7)-DD_Ts_Fin_Yr_End_Mth-1,Ts_Mths_In_Yr)+1 -> 9
B12: Month Key | J12: ="M"&J11&"-"&J9 -> M9-2020
B13: Quarter Key | J13: ="Q"&INT((J11-1)/Ts_Mths_In_Qtr)+1&"-"&J9 -> Q3-2020
B14: Half Key | J14: ="H"&INT((J11-1)/Ts_Mths_In_Half)+1&"-"&J9 -> H2-2020
B16: Historical Income Statement
B18: Revenue | I18: Rev | J18: 0
B19: Total Revenue | J19: =SUM(J18:J18) -> 0
J20: 0
B21: Cost of Sales | I21: CoS | J21: 0
B22: Total Cost of Sales | J22: =SUM(J21:J21) -> 0
B24: Other Revenue | I24: Oth.Rev | J24: 0
B25: Other Revenue (Non GST) | I25: Oth.Rev | J25: 0
B26: Total Other Revenue | J26: =SUM(J24:J25) -> 0
B28: Salaries & Wages | I28: Wages | J28: 0
B29: Superannuation | I29: Wages | J29: 0
B30: Total Salaries & Wages | J30: =SUM(J28:J29) -> 0
B32: Movement in Annual Leave Provision | I32: AL | J32: 0
B33: Movement in Long Service Leave Provision | I33: LSL | J33: 0
B34: Payroll Tax | I34: Payroll | J34: 0
B36: Operating Expenditure | I36: Opex. | J36: 0
B37: Total Operating Expenditure | J37: =SUM(J36:J36) -> 0
B39: Other Expenses | I39: Oth.Exp | J39: 0
B40: Other Expenses (Non GST) | I40: Oth.Exp | J40: 0
B41: Total Other Expenses | J41: =SUM(J39:J40) -> 0
B43: Depreciation | I43: Depr. | J43: 0
B44: Total Depreciation | J44: =SUM(J43:J43) -> 0
B46: Amortisation | I46: Amort. | J46: 0
B47: Total Amortisation | J47: =SUM(J46:J46) -> 0
B49: Interest Income | I49: Int.Rev | J49: 0
B51: Interest Expense | I51: Int.Exp | J51: 0
B52: Total Interest Expense | J52: =SUM(J51:J51) -> 0
B54: Tax Expense | I54: Tax | J54: 0
B56: Net Profit After Tax | J56: =J19-J22+J26-J30-J32-J33-J34-J37-J41-J44-J47+J49-J52-J54 -> 0
C58: =B56&" - Target" -> Net Profit After Tax - Target | J58: 0
C59: =B56&" - Calculated" -> Net Profit After Tax - Calculated | J59: =J56 -> 0
C60: =B56&" - Difference" -> Net Profit After Tax - Difference | J60: =J59-J58 -> 0
C62: Error Values | J62: =IF(ISERROR(J56),1,0) -> 0
C63: =B56&" - Target vs. Calculated" -> Net Profit After Tax - Target vs. Calculated | J63: =IF(J62<>0,0,IF(J58=0,0,IF(ROUND(J60,5)<>0,1,0))) -> 0
B64: Error Check | I64: =IF(ISERROR(SUM(J64:J64)),1,MIN(SUM(J64:J64),1)) -> 0 | J64: =IF(ISERROR(SUM(J62:J63)),1,MIN(SUM(J62:J63),1)) -> 0
C66: Implied NPAT | J66: =IF(J$8=1,0,J146-I146) -> 0
C67: Difference | J67: =IF(J$8=1,0,J66-J56) -> 0
C68: Manual Suppression (TRUE = Suppress) | J68: FALSE
B70: Alert Check (Dividends Check) | G70: =SUM(J67:J67) -> 0 | I70: =IF(ISERROR(SUM(J70:J70)),1,MIN(SUM(J70:J70),1)) -> 0 | J70: =IF(OR(J64<>0,J68=TRUE),0,IF(ROUND(J67,5)<>0,1,0)) -> 0
B72: Historical Balance Sheet
B74: Cash | I74: Cash | J74: =Questionnaire!K8 -> 50000
B76: Accounts Receivable | I76: AR | J76: =Questionnaire!K10 -> 50000
B77: Debtors | J77: =SUM(J76:J76) -> 50000
B79: Inventory | I79: Inventory | J79: =Questionnaire!K16 -> 15000
B80: Inventory | J80: =SUM(J79:J79) -> 15000
B82: Other Current Assets | I82: OCA | J82: 0
B83: Other Current Assets | J83: =SUM(J82:J82) -> 0
B85: Fixed Assets | I85: Fixed Assets | J85: 0
B86: Fixed Assets | J86: =SUM(J85:J85) -> 0
B88: Intangible Assets | I88: Intangibles | J88: 0
B89: Intangible Assets | J89: =SUM(J88:J88) -> 0
B91: Deferred Tax Assets | I91: DTA | J91: 0
B93: Other Non-Current Assets | I93: ONCA | J93: 0
B94: Other Non-Current Assets | J94: =SUM(J93:J93) -> 0
B96: Total Assets | J96: =J74+J77+J80+J83+J86+J89+J91+J94 -> 115000
B98: Accounts Payable | I98: AP.Creditors | J98: =Questionnaire!K13 -> 20000
B99: Creditors | J99: =SUM(J98:J98) -> 20000
B101: Inventory Payables | I101: AP.Inventory | J101: 0
B102: Inventory Payables | J102: =SUM(J101:J101) -> 0
B104: Capital Payables | I104: AP.Capital | J104: 0
B105: Capital Payables | J105: =SUM(J104:J104) -> 0
B107: Salaries & Wages Taxes Withheld | I107: PAYG | J107: =Questionnaire!K24 -> 5000
B108: Superannuation Withheld | I108: Super | J108: =Questionnaire!K28 -> 5000
B109: Payroll Tax Payable | I109: Payroll | J109: =Questionnaire!K31 -> 2000
B110: GST Payable | I110: GST | J110: =Questionnaire!K21 -> 1500
B111: Corporate Tax Payable | I111: Tax | J111: =Questionnaire!K32 -> 2000
B113: Interest Payable | I113: Int.Pay | J113: 0
B114: Interest Payable | J114: =SUM(J113:J113) -> 0
B116: Dividends Payable | I116: Divi | J116: 0
B118: Deferred Revenue | I118: Def Rev | J118: 0
B119: Deferred Revenue | J119: =SUM(J118:J118) -> 0
B121: Other Current Liabilities | I121: OCL
B122: Other Current Liabilities | J122: =SUM(J121:J121) -> 0
B124: Provision for Annual Leave | I124: AL | J124: 0
B125: Provision for Long Service Leave | I125: LSL | J125: 0
B127: =Questionnaire!G39 -> Business Loan | I127: Debt | J127: =Questionnaire!K39 -> 100000
B128: =Questionnaire!G45 -> Ovedraft | I128: Debt | J128: =Questionnaire!K45 -> 10000
B129: =Questionnaire!G51 -> Business Support Loan | I129: Debt | J129: =Questionnaire!K51 -> 0
B130: Debt | J130: =SUM(J127:J129) -> 110000
B132: Deferred Tax Liabilities | I132: DTL | J132: 0
B134: Other Non-Current Liabilities | I134: ONCL | J134: 0
B135: Other Non-Current Liabilities | J135: =SUM(J134:J134) -> 0
B137: Total Liabilities | J137: =J99+J102+J105+J107+J108+J109+J110+J111+J114+J116+J119+J122+J124+J125+J130+J132+J135 -> 145500
B139: Net Assets | J139: =J96-J137 -> -30500
B141: Ordinary Equity | I141: Equity | J141: 0
J142: 0
B143: Other Equity | I143: Oth.Equity | J143: 0
B144: Other Equity | J144: =SUM(J143:J143) -> 0
B146: Retained Profits | J146: =J139-J141-J144 -> -30500
B148: Total Equity | J148: =J141+J144+J146 -> -30500
C150: =B96&" - Target" -> Total Assets - Target | J150: 0
C151: =B96&" - Calculated" -> Total Assets - Calculated | J151: =J96 -> 115000
C152: =B96&" - Difference" -> Total Assets - Difference | J152: =ROUND(J151-J150,5) -> 115000
C154: =B137&" - Target" -> Total Liabilities - Target | J154: 0
C155: =B137&" - Calculated" -> Total Liabilities - Calculated | J155: =J137 -> 145500
C156: =B137&" - Difference" -> Total Liabilities - Difference | J156: =ROUND(J155-J154,5) -> 145500
C158: =B148&" - Target" -> Total Equity - Target | J158: 0
C159: =B148&" - Calculated" -> Total Equity - Calculated | J159: =J148 -> -30500
C160: =B148&" - Difference" -> Total Equity - Difference | J160: =ROUND(J159-J158,5) -> -30500
C162: Error Values | J162: =IF(ISERROR(J139-J148),1,0) -> 0
C163: Balance Check | J163: =IF(J162<>0,0,IF(ROUND(J139-J148,5)<>0,1,0)) -> 0
C164: =B96&" - Target vs. Calculated" -> Total Assets - Target vs. Calculated | J164: =IF(J162<>0,0,IF(J150=0,0,IF(J152<>0,1,0))) -> 0
C165: =B137&" - Target vs. Calculated" -> Total Liabilities - Target vs. Calculated | J165: =IF(J162<>0,0,IF(J154=0,0,IF(J156<>0,1,0))) -> 0
C166: =B148&" - Target vs. Calculated" -> Total Equity - Target vs. Calculated | J166: =IF(J162<>0,0,IF(J158=0,0,IF(J160<>0,1,0))) -> 0
B167: Error Check | I167: =IF(ISERROR(SUM(J167:J167)),1,MIN(SUM(J167:J167),1)) -> 0 | J167: =IF(ISERROR(SUM(J162:J166)),1,MIN(SUM(J162:J166),1)) -> 0

Sheet GovtStimulus (hidden)
A1: ± | B1: Government Stimulus
B2: =Model_Name -> High Level 3-Way Financial Model
B4: Month Ending | J4: =TEXT(J7,"mmm-yy") -> Mar-20 | K4: Apr-20 | L4: May-20 | M4: Jun-20 | N4: Jul-20 | O4: Aug-20 | P4: Sep-20 | Q4: Oct-20 | R4: Nov-20 | S4: Dec-20 | T4: Jan-21 | U4: Feb-21 | V4: Mar-21
B5: Month | J5: ="M"&J11&IF(J8>DD_Ts_Last_Hist_Mth,Ts_Fcast_Per_ID,Ts_Hist_Per_ID) -> M9 (H) | K5: M10 (F) | L5: M11 (F) | M5: M12 (F) | N5: M1 (F) | O5: M2 (F) | P5: M3 (F) | Q5: M4 (F) | R5: M5 (F) | S5: M6 (F) | T5: M7 (F) | U5: M8 (F) | V5: M9 (F)
B6: Period Start Date | J6: =EDATE(Ts_Start_Date,J8-1) -> 2020-03-01 | K6: 2020-04-01 | L6: 2020-05-01 | M6: 2020-06-01 | N6: 2020-07-01 | O6: 2020-08-01 | P6: 2020-09-01 | Q6: 2020-10-01 | R6: 2020-11-01 | S6: 2020-12-01 | T6: 2021-01-01 | U6: 2021-02-01 | V6: 2021-03-01
B7: Period End Date | J7: =EDATE(Ts_Start_Date,J8)-1 -> 2020-03-31 | K7: 2020-04-30 | L7: 2020-05-31 | M7: 2020-06-30 | N7: 2020-07-31 | O7: 2020-08-31 | P7: 2020-09-30 | Q7: 2020-10-31 | R7: 2020-11-30 | S7: 2020-12-31 | T7: 2021-01-31 | U7: 2021-02-28 | V7: 2021-03-31
B8: Counter | J8: =COLUMNS($J8:J8) -> 1 | K8: =COLUMNS($J8:K8) -> 2 | L8: =COLUMNS($J8:L8) -> 3 | M8: =COLUMNS($J8:M8) -> 4 | N8: =COLUMNS($J8:N8) -> 5 | O8: =COLUMNS($J8:O8) -> 6 | P8: =COLUMNS($J8:P8) -> 7 | Q8: =COLUMNS($J8:Q8) -> 8 | R8: =COLUMNS($J8:R8) -> 9 | S8: =COLUMNS($J8:S8) -> 10 | T8: =COLUMNS($J8:T8) -> 11 | U8: =COLUMNS($J8:U8) -> 12 | V8: =COLUMNS($J8:V8) -> 13
B9: Financial Year | J9: =YEAR(J7)+IF(MONTH(J7)>DD_Ts_Fin_Yr_End_Mth,1,0) -> 2020 | K9: 2020 | L9: 2020 | M9: 2020 | N9: 2021 | O9: 2021 | P9: 2021 | Q9: 2021 | R9: 2021 | S9: 2021 | T9: 2021 | U9: 2021 | V9: 2021
B10: Active Column Number | J10: =IF(AND(J8>DD_Ts_Last_Hist_Mth,J8<=Ts_Term),J8-DD_Ts_Last_Hist_Mth,0) -> 0 | K10: 1 | L10: 2 | M10: 3 | N10: 4 | O10: 5 | P10: 6 | Q10: 7 | R10: 8 | S10: 9 | T10: 10 | U10: 11 | V10: 12
B11: Month Number | J11: =MOD(MONTH(J7)-DD_Ts_Fin_Yr_End_Mth-1,Ts_Mths_In_Yr)+1 -> 9 | K11: 10 | L11: 11 | M11: 12 | N11: 1 | O11: 2 | P11: 3 | Q11: 4 | R11: 5 | S11: 6 | T11: 7 | U11: 8 | V11: 9
B12: Month Key | J12: ="M"&J11&"-"&J9 -> M9-2020 | K12: M10-2020 | L12: M11-2020 | M12: M12-2020 | N12: M1-2021 | O12: M2-2021 | P12: M3-2021 | Q12: M4-2021 | R12: M5-2021 | S12: M6-2021 | T12: M7-2021 | U12: M8-2021 | V12: M9-2021
B13: Quarter Key | J13: ="Q"&INT((J11-1)/Ts_Mths_In_Qtr)+1&"-"&J9 -> Q3-2020 | K13: Q4-2020 | L13: Q4-2020 | M13: Q4-2020 | N13: Q1-2021 | O13: Q1-2021 | P13: Q1-2021 | Q13: Q2-2021 | R13: Q2-2021 | S13: Q2-2021 | T13: Q3-2021 | U13: Q3-2021 | V13: Q3-2021
B14: Half Key | J14: ="H"&INT((J11-1)/Ts_Mths_In_Half)+1&"-"&J9 -> H2-2020 | K14: H2-2020 | L14: H2-2020 | M14: H2-2020 | N14: H1-2021 | O14: H1-2021 | P14: H1-2021 | Q14: H1-2021 | R14: H1-2021 | S14: H1-2021 | T14: H2-2021 | U14: H2-2021 | V14: H2-2021
B16: Government Subsidies - Assumptions
B18: JobKeeper Payment
B20: Sensitivity | H20: =Scenarios!AW34 -> 0
B21: Employer Eligibility | H21: =IF(H20<>1,0,Questionnaire!L56) -> 0
B22: Employees Eligible | H22: =Questionnaire!L57 -> 3
B24: JobKeeper Start Date | H24: 2020-04-01
B25: JobKeeper End Date | H25: 2020-09-30 | J25: =IF($H$21<>1,0,IF(AND($H$25>=J$6,$H$24<=J$7),1,0)) -> 0 | K25: 0 | L25: 0 | M25: 0 | N25: 0 | O25: 0 | P25: 0 | Q25: 0 | R25: 0 | S25: 0 | T25: 0 | U25: 0 | V25: 0
B26: JobKeeper Payment Amount | H26: 1500
B28: JobKeeper Recognition Period | J28: =IF(J$25<>1,0,J$7) -> 00:00:00 | K28: 00:00:00 | L28: 00:00:00 | M28: 00:00:00 | N28: 00:00:00 | O28: 00:00:00 | P28: 00:00:00 | Q28: 00:00:00 | R28: 00:00:00 | S28: 00:00:00 | T28: 00:00:00 | U28: 00:00:00 | V28: 00:00:00
B29: JobKeeper Payment Period | J29: =IF(J$25<>1,0,EOMONTH(J28,1)) -> 00:00:00 | K29: 00:00:00 | L29: 00:00:00 | M29: 00:00:00 | N29: 00:00:00 | O29: 00:00:00 | P29: 00:00:00 | Q29: 00:00:00 | R29: 00:00:00 | S29: 00:00:00 | T29: 00:00:00 | U29: 00:00:00 | V29: 00:00:00
B30: Fortnightly Payments | H30: =RevExp!I48 -> 0 | J30: =IF(J$25,RevExp!J48,0) -> 0 | K30: =IF(K$25,RevExp!K48,0) -> 0 | L30: =IF(L$25,RevExp!L48,0) -> 0 | M30: =IF(M$25,RevExp!M48,0) -> 0 | N30: =IF(N$25,RevExp!N48,0) -> 0 | O30: =IF(O$25,RevExp!O48,0) -> 0 | P30: =IF(P$25,RevExp!P48,0) -> 0 | Q30: =IF(Q$25,RevExp!Q48,0) -> 0 | R30: =IF(R$25,RevExp!R48,0) -> 0 | S30: =IF(S$25,RevExp!S48,0) -> 0 | T30: =IF(T$25,RevExp!T48,0) -> 0 | U30: =IF(U$25,RevExp!U48,0) -> 0 | V30: =IF(V$25,RevExp!V48,0) -> 0
B32: JobKeeper Amount | J32: =IF(J$25<>1,0,IF($H$30,J30*$H$26*$H$22,$H$22*$H$26*2)) -> 0 | K32: 0 | L32: 0 | M32: 0 | N32: 0 | O32: 0 | P32: 0 | Q32: 0 | R32: 0 | S32: 0 | T32: 0 | U32: 0 | V32: 0
B33: JobKeeper Payment | J33: =IF(J$8<=DD_Ts_Last_Hist_Mth,0,SUMIF($J29:J29,J$7,$J32:J32)) -> 0 | K33: =IF(K$8<=DD_Ts_Last_Hist_Mth,0,SUMIF($J29:K29,K$7,$J32:K32)) -> 0 | L33: =IF(L$8<=DD_Ts_Last_Hist_Mth,0,SUMIF($J29:L29,L$7,$J32:L32)) -> 0 | M33: =IF(M$8<=DD_Ts_Last_Hist_Mth,0,SUMIF($J29:M29,M$7,$J32:M32)) -> 0 | N33: =IF(N$8<=DD_Ts_Last_Hist_Mth,0,SUMIF($J29:N29,N$7,$J32:N32)) -> 0 | O33: =IF(O$8<=DD_Ts_Last_Hist_Mth,0,SUMIF($J29:O29,O$7,$J32:O32)) -> 0 | P33: =IF(P$8<=DD_Ts_Last_Hist_Mth,0,SUMIF($J29:P29,P$7,$J32:P32)) -> 0 | Q33: =IF(Q$8<=DD_Ts_Last_Hist_Mth,0,SUMIF($J29:Q29,Q$7,$J32:Q32)) -> 0 | R33: =IF(R$8<=DD_Ts_Last_Hist_Mth,0,SUMIF($J29:R29,R$7,$J32:R32)) -> 0 | S33: =IF(S$8<=DD_Ts_Last_Hist_Mth,0,SUMIF($J29:S29,S$7,$J32:S32)) -> 0 | T33: =IF(T$8<=DD_Ts_Last_Hist_Mth,0,SUMIF($J29:T29,T$7,$J32:T32)) -> 0 | U33: =IF(U$8<=DD_Ts_Last_Hist_Mth,0,SUMIF($J29:U29,U$7,$J32:U32)) -> 0 | V33: =IF(V$8<=DD_Ts_Last_Hist_Mth,0,SUMIF($J29:V29,V$7,$J32:V32)) -> 0
C35: =RevExp!B57 -> Total Base Salaries & Wages | J35: =RevExp!J57 -> 0 | K35: =RevExp!K57 -> 17000 | L35: =RevExp!L57 -> 17000 | M35: =RevExp!M57 -> 17000 | N35: =RevExp!N57 -> 17000 | O35: =RevExp!O57 -> 17000 | P35: =RevExp!P57 -> 17000 | Q35: =RevExp!Q57 -> 17000 | R35: =RevExp!R57 -> 17000 | S35: =RevExp!S57 -> 17000 | T35: =RevExp!T57 -> 17000 | U35: =RevExp!U57 -> 17000 | V35: =RevExp!V57 -> 17000
B36: Alert Check | I36: =IF(ISERROR(SUM(J36:V36)),1,MIN(SUM(J36:V36),1)) -> 0 | J36: =IF(J32>J35,1,0) -> 0 | K36: 0 | L36: 0 | M36: 0 | N36: 0 | O36: 0 | P36: 0 | Q36: 0 | R36: 0 | S36: 0 | T36: 0 | U36: 0 | V36: 0
B38: Cashflow Boost
B40: PAYG Frequency | G40: =WorkCap!H201 -> Quarterly | H40: =WorkCap!I201 -> 1
B41: Min to Jun | G41: 10000
B42: Max to Jun | G42: 50000
B43: First Quarter End | G43: =EOMONTH(H43,0) -> 2020-03-31 | H43: 2020-03-31
B44: Second Quarter End | G44: =EOMONTH(H44,0) -> 2020-06-30 | H44: 2020-06-30
B45: Third Qaurter End | G45: =EOMONTH(H45,0) -> 2020-09-30 | H45: 2020-09-30
B46: No. of Month July to Oct | G46: 4
B47: =Questionnaire!B24 -> Current PAYG Withholding Payable | J47: =Questionnaire!K24 -> 5000 | K47: =Questionnaire!L24 -> 0 | L47: =Questionnaire!M24 -> As at the end of March 2020 | M47: =Questionnaire!N24 -> 0 | N47: =Questionnaire!O24 -> 0 | O47: =Questionnaire!P24 -> 0 | P47: =Questionnaire!Q24 -> 0 | Q47: =Questionnaire!R24 -> 0 | R47: =Questionnaire!S24 -> 0 | S47: =Questionnaire!T24 -> 0 | T47: =Questionnaire!U24 -> 0 | U47: =Questionnaire!V24 -> 0 | V47: =Questionnaire!W24 -> 0
B48: Periodic PAYG Witheld | J48: =WorkCap!J211 -> 0 | K48: =WorkCap!K211 -> 4675 | L48: =WorkCap!L211 -> 4675 | M48: =WorkCap!M211 -> 4675 | N48: =WorkCap!N211 -> 4675 | O48: =WorkCap!O211 -> 4675 | P48: =WorkCap!P211 -> 4675 | Q48: =WorkCap!Q211 -> 4675 | R48: =WorkCap!R211 -> 4675 | S48: =WorkCap!S211 -> 4675 | T48: =WorkCap!T211 -> 4675 | U48: =WorkCap!U211 -> 4675 | V48: =WorkCap!V211 -> 4675
B50: Monthly
B52: Jan - Mar Credit | H52: =SUM(J52:V52) -> 15000 | J52: =IF(I$7=$G43,MIN(MAX($G41,I47*Ts_Mths_In_Qtr),$G42),0) -> 0 | K52: 15000 | L52: 0 | M52: 0 | N52: 0 | O52: 0 | P52: 0 | Q52: 0 | R52: 0 | S52: 0 | T52: 0 | U52: 0 | V52: 0
B53: Apr - Jun Credit | H53: =SUM(J53:V53) -> 14025 | J53: =MIN($G42-$H52-SUMIF($J$8:$V$8,"<"&J$8,$J$53:$V$53),IF(AND(J$7>$G43,J$7<=$G44),J48,0)) -> 0 | K53: 4675 | L53: 4675 | M53: 4675 | N53: 0 | O53: 0 | P53: 0 | Q53: 0 | R53: 0 | S53: 0 | T53: 0 | U53: 0 | V53: 0
B54: July - Oct Credit | H54: =SUM(H52:H53) -> 29025 | J54: =IF(AND(J$7>$G44,J$7<=EOMONTH($G45,1)),$H54/$G$46,0) -> 0 | K54: 0 | L54: 0 | M54: 0 | N54: 7256.25 | O54: 7256.25 | P54: 7256.25 | Q54: 7256.25 | R54: 0 | S54: 0 | T54: 0 | U54: 0 | V54: 0
B55: Total Credit | J55: =SUM(J52:J54) -> 0 | K55: 19675 | L55: 4675 | M55: 4675 | N55: 7256.25 | O55: 7256.25 | P55: 7256.25 | Q55: 7256.25 | R55: 0 | S55: 0 | T55: 0 | U55: 0 | V55: 0
B57: Quarterly
B59: Jan - Mar Credit | H59: =SUM(J59:V59) -> 10000 | J59: =IF(I$7=$G43,MIN(MAX($G41,SUM(G47,H47,I47)),$G42),0) -> 0 | K59: 10000 | L59: 0 | M59: 0 | N59: 0 | O59: 0 | P59: 0 | Q59: 0 | R59: 0 | S59: 0 | T59: 0 | U59: 0 | V59: 0
B60: Apr - Jun Credit | H60: =SUM(J60:V60) -> 14025 | J60: =MIN($G42-$H59-SUMIF($J$8:$V$8,"<"&J$8,$J$60:$V$60),IF(AND(J$7>$G43,J$7<=$G44),J48,0)) -> 0 | K60: 4675 | L60: 4675 | M60: 4675 | N60: 0 | O60: 0 | P60: 0 | Q60: 0 | R60: 0 | S60: 0 | T60: 0 | U60: 0 | V60: 0
B61: Credit Received in Jun | J61: =IF(J$7=$G$44,$H60,0) -> 0 | K61: 0 | L61: 0 | M61: 14025 | N61: 0 | O61: 0 | P61: 0 | Q61: 0 | R61: 0 | S61: 0 | T61: 0 | U61: 0 | V61: 0
B62: July - Oct Credit | H62: =SUM(H59:H60) -> 24025 | J62: =IF(AND(J$7>$G44,J$7<=EOMONTH($G45,1)),$H62/$G$46,0) -> 0 | K62: 0 | L62: 0 | M62: 0 | N62: 6006.25 | O62: 6006.25 | P62: 6006.25 | Q62: 6006.25 | R62: 0 | S62: 0 | T62: 0 | U62: 0 | V62: 0
B63: Quarter End Credit | J63: =IF(OR(I$7=$G$44,I$7=$G$45),$H$62/2,0) -> 0 | K63: 0 | L63: 0 | M63: 0 | N63: 12012.5 | O63: 0 | P63: 0 | Q63: 12012.5 | R63: 0 | S63: 0 | T63: 0 | U63: 0 | V63: 0
B64: Total Credit | J64: =J59+J61+J63 -> 0 | K64: 10000 | L64: 0 | M64: 14025 | N64: 12012.5 | O64: 0 | P64: 0 | Q64: 12012.5 | R64: 0 | S64: 0 | T64: 0 | U64: 0 | V64: 0
B66: Cashflow Boost Payment | J66: =CHOOSE($H$40,J64,J55) -> 0 | K66: 10000 | L66: 0 | M66: 14025 | N66: 12012.5 | O66: 0 | P66: 0 | Q66: 12012.5 | R66: 0 | S66: 0 | T66: 0 | U66: 0 | V66: 0
B68: Payroll Tax Stimulus
B70: Payroll Tax Year | H70: 2020
B71: Payroll Tax already paid | H71: =Questionnaire!L62 -> 5000
B72: Expected refund date | H72: =Questionnaire!K61 -> 2020-05-31
B74: Payroll Tax Paid Refund | J74: =IF(AND($H$72>=J$6,$H$72<=J$7),$H$71,0) -> 0 | K74: 0 | L74: 5000 | M74: 0 | N74: 0 | O74: 0 | P74: 0 | Q74: 0 | R74: 0 | S74: 0 | T74: 0 | U74: 0 | V74: 0

Sheet WorkCap (hidden)
A1: ± | B1: Working Capital
A2: x | B2: =Model_Name -> High Level 3-Way Financial Model
B4: Month Ending | J4: =TEXT(J7,"mmm-yy") -> Mar-20 | K4: Apr-20 | L4: May-20 | M4: Jun-20 | N4: Jul-20 | O4: Aug-20 | P4: Sep-20 | Q4: Oct-20 | R4: Nov-20 | S4: Dec-20 | T4: Jan-21 | U4: Feb-21 | V4: Mar-21
B5: Month | J5: ="M"&J11&IF(J8>DD_Ts_Last_Hist_Mth,Ts_Fcast_Per_ID,Ts_Hist_Per_ID) -> M9 (H) | K5: M10 (F) | L5: M11 (F) | M5: M12 (F) | N5: M1 (F) | O5: M2 (F) | P5: M3 (F) | Q5: M4 (F) | R5: M5 (F) | S5: M6 (F) | T5: M7 (F) | U5: M8 (F) | V5: M9 (F)
B6: Period Start Date | J6: =EDATE(Ts_Start_Date,J8-1) -> 2020-03-01 | K6: 2020-04-01 | L6: 2020-05-01 | M6: 2020-06-01 | N6: 2020-07-01 | O6: 2020-08-01 | P6: 2020-09-01 | Q6: 2020-10-01 | R6: 2020-11-01 | S6: 2020-12-01 | T6: 2021-01-01 | U6: 2021-02-01 | V6: 2021-03-01
B7: Period End Date | J7: =EDATE(Ts_Start_Date,J8)-1 -> 2020-03-31 | K7: 2020-04-30 | L7: 2020-05-31 | M7: 2020-06-30 | N7: 2020-07-31 | O7: 2020-08-31 | P7: 2020-09-30 | Q7: 2020-10-31 | R7: 2020-11-30 | S7: 2020-12-31 | T7: 2021-01-31 | U7: 2021-02-28 | V7: 2021-03-31
B8: Counter | J8: =COLUMNS($J8:J8) -> 1 | K8: =COLUMNS($J8:K8) -> 2 | L8: =COLUMNS($J8:L8) -> 3 | M8: =COLUMNS($J8:M8) -> 4 | N8: =COLUMNS($J8:N8) -> 5 | O8: =COLUMNS($J8:O8) -> 6 | P8: =COLUMNS($J8:P8) -> 7 | Q8: =COLUMNS($J8:Q8) -> 8 | R8: =COLUMNS($J8:R8) -> 9 | S8: =COLUMNS($J8:S8) -> 10 | T8: =COLUMNS($J8:T8) -> 11 | U8: =COLUMNS($J8:U8) -> 12 | V8: =COLUMNS($J8:V8) -> 13
B9: Financial Year | J9: =YEAR(J7)+IF(MONTH(J7)>DD_Ts_Fin_Yr_End_Mth,1,0) -> 2020 | K9: 2020 | L9: 2020 | M9: 2020 | N9: 2021 | O9: 2021 | P9: 2021 | Q9: 2021 | R9: 2021 | S9: 2021 | T9: 2021 | U9: 2021 | V9: 2021
B10: Active Column Number | J10: =IF(AND(J8>DD_Ts_Last_Hist_Mth,J8<=Ts_Term),J8-DD_Ts_Last_Hist_Mth,0) -> 0 | K10: 1 | L10: 2 | M10: 3 | N10: 4 | O10: 5 | P10: 6 | Q10: 7 | R10: 8 | S10: 9 | T10: 10 | U10: 11 | V10: 12
B11: Month Number | J11: =MOD(MONTH(J7)-DD_Ts_Fin_Yr_End_Mth-1,Ts_Mths_In_Yr)+1 -> 9 | K11: 10 | L11: 11 | M11: 12 | N11: 1 | O11: 2 | P11: 3 | Q11: 4 | R11: 5 | S11: 6 | T11: 7 | U11: 8 | V11: 9
B12: Month Key | J12: ="M"&J11&"-"&J9 -> M9-2020 | K12: M10-2020 | L12: M11-2020 | M12: M12-2020 | N12: M1-2021 | O12: M2-2021 | P12: M3-2021 | Q12: M4-2021 | R12: M5-2021 | S12: M6-2021 | T12: M7-2021 | U12: M8-2021 | V12: M9-2021
B13: Quarter Key | J13: ="Q"&INT((J11-1)/Ts_Mths_In_Qtr)+1&"-"&J9 -> Q3-2020 | K13: Q4-2020 | L13: Q4-2020 | M13: Q4-2020 | N13: Q1-2021 | O13: Q1-2021 | P13: Q1-2021 | Q13: Q2-2021 | R13: Q2-2021 | S13: Q2-2021 | T13: Q3-2021 | U13: Q3-2021 | V13: Q3-2021
B14: Half Key | J14: ="H"&INT((J11-1)/Ts_Mths_In_Half)+1&"-"&J9 -> H2-2020 | K14: H2-2020 | L14: H2-2020 | M14: H2-2020 | N14: H1-2021 | O14: H1-2021 | P14: H1-2021 | Q14: H1-2021 | R14: H1-2021 | S14: H1-2021 | T14: H2-2021 | U14: H2-2021 | V14: H2-2021
B16: Debtors (Days Terms)
B18: Sensitivity | H18: =Scenarios!AP25 -> 0
B20: Revenue Allocation
B22: Revenue (Inc. GST) | H22: Allocation
A23: =IFERROR(MATCH(H23,LU!$D$170:$D$171,0),1) -> 2 | B23: =Tax!B151 -> Revenue | H23: Accounts Receivable | J23: =IF(J$8<=DD_Ts_Last_Hist_Mth,0,Tax!J151) -> 0 | K23: =IF(K$8<=DD_Ts_Last_Hist_Mth,0,Tax!K151) -> 44000 | L23: =IF(L$8<=DD_Ts_Last_Hist_Mth,0,Tax!L151) -> 44000 | M23: =IF(M$8<=DD_Ts_Last_Hist_Mth,0,Tax!M151) -> 44000 | N23: =IF(N$8<=DD_Ts_Last_Hist_Mth,0,Tax!N151) -> 44000 | O23: =IF(O$8<=DD_Ts_Last_Hist_Mth,0,Tax!O151) -> 44000 | P23: =IF(P$8<=DD_Ts_Last_Hist_Mth,0,Tax!P151) -> 44000 | Q23: =IF(Q$8<=DD_Ts_Last_Hist_Mth,0,Tax!Q151) -> 44000 | R23: =IF(R$8<=DD_Ts_Last_Hist_Mth,0,Tax!R151) -> 44000 | S23: =IF(S$8<=DD_Ts_Last_Hist_Mth,0,Tax!S151) -> 44000 | T23: =IF(T$8<=DD_Ts_Last_Hist_Mth,0,Tax!T151) -> 44000 | U23: =IF(U$8<=DD_Ts_Last_Hist_Mth,0,Tax!U151) -> 44000 | V23: =IF(V$8<=DD_Ts_Last_Hist_Mth,0,Tax!V151) -> 44000
A24: =IFERROR(MATCH(H24,LU!$D$170:$D$171,0),1) -> 1 | B24: =Tax!B154 -> Other Revenue | H24: None (Cash) | J24: =IF(J$8<=DD_Ts_Last_Hist_Mth,0,Tax!J154) -> 0 | K24: =IF(K$8<=DD_Ts_Last_Hist_Mth,0,Tax!K154) -> 0 | L24: =IF(L$8<=DD_Ts_Last_Hist_Mth,0,Tax!L154) -> 0 | M24: =IF(M$8<=DD_Ts_Last_Hist_Mth,0,Tax!M154) -> 0 | N24: =IF(N$8<=DD_Ts_Last_Hist_Mth,0,Tax!N154) -> 0 | O24: =IF(O$8<=DD_Ts_Last_Hist_Mth,0,Tax!O154) -> 0 | P24: =IF(P$8<=DD_Ts_Last_Hist_Mth,0,Tax!P154) -> 0 | Q24: =IF(Q$8<=DD_Ts_Last_Hist_Mth,0,Tax!Q154) -> 0 | R24: =IF(R$8<=DD_Ts_Last_Hist_Mth,0,Tax!R154) -> 0 | S24: =IF(S$8<=DD_Ts_Last_Hist_Mth,0,Tax!S154) -> 0 | T24: =IF(T$8<=DD_Ts_Last_Hist_Mth,0,Tax!T154) -> 0 | U24: =IF(U$8<=DD_Ts_Last_Hist_Mth,0,Tax!U154) -> 0 | V24: =IF(V$8<=DD_Ts_Last_Hist_Mth,0,Tax!V154) -> 0
A25: =IFERROR(MATCH(H25,LU!$D$170:$D$171,0),1) -> 1 | B25: =Tax!B155 -> Other Revenue (Non GST) | H25: None (Cash) | J25: =IF(J$8<=DD_Ts_Last_Hist_Mth,0,Tax!J155) -> 0 | K25: =IF(K$8<=DD_Ts_Last_Hist_Mth,0,Tax!K155) -> 10000 | L25: =IF(L$8<=DD_Ts_Last_Hist_Mth,0,Tax!L155) -> 0 | M25: =IF(M$8<=DD_Ts_Last_Hist_Mth,0,Tax!M155) -> 14025 | N25: =IF(N$8<=DD_Ts_Last_Hist_Mth,0,Tax!N155) -> 12012.5 | O25: =IF(O$8<=DD_Ts_Last_Hist_Mth,0,Tax!O155) -> 0 | P25: =IF(P$8<=DD_Ts_Last_Hist_Mth,0,Tax!P155) -> 0 | Q25: =IF(Q$8<=DD_Ts_Last_Hist_Mth,0,Tax!Q155) -> 12012.5 | R25: =IF(R$8<=DD_Ts_Last_Hist_Mth,0,Tax!R155) -> 0 | S25: =IF(S$8<=DD_Ts_Last_Hist_Mth,0,Tax!S155) -> 0 | T25: =IF(T$8<=DD_Ts_Last_Hist_Mth,0,Tax!T155) -> 0 | U25: =IF(U$8<=DD_Ts_Last_Hist_Mth,0,Tax!U155) -> 0 | V25: =IF(V$8<=DD_Ts_Last_Hist_Mth,0,Tax!V155) -> 0
B27: Schedules | I27: Opening
B29: Cash Flow Timing
B30: Days in Period | J30: =IF(J$8<=DD_Ts_Last_Hist_Mth,0,J$7-J$6+1) -> 0 | K30: 30 | L30: 31 | M30: 30 | N30: 31 | O30: 31 | P30: 30 | Q30: 31 | R30: 30 | S30: 31 | T30: 31 | U30: 28 | V30: 31
B31: Period Start Timing | J31: =IF(J$8<=DD_Ts_Last_Hist_Mth+1,0,I32) -> 0 | K31: 0 | L31: 30 | M31: 61 | N31: 91 | O31: 122 | P31: 153 | Q31: 183 | R31: 214 | S31: 244 | T31: 275 | U31: 306 | V31: 334
B32: Period End Timing | J32: =J31+J30 -> 0 | K32: 30 | L32: 61 | M32: 91 | N32: 122 | O32: 153 | P32: 183 | Q32: 214 | R32: 244 | S32: 275 | T32: 306 | U32: 334 | V32: 365
B34: ='FS Opening'!B76 -> Accounts Receivable
B35: Opening Balance | J35: =IF(J$8<=DD_Ts_Last_Hist_Mth,0,IF(J$8=DD_Ts_Last_Hist_Mth+1,OFFSET('FS Opening'!J76,0,-1),I50)) -> 0 | K35: =IF(K$8<=DD_Ts_Last_Hist_Mth,0,IF(K$8=DD_Ts_Last_Hist_Mth+1,OFFSET('FS Opening'!K76,0,-1),J50)) -> 50000 | L35: =IF(L$8<=DD_Ts_Last_Hist_Mth,0,IF(L$8=DD_Ts_Last_Hist_Mth+1,OFFSET('FS Opening'!L76,0,-1),K50)) -> 44000 | M35: =IF(M$8<=DD_Ts_Last_Hist_Mth,0,IF(M$8=DD_Ts_Last_Hist_Mth+1,OFFSET('FS Opening'!M76,0,-1),L50)) -> 42580.64516 | N35: =IF(N$8<=DD_Ts_Last_Hist_Mth,0,IF(N$8=DD_Ts_Last_Hist_Mth+1,OFFSET('FS Opening'!N76,0,-1),M50)) -> 44000 | O35: =IF(O$8<=DD_Ts_Last_Hist_Mth,0,IF(O$8=DD_Ts_Last_Hist_Mth+1,OFFSET('FS Opening'!O76,0,-1),N50)) -> 42580.64516 | P35: =IF(P$8<=DD_Ts_Last_Hist_Mth,0,IF(P$8=DD_Ts_Last_Hist_Mth+1,OFFSET('FS Opening'!P76,0,-1),O50)) -> 42580.64516 | Q35: =IF(Q$8<=DD_Ts_Last_Hist_Mth,0,IF(Q$8=DD_Ts_Last_Hist_Mth+1,OFFSET('FS Opening'!Q76,0,-1),P50)) -> 44000 | R35: =IF(R$8<=DD_Ts_Last_Hist_Mth,0,IF(R$8=DD_Ts_Last_Hist_Mth+1,OFFSET('FS Opening'!R76,0,-1),Q50)) -> 42580.64516 | S35: =IF(S$8<=DD_Ts_Last_Hist_Mth,0,IF(S$8=DD_Ts_Last_Hist_Mth+1,OFFSET('FS Opening'!S76,0,-1),R50)) -> 44000 | T35: =IF(T$8<=DD_Ts_Last_Hist_Mth,0,IF(T$8=DD_Ts_Last_Hist_Mth+1,OFFSET('FS Opening'!T76,0,-1),S50)) -> 42580.64516 | U35: =IF(U$8<=DD_Ts_Last_Hist_Mth,0,IF(U$8=DD_Ts_Last_Hist_Mth+1,OFFSET('FS Opening'!U76,0,-1),T50)) -> 42580.64516 | V35: =IF(V$8<=DD_Ts_Last_Hist_Mth,0,IF(V$8=DD_Ts_Last_Hist_Mth+1,OFFSET('FS Opening'!V76,0,-1),U50)) -> 46838.70968
B36: Revenue | J36: =IF(J$8<=DD_Ts_Last_Hist_Mth,0,SUMIF($A$23:$A$25,ROWS(LU!$D171:$D$171)+1,J$23:J$25)) -> 0 | K36: =IF(K$8<=DD_Ts_Last_Hist_Mth,0,SUMIF($A$23:$A$25,ROWS(LU!$D171:$D$171)+1,K$23:K$25)) -> 44000 | L36: =IF(L$8<=DD_Ts_Last_Hist_Mth,0,SUMIF($A$23:$A$25,ROWS(LU!$D171:$D$171)+1,L$23:L$25)) -> 44000 | M36: =IF(M$8<=DD_Ts_Last_Hist_Mth,0,SUMIF($A$23:$A$25,ROWS(LU!$D171:$D$171)+1,M$23:M$25)) -> 44000 | N36: =IF(N$8<=DD_Ts_Last_Hist_Mth,0,SUMIF($A$23:$A$25,ROWS(LU!$D171:$D$171)+1,N$23:N$25)) -> 44000 | O36: =IF(O$8<=DD_Ts_Last_Hist_Mth,0,SUMIF($A$23:$A$25,ROWS(LU!$D171:$D$171)+1,O$23:O$25)) -> 44000 | P36: =IF(P$8<=DD_Ts_Last_Hist_Mth,0,SUMIF($A$23:$A$25,ROWS(LU!$D171:$D$171)+1,P$23:P$25)) -> 44000 | Q36: =IF(Q$8<=DD_Ts_Last_Hist_Mth,0,SUMIF($A$23:$A$25,ROWS(LU!$D171:$D$171)+1,Q$23:Q$25)) -> 44000 | R36: =IF(R$8<=DD_Ts_Last_Hist_Mth,0,SUMIF($A$23:$A$25,ROWS(LU!$D171:$D$171)+1,R$23:R$25)) -> 44000 | S36: =IF(S$8<=DD_Ts_Last_Hist_Mth,0,SUMIF($A$23:$A$25,ROWS(LU!$D171:$D$171)+1,S$23:S$25)) -> 44000 | T36: =IF(T$8<=DD_Ts_Last_Hist_Mth,0,SUMIF($A$23:$A$25,ROWS(LU!$D171:$D$171)+1,T$23:T$25)) -> 44000 | U36: =IF(U$8<=DD_Ts_Last_Hist_Mth,0,SUMIF($A$23:$A$25,ROWS(LU!$D171:$D$171)+1,U$23:U$25)) -> 44000 | V36: =IF(V$8<=DD_Ts_Last_Hist_Mth,0,SUMIF($A$23:$A$25,ROWS(LU!$D171:$D$171)+1,V$23:V$25)) -> 44000
F37: Opening Balance Cash Receipts - Profile | J37: =IF(J$8<=DD_Ts_Last_Hist_Mth,0,IF($I52=0,0,(MIN($I52,J$32)-MIN($I52,J$31))/$I52)) -> 0 | K37: 1 | L37: 0 | M37: 0 | N37: 0 | O37: 0 | P37: 0 | Q37: 0 | R37: 0 | S37: 0 | T37: 0 | U37: 0 | V37: 0
C38: Opening Balance Cash Receipts | J38: =IF(J$8<=DD_Ts_Last_Hist_Mth,0,-OFFSET($J35,0,DD_Ts_Last_Hist_Mth)*J37) -> 0 | K38: -50000 | L38: 0 | M38: 0 | N38: 0 | O38: 0 | P38: 0 | Q38: 0 | R38: 0 | S38: 0 | T38: 0 | U38: 0 | V38: 0
F39: =B52 -> Cash Receipt Delay (Days) | J39: =IF(J$8<=DD_Ts_Last_Hist_Mth,0,J52) -> 0 | K39: 30 | L39: 30 | M39: 30 | N39: 30 | O39: 30 | P39: 30 | Q39: 30 | R39: 30 | S39: 30 | T39: 30 | U39: 30 | V39: 30
F40: Cash Receipts Start Time | J40: =IF(J$8<=DD_Ts_Last_Hist_Mth,0,J$31+J39) -> 0 | K40: 30 | L40: 60 | M40: 91 | N40: 121 | O40: 152 | P40: 183 | Q40: 213 | R40: 244 | S40: 274 | T40: 305 | U40: 336 | V40: 364
F41: Cash Receipts End Time | J41: =IF(J$8<=DD_Ts_Last_Hist_Mth,0,J40+J$30) -> 0 | K41: 60 | L41: 91 | M41: 121 | N41: 152 | O41: 183 | P41: 213 | Q41: 244 | R41: 274 | S41: 305 | T41: 336 | U41: 364 | V41: 395
F42: Cash Receipts Period 1 - Period Number | J42: =IF(J$8<=DD_Ts_Last_Hist_Mth,0,IF(J40>MAX($J$32:$V$32),0,MATCH(J40,$J$31:$V$31,1))) -> 0 | K42: 3 | L42: 3 | M42: 5 | N42: 5 | O42: 6 | P42: 8 | Q42: 8 | R42: 10 | S42: 10 | T42: 11 | U42: 13 | V42: 13
F43: Cash Receipts Period 2 - Period Number | J43: =IF(J$8<=DD_Ts_Last_Hist_Mth,0,IF(J42<1,0,IF(J42>=COLUMNS($J42:$V42),0,J42+1))) -> 0 | K43: 4 | L43: 4 | M43: 6 | N43: 6 | O43: 7 | P43: 9 | Q43: 9 | R43: 11 | S43: 11 | T43: 12 | U43: 0 | V43: 0
F44: Cash Receipts Period 3 - Period Number | J44: 0 | K44: 5 | L44: 5 | M44: 7 | N44: 7 | O44: 8 | P44: 10 | Q44: 10 | R44: 12 | S44: 12 | T44: 13 | U44: 0 | V44: 0
F45: Cash Receipts Period 1 - Cash Received | J45: =IF(J$8<=DD_Ts_Last_Hist_Mth,0,J36/J$30*MAX(MIN(INDEX($J$32:$V$32,J42),J41)-J40,0)) -> 0 | K45: 44000 | L45: 1419.354839 | M45: 44000 | N45: 1419.354839 | O45: 1419.354839 | P45: 44000 | Q45: 1419.354839 | R45: 44000 | S45: 1419.354839 | T45: 1419.354839 | U45: 44000 | V45: 1419.354839
F46: Cash Receipts Period 2 - Cash Received | J46: =IF(J$8<=DD_Ts_Last_Hist_Mth,0,J36/J$30*MAX(MIN(INDEX($J$32:$V$32,J43),J41)-INDEX($J$31:$V$31,J43),0)) -> 0 | K46: 0 | L46: 42580.64516 | M46: 0 | N46: 42580.64516 | O46: 42580.64516 | P46: 0 | Q46: 42580.64516 | R46: 0 | S46: 42580.64516 | T46: 39741.93548 | U46: 0 | V46: 0
F47: Cash Receipts Period 3 - Cash Received | J47: =IF(J$8<=DD_Ts_Last_Hist_Mth,0,J36/J$30*MAX(MIN(INDEX($J$32:$V$32,J44),J41)-INDEX($J$31:$V$31,J44),0)) -> 0 | K47: 0 | L47: 0 | M47: 0 | N47: 0 | O47: 0 | P47: 0 | Q47: 0 | R47: 0 | S47: 0 | T47: 2838.709677 | U47: 0 | V47: 0
C48: Periodic Cash Receipts | J48: =IF(J$8<=DD_Ts_Last_Hist_Mth,0,-SUMPRODUCT((($J42:$V44)=J$8)*$J45:$V47)) -> 0 | K48: 0 | L48: -45419.35484 | M48: -42580.64516 | N48: -45419.35484 | O48: -44000 | P48: -42580.64516 | Q48: -45419.35484 | R48: -42580.64516 | S48: -45419.35484 | T48: -44000 | U48: -39741.93548 | V48: -48258.06452
B49: Cash Receipts | J49: =IF(J$8<=DD_Ts_Last_Hist_Mth,0,J48+J38) -> 0 | K49: -50000 | L49: -45419.35484 | M49: -42580.64516 | N49: -45419.35484 | O49: -44000 | P49: -42580.64516 | Q49: -45419.35484 | R49: -42580.64516 | S49: -45419.35484 | T49: -44000 | U49: -39741.93548 | V49: -48258.06452
B50: Closing Balance | I50: ='FS Opening'!J76 -> 50000 | J50: =J35+J36+J49 -> 0 | K50: 44000 | L50: 42580.64516 | M50: 44000 | N50: 42580.64516 | O50: 42580.64516 | P50: 44000 | Q50: 42580.64516 | R50: 44000 | S50: 42580.64516 | T50: 42580.64516 | U50: 46838.70968 | V50: 42580.64516
B52: Cash Receipt Delay (Days) | I52: =Questionnaire!K11+$H$18 -> 30 | J52: =IF(J$8<=DD_Ts_Last_Hist_Mth,0,$I52) -> 0 | K52: 30 | L52: 30 | M52: 30 | N52: 30 | O52: 30 | P52: 30 | Q52: 30 | R52: 30 | S52: 30 | T52: 30 | U52: 30 | V52: 30
B54: Summary
B56: =B34 -> Accounts Receivable | J56: =IF(J$8<=DD_Ts_Last_Hist_Mth,I62,J35) -> 0 | K56: 50000 | L56: 44000 | M56: 42580.64516 | N56: 44000 | O56: 42580.64516 | P56: 42580.64516 | Q56: 44000 | R56: 42580.64516 | S56: 44000 | T56: 42580.64516 | U56: 42580.64516 | V56: 46838.70968
B57: Opening Balance | J57: =SUM(J56:J56) -> 0 | K57: 50000 | L57: 44000 | M57: 42580.64516 | N57: 44000 | O57: 42580.64516 | P57: 42580.64516 | Q57: 44000 | R57: 42580.64516 | S57: 44000 | T57: 42580.64516 | U57: 42580.64516 | V57: 46838.70968
B59: =B34 -> Accounts Receivable | J59: =IF(J$8=1,0,IF(J$8<=DD_Ts_Last_Hist_Mth,J62-J56,J36+J49)) -> 0 | K59: -6000 | L59: -1419.354839 | M59: 1419.354839 | N59: -1419.354839 | O59: 7.275957614e-12 | P59: 1419.354839 | Q59: -1419.354839 | R59: 1419.354839 | S59: -1419.354839 | T59: 7.275957614e-12 | U59: 4258.064516 | V59: -4258.064516
B60: Increase/(Decrease) in Debtors (Days Terms) | J60: =SUM(J59:J59) -> 0 | K60: -6000 | L60: -1419.354839 | M60: 1419.354839 | N60: -1419.354839 | O60: 7.275957614e-12 | P60: 1419.354839 | Q60: -1419.354839 | R60: 1419.354839 | S60: -1419.354839 | T60: 7.275957614e-12 | U60: 4258.064516 | V60: -4258.064516
B62: =B34 -> Accounts Receivable | J62: =IF(J$8<=DD_Ts_Last_Hist_Mth,'FS Opening'!J76,J50) -> 50000 | K62: =IF(K$8<=DD_Ts_Last_Hist_Mth,'FS Opening'!K76,K50) -> 44000 | L62: =IF(L$8<=DD_Ts_Last_Hist_Mth,'FS Opening'!L76,L50) -> 42580.64516 | M62: =IF(M$8<=DD_Ts_Last_Hist_Mth,'FS Opening'!M76,M50) -> 44000 | N62: =IF(N$8<=DD_Ts_Last_Hist_Mth,'FS Opening'!N76,N50) -> 42580.64516 | O62: =IF(O$8<=DD_Ts_Last_Hist_Mth,'FS Opening'!O76,O50) -> 42580.64516 | P62: =IF(P$8<=DD_Ts_Last_Hist_Mth,'FS Opening'!P76,P50) -> 44000 | Q62: =IF(Q$8<=DD_Ts_Last_Hist_Mth,'FS Opening'!Q76,Q50) -> 42580.64516 | R62: =IF(R$8<=DD_Ts_Last_Hist_Mth,'FS Opening'!R76,R50) -> 44000 | S62: =IF(S$8<=DD_Ts_Last_Hist_Mth,'FS Opening'!S76,S50) -> 42580.64516 | T62: =IF(T$8<=DD_Ts_Last_Hist_Mth,'FS Opening'!T76,T50) -> 42580.64516 | U62: =IF(U$8<=DD_Ts_Last_Hist_Mth,'FS Opening'!U76,U50) -> 46838.70968 | V62: =IF(V$8<=DD_Ts_Last_Hist_Mth,'FS Opening'!V76,V50) -> 42580.64516
B63: Closing Balance | J63: =SUM(J62:J62) -> 50000 | K63: 44000 | L63: 42580.64516 | M63: 44000 | N63: 42580.64516 | O63: 42580.64516 | P63: 44000 | Q63: 42580.64516 | R63: 44000 | S63: 42580.64516 | T63: 42580.64516 | U63: 46838.70968 | V63: 42580.64516
B65: =B34 -> Accounts Receivable | J65: =J49 -> 0 | K65: -50000 | L65: -45419.35484 | M65: -42580.64516 | N65: -45419.35484 | O65: -44000 | P65: -42580.64516 | Q65: -45419.35484 | R65: -42580.64516 | S65: -45419.35484 | T65: -44000 | U65: -39741.93548 | V65: -48258.06452
B66: Cash Receipts | J66: =SUM(J65:J65) -> 0 | K66: -50000 | L66: -45419.35484 | M66: -42580.64516 | N66: -45419.35484 | O66: -44000 | P66: -42580.64516 | Q66: -45419.35484 | R66: -42580.64516 | S66: -45419.35484 | T66: -44000 | U66: -39741.93548 | V66: -48258.06452
C68: Error Values | J68: =IF(ISERROR(J57-J60-J63),1,0) -> 0 | K68: 0 | L68: 0 | M68: 0 | N68: 0 | O68: 0 | P68: 0 | Q68: 0 | R68: 0 | S68: 0 | T68: 0 | U68: 0 | V68: 0
C69: Balance Check | J69: =IF(J68<>0,0,IF(J$8<=DD_Ts_Last_Hist_Mth,0,IF(ROUND(J63-J60-J57,5)<>0,1,0))) -> 0 | K69: 0 | L69: 0 | M69: 0 | N69: 0 | O69: 0 | P69: 0 | Q69: 0 | R69: 0 | S69: 0 | T69: 0 | U69: 0 | V69: 0
B70: Total Error Checks Result | I70: =IF(ISERROR(SUM(J70:V70)),1,MIN(SUM(J70:V70),1)) -> 0 | J70: =MIN(SUM(J68:J69),1) -> 0 | K70: 0 | L70: 0 | M70: 0 | N70: 0 | O70: 0 | P70: 0 | Q70: 0 | R70: 0 | S70: 0 | T70: 0 | U70: 0 | V70: 0
C72: Negative Debtors (Days Terms) | J72: =IF(J$8<=DD_Ts_Last_Hist_Mth,0,IF(J70<>0,0,IF(ROUND(MIN(J62:J62),5)<0,1,0))) -> 0 | K72: 0 | L72: 0 | M72: 0 | N72: 0 | O72: 0 | P72: 0 | Q72: 0 | R72: 0 | S72: 0 | T72: 0 | U72: 0 | V72: 0
C73: Negative Cash Receipts | J73: =IF(J$8<=DD_Ts_Last_Hist_Mth,0,IF(J70<>0,0,IF(ROUND(MAX(J65:J65),5)>0,1,0))) -> 0 | K73: 0 | L73: 0 | M73: 0 | N73: 0 | O73: 0 | P73: 0 | Q73: 0 | R73: 0 | S73: 0 | T73: 0 | U73: 0 | V73: 0
B74: Total Alert Checks Result | I74: =IF(ISERROR(SUM(J74:V74)),1,MIN(SUM(J74:V74),1)) -> 0 | J74: =MIN(SUM(J72:J73),1) -> 0 | K74: 0 | L74: 0 | M74: 0 | N74: 0 | O74: 0 | P74: 0 | Q74: 0 | R74: 0 | S74: 0 | T74: 0 | U74: 0 | V74: 0
B76: Inventory (Days Terms)
B78: Sensitivity | H78: =Scenarios!AP26 -> 0
B80: Cost of Sales Allocation
B82: Cost of Sales | H82: Allocation
B83: =IS_Map!B40 -> Cost of Sales | H83: Inventory | J83: =IF(J$8<=DD_Ts_Last_Hist_Mth,0,IS_Map!J40) -> 0 | K83: =IF(K$8<=DD_Ts_Last_Hist_Mth,0,IS_Map!K40) -> 16000 | L83: =IF(L$8<=DD_Ts_Last_Hist_Mth,0,IS_Map!L40) -> 16000 | M83: =IF(M$8<=DD_Ts_Last_Hist_Mth,0,IS_Map!M40) -> 16000 | N83: =IF(N$8<=DD_Ts_Last_Hist_Mth,0,IS_Map!N40) -> 16000 | O83: =IF(O$8<=DD_Ts_Last_Hist_Mth,0,IS_Map!O40) -> 16000 | P83: =IF(P$8<=DD_Ts_Last_Hist_Mth,0,IS_Map!P40) -> 16000 | Q83: =IF(Q$8<=DD_Ts_Last_Hist_Mth,0,IS_Map!Q40) -> 16000 | R83: =IF(R$8<=DD_Ts_Last_Hist_Mth,0,IS_Map!R40) -> 16000 | S83: =IF(S$8<=DD_Ts_Last_Hist_Mth,0,IS_Map!S40) -> 16000 | T83: =IF(T$8<=DD_Ts_Last_Hist_Mth,0,IS_Map!T40) -> 16000 | U83: =IF(U$8<=DD_Ts_Last_Hist_Mth,0,IS_Map!U40) -> 16000 | V83: =IF(V$8<=DD_Ts_Last_Hist_Mth,0,IS_Map!V40) -> 16000
B85: Schedules
B87: Cash Flow Timing
B88: Days in Period | J88: =IF(J$8<=DD_Ts_Last_Hist_Mth,0,J$7-J$6+1) -> 0 | K88: 30 | L88: 31 | M88: 30 | N88: 31 | O88: 31 | P88: 30 | Q88: 31 | R88: 30 | S88: 31 | T88: 31 | U88: 28 | V88: 31
B89: Period Start Timing | J89: =IF(J$8<=DD_Ts_Last_Hist_Mth+1,0,I90) -> 0 | K89: 0 | L89: 30 | M89: 61 | N89: 91 | O89: 122 | P89: 153 | Q89: 183 | R89: 214 | S89: 244 | T89: 275 | U89: 306 | V89: 334
B90: Period End Timing | J90: =J89+J88 -> 0 | K90: 30 | L90: 61 | M90: 91 | N90: 122 | O90: 153 | P90: 183 | Q90: 214 | R90: 244 | S90: 275 | T90: 306 | U90: 334 | V90: 365
B92: ='FS Opening'!B79 -> Inventory
B93: Opening Balance | J93: =IF(J$8<=DD_Ts_Last_Hist_Mth,0,IF(J$8=DD_Ts_Last_Hist_Mth+1,OFFSET('FS Opening'!J79,0,-1),I105)) -> 0 | K93: =IF(K$8<=DD_Ts_Last_Hist_Mth,0,IF(K$8=DD_Ts_Last_Hist_Mth+1,OFFSET('FS Opening'!K79,0,-1),J105)) -> 15000 | L93: =IF(L$8<=DD_Ts_Last_Hist_Mth,0,IF(L$8=DD_Ts_Last_Hist_Mth+1,OFFSET('FS Opening'!L79,0,-1),K105)) -> 31466.66667 | M93: =IF(M$8<=DD_Ts_Last_Hist_Mth,0,IF(M$8=DD_Ts_Last_Hist_Mth+1,OFFSET('FS Opening'!M79,0,-1),L105)) -> 31483.87097 | N93: =IF(N$8<=DD_Ts_Last_Hist_Mth,0,IF(N$8=DD_Ts_Last_Hist_Mth+1,OFFSET('FS Opening'!N79,0,-1),M105)) -> 30967.74194 | O93: =IF(O$8<=DD_Ts_Last_Hist_Mth,0,IF(O$8=DD_Ts_Last_Hist_Mth+1,OFFSET('FS Opening'!O79,0,-1),N105)) -> 31466.66667 | P93: =IF(P$8<=DD_Ts_Last_Hist_Mth,0,IF(P$8=DD_Ts_Last_Hist_Mth+1,OFFSET('FS Opening'!P79,0,-1),O105)) -> 31483.87097 | Q93: =IF(Q$8<=DD_Ts_Last_Hist_Mth,0,IF(Q$8=DD_Ts_Last_Hist_Mth+1,OFFSET('FS Opening'!Q79,0,-1),P105)) -> 31466.66667 | R93: =IF(R$8<=DD_Ts_Last_Hist_Mth,0,IF(R$8=DD_Ts_Last_Hist_Mth+1,OFFSET('FS Opening'!R79,0,-1),Q105)) -> 31483.87097 | S93: =IF(S$8<=DD_Ts_Last_Hist_Mth,0,IF(S$8=DD_Ts_Last_Hist_Mth+1,OFFSET('FS Opening'!S79,0,-1),R105)) -> 30967.74194 | T93: =IF(T$8<=DD_Ts_Last_Hist_Mth,0,IF(T$8=DD_Ts_Last_Hist_Mth+1,OFFSET('FS Opening'!T79,0,-1),S105)) -> 32516.12903 | U93: =IF(U$8<=DD_Ts_Last_Hist_Mth,0,IF(U$8=DD_Ts_Last_Hist_Mth+1,OFFSET('FS Opening'!U79,0,-1),T105)) -> 32516.12903 | V93: =IF(V$8<=DD_Ts_Last_Hist_Mth,0,IF(V$8=DD_Ts_Last_Hist_Mth+1,OFFSET('FS Opening'!V79,0,-1),U105)) -> 32542.37288
A94: =B92 -> Inventory | B94: Inventory Purchases | J94: =IF(J$8<=DD_Ts_Last_Hist_Mth,0,J105-J95-J93) -> 0 | K94: 32466.66667 | L94: 16017.2043 | M94: 15483.87097 | N94: 16498.92473 | O94: 16017.2043 | P94: 15982.7957 | Q94: 16017.2043 | R94: 15483.87097 | S94: 17548.3871 | T94: 16000 | U94: 16026.24385 | V94: 14425.36905
B95: Cost of Sales | J95: =IF(J$8<=DD_Ts_Last_Hist_Mth,0,-SUMIF($H$83:$H$83,$B92,J$83:J$83)) -> 0 | K95: -16000 | L95: -16000 | M95: -16000 | N95: -16000 | O95: -16000 | P95: -16000 | Q95: -16000 | R95: -16000 | S95: -16000 | T95: -16000 | U95: -16000 | V95: -16000
C96: Inventory Receipt Period (Days) | J96: =IF(J$8<=DD_Ts_Last_Hist_Mth,0,J107) -> 0 | K96: 60 | L96: 60 | M96: 60 | N96: 60 | O96: 60 | P96: 60 | Q96: 60 | R96: 60 | S96: 60 | T96: 60 | U96: 60 | V96: 60
C97: Base COGS - Start Time | J97: =IF(J$8<=DD_Ts_Last_Hist_Mth,0,MAX(J$89,J98-J96)) -> 0 | K97: 30 | L97: 61 | M97: 91 | N97: 122 | O97: 153 | P97: 183 | Q97: 214 | R97: 244 | S97: 275 | T97: 305 | U97: 306 | V97: 334
C98: Base COGS - End Time | J98: =IF(J$8<=DD_Ts_Last_Hist_Mth,0,MIN(J$90+J96,MAX($J$90:$V$90))) -> 0 | K98: 90 | L98: 121 | M98: 151 | N98: 182 | O98: 213 | P98: 243 | Q98: 274 | R98: 304 | S98: 335 | T98: 365 | U98: 365 | V98: 365
C99: Gross Up % (If Not Enough Periods) | J99: =IF(J$8<=DD_Ts_Last_Hist_Mth,0,IF(J98=J97,1,J96/(J98-J97))) -> 0 | K99: 1 | L99: 1 | M99: 1 | N99: 1 | O99: 1 | P99: 1 | Q99: 1 | R99: 1 | S99: 1 | T99: 1 | U99: 1.016949153 | V99: 1.935483871
C100: Base COGS - Start Period Number | J100: =IF(J$8<=DD_Ts_Last_Hist_Mth,0,MATCH(J97,$J$89:$V$89,1)) -> 0 | K100: 3 | L100: 4 | M100: 5 | N100: 6 | O100: 7 | P100: 8 | Q100: 9 | R100: 10 | S100: 11 | T100: 11 | U100: 12 | V100: 13
C101: Base COGS - End Period Number | J101: =IF(J$8<=DD_Ts_Last_Hist_Mth,0,MATCH(J98,$J$89:$V$89,1)) -> 0 | K101: 4 | L101: 5 | M101: 6 | N101: 7 | O101: 8 | P101: 9 | Q101: 10 | R101: 11 | S101: 13 | T101: 13 | U101: 13 | V101: 13
C102: First Period COGS Amount | J102: =IF(J$8<=DD_Ts_Last_Hist_Mth,0,SUMIF($J$8:$V$8,J100,$J95:$V95)/INDEX($J$88:$V$88,J100)*(MIN(J98,INDEX($J$90:$V$90,J100))-MAX(J97,INDEX($J$89:$V$89,J100)))) -> 0 | K102: -16000 | L102: -16000 | M102: -16000 | N102: -16000 | O102: -16000 | P102: -16000 | Q102: -16000 | R102: -16000 | S102: -16000 | T102: -516.1290323 | U102: -16000 | V102: -16000
C103: In Between Periods COGS Amount | J103: =IF(J$8<=DD_Ts_Last_Hist_Mth,0,IF(J101-J100<2,0,SUM(OFFSET($J95,0,J100,1,J101-J100-1)))) -> 0 | K103: 0 | L103: 0 | M103: 0 | N103: 0 | O103: 0 | P103: 0 | Q103: 0 | R103: 0 | S103: -16000 | T103: -16000 | U103: 0 | V103: 0
C104: Last Period COGS Amount | J104: =IF(J$8<=DD_Ts_Last_Hist_Mth,0,IF(J101<=J100,0,SUMIF($J$8:$V$8,J101,$J95:$V95)/INDEX($J$88:$V$88,J101))*(MIN(J98,INDEX($J$90:$V$90,J101))-MAX(J97,INDEX($J$89:$V$89,J101)))) -> 0 | K104: -15466.66667 | L104: -15483.87097 | M104: -14967.74194 | N104: -15466.66667 | O104: -15483.87097 | P104: -15466.66667 | Q104: -15483.87097 | R104: -14967.74194 | S104: -516.1290323 | T104: -16000 | U104: -16000 | V104: 0
B105: Closing Balance | J105: =IF(J$8<=DD_Ts_Last_Hist_Mth,0,-SUM(J102:J104)*J99) -> 0 | K105: 31466.66667 | L105: 31483.87097 | M105: 30967.74194 | N105: 31466.66667 | O105: 31483.87097 | P105: 31466.66667 | Q105: 31483.87097 | R105: 30967.74194 | S105: 32516.12903 | T105: 32516.12903 | U105: 32542.37288 | V105: 30967.74194
B107: Inventory Receipt Period (Days) | I107: =Questionnaire!K17+$H$78 -> 60 | J107: =IF(J$8<=DD_Ts_Last_Hist_Mth,0,$I107) -> 0 | K107: 60 | L107: 60 | M107: 60 | N107: 60 | O107: 60 | P107: 60 | Q107: 60 | R107: 60 | S107: 60 | T107: 60 | U107: 60 | V107: 60
B109: Summary
A111: None (Cash) | B111: All Inventory
A112: =B112 -> Inventory | B112: =B92 -> Inventory | J112: =IF(J$8<=DD_Ts_Last_Hist_Mth,I118,J93) -> 0 | K112: 15000 | L112: 31466.66667 | M112: 31483.87097 | N112: 30967.74194 | O112: 31466.66667 | P112: 31483.87097 | Q112: 31466.66667 | R112: 31483.87097 | S112: 30967.74194 | T112: 32516.12903 | U112: 32516.12903 | V112: 32542.37288
B113: Opening Balance | J113: =SUM(J112:J112) -> 0 | K113: 15000 | L113: 31466.66667 | M113: 31483.87097 | N113: 30967.74194 | O113: 31466.66667 | P113: 31483.87097 | Q113: 31466.66667 | R113: 31483.87097 | S113: 30967.74194 | T113: 32516.12903 | U113: 32516.12903 | V113: 32542.37288
B115: =B92 -> Inventory | J115: =IF(J$8=1,0,IF(J$8<=DD_Ts_Last_Hist_Mth,J118-J112,J94+J95)) -> 0 | K115: 16466.66667 | L115: 17.20430108 | M115: -516.1290323 | N115: 498.9247312 | O115: 17.20430108 | P115: -17.20430108 | Q115: 17.20430108 | R115: -516.1290323 | S115: 1548.387097 | T115: -3.637978807e-12 | U115: 26.2438491 | V115: -1574.630946
B116: Increase/(Decrease) in Inventory (Days Terms) | J116: =SUM(J115:J115) -> 0 | K116: 16466.66667 | L116: 17.20430108 | M116: -516.1290323 | N116: 498.9247312 | O116: 17.20430108 | P116: -17.20430108 | Q116: 17.20430108 | R116: -516.1290323 | S116: 1548.387097 | T116: -3.637978807e-12 | U116: 26.2438491 | V116: -1574.630946
B118: =B92 -> Inventory | J118: =IF(J$8<=DD_Ts_Last_Hist_Mth,'FS Opening'!J79,J105) -> 15000 | K118: =IF(K$8<=DD_Ts_Last_Hist_Mth,'FS Opening'!K79,K105) -> 31466.66667 | L118: =IF(L$8<=DD_Ts_Last_Hist_Mth,'FS Opening'!L79,L105) -> 31483.87097 | M118: =IF(M$8<=DD_Ts_Last_Hist_Mth,'FS Opening'!M79,M105) -> 30967.74194 | N118: =IF(N$8<=DD_Ts_Last_Hist_Mth,'FS Opening'!N79,N105) -> 31466.66667 | O118: =IF(O$8<=DD_Ts_Last_Hist_Mth,'FS Opening'!O79,O105) -> 31483.87097 | P118: =IF(P$8<=DD_Ts_Last_Hist_Mth,'FS Opening'!P79,P105) -> 31466.66667 | Q118: =IF(Q$8<=DD_Ts_Last_Hist_Mth,'FS Opening'!Q79,Q105) -> 31483.87097 | R118: =IF(R$8<=DD_Ts_Last_Hist_Mth,'FS Opening'!R79,R105) -> 30967.74194 | S118: =IF(S$8<=DD_Ts_Last_Hist_Mth,'FS Opening'!S79,S105) -> 32516.12903 | T118: =IF(T$8<=DD_Ts_Last_Hist_Mth,'FS Opening'!T79,T105) -> 32516.12903 | U118: =IF(U$8<=DD_Ts_Last_Hist_Mth,'FS Opening'!U79,U105) -> 32542.37288 | V118: =IF(V$8<=DD_Ts_Last_Hist_Mth,'FS Opening'!V79,V105) -> 30967.74194
B119: Closing Balance | J119: =SUM(J118:J118) -> 15000 | K119: 31466.66667 | L119: 31483.87097 | M119: 30967.74194 | N119: 31466.66667 | O119: 31483.87097 | P119: 31466.66667 | Q119: 31483.87097 | R119: 30967.74194 | S119: 32516.12903 | T119: 32516.12903 | U119: 32542.37288 | V119: 30967.74194
B121: =B92 -> Inventory | J121: =J94 -> 0 | K121: 32466.66667 | L121: 16017.2043 | M121: 15483.87097 | N121: 16498.92473 | O121: 16017.2043 | P121: 15982.7957 | Q121: 16017.2043 | R121: 15483.87097 | S121: 17548.3871 | T121: 16000 | U121: 16026.24385 | V121: 14425.36905
B122: Inventory Purchases | J122: =SUM(J121:J121) -> 0 | K122: 32466.66667 | L122: 16017.2043 | M122: 15483.87097 | N122: 16498.92473 | O122: 16017.2043 | P122: 15982.7957 | Q122: 16017.2043 | R122: 15483.87097 | S122: 17548.3871 | T122: 16000 | U122: 16026.24385 | V122: 14425.36905
C124: Error Values | J124: =IF(ISERROR(J113-J116-J119),1,0) -> 0 | K124: 0 | L124: 0 | M124: 0 | N124: 0 | O124: 0 | P124: 0 | Q124: 0 | R124: 0 | S124: 0 | T124: 0 | U124: 0 | V124: 0
C125: Balance Check | J125: =IF(J124<>0,0,IF(J$8<=DD_Ts_Last_Hist_Mth,0,IF(ROUND(J119-J116-J113,5)<>0,1,0))) -> 0 | K125: 0 | L125: 0 | M125: 0 | N125: 0 | O125: 0 | P125: 0 | Q125: 0 | R125: 0 | S125: 0 | T125: 0 | U125: 0 | V125: 0
B126: Total Error Checks Result | I126: =IF(ISERROR(SUM(J126:V126)),1,MIN(SUM(J126:V126),1)) -> 0 | J126: =MIN(SUM(J124:J125),1) -> 0 | K126: 0 | L126: 0 | M126: 0 | N126: 0 | O126: 0 | P126: 0 | Q126: 0 | R126: 0 | S126: 0 | T126: 0 | U126: 0 | V126: 0
C128: Negative Inventory | J128: =IF(J$8<=DD_Ts_Last_Hist_Mth,0,IF(J126<>0,0,IF(ROUND(MIN(J118:J118),5)<0,1,0))) -> 0 | K128: 0 | L128: 0 | M128: 0 | N128: 0 | O128: 0 | P128: 0 | Q128: 0 | R128: 0 | S128: 0 | T128: 0 | U128: 0 | V128: 0
C129: Positive Inventory Purchases | J129: =IF(J$8<=DD_Ts_Last_Hist_Mth,0,IF(J126<>0,0,IF(ROUND(MIN(J121:J121),5)<0,1,0))) -> 0 | K129: 0 | L129: 0 | M129: 0 | N129: 0 | O129: 0 | P129: 0 | Q129: 0 | R129: 0 | S129: 0 | T129: 0 | U129: 0 | V129: 0
B130: Total Alert Checks Result | I130: =IF(ISERROR(SUM(J130:V130)),1,MIN(SUM(J130:V130),1)) -> 0 | J130: =MIN(SUM(J128:J129),1) -> 0 | K130: 0 | L130: 0 | M130: 0 | N130: 0 | O130: 0 | P130: 0 | Q130: 0 | R130: 0 | S130: 0 | T130: 0 | U130: 0 | V130: 0
B132: Creditors (Days Terms)
B134: Sensitivity | H134: =Scenarios!AP27 -> 0
B136: Expenses Allocation
B138: Expenses (Inc. GST) | H138: Allocation
B139: =Tax!B158 -> Cost of Sales | H139: Accounts Payable | J139: =IF(J$8<=DD_Ts_Last_Hist_Mth,0,Tax!J158) -> 0 | K139: =IF(K$8<=DD_Ts_Last_Hist_Mth,0,Tax!K158) -> 16000 | L139: =IF(L$8<=DD_Ts_Last_Hist_Mth,0,Tax!L158) -> 16000 | M139: =IF(M$8<=DD_Ts_Last_Hist_Mth,0,Tax!M158) -> 16000 | N139: =IF(N$8<=DD_Ts_Last_Hist_Mth,0,Tax!N158) -> 16000 | O139: =IF(O$8<=DD_Ts_Last_Hist_Mth,0,Tax!O158) -> 16000 | P139: =IF(P$8<=DD_Ts_Last_Hist_Mth,0,Tax!P158) -> 16000 | Q139: =IF(Q$8<=DD_Ts_Last_Hist_Mth,0,Tax!Q158) -> 16000 | R139: =IF(R$8<=DD_Ts_Last_Hist_Mth,0,Tax!R158) -> 16000 | S139: =IF(S$8<=DD_Ts_Last_Hist_Mth,0,Tax!S158) -> 16000 | T139: =IF(T$8<=DD_Ts_Last_Hist_Mth,0,Tax!T158) -> 16000 | U139: =IF(U$8<=DD_Ts_Last_Hist_Mth,0,Tax!U158) -> 16000 | V139: =IF(V$8<=DD_Ts_Last_Hist_Mth,0,Tax!V158) -> 16000
B140: =Tax!B164 -> Operating Expenditure | H140: Accounts Payable | J140: =IF(J$8<=DD_Ts_Last_Hist_Mth,0,Tax!J164) -> 0 | K140: =IF(K$8<=DD_Ts_Last_Hist_Mth,0,Tax!K164) -> 5599 | L140: =IF(L$8<=DD_Ts_Last_Hist_Mth,0,Tax!L164) -> 7249 | M140: =IF(M$8<=DD_Ts_Last_Hist_Mth,0,Tax!M164) -> 5599 | N140: =IF(N$8<=DD_Ts_Last_Hist_Mth,0,Tax!N164) -> 5599 | O140: =IF(O$8<=DD_Ts_Last_Hist_Mth,0,Tax!O164) -> 5599 | P140: =IF(P$8<=DD_Ts_Last_Hist_Mth,0,Tax!P164) -> 5599 | Q140: =IF(Q$8<=DD_Ts_Last_Hist_Mth,0,Tax!Q164) -> 5599 | R140: =IF(R$8<=DD_Ts_Last_Hist_Mth,0,Tax!R164) -> 5599 | S140: =IF(S$8<=DD_Ts_Last_Hist_Mth,0,Tax!S164) -> 7249 | T140: =IF(T$8<=DD_Ts_Last_Hist_Mth,0,Tax!T164) -> 5599 | U140: =IF(U$8<=DD_Ts_Last_Hist_Mth,0,Tax!U164) -> 5599 | V140: =IF(V$8<=DD_Ts_Last_Hist_Mth,0,Tax!V164) -> 5599
B141: =Tax!B167 -> Other Expenses | H141: None (Cash) | J141: =IF(J$8<=DD_Ts_Last_Hist_Mth,0,Tax!J167) -> 0 | K141: =IF(K$8<=DD_Ts_Last_Hist_Mth,0,Tax!K167) -> 0 | L141: =IF(L$8<=DD_Ts_Last_Hist_Mth,0,Tax!L167) -> 0 | M141: =IF(M$8<=DD_Ts_Last_Hist_Mth,0,Tax!M167) -> 0 | N141: =IF(N$8<=DD_Ts_Last_Hist_Mth,0,Tax!N167) -> 0 | O141: =IF(O$8<=DD_Ts_Last_Hist_Mth,0,Tax!O167) -> 0 | P141: =IF(P$8<=DD_Ts_Last_Hist_Mth,0,Tax!P167) -> 0 | Q141: =IF(Q$8<=DD_Ts_Last_Hist_Mth,0,Tax!Q167) -> 0 | R141: =IF(R$8<=DD_Ts_Last_Hist_Mth,0,Tax!R167) -> 0 | S141: =IF(S$8<=DD_Ts_Last_Hist_Mth,0,Tax!S167) -> 0 | T141: =IF(T$8<=DD_Ts_Last_Hist_Mth,0,Tax!T167) -> 0 | U141: =IF(U$8<=DD_Ts_Last_Hist_Mth,0,Tax!U167) -> 0 | V141: =IF(V$8<=DD_Ts_Last_Hist_Mth,0,Tax!V167) -> 0
B142: =Tax!B168 -> Other Expenses (Non GST) | H142: None (Cash) | J142: =IF(J$8<=DD_Ts_Last_Hist_Mth,0,Tax!J168) -> 0 | K142: =IF(K$8<=DD_Ts_Last_Hist_Mth,0,Tax!K168) -> 0 | L142: =IF(L$8<=DD_Ts_Last_Hist_Mth,0,Tax!L168) -> -5000 | M142: =IF(M$8<=DD_Ts_Last_Hist_Mth,0,Tax!M168) -> 0 | N142: =IF(N$8<=DD_Ts_Last_Hist_Mth,0,Tax!N168) -> 0 | O142: =IF(O$8<=DD_Ts_Last_Hist_Mth,0,Tax!O168) -> 0 | P142: =IF(P$8<=DD_Ts_Last_Hist_Mth,0,Tax!P168) -> 0 | Q142: =IF(Q$8<=DD_Ts_Last_Hist_Mth,0,Tax!Q168) -> 0 | R142: =IF(R$8<=DD_Ts_Last_Hist_Mth,0,Tax!R168) -> 0 | S142: =IF(S$8<=DD_Ts_Last_Hist_Mth,0,Tax!S168) -> 0 | T142: =IF(T$8<=DD_Ts_Last_Hist_Mth,0,Tax!T168) -> 0 | U142: =IF(U$8<=DD_Ts_Last_Hist_Mth,0,Tax!U168) -> 0 | V142: =IF(V$8<=DD_Ts_Last_Hist_Mth,0,Tax!V168) -> 0
B144: Schedules | I144: Opening
B146: Cash Flow Timing
B147: Days in Period | J147: =IF(J$8<=DD_Ts_Last_Hist_Mth,0,J$7-J$6+1) -> 0 | K147: 30 | L147: 31 | M147: 30 | N147: 31 | O147: 31 | P147: 30 | Q147: 31 | R147: 30 | S147: 31 | T147: 31 | U147: 28 | V147: 31
B148: Period Start Timing | J148: =IF(J$8<=DD_Ts_Last_Hist_Mth+1,0,I149) -> 0 | K148: 0 | L148: 30 | M148: 61 | N148: 91 | O148: 122 | P148: 153 | Q148: 183 | R148: 214 | S148: 244 | T148: 275 | U148: 306 | V148: 334
B149: Period End Timing | J149: =J148+J147 -> 0 | K149: 30 | L149: 61 | M149: 91 | N149: 122 | O149: 153 | P149: 183 | Q149: 214 | R149: 244 | S149: 275 | T149: 306 | U149: 334 | V149: 365
B151: ='FS Opening'!B98 -> Accounts Payable
B152: Opening Balance | J152: =I167 -> 20000 | K152: 20000 | L152: 28265.66667 | M152: 33328.53333 | N152: 32848.51613 | O152: 31678.53333 | P152: 31353.3871 | Q152: 32050.12903 | R152: 31678.53333 | S152: 32050.12903 | T152: 33328.53333 | U152: 32098.54839 | V152: 33443.6129
B153: Applicable Expenses | J153: =SUMIF($H$139:$H$142,$B151,J$139:J$142) -> 0 | K153: 21599 | L153: 23249 | M153: 21599 | N153: 21599 | O153: 21599 | P153: 21599 | Q153: 21599 | R153: 21599 | S153: 23249 | T153: 21599 | U153: 21599 | V153: 21599
F154: Opening Balance Cash Payments - Profile | J154: =IF(J$8<=DD_Ts_Last_Hist_Mth,0,IF($I169=0,0,(MIN($I169,J$149)-MIN($I169,J$148))/$I169)) -> 0 | K154: 0.6666666667 | L154: 0.3333333333 | M154: 0 | N154: 0 | O154: 0 | P154: 0 | Q154: 0 | R154: 0 | S154: 0 | T154: 0 | U154: 0 | V154: 0
C155: Opening Balance Cash Payments | J155: =IF(J$8<=DD_Ts_Last_Hist_Mth,0,-OFFSET($J152,0,DD_Ts_Last_Hist_Mth)*J154) -> 0 | K155: -13333.33333 | L155: -6666.666667 | M155: 0 | N155: 0 | O155: 0 | P155: 0 | Q155: 0 | R155: 0 | S155: 0 | T155: 0 | U155: 0 | V155: 0
F156: =B169 -> Cash Payment Delay (Days) | J156: =IF(J$8<=DD_Ts_Last_Hist_Mth,0,J169) -> 0 | K156: 45 | L156: 45 | M156: 45 | N156: 45 | O156: 45 | P156: 45 | Q156: 45 | R156: 45 | S156: 45 | T156: 45 | U156: 45 | V156: 45
F157: Cash Payments Start Time | J157: =IF(J$8<=DD_Ts_Last_Hist_Mth,0,J$148+J156) -> 0 | K157: 45 | L157: 75 | M157: 106 | N157: 136 | O157: 167 | P157: 198 | Q157: 228 | R157: 259 | S157: 289 | T157: 320 | U157: 351 | V157: 379
F158: Cash Payments End Time | J158: =IF(J$8<=DD_Ts_Last_Hist_Mth,0,J157+J$147) -> 0 | K158: 75 | L158: 106 | M158: 136 | N158: 167 | O158: 198 | P158: 228 | Q158: 259 | R158: 289 | S158: 320 | T158: 351 | U158: 379 | V158: 410
F159: Cash Payments Period 1 - Period Number | J159: =IF(J$8<=DD_Ts_Last_Hist_Mth,0,IF(J157>MAX($J$149:$V$149),0,MATCH(J157,$J$148:$V$148,1))) -> 0 | K159: 3 | L159: 4 | M159: 5 | N159: 6 | O159: 7 | P159: 8 | Q159: 9 | R159: 10 | S159: 11 | T159: 12 | U159: 13 | V159: 0
F160: Cash Payments Period 2 - Period Number | J160: =IF(J$8<=DD_Ts_Last_Hist_Mth,0,IF(J159<1,0,IF(J159>=COLUMNS($J159:$V159),0,J159+1))) -> 0 | K160: 4 | L160: 5 | M160: 6 | N160: 7 | O160: 8 | P160: 9 | Q160: 10 | R160: 11 | S160: 12 | T160: 13 | U160: 0 | V160: 0
F161: Cash Payments Period 3 - Period Number | J161: 0 | K161: 5 | L161: 6 | M161: 7 | N161: 8 | O161: 9 | P161: 10 | Q161: 11 | R161: 12 | S161: 13 | T161: 0 | U161: 0 | V161: 0
F162: Cash Payments Period 1 - Cash Paid | J162: =IF(J$8<=DD_Ts_Last_Hist_Mth,0,J153/J$147*MAX(MIN(INDEX($J$149:$V$149,J159),J158)-J157,0)) -> 0 | K162: 11519.46667 | L162: 11999.48387 | M162: 11519.46667 | N162: 11844.6129 | O162: 11147.87097 | P162: 11519.46667 | Q162: 11147.87097 | R162: 11519.46667 | S162: 12749.45161 | T162: 9754.387097 | U162: 10799.5 | V162: 0
F163: Cash Payments Period 2 - Cash Paid | J163: =IF(J$8<=DD_Ts_Last_Hist_Mth,0,J153/J$147*MAX(MIN(INDEX($J$149:$V$149,J160),J158)-INDEX($J$148:$V$148,J160),0)) -> 0 | K163: 10079.53333 | L163: 11249.51613 | M163: 10079.53333 | N163: 9754.387097 | O163: 10451.12903 | P163: 10079.53333 | Q163: 10451.12903 | R163: 10079.53333 | S163: 10499.54839 | T163: 11844.6129 | U163: 0 | V163: 0
F164: Cash Payments Period 3 - Cash Paid | J164: =IF(J$8<=DD_Ts_Last_Hist_Mth,0,J153/J$147*MAX(MIN(INDEX($J$149:$V$149,J161),J158)-INDEX($J$148:$V$148,J161),0)) -> 0 | K164: 0 | L164: 0 | M164: 0 | N164: 0 | O164: 0 | P164: 0 | Q164: 0 | R164: 0 | S164: 0 | T164: 0 | U164: 0 | V164: 0
C165: Periodic Cash Payments | J165: =IF(J$8<=DD_Ts_Last_Hist_Mth,0,-SUMPRODUCT((($J159:$V161)=J$8)*$J162:$V164)) -> 0 | K165: 0 | L165: -11519.46667 | M165: -22079.0172 | N165: -22768.9828 | O165: -21924.14624 | P165: -20902.25806 | Q165: -21970.5957 | R165: -21227.4043 | S165: -21970.5957 | T165: -22828.98495 | U165: -20253.93548 | V165: -22644.1129
B166: Cash Payments | J166: =J165+J155 -> 0 | K166: -13333.33333 | L166: -18186.13333 | M166: -22079.0172 | N166: -22768.9828 | O166: -21924.14624 | P166: -20902.25806 | Q166: -21970.5957 | R166: -21227.4043 | S166: -21970.5957 | T166: -22828.98495 | U166: -20253.93548 | V166: -22644.1129
B167: Closing Balance | I167: =Questionnaire!K13 -> 20000 | J167: =J152+J153+J166 -> 20000 | K167: 28265.66667 | L167: 33328.53333 | M167: 32848.51613 | N167: 31678.53333 | O167: 31353.3871 | P167: 32050.12903 | Q167: 31678.53333 | R167: 32050.12903 | S167: 33328.53333 | T167: 32098.54839 | U167: 33443.6129 | V167: 32398.5
B169: Cash Payment Delay (Days) | I169: =Questionnaire!K14+$H$134 -> 45 | J169: =IF(J$8<=DD_Ts_Last_Hist_Mth,0,$I169) -> 0 | K169: 45 | L169: 45 | M169: 45 | N169: 45 | O169: 45 | P169: 45 | Q169: 45 | R169: 45 | S169: 45 | T169: 45 | U169: 45 | V169: 45
B171: Summary
A173: None (Cash) | B173: All Creditors
A174: =B174 -> Accounts Payable | B174: =B151 -> Accounts Payable | J174: =IF(J$8<=DD_Ts_Last_Hist_Mth,I180,J152) -> 0 | K174: 20000 | L174: 28265.66667 | M174: 33328.53333 | N174: 32848.51613 | O174: 31678.53333 | P174: 31353.3871 | Q174: 32050.12903 | R174: 31678.53333 | S174: 32050.12903 | T174: 33328.53333 | U174: 32098.54839 | V174: 33443.6129
B175: Opening Balance | J175: =SUM(J174:J174) -> 0 | K175: 20000 | L175: 28265.66667 | M175: 33328.53333 | N175: 32848.51613 | O175: 31678.53333 | P175: 31353.3871 | Q175: 32050.12903 | R175: 31678.53333 | S175: 32050.12903 | T175: 33328.53333 | U175: 32098.54839 | V175: 33443.6129
B177: =B151 -> Accounts Payable | J177: =IF(J$8=1,0,IF(J$8<=DD_Ts_Last_Hist_Mth,J180-J174,J153+J166)) -> 0 | K177: 8265.666667 | L177: 5062.866667 | M177: -480.0172043 | N177: -1169.982796 | O177: -325.1462366 | P177: 696.7419355 | Q177: -371.5956989 | R177: 371.5956989 | S177: 1278.404301 | T177: -1229.984946 | U177: 1345.064516 | V177: -1045.112903
B178: Increase/(Decrease) in Creditors (Days Terms) | J178: =SUM(J177:J177) -> 0 | K178: 8265.666667 | L178: 5062.866667 | M178: -480.0172043 | N178: -1169.982796 | O178: -325.1462366 | P178: 696.7419355 | Q178: -371.5956989 | R178: 371.5956989 | S178: 1278.404301 | T178: -1229.984946 | U178: 1345.064516 | V178: -1045.112903
B180: =B151 -> Accounts Payable | J180: =IF(J$8<=DD_Ts_Last_Hist_Mth,'FS Opening'!J98,J167) -> 20000 | K180: =IF(K$8<=DD_Ts_Last_Hist_Mth,'FS Opening'!K98,K167) -> 28265.66667 | L180: =IF(L$8<=DD_Ts_Last_Hist_Mth,'FS Opening'!L98,L167) -> 33328.53333 | M180: =IF(M$8<=DD_Ts_Last_Hist_Mth,'FS Opening'!M98,M167) -> 32848.51613 | N180: =IF(N$8<=DD_Ts_Last_Hist_Mth,'FS Opening'!N98,N167) -> 31678.53333 | O180: =IF(O$8<=DD_Ts_Last_Hist_Mth,'FS Opening'!O98,O167) -> 31353.3871 | P180: =IF(P$8<=DD_Ts_Last_Hist_Mth,'FS Opening'!P98,P167) -> 32050.12903 | Q180: =IF(Q$8<=DD_Ts_Last_Hist_Mth,'FS Opening'!Q98,Q167) -> 31678.53333 | R180: =IF(R$8<=DD_Ts_Last_Hist_Mth,'FS Opening'!R98,R167) -> 32050.12903 | S180: =IF(S$8<=DD_Ts_Last_Hist_Mth,'FS Opening'!S98,S167) -> 33328.53333 | T180: =IF(T$8<=DD_Ts_Last_Hist_Mth,'FS Opening'!T98,T167) -> 32098.54839 | U180: =IF(U$8<=DD_Ts_Last_Hist_Mth,'FS Opening'!U98,U167) -> 33443.6129 | V180: =IF(V$8<=DD_Ts_Last_Hist_Mth,'FS Opening'!V98,V167) -> 32398.5
B181: Closing Balance | J181: =SUM(J180:J180) -> 20000 | K181: 28265.66667 | L181: 33328.53333 | M181: 32848.51613 | N181: 31678.53333 | O181: 31353.3871 | P181: 32050.12903 | Q181: 31678.53333 | R181: 32050.12903 | S181: 33328.53333 | T181: 32098.54839 | U181: 33443.6129 | V181: 32398.5
B183: =B151 -> Accounts Payable | J183: =J166 -> 0 | K183: -13333.33333 | L183: -18186.13333 | M183: -22079.0172 | N183: -22768.9828 | O183: -21924.14624 | P183: -20902.25806 | Q183: -21970.5957 | R183: -21227.4043 | S183: -21970.5957 | T183: -22828.98495 | U183: -20253.93548 | V183: -22644.1129
B184: Cash Payments | J184: =SUM(J183:J183) -> 0 | K184: -13333.33333 | L184: -18186.13333 | M184: -22079.0172 | N184: -22768.9828 | O184: -21924.14624 | P184: -20902.25806 | Q184: -21970.5957 | R184: -21227.4043 | S184: -21970.5957 | T184: -22828.98495 | U184: -20253.93548 | V184: -22644.1129
C186: Error Values | J186: =IF(ISERROR(J175-J178-J181),1,0) -> 0 | K186: 0 | L186: 0 | M186: 0 | N186: 0 | O186: 0 | P186: 0 | Q186: 0 | R186: 0 | S186: 0 | T186: 0 | U186: 0 | V186: 0
C187: Balance Check | J187: =IF(J186<>0,0,IF(J$8<=DD_Ts_Last_Hist_Mth,0,IF(ROUND(J181-J178-J175,5)<>0,1,0))) -> 0 | K187: 0 | L187: 0 | M187: 0 | N187: 0 | O187: 0 | P187: 0 | Q187: 0 | R187: 0 | S187: 0 | T187: 0 | U187: 0 | V187: 0
B188: Total Error Checks Result | I188: =IF(ISERROR(SUM(J188:V188)),1,MIN(SUM(J188:V188),1)) -> 0 | J188: =MIN(SUM(J186:J187),1) -> 0 | K188: 0 | L188: 0 | M188: 0 | N188: 0 | O188: 0 | P188: 0 | Q188: 0 | R188: 0 | S188: 0 | T188: 0 | U188: 0 | V188: 0
C190: Negative Creditors | J190: =IF(J$8<=DD_Ts_Last_Hist_Mth,0,IF(J188<>0,0,IF(ROUND(MIN(J180:J180),5)<0,1,0))) -> 0 | K190: 0 | L190: 0 | M190: 0 | N190: 0 | O190: 0 | P190: 0 | Q190: 0 | R190: 0 | S190: 0 | T190: 0 | U190: 0 | V190: 0
C191: Positive Cash Payments | J191: =IF(J$8<=DD_Ts_Last_Hist_Mth,0,IF(J188<>0,0,IF(ROUND(MAX(J183:J183),5)>0,1,0))) -> 0 | K191: 0 | L191: 0 | M191: 0 | N191: 0 | O191: 0 | P191: 0 | Q191: 0 | R191: 0 | S191: 0 | T191: 0 | U191: 0 | V191: 0
B192: Total Alert Checks Result | I192: =IF(ISERROR(SUM(J192:V192)),1,MIN(SUM(J192:V192),1)) -> 0 | J192: =MIN(SUM(J190:J191),1) -> 0 | K192: 0 | L192: 0 | M192: 0 | N192: 0 | O192: 0 | P192: 0 | Q192: 0 | R192: 0 | S192: 0 | T192: 0 | U192: 0 | V192: 0
B194: Employment Provisions
B196: Salaries & Wages Taxes Withheld
B198: General Assumptions
B199: ="Opening Taxes Withheld ("&TEXT(Ts_Last_Hist_Mth_End_Date+1,"d-mmm-yy")&")" -> Opening Taxes Withheld (1-Apr-20) | H199: =INDEX('FS Opening'!$J107:$J107,DD_Ts_Last_Hist_Mth) -> 5000 | I199: =CHOOSE(I201,INDEX($J$204:$V$204,MOD(DD_Ts_Last_Hist_Mth,Ts_Mths_In_Qtr)),EOMONTH(Ts_Last_Hist_Mth_End_Date+1,0)) -> 2020-04-30
B200: Opening Taxes Payment Profile | H200: Automatic | I200: =IFERROR(MATCH(H200,LU_Emp_Prov_Calc,0),1) -> 1 | J200: 0 | K200: 0 | L200: 0 | M200: 0 | N200: 0 | O200: 0 | P200: 0 | Q200: 0 | R200: 0 | S200: 0 | T200: 0 | U200: 0 | V200: 0
B201: BAS Timing | H201: =Questionnaire!K25 -> Quarterly | I201: =IFERROR(MATCH(H201,LU_Emp_Prov_Timing,0),1) -> 1 | J201: =IF(J$8<DD_Ts_Last_Hist_Mth,0,CHOOSE($I201,Ts_Mths_In_Qtr-MOD(J$11-1,Ts_Mths_In_Qtr)-1,0)) -> 0 | K201: 2 | L201: 1 | M201: 0 | N201: 2 | O201: 1 | P201: 0 | Q201: 2 | R201: 1 | S201: 0 | T201: 2 | U201: 1 | V201: 0
B202: Periodic Taxes Payment Delay (Months) | J202: 1 | K202: 1 | L202: 1 | M202: 1 | N202: 1 | O202: 1 | P202: 1 | Q202: 1 | R202: 1 | S202: 1 | T202: 1 | U202: 1 | V202: 1
B203: Periodic Taxes Withheld During: | J203: =J$7 -> 2020-03-31 | K203: 2020-04-30 | L203: 2020-05-31 | M203: 2020-06-30 | N203: 2020-07-31 | O203: 2020-08-31 | P203: 2020-09-30 | Q203: 2020-10-31 | R203: 2020-11-30 | S203: 2020-12-31 | T203: 2021-01-31 | U203: 2021-02-28 | V203: 2021-03-31
B204: Periodic Taxes Paid During: | J204: =IF(J$8<DD_Ts_Last_Hist_Mth,"N/A",IF(J$8=DD_Ts_Last_Hist_Mth,EOMONTH(J$6,J$201+1),EOMONTH(J$6,J$201+J202))) -> 2020-04-30 | K204: 2020-07-31 | L204: 2020-07-31 | M204: 2020-07-31 | N204: 2020-10-31 | O204: 2020-10-31 | P204: 2020-10-31 | Q204: 2021-01-31 | R204: 2021-01-31 | S204: 2021-01-31 | T204: 2021-04-30 | U204: 2021-04-30 | V204: 2021-04-30
B206: Salaries & Wages Taxes Withheld
B207: Opening Balance | J207: =I214 -> 0 | K207: 5000 | L207: 4675 | M207: 9350 | N207: 14025 | O207: 4675 | P207: 9350 | Q207: 14025 | R207: 4675 | S207: 9350 | T207: 14025 | U207: 4675 | V207: 9350
B209: =RevExp!B64 -> Salaries & Wages | J209: =RevExp!J64 -> 0 | K209: =RevExp!K64 -> 4400 | L209: =RevExp!L64 -> 4400 | M209: =RevExp!M64 -> 4400 | N209: =RevExp!N64 -> 4400 | O209: =RevExp!O64 -> 4400 | P209: =RevExp!P64 -> 4400 | Q209: =RevExp!Q64 -> 4400 | R209: =RevExp!R64 -> 4400 | S209: =RevExp!S64 -> 4400 | T209: =RevExp!T64 -> 4400 | U209: =RevExp!U64 -> 4400 | V209: =RevExp!V64 -> 4400
B210: =RevExp!B65 -> Casuals | J210: =RevExp!J65 -> 0 | K210: =RevExp!K65 -> 275 | L210: =RevExp!L65 -> 275 | M210: =RevExp!M65 -> 275 | N210: =RevExp!N65 -> 275 | O210: =RevExp!O65 -> 275 | P210: =RevExp!P65 -> 275 | Q210: =RevExp!Q65 -> 275 | R210: =RevExp!R65 -> 275 | S210: =RevExp!S65 -> 275 | T210: =RevExp!T65 -> 275 | U210: =RevExp!U65 -> 275 | V210: =RevExp!V65 -> 275
B211: Periodic Taxes Withheld | J211: =SUM(J209:J210) -> 0 | K211: 4675 | L211: 4675 | M211: 4675 | N211: 4675 | O211: 4675 | P211: 4675 | Q211: 4675 | R211: 4675 | S211: 4675 | T211: 4675 | U211: 4675 | V211: 4675
B212: Payments - Opening Balance | J212: =CHOOSE($I200,IF(J203=$I199,-$H199,0),-$H199*J200) -> 0 | K212: -5000 | L212: 0 | M212: 0 | N212: 0 | O212: 0 | P212: 0 | Q212: 0 | R212: 0 | S212: 0 | T212: 0 | U212: 0 | V212: 0
B213: Payments - Periodic Amounts | J213: =IF(J$8<=DD_Ts_Last_Hist_Mth,0,-SUMIF($J204:J204,J$7,$J211:J211)) -> 0 | K213: =IF(K$8<=DD_Ts_Last_Hist_Mth,0,-SUMIF($J204:K204,K$7,$J211:K211)) -> 0 | L213: =IF(L$8<=DD_Ts_Last_Hist_Mth,0,-SUMIF($J204:L204,L$7,$J211:L211)) -> 0 | M213: =IF(M$8<=DD_Ts_Last_Hist_Mth,0,-SUMIF($J204:M204,M$7,$J211:M211)) -> 0 | N213: =IF(N$8<=DD_Ts_Last_Hist_Mth,0,-SUMIF($J204:N204,N$7,$J211:N211)) -> -14025 | O213: =IF(O$8<=DD_Ts_Last_Hist_Mth,0,-SUMIF($J204:O204,O$7,$J211:O211)) -> 0 | P213: =IF(P$8<=DD_Ts_Last_Hist_Mth,0,-SUMIF($J204:P204,P$7,$J211:P211)) -> 0 | Q213: =IF(Q$8<=DD_Ts_Last_Hist_Mth,0,-SUMIF($J204:Q204,Q$7,$J211:Q211)) -> -14025 | R213: =IF(R$8<=DD_Ts_Last_Hist_Mth,0,-SUMIF($J204:R204,R$7,$J211:R211)) -> 0 | S213: =IF(S$8<=DD_Ts_Last_Hist_Mth,0,-SUMIF($J204:S204,S$7,$J211:S211)) -> 0 | T213: =IF(T$8<=DD_Ts_Last_Hist_Mth,0,-SUMIF($J204:T204,T$7,$J211:T211)) -> -14025 | U213: =IF(U$8<=DD_Ts_Last_Hist_Mth,0,-SUMIF($J204:U204,U$7,$J211:U211)) -> 0 | V213: =IF(V$8<=DD_Ts_Last_Hist_Mth,0,-SUMIF($J204:V204,V$7,$J211:V211)) -> 0
B214: Closing Balance | J214: =IF(J$8<=DD_Ts_Last_Hist_Mth,'FS Opening'!J107,J207+J211+J212+J213) -> 5000 | K214: =IF(K$8<=DD_Ts_Last_Hist_Mth,'FS Opening'!K107,K207+K211+K212+K213) -> 4675 | L214: =IF(L$8<=DD_Ts_Last_Hist_Mth,'FS Opening'!L107,L207+L211+L212+L213) -> 9350 | M214: =IF(M$8<=DD_Ts_Last_Hist_Mth,'FS Opening'!M107,M207+M211+M212+M213) -> 14025 | N214: =IF(N$8<=DD_Ts_Last_Hist_Mth,'FS Opening'!N107,N207+N211+N212+N213) -> 4675 | O214: =IF(O$8<=DD_Ts_Last_Hist_Mth,'FS Opening'!O107,O207+O211+O212+O213) -> 9350 | P214: =IF(P$8<=DD_Ts_Last_Hist_Mth,'FS Opening'!P107,P207+P211+P212+P213) -> 14025 | Q214: =IF(Q$8<=DD_Ts_Last_Hist_Mth,'FS Opening'!Q107,Q207+Q211+Q212+Q213) -> 4675 | R214: =IF(R$8<=DD_Ts_Last_Hist_Mth,'FS Opening'!R107,R207+R211+R212+R213) -> 9350 | S214: =IF(S$8<=DD_Ts_Last_Hist_Mth,'FS Opening'!S107,S207+S211+S212+S213) -> 14025 | T214: =IF(T$8<=DD_Ts_Last_Hist_Mth,'FS Opening'!T107,T207+T211+T212+T213) -> 4675 | U214: =IF(U$8<=DD_Ts_Last_Hist_Mth,'FS Opening'!U107,U207+U211+U212+U213) -> 9350 | V214: =IF(V$8<=DD_Ts_Last_Hist_Mth,'FS Opening'!V107,V207+V211+V212+V213) -> 14025
B216: Taxes Paid During Period | J216: =J212+J213 -> 0 | K216: -5000 | L216: 0 | M216: 0 | N216: -14025 | O216: 0 | P216: 0 | Q216: -14025 | R216: 0 | S216: 0 | T216: -14025 | U216: 0 | V216: 0
B217: ="Increase/(Decrease) in "&B196 -> Increase/(Decrease) in Salaries & Wages Taxes Withheld | J217: =J214-J207 -> 5000 | K217: -325 | L217: 4675 | M217: 4675 | N217: -9350 | O217: 4675 | P217: 4675 | Q217: -9350 | R217: 4675 | S217: 4675 | T217: -9350 | U217: 4675 | V217: 4675
B219: Superannuation Withheld
B221: General Assumptions
B222: ="Opening Super Withheld ("&TEXT(Ts_Last_Hist_Mth_End_Date+1,"d-mmm-yy")&")" -> Opening Super Withheld (1-Apr-20) | H222: =INDEX('FS Opening'!$J108:$J108,DD_Ts_Last_Hist_Mth) -> 5000 | I222: =CHOOSE(I201,INDEX($J$227:$V$227,MOD(DD_Ts_Last_Hist_Mth,Ts_Mths_In_Qtr)),EOMONTH(Ts_Last_Hist_Mth_End_Date+1,0)) -> 2020-04-30
B223: Opening Super Payment Profile | H223: Automatic | I223: =IFERROR(MATCH(H223,LU_Emp_Prov_Calc,0),1) -> 1 | J223: 0 | K223: 0 | L223: 0 | M223: 0 | N223: 0 | O223: 0 | P223: 0 | Q223: 0 | R223: 0 | S223: 0 | T223: 0 | U223: 0 | V223: 0
B224: Superannuation Timing | H224: =Questionnaire!K29 -> Quarterly | I224: =IFERROR(MATCH(H224,LU_Emp_Prov_Timing,0),1) -> 1 | J224: =IF(J$8<=DD_Ts_Last_Hist_Mth,0,CHOOSE($I224,Ts_Mths_In_Qtr-MOD(J$11-1,Ts_Mths_In_Qtr)-1,0)) -> 0 | K224: 2 | L224: 1 | M224: 0 | N224: 2 | O224: 1 | P224: 0 | Q224: 2 | R224: 1 | S224: 0 | T224: 2 | U224: 1 | V224: 0
B225: Periodic Super Payment Delay (Months) | J225: 1 | K225: 1 | L225: 1 | M225: 1 | N225: 1 | O225: 1 | P225: 1 | Q225: 1 | R225: 1 | S225: 1 | T225: 1 | U225: 1 | V225: 1
B226: Periodic Super Withheld During: | J226: =J$7 -> 2020-03-31 | K226: 2020-04-30 | L226: 2020-05-31 | M226: 2020-06-30 | N226: 2020-07-31 | O226: 2020-08-31 | P226: 2020-09-30 | Q226: 2020-10-31 | R226: 2020-11-30 | S226: 2020-12-31 | T226: 2021-01-31 | U226: 2021-02-28 | V226: 2021-03-31
B227: Periodic Super Paid During: | J227: =IF(J$8<DD_Ts_Last_Hist_Mth,"N/A",IF(J$8=DD_Ts_Last_Hist_Mth,EOMONTH(J$6,J$224+1),EOMONTH(J$6,J$224+J225))) -> 2020-04-30 | K227: 2020-07-31 | L227: 2020-07-31 | M227: 2020-07-31 | N227: 2020-10-31 | O227: 2020-10-31 | P227: 2020-10-31 | Q227: 2021-01-31 | R227: 2021-01-31 | S227: 2021-01-31 | T227: 2021-04-30 | U227: 2021-04-30 | V227: 2021-04-30
B229: Superannuation Withheld
B230: Opening Balance | J230: =IF(J$8=DD_Ts_Last_Hist_Mth+1,$H$222,I237) -> 0 | K230: 5000 | L230: 1615 | M230: 3230 | N230: 4845 | O230: 1615 | P230: 3230 | Q230: 4845 | R230: 1615 | S230: 3230 | T230: 4845 | U230: 1615 | V230: 3230
B232: =RevExp!B73 -> Salaries & Wages | J232: =RevExp!J73 -> 0 | K232: =RevExp!K73 -> 1520 | L232: =RevExp!L73 -> 1520 | M232: =RevExp!M73 -> 1520 | N232: =RevExp!N73 -> 1520 | O232: =RevExp!O73 -> 1520 | P232: =RevExp!P73 -> 1520 | Q232: =RevExp!Q73 -> 1520 | R232: =RevExp!R73 -> 1520 | S232: =RevExp!S73 -> 1520 | T232: =RevExp!T73 -> 1520 | U232: =RevExp!U73 -> 1520 | V232: =RevExp!V73 -> 1520
B233: =RevExp!B74 -> Casuals | J233: =RevExp!J74 -> 0 | K233: =RevExp!K74 -> 95 | L233: =RevExp!L74 -> 95 | M233: =RevExp!M74 -> 95 | N233: =RevExp!N74 -> 95 | O233: =RevExp!O74 -> 95 | P233: =RevExp!P74 -> 95 | Q233: =RevExp!Q74 -> 95 | R233: =RevExp!R74 -> 95 | S233: =RevExp!S74 -> 95 | T233: =RevExp!T74 -> 95 | U233: =RevExp!U74 -> 95 | V233: =RevExp!V74 -> 95
B234: Periodic Superannuation Withheld | J234: =SUM(J232:J233) -> 0 | K234: 1615 | L234: 1615 | M234: 1615 | N234: 1615 | O234: 1615 | P234: 1615 | Q234: 1615 | R234: 1615 | S234: 1615 | T234: 1615 | U234: 1615 | V234: 1615
B235: Payments - Opening Balance | J235: =CHOOSE($I223,IF(J226=$I222,-$H222,0),-$H222*J223) -> 0 | K235: -5000 | L235: 0 | M235: 0 | N235: 0 | O235: 0 | P235: 0 | Q235: 0 | R235: 0 | S235: 0 | T235: 0 | U235: 0 | V235: 0
B236: Payments - Periodic Amounts | J236: =IF(J$8<=DD_Ts_Last_Hist_Mth,0,-SUMIF($J227:J227,J$7,$J234:J234)) -> 0 | K236: =IF(K$8<=DD_Ts_Last_Hist_Mth,0,-SUMIF($J227:K227,K$7,$J234:K234)) -> 0 | L236: =IF(L$8<=DD_Ts_Last_Hist_Mth,0,-SUMIF($J227:L227,L$7,$J234:L234)) -> 0 | M236: =IF(M$8<=DD_Ts_Last_Hist_Mth,0,-SUMIF($J227:M227,M$7,$J234:M234)) -> 0 | N236: =IF(N$8<=DD_Ts_Last_Hist_Mth,0,-SUMIF($J227:N227,N$7,$J234:N234)) -> -4845 | O236: =IF(O$8<=DD_Ts_Last_Hist_Mth,0,-SUMIF($J227:O227,O$7,$J234:O234)) -> 0 | P236: =IF(P$8<=DD_Ts_Last_Hist_Mth,0,-SUMIF($J227:P227,P$7,$J234:P234)) -> 0 | Q236: =IF(Q$8<=DD_Ts_Last_Hist_Mth,0,-SUMIF($J227:Q227,Q$7,$J234:Q234)) -> -4845 | R236: =IF(R$8<=DD_Ts_Last_Hist_Mth,0,-SUMIF($J227:R227,R$7,$J234:R234)) -> 0 | S236: =IF(S$8<=DD_Ts_Last_Hist_Mth,0,-SUMIF($J227:S227,S$7,$J234:S234)) -> 0 | T236: =IF(T$8<=DD_Ts_Last_Hist_Mth,0,-SUMIF($J227:T227,T$7,$J234:T234)) -> -4845 | U236: =IF(U$8<=DD_Ts_Last_Hist_Mth,0,-SUMIF($J227:U227,U$7,$J234:U234)) -> 0 | V236: =IF(V$8<=DD_Ts_Last_Hist_Mth,0,-SUMIF($J227:V227,V$7,$J234:V234)) -> 0
B237: Closing Balance | J237: =IF(J$8<=DD_Ts_Last_Hist_Mth,'FS Opening'!J108,SUM(J230,J234,J235:J236)) -> 5000 | K237: =IF(K$8<=DD_Ts_Last_Hist_Mth,'FS Opening'!K108,SUM(K230,K234,K235:K236)) -> 1615 | L237: =IF(L$8<=DD_Ts_Last_Hist_Mth,'FS Opening'!L108,SUM(L230,L234,L235:L236)) -> 3230 | M237: =IF(M$8<=DD_Ts_Last_Hist_Mth,'FS Opening'!M108,SUM(M230,M234,M235:M236)) -> 4845 | N237: =IF(N$8<=DD_Ts_Last_Hist_Mth,'FS Opening'!N108,SUM(N230,N234,N235:N236)) -> 1615 | O237: =IF(O$8<=DD_Ts_Last_Hist_Mth,'FS Opening'!O108,SUM(O230,O234,O235:O236)) -> 3230 | P237: =IF(P$8<=DD_Ts_Last_Hist_Mth,'FS Opening'!P108,SUM(P230,P234,P235:P236)) -> 4845 | Q237: =IF(Q$8<=DD_Ts_Last_Hist_Mth,'FS Opening'!Q108,SUM(Q230,Q234,Q235:Q236)) -> 1615 | R237: =IF(R$8<=DD_Ts_Last_Hist_Mth,'FS Opening'!R108,SUM(R230,R234,R235:R236)) -> 3230 | S237: =IF(S$8<=DD_Ts_Last_Hist_Mth,'FS Opening'!S108,SUM(S230,S234,S235:S236)) -> 4845 | T237: =IF(T$8<=DD_Ts_Last_Hist_Mth,'FS Opening'!T108,SUM(T230,T234,T235:T236)) -> 1615 | U237: =IF(U$8<=DD_Ts_Last_Hist_Mth,'FS Opening'!U108,SUM(U230,U234,U235:U236)) -> 3230 | V237: =IF(V$8<=DD_Ts_Last_Hist_Mth,'FS Opening'!V108,SUM(V230,V234,V235:V236)) -> 4845
B239: Superannuation Paid During Period | J239: =J235+J236 -> 0 | K239: -5000 | L239: 0 | M239: 0 | N239: -4845 | O239: 0 | P239: 0 | Q239: -4845 | R239: 0 | S239: 0 | T239: -4845 | U239: 0 | V239: 0
B240: ="Increase/(Decrease) in "&B219 -> Increase/(Decrease) in Superannuation Withheld | J240: =J237-J230 -> 5000 | K240: -3385 | L240: 1615 | M240: 1615 | N240: -3230 | O240: 1615 | P240: 1615 | Q240: -3230 | R240: 1615 | S240: 1615 | T240: -3230 | U240: 1615 | V240: 1615
B242: Leave Entitlements
B244: =RevExp!B80 -> Salaries & Wages | J244: =RevExp!J80 -> 0 | K244: =RevExp!K80 -> 17520 | L244: =RevExp!L80 -> 17520 | M244: =RevExp!M80 -> 17520 | N244: =RevExp!N80 -> 17520 | O244: =RevExp!O80 -> 17520 | P244: =RevExp!P80 -> 17520 | Q244: =RevExp!Q80 -> 17520 | R244: =RevExp!R80 -> 17520 | S244: =RevExp!S80 -> 17520 | T244: =RevExp!T80 -> 17520 | U244: =RevExp!U80 -> 17520 | V244: =RevExp!V80 -> 17520
B245: =RevExp!B81 -> Casuals | J245: =RevExp!J81 -> 0 | K245: =RevExp!K81 -> 1095 | L245: =RevExp!L81 -> 1095 | M245: =RevExp!M81 -> 1095 | N245: =RevExp!N81 -> 1095 | O245: =RevExp!O81 -> 1095 | P245: =RevExp!P81 -> 1095 | Q245: =RevExp!Q81 -> 1095 | R245: =RevExp!R81 -> 1095 | S245: =RevExp!S81 -> 1095 | T245: =RevExp!T81 -> 1095 | U245: =RevExp!U81 -> 1095 | V245: =RevExp!V81 -> 1095
B246: Total Salaries & Wages | J246: =SUM(J244:J245) -> 0 | K246: 18615 | L246: 18615 | M246: 18615 | N246: 18615 | O246: 18615 | P246: 18615 | Q246: 18615 | R246: 18615 | S246: 18615 | T246: 18615 | U246: 18615 | V246: 18615
B248: Annual Leave
B249: Periodic Provision (% of Wages) | J249: 0 | K249: 0 | L249: 0 | M249: 0 | N249: 0 | O249: 0 | P249: 0 | Q249: 0 | R249: 0 | S249: 0 | T249: 0 | U249: 0 | V249: 0
B250: Opening Balance | J250: =I252 -> 0 | K250: 0 | L250: 0 | M250: 0 | N250: 0 | O250: 0 | P250: 0 | Q250: 0 | R250: 0 | S250: 0 | T250: 0 | U250: 0 | V250: 0
B251: ="Movement in Provision for "&B248 -> Movement in Provision for Annual Leave | J251: =IF(J$8<=DD_Ts_Last_Hist_Mth,'FS Opening'!J32,J252-J250) -> 0 | K251: =IF(K$8<=DD_Ts_Last_Hist_Mth,'FS Opening'!K32,K252-K250) -> 0 | L251: =IF(L$8<=DD_Ts_Last_Hist_Mth,'FS Opening'!L32,L252-L250) -> 0 | M251: =IF(M$8<=DD_Ts_Last_Hist_Mth,'FS Opening'!M32,M252-M250) -> 0 | N251: =IF(N$8<=DD_Ts_Last_Hist_Mth,'FS Opening'!N32,N252-N250) -> 0 | O251: =IF(O$8<=DD_Ts_Last_Hist_Mth,'FS Opening'!O32,O252-O250) -> 0 | P251: =IF(P$8<=DD_Ts_Last_Hist_Mth,'FS Opening'!P32,P252-P250) -> 0 | Q251: =IF(Q$8<=DD_Ts_Last_Hist_Mth,'FS Opening'!Q32,Q252-Q250) -> 0 | R251: =IF(R$8<=DD_Ts_Last_Hist_Mth,'FS Opening'!R32,R252-R250) -> 0 | S251: =IF(S$8<=DD_Ts_Last_Hist_Mth,'FS Opening'!S32,S252-S250) -> 0 | T251: =IF(T$8<=DD_Ts_Last_Hist_Mth,'FS Opening'!T32,T252-T250) -> 0 | U251: =IF(U$8<=DD_Ts_Last_Hist_Mth,'FS Opening'!U32,U252-U250) -> 0 | V251: =IF(V$8<=DD_Ts_Last_Hist_Mth,'FS Opening'!V32,V252-V250) -> 0
B252: ="Closing Provision for "&B248 -> Closing Provision for Annual Leave | J252: =IF(J$8<=DD_Ts_Last_Hist_Mth,'FS Opening'!J124,J$246*J$249) -> 0 | K252: =IF(K$8<=DD_Ts_Last_Hist_Mth,'FS Opening'!K124,K$246*K$249) -> 0 | L252: =IF(L$8<=DD_Ts_Last_Hist_Mth,'FS Opening'!L124,L$246*L$249) -> 0 | M252: =IF(M$8<=DD_Ts_Last_Hist_Mth,'FS Opening'!M124,M$246*M$249) -> 0 | N252: =IF(N$8<=DD_Ts_Last_Hist_Mth,'FS Opening'!N124,N$246*N$249) -> 0 | O252: =IF(O$8<=DD_Ts_Last_Hist_Mth,'FS Opening'!O124,O$246*O$249) -> 0 | P252: =IF(P$8<=DD_Ts_Last_Hist_Mth,'FS Opening'!P124,P$246*P$249) -> 0 | Q252: =IF(Q$8<=DD_Ts_Last_Hist_Mth,'FS Opening'!Q124,Q$246*Q$249) -> 0 | R252: =IF(R$8<=DD_Ts_Last_Hist_Mth,'FS Opening'!R124,R$246*R$249) -> 0 | S252: =IF(S$8<=DD_Ts_Last_Hist_Mth,'FS Opening'!S124,S$246*S$249) -> 0 | T252: =IF(T$8<=DD_Ts_Last_Hist_Mth,'FS Opening'!T124,T$246*T$249) -> 0 | U252: =IF(U$8<=DD_Ts_Last_Hist_Mth,'FS Opening'!U124,U$246*U$249) -> 0 | V252: =IF(V$8<=DD_Ts_Last_Hist_Mth,'FS Opening'!V124,V$246*V$249) -> 0
B254: Movement in Hist. Provision for Annual Leave | J254: =IF(J$8<=DD_Ts_Last_Hist_Mth,J252-I252,0) -> 0 | K254: 0 | L254: 0 | M254: 0 | N254: 0 | O254: 0 | P254: 0 | Q254: 0 | R254: 0 | S254: 0 | T254: 0 | U254: 0 | V254: 0
B256: Long Service Leave
B257: Periodic Provision (% of Wages) | J257: 0 | K257: 0 | L257: 0 | M257: 0 | N257: 0 | O257: 0 | P257: 0 | Q257: 0 | R257: 0 | S257: 0 | T257: 0 | U257: 0 | V257: 0
B258: Opening Balance | J258: =I260 -> 0 | K258: 0 | L258: 0 | M258: 0 | N258: 0 | O258: 0 | P258: 0 | Q258: 0 | R258: 0 | S258: 0 | T258: 0 | U258: 0 | V258: 0
B259: ="Movement in Provision for "&B256 -> Movement in Provision for Long Service Leave | J259: =IF(J$8<=DD_Ts_Last_Hist_Mth,'FS Opening'!J33,J260-J258) -> 0 | K259: =IF(K$8<=DD_Ts_Last_Hist_Mth,'FS Opening'!K33,K260-K258) -> 0 | L259: =IF(L$8<=DD_Ts_Last_Hist_Mth,'FS Opening'!L33,L260-L258) -> 0 | M259: =IF(M$8<=DD_Ts_Last_Hist_Mth,'FS Opening'!M33,M260-M258) -> 0 | N259: =IF(N$8<=DD_Ts_Last_Hist_Mth,'FS Opening'!N33,N260-N258) -> 0 | O259: =IF(O$8<=DD_Ts_Last_Hist_Mth,'FS Opening'!O33,O260-O258) -> 0 | P259: =IF(P$8<=DD_Ts_Last_Hist_Mth,'FS Opening'!P33,P260-P258) -> 0 | Q259: =IF(Q$8<=DD_Ts_Last_Hist_Mth,'FS Opening'!Q33,Q260-Q258) -> 0 | R259: =IF(R$8<=DD_Ts_Last_Hist_Mth,'FS Opening'!R33,R260-R258) -> 0 | S259: =IF(S$8<=DD_Ts_Last_Hist_Mth,'FS Opening'!S33,S260-S258) -> 0 | T259: =IF(T$8<=DD_Ts_Last_Hist_Mth,'FS Opening'!T33,T260-T258) -> 0 | U259: =IF(U$8<=DD_Ts_Last_Hist_Mth,'FS Opening'!U33,U260-U258) -> 0 | V259: =IF(V$8<=DD_Ts_Last_Hist_Mth,'FS Opening'!V33,V260-V258) -> 0
B260: ="Closing Provision for "&B256 -> Closing Provision for Long Service Leave | J260: =IF(J$8<=DD_Ts_Last_Hist_Mth,'FS Opening'!J125,J$246*J$257) -> 0 | K260: =IF(K$8<=DD_Ts_Last_Hist_Mth,'FS Opening'!K125,K$246*K$257) -> 0 | L260: =IF(L$8<=DD_Ts_Last_Hist_Mth,'FS Opening'!L125,L$246*L$257) -> 0 | M260: =IF(M$8<=DD_Ts_Last_Hist_Mth,'FS Opening'!M125,M$246*M$257) -> 0 | N260: =IF(N$8<=DD_Ts_Last_Hist_Mth,'FS Opening'!N125,N$246*N$257) -> 0 | O260: =IF(O$8<=DD_Ts_Last_Hist_Mth,'FS Opening'!O125,O$246*O$257) -> 0 | P260: =IF(P$8<=DD_Ts_Last_Hist_Mth,'FS Opening'!P125,P$246*P$257) -> 0 | Q260: =IF(Q$8<=DD_Ts_Last_Hist_Mth,'FS Opening'!Q125,Q$246*Q$257) -> 0 | R260: =IF(R$8<=DD_Ts_Last_Hist_Mth,'FS Opening'!R125,R$246*R$257) -> 0 | S260: =IF(S$8<=DD_Ts_Last_Hist_Mth,'FS Opening'!S125,S$246*S$257) -> 0 | T260: =IF(T$8<=DD_Ts_Last_Hist_Mth,'FS Opening'!T125,T$246*T$257) -> 0 | U260: =IF(U$8<=DD_Ts_Last_Hist_Mth,'FS Opening'!U125,U$246*U$257) -> 0 | V260: =IF(V$8<=DD_Ts_Last_Hist_Mth,'FS Opening'!V125,V$246*V$257) -> 0
B262: Movement in Hist. Provision for Long Service Leave | J262: =IF(J$8<=DD_Ts_Last_Hist_Mth,J260-I260,0) -> 0 | K262: 0 | L262: 0 | M262: 0 | N262: 0 | O262: 0 | P262: 0 | Q262: 0 | R262: 0 | S262: 0 | T262: 0 | U262: 0 | V262: 0
C264: Error Values | J264: =IF(ISERROR(SUM(J214,J237,J252,J260)),1,0) -> 0 | K264: 0 | L264: 0 | M264: 0 | N264: 0 | O264: 0 | P264: 0 | Q264: 0 | R264: 0 | S264: 0 | T264: 0 | U264: 0 | V264: 0
... 5 more rows

Sheet Assets (hidden)
A1: ± | B1: Assets
A2: x | B2: =Model_Name -> High Level 3-Way Financial Model
B4: Month Ending | J4: =TEXT(J7,"mmm-yy") -> Mar-20 | K4: Apr-20 | L4: May-20 | M4: Jun-20 | N4: Jul-20 | O4: Aug-20 | P4: Sep-20 | Q4: Oct-20 | R4: Nov-20 | S4: Dec-20 | T4: Jan-21 | U4: Feb-21 | V4: Mar-21
B5: Month | J5: ="M"&J11&IF(J8>DD_Ts_Last_Hist_Mth,Ts_Fcast_Per_ID,Ts_Hist_Per_ID) -> M9 (H) | K5: M10 (F) | L5: M11 (F) | M5: M12 (F) | N5: M1 (F) | O5: M2 (F) | P5: M3 (F) | Q5: M4 (F) | R5: M5 (F) | S5: M6 (F) | T5: M7 (F) | U5: M8 (F) | V5: M9 (F)
B6: Period Start Date | J6: =EDATE(Ts_Start_Date,J8-1) -> 2020-03-01 | K6: 2020-04-01 | L6: 2020-05-01 | M6: 2020-06-01 | N6: 2020-07-01 | O6: 2020-08-01 | P6: 2020-09-01 | Q6: 2020-10-01 | R6: 2020-11-01 | S6: 2020-12-01 | T6: 2021-01-01 | U6: 2021-02-01 | V6: 2021-03-01
B7: Period End Date | J7: =EDATE(Ts_Start_Date,J8)-1 -> 2020-03-31 | K7: 2020-04-30 | L7: 2020-05-31 | M7: 2020-06-30 | N7: 2020-07-31 | O7: 2020-08-31 | P7: 2020-09-30 | Q7: 2020-10-31 | R7: 2020-11-30 | S7: 2020-12-31 | T7: 2021-01-31 | U7: 2021-02-28 | V7: 2021-03-31
B8: Counter | J8: =COLUMNS($J8:J8) -> 1 | K8: =COLUMNS($J8:K8) -> 2 | L8: =COLUMNS($J8:L8) -> 3 | M8: =COLUMNS($J8:M8) -> 4 | N8: =COLUMNS($J8:N8) -> 5 | O8: =COLUMNS($J8:O8) -> 6 | P8: =COLUMNS($J8:P8) -> 7 | Q8: =COLUMNS($J8:Q8) -> 8 | R8: =COLUMNS($J8:R8) -> 9 | S8: =COLUMNS($J8:S8) -> 10 | T8: =COLUMNS($J8:T8) -> 11 | U8: =COLUMNS($J8:U8) -> 12 | V8: =COLUMNS($J8:V8) -> 13
B9: Financial Year | J9: =YEAR(J7)+IF(MONTH(J7)>DD_Ts_Fin_Yr_End_Mth,1,0) -> 2020 | K9: 2020 | L9: 2020 | M9: 2020 | N9: 2021 | O9: 2021 | P9: 2021 | Q9: 2021 | R9: 2021 | S9: 2021 | T9: 2021 | U9: 2021 | V9: 2021
B10: Active Column Number | J10: =IF(AND(J8>DD_Ts_Last_Hist_Mth,J8<=Ts_Term),J8-DD_Ts_Last_Hist_Mth,0) -> 0 | K10: 1 | L10: 2 | M10: 3 | N10: 4 | O10: 5 | P10: 6 | Q10: 7 | R10: 8 | S10: 9 | T10: 10 | U10: 11 | V10: 12
B11: Month Number | J11: =MOD(MONTH(J7)-DD_Ts_Fin_Yr_End_Mth-1,Ts_Mths_In_Yr)+1 -> 9 | K11: 10 | L11: 11 | M11: 12 | N11: 1 | O11: 2 | P11: 3 | Q11: 4 | R11: 5 | S11: 6 | T11: 7 | U11: 8 | V11: 9
B12: Month Key | J12: ="M"&J11&"-"&J9 -> M9-2020 | K12: M10-2020 | L12: M11-2020 | M12: M12-2020 | N12: M1-2021 | O12: M2-2021 | P12: M3-2021 | Q12: M4-2021 | R12: M5-2021 | S12: M6-2021 | T12: M7-2021 | U12: M8-2021 | V12: M9-2021
B13: Quarter Key | J13: ="Q"&INT((J11-1)/Ts_Mths_In_Qtr)+1&"-"&J9 -> Q3-2020 | K13: Q4-2020 | L13: Q4-2020 | M13: Q4-2020 | N13: Q1-2021 | O13: Q1-2021 | P13: Q1-2021 | Q13: Q2-2021 | R13: Q2-2021 | S13: Q2-2021 | T13: Q3-2021 | U13: Q3-2021 | V13: Q3-2021
B14: Half Key | J14: ="H"&INT((J11-1)/Ts_Mths_In_Half)+1&"-"&J9 -> H2-2020 | K14: H2-2020 | L14: H2-2020 | M14: H2-2020 | N14: H1-2021 | O14: H1-2021 | P14: H1-2021 | Q14: H1-2021 | R14: H1-2021 | S14: H1-2021 | T14: H2-2021 | U14: H2-2021 | V14: H2-2021
B16: Fixed Assets
B18: Fixed Assets - Capital Expenditure & Allocations
B20: Capital Expenditure | H20: Allocation
B21: Capital Expenditure Category 1 | H21: [Select Asset] | J21: 0 | K21: 0 | L21: 0 | M21: 0 | N21: 0 | O21: 0 | P21: 0 | Q21: 0 | R21: 0 | S21: 0 | T21: 0 | U21: 0 | V21: 0
B22: ="Total "&B20 -> Total Capital Expenditure | J22: =SUM(J21:J21) -> 0 | K22: 0 | L22: 0 | M22: 0 | N22: 0 | O22: 0 | P22: 0 | Q22: 0 | R22: 0 | S22: 0 | T22: 0 | U22: 0 | V22: 0
B24: Fixed Assets - Individual Schedules
B26: ='FS Opening'!B85 -> Fixed Assets | H26: =TEXT(Ts_Last_Hist_Mth_End_Date+1,"d-mmm-yy") -> 1-Apr-20
B27: Opening Net Book Value | H27: =INDEX('FS Opening'!$J85:$J85,DD_Ts_Last_Hist_Mth) -> 0 | J27: =IF(J$8<=DD_Ts_Last_Hist_Mth,0,IF(J$8=DD_Ts_Last_Hist_Mth+1,$H27,I36)) -> 0 | K27: 0 | L27: 0 | M27: 0 | N27: 0 | O27: 0 | P27: 0 | Q27: 0 | R27: 0 | S27: 0 | T27: 0 | U27: 0 | V27: 0
B28: Capital Expenditure | J28: =IF(J$8<=DD_Ts_Last_Hist_Mth,0,SUMIF($H$21:$H$21,$B26,J$21:J$21)) -> 0 | K28: 0 | L28: 0 | M28: 0 | N28: 0 | O28: 0 | P28: 0 | Q28: 0 | R28: 0 | S28: 0 | T28: 0 | U28: 0 | V28: 0
C30: Opening Assets - Depreciation Profile | J30: =IF($H34=0,0,MIN(1-SUM($I30:I30),1/$H34/Ts_Mths_In_Yr)) -> 0 | K30: =IF($H34=0,0,MIN(1-SUM($I30:J30),1/$H34/Ts_Mths_In_Yr)) -> 0 | L30: =IF($H34=0,0,MIN(1-SUM($I30:K30),1/$H34/Ts_Mths_In_Yr)) -> 0 | M30: =IF($H34=0,0,MIN(1-SUM($I30:L30),1/$H34/Ts_Mths_In_Yr)) -> 0 | N30: =IF($H34=0,0,MIN(1-SUM($I30:M30),1/$H34/Ts_Mths_In_Yr)) -> 0 | O30: =IF($H34=0,0,MIN(1-SUM($I30:N30),1/$H34/Ts_Mths_In_Yr)) -> 0 | P30: =IF($H34=0,0,MIN(1-SUM($I30:O30),1/$H34/Ts_Mths_In_Yr)) -> 0 | Q30: =IF($H34=0,0,MIN(1-SUM($I30:P30),1/$H34/Ts_Mths_In_Yr)) -> 0 | R30: =IF($H34=0,0,MIN(1-SUM($I30:Q30),1/$H34/Ts_Mths_In_Yr)) -> 0 | S30: =IF($H34=0,0,MIN(1-SUM($I30:R30),1/$H34/Ts_Mths_In_Yr)) -> 0 | T30: =IF($H34=0,0,MIN(1-SUM($I30:S30),1/$H34/Ts_Mths_In_Yr)) -> 0 | U30: =IF($H34=0,0,MIN(1-SUM($I30:T30),1/$H34/Ts_Mths_In_Yr)) -> 0 | V30: =IF($H34=0,0,MIN(1-SUM($I30:U30),1/$H34/Ts_Mths_In_Yr)) -> 0
C31: Capital Expenditure - Depreciation Profile | J31: =IF($H35=0,0,MIN(1-SUM($I31:I31),1/$H35/Ts_Mths_In_Yr)) -> 0 | K31: =IF($H35=0,0,MIN(1-SUM($I31:J31),1/$H35/Ts_Mths_In_Yr)) -> 0 | L31: =IF($H35=0,0,MIN(1-SUM($I31:K31),1/$H35/Ts_Mths_In_Yr)) -> 0 | M31: =IF($H35=0,0,MIN(1-SUM($I31:L31),1/$H35/Ts_Mths_In_Yr)) -> 0 | N31: =IF($H35=0,0,MIN(1-SUM($I31:M31),1/$H35/Ts_Mths_In_Yr)) -> 0 | O31: =IF($H35=0,0,MIN(1-SUM($I31:N31),1/$H35/Ts_Mths_In_Yr)) -> 0 | P31: =IF($H35=0,0,MIN(1-SUM($I31:O31),1/$H35/Ts_Mths_In_Yr)) -> 0 | Q31: =IF($H35=0,0,MIN(1-SUM($I31:P31),1/$H35/Ts_Mths_In_Yr)) -> 0 | R31: =IF($H35=0,0,MIN(1-SUM($I31:Q31),1/$H35/Ts_Mths_In_Yr)) -> 0 | S31: =IF($H35=0,0,MIN(1-SUM($I31:R31),1/$H35/Ts_Mths_In_Yr)) -> 0 | T31: =IF($H35=0,0,MIN(1-SUM($I31:S31),1/$H35/Ts_Mths_In_Yr)) -> 0 | U31: =IF($H35=0,0,MIN(1-SUM($I31:T31),1/$H35/Ts_Mths_In_Yr)) -> 0 | V31: =IF($H35=0,0,MIN(1-SUM($I31:U31),1/$H35/Ts_Mths_In_Yr)) -> 0
C32: Capital Expenditure - Depreciation Profile (Reversed) | J32: =OFFSET($V31,0,1-J$8) -> 0 | K32: 0 | L32: 0 | M32: 0 | N32: 0 | O32: 0 | P32: 0 | Q32: 0 | R32: 0 | S32: 0 | T32: 0 | U32: 0 | V32: 0
B34: Book Depr. of Opening NBV (Years) | H34: 0 | J34: =IF(J$8<=DD_Ts_Last_Hist_Mth,0,-$H27*OFFSET(J30,0,-DD_Ts_Last_Hist_Mth)) -> 0 | K34: 0 | L34: 0 | M34: 0 | N34: 0 | O34: 0 | P34: 0 | Q34: 0 | R34: 0 | S34: 0 | T34: 0 | U34: 0 | V34: 0
B35: Book Depr. of Periodic Capex (Years) | H35: 0 | J35: =IF(J$8<=DD_Ts_Last_Hist_Mth,0,-SUMPRODUCT($J28:J28,OFFSET($V32,0,1-J$8,1,J$8))) -> 0 | K35: =IF(K$8<=DD_Ts_Last_Hist_Mth,0,-SUMPRODUCT($J28:K28,OFFSET($V32,0,1-K$8,1,K$8))) -> 0 | L35: =IF(L$8<=DD_Ts_Last_Hist_Mth,0,-SUMPRODUCT($J28:L28,OFFSET($V32,0,1-L$8,1,L$8))) -> 0 | M35: =IF(M$8<=DD_Ts_Last_Hist_Mth,0,-SUMPRODUCT($J28:M28,OFFSET($V32,0,1-M$8,1,M$8))) -> 0 | N35: =IF(N$8<=DD_Ts_Last_Hist_Mth,0,-SUMPRODUCT($J28:N28,OFFSET($V32,0,1-N$8,1,N$8))) -> 0 | O35: =IF(O$8<=DD_Ts_Last_Hist_Mth,0,-SUMPRODUCT($J28:O28,OFFSET($V32,0,1-O$8,1,O$8))) -> 0 | P35: =IF(P$8<=DD_Ts_Last_Hist_Mth,0,-SUMPRODUCT($J28:P28,OFFSET($V32,0,1-P$8,1,P$8))) -> 0 | Q35: =IF(Q$8<=DD_Ts_Last_Hist_Mth,0,-SUMPRODUCT($J28:Q28,OFFSET($V32,0,1-Q$8,1,Q$8))) -> 0 | R35: =IF(R$8<=DD_Ts_Last_Hist_Mth,0,-SUMPRODUCT($J28:R28,OFFSET($V32,0,1-R$8,1,R$8))) -> 0 | S35: =IF(S$8<=DD_Ts_Last_Hist_Mth,0,-SUMPRODUCT($J28:S28,OFFSET($V32,0,1-S$8,1,S$8))) -> 0 | T35: =IF(T$8<=DD_Ts_Last_Hist_Mth,0,-SUMPRODUCT($J28:T28,OFFSET($V32,0,1-T$8,1,T$8))) -> 0 | U35: =IF(U$8<=DD_Ts_Last_Hist_Mth,0,-SUMPRODUCT($J28:U28,OFFSET($V32,0,1-U$8,1,U$8))) -> 0 | V35: =IF(V$8<=DD_Ts_Last_Hist_Mth,0,-SUMPRODUCT($J28:V28,OFFSET($V32,0,1-V$8,1,V$8))) -> 0
B36: Closing Net Book Value | J36: =SUM(J27:J28,J34:J35) -> 0 | K36: 0 | L36: 0 | M36: 0 | N36: 0 | O36: 0 | P36: 0 | Q36: 0 | R36: 0 | S36: 0 | T36: 0 | U36: 0 | V36: 0
B38: Fixed Assets - Summary
B40: Fixed Assets (All Categories)
B41: =B26 -> Fixed Assets | J41: =J27 -> 0 | K41: 0 | L41: 0 | M41: 0 | N41: 0 | O41: 0 | P41: 0 | Q41: 0 | R41: 0 | S41: 0 | T41: 0 | U41: 0 | V41: 0
B42: Opening Net Book Value | J42: =SUM(J41:J41) -> 0 | K42: 0 | L42: 0 | M42: 0 | N42: 0 | O42: 0 | P42: 0 | Q42: 0 | R42: 0 | S42: 0 | T42: 0 | U42: 0 | V42: 0
B44: =B26 -> Fixed Assets | J44: =J28 -> 0 | K44: 0 | L44: 0 | M44: 0 | N44: 0 | O44: 0 | P44: 0 | Q44: 0 | R44: 0 | S44: 0 | T44: 0 | U44: 0 | V44: 0
B45: Capital Expenditure | J45: =SUM(J44:J44) -> 0 | K45: 0 | L45: 0 | M45: 0 | N45: 0 | O45: 0 | P45: 0 | Q45: 0 | R45: 0 | S45: 0 | T45: 0 | U45: 0 | V45: 0
B47: =B26 -> Fixed Assets | J47: =J34+J35 -> 0 | K47: 0 | L47: 0 | M47: 0 | N47: 0 | O47: 0 | P47: 0 | Q47: 0 | R47: 0 | S47: 0 | T47: 0 | U47: 0 | V47: 0
B48: Book Depreciation | J48: =SUM(J47:J47) -> 0 | K48: 0 | L48: 0 | M48: 0 | N48: 0 | O48: 0 | P48: 0 | Q48: 0 | R48: 0 | S48: 0 | T48: 0 | U48: 0 | V48: 0
B50: =B26 -> Fixed Assets | J50: =IF(J$8<=DD_Ts_Last_Hist_Mth,'FS Opening'!J85,J36) -> 0 | K50: =IF(K$8<=DD_Ts_Last_Hist_Mth,'FS Opening'!K85,K36) -> 0 | L50: =IF(L$8<=DD_Ts_Last_Hist_Mth,'FS Opening'!L85,L36) -> 0 | M50: =IF(M$8<=DD_Ts_Last_Hist_Mth,'FS Opening'!M85,M36) -> 0 | N50: =IF(N$8<=DD_Ts_Last_Hist_Mth,'FS Opening'!N85,N36) -> 0 | O50: =IF(O$8<=DD_Ts_Last_Hist_Mth,'FS Opening'!O85,O36) -> 0 | P50: =IF(P$8<=DD_Ts_Last_Hist_Mth,'FS Opening'!P85,P36) -> 0 | Q50: =IF(Q$8<=DD_Ts_Last_Hist_Mth,'FS Opening'!Q85,Q36) -> 0 | R50: =IF(R$8<=DD_Ts_Last_Hist_Mth,'FS Opening'!R85,R36) -> 0 | S50: =IF(S$8<=DD_Ts_Last_Hist_Mth,'FS Opening'!S85,S36) -> 0 | T50: =IF(T$8<=DD_Ts_Last_Hist_Mth,'FS Opening'!T85,T36) -> 0 | U50: =IF(U$8<=DD_Ts_Last_Hist_Mth,'FS Opening'!U85,U36) -> 0 | V50: =IF(V$8<=DD_Ts_Last_Hist_Mth,'FS Opening'!V85,V36) -> 0
B51: Closing Net Book Value | J51: =SUM(J50:J50) -> 0 | K51: 0 | L51: 0 | M51: 0 | N51: 0 | O51: 0 | P51: 0 | Q51: 0 | R51: 0 | S51: 0 | T51: 0 | U51: 0 | V51: 0
B53: Historical Depreciation
B54: ='FS Opening'!B43 -> Depreciation | J54: =IF(J$8<=DD_Ts_Last_Hist_Mth,-'FS Opening'!J43,0) -> 0 | K54: =IF(K$8<=DD_Ts_Last_Hist_Mth,-'FS Opening'!K43,0) -> 0 | L54: =IF(L$8<=DD_Ts_Last_Hist_Mth,-'FS Opening'!L43,0) -> 0 | M54: =IF(M$8<=DD_Ts_Last_Hist_Mth,-'FS Opening'!M43,0) -> 0 | N54: =IF(N$8<=DD_Ts_Last_Hist_Mth,-'FS Opening'!N43,0) -> 0 | O54: =IF(O$8<=DD_Ts_Last_Hist_Mth,-'FS Opening'!O43,0) -> 0 | P54: =IF(P$8<=DD_Ts_Last_Hist_Mth,-'FS Opening'!P43,0) -> 0 | Q54: =IF(Q$8<=DD_Ts_Last_Hist_Mth,-'FS Opening'!Q43,0) -> 0 | R54: =IF(R$8<=DD_Ts_Last_Hist_Mth,-'FS Opening'!R43,0) -> 0 | S54: =IF(S$8<=DD_Ts_Last_Hist_Mth,-'FS Opening'!S43,0) -> 0 | T54: =IF(T$8<=DD_Ts_Last_Hist_Mth,-'FS Opening'!T43,0) -> 0 | U54: =IF(U$8<=DD_Ts_Last_Hist_Mth,-'FS Opening'!U43,0) -> 0 | V54: =IF(V$8<=DD_Ts_Last_Hist_Mth,-'FS Opening'!V43,0) -> 0
B55: ="Total "&B53 -> Total Historical Depreciation | J55: =SUM(J54:J54) -> 0 | K55: 0 | L55: 0 | M55: 0 | N55: 0 | O55: 0 | P55: 0 | Q55: 0 | R55: 0 | S55: 0 | T55: 0 | U55: 0 | V55: 0
B57: Movement in Historical Fixed Assets
B58: =B26 -> Fixed Assets | J58: =IF(J$8<=DD_Ts_Last_Hist_Mth,J50-I50,0) -> 0 | K58: 0 | L58: 0 | M58: 0 | N58: 0 | O58: 0 | P58: 0 | Q58: 0 | R58: 0 | S58: 0 | T58: 0 | U58: 0 | V58: 0
B59: ="Total "&B57 -> Total Movement in Historical Fixed Assets | J59: =SUM(J58:J58) -> 0 | K59: 0 | L59: 0 | M59: 0 | N59: 0 | O59: 0 | P59: 0 | Q59: 0 | R59: 0 | S59: 0 | T59: 0 | U59: 0 | V59: 0
C61: Error Values | J61: =IF(ISERROR(J42+J45+J48-J51+J55+J59),1,0) -> 0 | K61: 0 | L61: 0 | M61: 0 | N61: 0 | O61: 0 | P61: 0 | Q61: 0 | R61: 0 | S61: 0 | T61: 0 | U61: 0 | V61: 0
C62: Unmapped Capex | J62: =IF(OR(J61<>0,J$8<=DD_Ts_Last_Hist_Mth,ROUND(J22-J45,4)=0),0,1) -> 0 | K62: 0 | L62: 0 | M62: 0 | N62: 0 | O62: 0 | P62: 0 | Q62: 0 | R62: 0 | S62: 0 | T62: 0 | U62: 0 | V62: 0
C63: Balance Check | J63: =IF(J61<>0,0,IF(J$8<=DD_Ts_Last_Hist_Mth,0,IF(ROUND(J42+J45+J48-J51,5)<>0,1,0))) -> 0 | K63: 0 | L63: 0 | M63: 0 | N63: 0 | O63: 0 | P63: 0 | Q63: 0 | R63: 0 | S63: 0 | T63: 0 | U63: 0 | V63: 0
B64: Total Error Checks Result | I64: =IF(ISERROR(SUM(J64:V64)),1,MIN(SUM(J64:V64),1)) -> 0 | J64: =MIN(SUM(J61:J63),1) -> 0 | K64: 0 | L64: 0 | M64: 0 | N64: 0 | O64: 0 | P64: 0 | Q64: 0 | R64: 0 | S64: 0 | T64: 0 | U64: 0 | V64: 0
C66: Negative Capital Expenditure | J66: =IF(J$8<=DD_Ts_Last_Hist_Mth,0,IF(J64<>0,0,IF(ROUND(MIN(J44:J44),5)<0,1,0))) -> 0 | K66: 0 | L66: 0 | M66: 0 | N66: 0 | O66: 0 | P66: 0 | Q66: 0 | R66: 0 | S66: 0 | T66: 0 | U66: 0 | V66: 0
C67: Negative Book Depreciation | J67: =IF(J$8<=DD_Ts_Last_Hist_Mth,0,IF(J64<>0,0,IF(ROUND(MAX(J47:J47),5)>0,1,0))) -> 0 | K67: 0 | L67: 0 | M67: 0 | N67: 0 | O67: 0 | P67: 0 | Q67: 0 | R67: 0 | S67: 0 | T67: 0 | U67: 0 | V67: 0
C68: Negative Closing Balances | J68: =IF(J$8<=DD_Ts_Last_Hist_Mth,0,IF(J64<>0,0,IF(ROUND(MIN(J50:J50),5)<0,1,0))) -> 0 | K68: 0 | L68: 0 | M68: 0 | N68: 0 | O68: 0 | P68: 0 | Q68: 0 | R68: 0 | S68: 0 | T68: 0 | U68: 0 | V68: 0
B69: Total Alert Checks Result | I69: =IF(ISERROR(SUM(J69:V69)),1,MIN(SUM(J69:V69),1)) -> 0 | J69: =MIN(SUM(J66:J68),1) -> 0 | K69: 0 | L69: 0 | M69: 0 | N69: 0 | O69: 0 | P69: 0 | Q69: 0 | R69: 0 | S69: 0 | T69: 0 | U69: 0 | V69: 0
B71: Intangible Assets
B73: Intangible Assets - Capital Expenditure & Allocations
B75: Capital Expenditure | H75: Allocation
B76: Capital Expenditure Category 1 | H76: [Select Asset] | J76: 0 | K76: 0 | L76: 0 | M76: 0 | N76: 0 | O76: 0 | P76: 0 | Q76: 0 | R76: 0 | S76: 0 | T76: 0 | U76: 0 | V76: 0
B77: ="Total "&B75 -> Total Capital Expenditure | J77: =SUM(J76:J76) -> 0 | K77: 0 | L77: 0 | M77: 0 | N77: 0 | O77: 0 | P77: 0 | Q77: 0 | R77: 0 | S77: 0 | T77: 0 | U77: 0 | V77: 0
B79: Intangible Assets - Individual Schedules
B81: ='FS Opening'!B88 -> Intangible Assets | H81: =TEXT(Ts_Last_Hist_Mth_End_Date+1,"d-mmm-yy") -> 1-Apr-20
B82: Opening Net Book Value | H82: =INDEX('FS Opening'!$J88:$J88,DD_Ts_Last_Hist_Mth) -> 0 | J82: =IF(J$8<=DD_Ts_Last_Hist_Mth,0,IF(J$8=DD_Ts_Last_Hist_Mth+1,$H82,I91)) -> 0 | K82: 0 | L82: 0 | M82: 0 | N82: 0 | O82: 0 | P82: 0 | Q82: 0 | R82: 0 | S82: 0 | T82: 0 | U82: 0 | V82: 0
B83: Capital Expenditure | J83: =IF(J$8<=DD_Ts_Last_Hist_Mth,0,SUMIF($H$76:$H$76,$B81,J$76:J$76)) -> 0 | K83: 0 | L83: 0 | M83: 0 | N83: 0 | O83: 0 | P83: 0 | Q83: 0 | R83: 0 | S83: 0 | T83: 0 | U83: 0 | V83: 0
C85: Opening Assets - Amortisation Profile | J85: =IF($H89=0,0,MIN(1-SUM($I85:I85),1/$H89/Ts_Mths_In_Yr)) -> 0 | K85: =IF($H89=0,0,MIN(1-SUM($I85:J85),1/$H89/Ts_Mths_In_Yr)) -> 0 | L85: =IF($H89=0,0,MIN(1-SUM($I85:K85),1/$H89/Ts_Mths_In_Yr)) -> 0 | M85: =IF($H89=0,0,MIN(1-SUM($I85:L85),1/$H89/Ts_Mths_In_Yr)) -> 0 | N85: =IF($H89=0,0,MIN(1-SUM($I85:M85),1/$H89/Ts_Mths_In_Yr)) -> 0 | O85: =IF($H89=0,0,MIN(1-SUM($I85:N85),1/$H89/Ts_Mths_In_Yr)) -> 0 | P85: =IF($H89=0,0,MIN(1-SUM($I85:O85),1/$H89/Ts_Mths_In_Yr)) -> 0 | Q85: =IF($H89=0,0,MIN(1-SUM($I85:P85),1/$H89/Ts_Mths_In_Yr)) -> 0 | R85: =IF($H89=0,0,MIN(1-SUM($I85:Q85),1/$H89/Ts_Mths_In_Yr)) -> 0 | S85: =IF($H89=0,0,MIN(1-SUM($I85:R85),1/$H89/Ts_Mths_In_Yr)) -> 0 | T85: =IF($H89=0,0,MIN(1-SUM($I85:S85),1/$H89/Ts_Mths_In_Yr)) -> 0 | U85: =IF($H89=0,0,MIN(1-SUM($I85:T85),1/$H89/Ts_Mths_In_Yr)) -> 0 | V85: =IF($H89=0,0,MIN(1-SUM($I85:U85),1/$H89/Ts_Mths_In_Yr)) -> 0
C86: Capital Expenditure - Amortisation Profile | J86: =IF($H90=0,0,MIN(1-SUM($I86:I86),1/$H90/Ts_Mths_In_Yr)) -> 0 | K86: =IF($H90=0,0,MIN(1-SUM($I86:J86),1/$H90/Ts_Mths_In_Yr)) -> 0 | L86: =IF($H90=0,0,MIN(1-SUM($I86:K86),1/$H90/Ts_Mths_In_Yr)) -> 0 | M86: =IF($H90=0,0,MIN(1-SUM($I86:L86),1/$H90/Ts_Mths_In_Yr)) -> 0 | N86: =IF($H90=0,0,MIN(1-SUM($I86:M86),1/$H90/Ts_Mths_In_Yr)) -> 0 | O86: =IF($H90=0,0,MIN(1-SUM($I86:N86),1/$H90/Ts_Mths_In_Yr)) -> 0 | P86: =IF($H90=0,0,MIN(1-SUM($I86:O86),1/$H90/Ts_Mths_In_Yr)) -> 0 | Q86: =IF($H90=0,0,MIN(1-SUM($I86:P86),1/$H90/Ts_Mths_In_Yr)) -> 0 | R86: =IF($H90=0,0,MIN(1-SUM($I86:Q86),1/$H90/Ts_Mths_In_Yr)) -> 0 | S86: =IF($H90=0,0,MIN(1-SUM($I86:R86),1/$H90/Ts_Mths_In_Yr)) -> 0 | T86: =IF($H90=0,0,MIN(1-SUM($I86:S86),1/$H90/Ts_Mths_In_Yr)) -> 0 | U86: =IF($H90=0,0,MIN(1-SUM($I86:T86),1/$H90/Ts_Mths_In_Yr)) -> 0 | V86: =IF($H90=0,0,MIN(1-SUM($I86:U86),1/$H90/Ts_Mths_In_Yr)) -> 0
C87: Capital Expenditure - Amortisation (Reversed) | J87: =OFFSET($V86,0,1-J$8) -> 0 | K87: 0 | L87: 0 | M87: 0 | N87: 0 | O87: 0 | P87: 0 | Q87: 0 | R87: 0 | S87: 0 | T87: 0 | U87: 0 | V87: 0
B89: Book Amort. of Opening NBV (Years) | H89: 0 | J89: =IF(J$8<=DD_Ts_Last_Hist_Mth,0,-$H82*OFFSET(J85,0,-DD_Ts_Last_Hist_Mth)) -> 0 | K89: 0 | L89: 0 | M89: 0 | N89: 0 | O89: 0 | P89: 0 | Q89: 0 | R89: 0 | S89: 0 | T89: 0 | U89: 0 | V89: 0
B90: Book Amort. of Periodic Capex (Years) | H90: 0 | J90: =IF(J$8<=DD_Ts_Last_Hist_Mth,0,-SUMPRODUCT($J83:J83,OFFSET($V87,0,1-J$8,1,J$8))) -> 0 | K90: =IF(K$8<=DD_Ts_Last_Hist_Mth,0,-SUMPRODUCT($J83:K83,OFFSET($V87,0,1-K$8,1,K$8))) -> 0 | L90: =IF(L$8<=DD_Ts_Last_Hist_Mth,0,-SUMPRODUCT($J83:L83,OFFSET($V87,0,1-L$8,1,L$8))) -> 0 | M90: =IF(M$8<=DD_Ts_Last_Hist_Mth,0,-SUMPRODUCT($J83:M83,OFFSET($V87,0,1-M$8,1,M$8))) -> 0 | N90: =IF(N$8<=DD_Ts_Last_Hist_Mth,0,-SUMPRODUCT($J83:N83,OFFSET($V87,0,1-N$8,1,N$8))) -> 0 | O90: =IF(O$8<=DD_Ts_Last_Hist_Mth,0,-SUMPRODUCT($J83:O83,OFFSET($V87,0,1-O$8,1,O$8))) -> 0 | P90: =IF(P$8<=DD_Ts_Last_Hist_Mth,0,-SUMPRODUCT($J83:P83,OFFSET($V87,0,1-P$8,1,P$8))) -> 0 | Q90: =IF(Q$8<=DD_Ts_Last_Hist_Mth,0,-SUMPRODUCT($J83:Q83,OFFSET($V87,0,1-Q$8,1,Q$8))) -> 0 | R90: =IF(R$8<=DD_Ts_Last_Hist_Mth,0,-SUMPRODUCT($J83:R83,OFFSET($V87,0,1-R$8,1,R$8))) -> 0 | S90: =IF(S$8<=DD_Ts_Last_Hist_Mth,0,-SUMPRODUCT($J83:S83,OFFSET($V87,0,1-S$8,1,S$8))) -> 0 | T90: =IF(T$8<=DD_Ts_Last_Hist_Mth,0,-SUMPRODUCT($J83:T83,OFFSET($V87,0,1-T$8,1,T$8))) -> 0 | U90: =IF(U$8<=DD_Ts_Last_Hist_Mth,0,-SUMPRODUCT($J83:U83,OFFSET($V87,0,1-U$8,1,U$8))) -> 0 | V90: =IF(V$8<=DD_Ts_Last_Hist_Mth,0,-SUMPRODUCT($J83:V83,OFFSET($V87,0,1-V$8,1,V$8))) -> 0
B91: Closing Net Book Value | J91: =SUM(J82:J83,J89:J90) -> 0 | K91: 0 | L91: 0 | M91: 0 | N91: 0 | O91: 0 | P91: 0 | Q91: 0 | R91: 0 | S91: 0 | T91: 0 | U91: 0 | V91: 0
B93: Intangible Assets - Summary
B95: Intangible Assets (All Categories)
B96: =B81 -> Intangible Assets | J96: =J82 -> 0 | K96: 0 | L96: 0 | M96: 0 | N96: 0 | O96: 0 | P96: 0 | Q96: 0 | R96: 0 | S96: 0 | T96: 0 | U96: 0 | V96: 0
B97: Opening Net Book Value | J97: =SUM(J96:J96) -> 0 | K97: 0 | L97: 0 | M97: 0 | N97: 0 | O97: 0 | P97: 0 | Q97: 0 | R97: 0 | S97: 0 | T97: 0 | U97: 0 | V97: 0
B99: =B81 -> Intangible Assets | J99: =J83 -> 0 | K99: 0 | L99: 0 | M99: 0 | N99: 0 | O99: 0 | P99: 0 | Q99: 0 | R99: 0 | S99: 0 | T99: 0 | U99: 0 | V99: 0
B100: Capital Expenditure | J100: =SUM(J99:J99) -> 0 | K100: 0 | L100: 0 | M100: 0 | N100: 0 | O100: 0 | P100: 0 | Q100: 0 | R100: 0 | S100: 0 | T100: 0 | U100: 0 | V100: 0
B102: =B81 -> Intangible Assets | J102: =J89+J90 -> 0 | K102: 0 | L102: 0 | M102: 0 | N102: 0 | O102: 0 | P102: 0 | Q102: 0 | R102: 0 | S102: 0 | T102: 0 | U102: 0 | V102: 0
B103: Book Amortisation | J103: =SUM(J102:J102) -> 0 | K103: 0 | L103: 0 | M103: 0 | N103: 0 | O103: 0 | P103: 0 | Q103: 0 | R103: 0 | S103: 0 | T103: 0 | U103: 0 | V103: 0
B105: =B81 -> Intangible Assets | J105: =IF(J$8<=DD_Ts_Last_Hist_Mth,'FS Opening'!J88,J91) -> 0 | K105: =IF(K$8<=DD_Ts_Last_Hist_Mth,'FS Opening'!K88,K91) -> 0 | L105: =IF(L$8<=DD_Ts_Last_Hist_Mth,'FS Opening'!L88,L91) -> 0 | M105: =IF(M$8<=DD_Ts_Last_Hist_Mth,'FS Opening'!M88,M91) -> 0 | N105: =IF(N$8<=DD_Ts_Last_Hist_Mth,'FS Opening'!N88,N91) -> 0 | O105: =IF(O$8<=DD_Ts_Last_Hist_Mth,'FS Opening'!O88,O91) -> 0 | P105: =IF(P$8<=DD_Ts_Last_Hist_Mth,'FS Opening'!P88,P91) -> 0 | Q105: =IF(Q$8<=DD_Ts_Last_Hist_Mth,'FS Opening'!Q88,Q91) -> 0 | R105: =IF(R$8<=DD_Ts_Last_Hist_Mth,'FS Opening'!R88,R91) -> 0 | S105: =IF(S$8<=DD_Ts_Last_Hist_Mth,'FS Opening'!S88,S91) -> 0 | T105: =IF(T$8<=DD_Ts_Last_Hist_Mth,'FS Opening'!T88,T91) -> 0 | U105: =IF(U$8<=DD_Ts_Last_Hist_Mth,'FS Opening'!U88,U91) -> 0 | V105: =IF(V$8<=DD_Ts_Last_Hist_Mth,'FS Opening'!V88,V91) -> 0
B106: Closing Net Book Value | J106: =SUM(J105:J105) -> 0 | K106: 0 | L106: 0 | M106: 0 | N106: 0 | O106: 0 | P106: 0 | Q106: 0 | R106: 0 | S106: 0 | T106: 0 | U106: 0 | V106: 0
B108: Historical Amortisation
B109: ='FS Opening'!B46 -> Amortisation | J109: =IF(J$8<=DD_Ts_Last_Hist_Mth,-'FS Opening'!J46,0) -> 0 | K109: =IF(K$8<=DD_Ts_Last_Hist_Mth,-'FS Opening'!K46,0) -> 0 | L109: =IF(L$8<=DD_Ts_Last_Hist_Mth,-'FS Opening'!L46,0) -> 0 | M109: =IF(M$8<=DD_Ts_Last_Hist_Mth,-'FS Opening'!M46,0) -> 0 | N109: =IF(N$8<=DD_Ts_Last_Hist_Mth,-'FS Opening'!N46,0) -> 0 | O109: =IF(O$8<=DD_Ts_Last_Hist_Mth,-'FS Opening'!O46,0) -> 0 | P109: =IF(P$8<=DD_Ts_Last_Hist_Mth,-'FS Opening'!P46,0) -> 0 | Q109: =IF(Q$8<=DD_Ts_Last_Hist_Mth,-'FS Opening'!Q46,0) -> 0 | R109: =IF(R$8<=DD_Ts_Last_Hist_Mth,-'FS Opening'!R46,0) -> 0 | S109: =IF(S$8<=DD_Ts_Last_Hist_Mth,-'FS Opening'!S46,0) -> 0 | T109: =IF(T$8<=DD_Ts_Last_Hist_Mth,-'FS Opening'!T46,0) -> 0 | U109: =IF(U$8<=DD_Ts_Last_Hist_Mth,-'FS Opening'!U46,0) -> 0 | V109: =IF(V$8<=DD_Ts_Last_Hist_Mth,-'FS Opening'!V46,0) -> 0
B110: ="Total "&B108 -> Total Historical Amortisation | J110: =SUM(J109:J109) -> 0 | K110: 0 | L110: 0 | M110: 0 | N110: 0 | O110: 0 | P110: 0 | Q110: 0 | R110: 0 | S110: 0 | T110: 0 | U110: 0 | V110: 0
B112: Movement in Historical Intangible Assets
B113: =B81 -> Intangible Assets | J113: =IF(J$8<=DD_Ts_Last_Hist_Mth,J105-I105,0) -> 0 | K113: 0 | L113: 0 | M113: 0 | N113: 0 | O113: 0 | P113: 0 | Q113: 0 | R113: 0 | S113: 0 | T113: 0 | U113: 0 | V113: 0
B114: ="Total "&B112 -> Total Movement in Historical Intangible Assets | J114: =SUM(J113:J113) -> 0 | K114: 0 | L114: 0 | M114: 0 | N114: 0 | O114: 0 | P114: 0 | Q114: 0 | R114: 0 | S114: 0 | T114: 0 | U114: 0 | V114: 0
C116: Error Values | J116: =IF(ISERROR(J97+J100+J103-J106+J110+J114),1,0) -> 0 | K116: 0 | L116: 0 | M116: 0 | N116: 0 | O116: 0 | P116: 0 | Q116: 0 | R116: 0 | S116: 0 | T116: 0 | U116: 0 | V116: 0
C117: Unmapped Capex | J117: =IF(OR(J116<>0,J$8<=DD_Ts_Last_Hist_Mth,ROUND(J77-J100,4)=0),0,1) -> 0 | K117: 0 | L117: 0 | M117: 0 | N117: 0 | O117: 0 | P117: 0 | Q117: 0 | R117: 0 | S117: 0 | T117: 0 | U117: 0 | V117: 0
C118: Balance Check | J118: =IF(J116<>0,0,IF(J$8<=DD_Ts_Last_Hist_Mth,0,IF(ROUND(J97+J100+J103-J106,5)<>0,1,0))) -> 0 | K118: 0 | L118: 0 | M118: 0 | N118: 0 | O118: 0 | P118: 0 | Q118: 0 | R118: 0 | S118: 0 | T118: 0 | U118: 0 | V118: 0
B119: Total Error Checks Result | I119: =IF(ISERROR(SUM(J119:V119)),1,MIN(SUM(J119:V119),1)) -> 0 | J119: =MIN(SUM(J116:J118),1) -> 0 | K119: 0 | L119: 0 | M119: 0 | N119: 0 | O119: 0 | P119: 0 | Q119: 0 | R119: 0 | S119: 0 | T119: 0 | U119: 0 | V119: 0
C121: Negative Capital Expenditure | J121: =IF(J$8<=DD_Ts_Last_Hist_Mth,0,IF(J119<>0,0,IF(ROUND(MIN(J99:J99),5)<0,1,0))) -> 0 | K121: 0 | L121: 0 | M121: 0 | N121: 0 | O121: 0 | P121: 0 | Q121: 0 | R121: 0 | S121: 0 | T121: 0 | U121: 0 | V121: 0
C122: Negative Book Amortisation | J122: =IF(J$8<=DD_Ts_Last_Hist_Mth,0,IF(J119<>0,0,IF(ROUND(MAX(J102:J102),5)>0,1,0))) -> 0 | K122: 0 | L122: 0 | M122: 0 | N122: 0 | O122: 0 | P122: 0 | Q122: 0 | R122: 0 | S122: 0 | T122: 0 | U122: 0 | V122: 0
C123: Negative Closing Balances | J123: =IF(J$8<=DD_Ts_Last_Hist_Mth,0,IF(J119<>0,0,IF(ROUND(MIN(J105:J105),5)<0,1,0))) -> 0 | K123: 0 | L123: 0 | M123: 0 | N123: 0 | O123: 0 | P123: 0 | Q123: 0 | R123: 0 | S123: 0 | T123: 0 | U123: 0 | V123: 0
B124: Total Alert Checks Result | I124: =IF(ISERROR(SUM(J124:V124)),1,MIN(SUM(J124:V124),1)) -> 0 | J124: =MIN(SUM(J121:J123),1) -> 0 | K124: 0 | L124: 0 | M124: 0 | N124: 0 | O124: 0 | P124: 0 | Q124: 0 | R124: 0 | S124: 0 | T124: 0 | U124: 0 | V124: 0

Sheet Capital (hidden)
A1: ± | B1: Capital
B2: =Model_Name -> High Level 3-Way Financial Model
B4: Month Ending | J4: =TEXT(J7,"mmm-yy") -> Mar-20 | K4: Apr-20 | L4: May-20 | M4: Jun-20 | N4: Jul-20 | O4: Aug-20 | P4: Sep-20 | Q4: Oct-20 | R4: Nov-20 | S4: Dec-20 | T4: Jan-21 | U4: Feb-21 | V4: Mar-21
B5: Month | J5: ="M"&J11&IF(J8>DD_Ts_Last_Hist_Mth,Ts_Fcast_Per_ID,Ts_Hist_Per_ID) -> M9 (H) | K5: M10 (F) | L5: M11 (F) | M5: M12 (F) | N5: M1 (F) | O5: M2 (F) | P5: M3 (F) | Q5: M4 (F) | R5: M5 (F) | S5: M6 (F) | T5: M7 (F) | U5: M8 (F) | V5: M9 (F)
B6: Period Start Date | J6: =EDATE(Ts_Start_Date,J8-1) -> 2020-03-01 | K6: 2020-04-01 | L6: 2020-05-01 | M6: 2020-06-01 | N6: 2020-07-01 | O6: 2020-08-01 | P6: 2020-09-01 | Q6: 2020-10-01 | R6: 2020-11-01 | S6: 2020-12-01 | T6: 2021-01-01 | U6: 2021-02-01 | V6: 2021-03-01
B7: Period End Date | J7: =EDATE(Ts_Start_Date,J8)-1 -> 2020-03-31 | K7: 2020-04-30 | L7: 2020-05-31 | M7: 2020-06-30 | N7: 2020-07-31 | O7: 2020-08-31 | P7: 2020-09-30 | Q7: 2020-10-31 | R7: 2020-11-30 | S7: 2020-12-31 | T7: 2021-01-31 | U7: 2021-02-28 | V7: 2021-03-31
B8: Counter | J8: =COLUMNS($J8:J8) -> 1 | K8: =COLUMNS($J8:K8) -> 2 | L8: =COLUMNS($J8:L8) -> 3 | M8: =COLUMNS($J8:M8) -> 4 | N8: =COLUMNS($J8:N8) -> 5 | O8: =COLUMNS($J8:O8) -> 6 | P8: =COLUMNS($J8:P8) -> 7 | Q8: =COLUMNS($J8:Q8) -> 8 | R8: =COLUMNS($J8:R8) -> 9 | S8: =COLUMNS($J8:S8) -> 10 | T8: =COLUMNS($J8:T8) -> 11 | U8: =COLUMNS($J8:U8) -> 12 | V8: =COLUMNS($J8:V8) -> 13
B9: Financial Year | J9: =YEAR(J7)+IF(MONTH(J7)>DD_Ts_Fin_Yr_End_Mth,1,0) -> 2020 | K9: 2020 | L9: 2020 | M9: 2020 | N9: 2021 | O9: 2021 | P9: 2021 | Q9: 2021 | R9: 2021 | S9: 2021 | T9: 2021 | U9: 2021 | V9: 2021
B10: Active Column Number | J10: =IF(AND(J8>DD_Ts_Last_Hist_Mth,J8<=Ts_Term),J8-DD_Ts_Last_Hist_Mth,0) -> 0 | K10: 1 | L10: 2 | M10: 3 | N10: 4 | O10: 5 | P10: 6 | Q10: 7 | R10: 8 | S10: 9 | T10: 10 | U10: 11 | V10: 12
B11: Month Number | J11: =MOD(MONTH(J7)-DD_Ts_Fin_Yr_End_Mth-1,Ts_Mths_In_Yr)+1 -> 9 | K11: 10 | L11: 11 | M11: 12 | N11: 1 | O11: 2 | P11: 3 | Q11: 4 | R11: 5 | S11: 6 | T11: 7 | U11: 8 | V11: 9
B12: Month Key | J12: ="M"&J11&"-"&J9 -> M9-2020 | K12: M10-2020 | L12: M11-2020 | M12: M12-2020 | N12: M1-2021 | O12: M2-2021 | P12: M3-2021 | Q12: M4-2021 | R12: M5-2021 | S12: M6-2021 | T12: M7-2021 | U12: M8-2021 | V12: M9-2021
B13: Quarter Key | J13: ="Q"&INT((J11-1)/Ts_Mths_In_Qtr)+1&"-"&J9 -> Q3-2020 | K13: Q4-2020 | L13: Q4-2020 | M13: Q4-2020 | N13: Q1-2021 | O13: Q1-2021 | P13: Q1-2021 | Q13: Q2-2021 | R13: Q2-2021 | S13: Q2-2021 | T13: Q3-2021 | U13: Q3-2021 | V13: Q3-2021
B14: Half Key | J14: ="H"&INT((J11-1)/Ts_Mths_In_Half)+1&"-"&J9 -> H2-2020 | K14: H2-2020 | L14: H2-2020 | M14: H2-2020 | N14: H1-2021 | O14: H1-2021 | P14: H1-2021 | Q14: H1-2021 | R14: H1-2021 | S14: H1-2021 | T14: H2-2021 | U14: H2-2021 | V14: H2-2021
B16: Debt
B18: =H21 -> Business Loan
B20: General Information
B21: Category Name | H21: ='FS Opening'!B127 -> Business Loan
A22: =IFERROR(MATCH(H22,LU_Debt_Repayment_Profile,0),1) -> 1 | B22: Repayment Profile | G22: 1 | H22: =Questionnaire!J37 -> Principal & Interest
B23: Maturity Date | H23: =EOMONTH(Questionnaire!K38,H26*Ts_Mths_In_Yr-1) -> 2021-11-30
B24: Business Support Loan | H24: 0
B25: Payment Deferral Period | H25: 0
B26: Loan Term | H26: 0
B27: Sensitivity | H27: 0
B29: Flag - Maturity Period | H29: =EOMONTH(H23,0) -> 2021-11-30 | J29: =N(AND($H23>=J$6,$H23<=J$7)) -> 0 | K29: 0 | L29: 0 | M29: 0 | N29: 0 | O29: 0 | P29: 0 | Q29: 0 | R29: 0 | S29: 0 | T29: 0 | U29: 0 | V29: 0
B30: Flag - Matured Periods | J30: =IF(J29,0,N(OR(J$6>$H23,SUM($J29:J29)>0))) -> 0 | K30: =IF(K29,0,N(OR(K$6>$H23,SUM($J29:K29)>0))) -> 0 | L30: =IF(L29,0,N(OR(L$6>$H23,SUM($J29:L29)>0))) -> 0 | M30: =IF(M29,0,N(OR(M$6>$H23,SUM($J29:M29)>0))) -> 0 | N30: =IF(N29,0,N(OR(N$6>$H23,SUM($J29:N29)>0))) -> 0 | O30: =IF(O29,0,N(OR(O$6>$H23,SUM($J29:O29)>0))) -> 0 | P30: =IF(P29,0,N(OR(P$6>$H23,SUM($J29:P29)>0))) -> 0 | Q30: =IF(Q29,0,N(OR(Q$6>$H23,SUM($J29:Q29)>0))) -> 0 | R30: =IF(R29,0,N(OR(R$6>$H23,SUM($J29:R29)>0))) -> 0 | S30: =IF(S29,0,N(OR(S$6>$H23,SUM($J29:S29)>0))) -> 0 | T30: =IF(T29,0,N(OR(T$6>$H23,SUM($J29:T29)>0))) -> 0 | U30: =IF(U29,0,N(OR(U$6>$H23,SUM($J29:U29)>0))) -> 0 | V30: =IF(V29,0,N(OR(V$6>$H23,SUM($J29:V29)>0))) -> 0
B31: Counter - Periods to Maturity | J31: =IF(J$10,MAX(YEAR($H23)*Ts_Mths_In_Yr+MONTH($H23)-YEAR(J$7)*Ts_Mths_In_Yr-MONTH(J$7),0),0) -> 0 | K31: 19 | L31: 18 | M31: 17 | N31: 16 | O31: 15 | P31: 14 | Q31: 13 | R31: 12 | S31: 11 | T31: 10 | U31: 9 | V31: 8
B32: % of Period Active | J32: =IF(J31,1, IF(J29,($H23-J$6+1)/(J$7-J$6+1),0)) -> 0 | K32: 1 | L32: 1 | M32: 1 | N32: 1 | O32: 1 | P32: 1 | Q32: 1 | R32: 1 | S32: 1 | T32: 1 | U32: 1 | V32: 1
B34: Drawdown & Repayment Assumptions
B35: Drawdowns | J35: =IF(J$8<=DD_Ts_Last_Hist_Mth,0,IF(J$8=DD_Ts_Last_Hist_Mth+1,$H24,0)) -> 0 | K35: 0 | L35: 0 | M35: 0 | N35: 0 | O35: 0 | P35: 0 | Q35: 0 | R35: 0 | S35: 0 | T35: 0 | U35: 0 | V35: 0
B36: Repayments | J36: 0 | K36: 0 | L36: 0 | M36: 0 | N36: 0 | O36: 0 | P36: 0 | Q36: 0 | R36: 0 | S36: 0 | T36: 0 | U36: 0 | V36: 0
B38: Funds Drawn | H38: =TEXT(Ts_Last_Hist_Mth_End_Date+1,"d-mmm-yy") -> 1-Apr-20
B39: Opening Balance | H39: =OFFSET('FS Opening'!J127,0,DD_Ts_Last_Hist_Mth-1) -> 100000 | J39: =IF(J$8<=DD_Ts_Last_Hist_Mth,0,IF(J$8=DD_Ts_Last_Hist_Mth+1,$H39,I44)) -> 0 | K39: 100000 | L39: 95175.7917 | M39: 90333.49262 | N39: 85473.03492 | O39: 80594.3505 | P39: 75697.37101 | Q39: 70782.02786 | R39: 65848.25216 | S39: 60895.97481 | T39: 55925.12641 | U39: 50935.63734 | V39: 45927.43768
B40: =B35&" (Manual)" -> Drawdowns (Manual) | J40: =IF(OR(J$8<=DD_Ts_Last_Hist_Mth,J30),0,J35) -> 0 | K40: 0 | L40: 0 | M40: 0 | N40: 0 | O40: 0 | P40: 0 | Q40: 0 | R40: 0 | S40: 0 | T40: 0 | U40: 0 | V40: 0
B41: =B36&" (Manual)" -> Repayments (Manual) | J41: =IF(OR(J$8<=DD_Ts_Last_Hist_Mth,J30),0,-MIN(J36,SUM(J39:J40))) -> 0 | K41: 0 | L41: 0 | M41: 0 | N41: 0 | O41: 0 | P41: 0 | Q41: 0 | R41: 0 | S41: 0 | T41: 0 | U41: 0 | V41: 0
B42: Repayments (Automatic - Credit Foncier) | J42: =IF(J30,0,IF($A22<>1,0,IF(J29,-SUM(J39:J41),-MIN(SUM(J39:J41),IFERROR(PMT(J47/Ts_Mths_In_Yr,SUM(J32:$V32)+IF($V31,$V31-IF($H23<>$H29,1-DAY($H23)/DAY($H29),0),0),-SUM(J39:J40))-J49,0))))) -> 0 | K42: =IF(K30,0,IF($A22<>1,0,IF(K29,-SUM(K39:K41),-MIN(SUM(K39:K41),IFERROR(PMT(K47/Ts_Mths_In_Yr,SUM(K32:$V32)+IF($V31,$V31-IF($H23<>$H29,1-DAY($H23)/DAY($H29),0),0),-SUM(K39:K40))-K49,0))))) -> -4824.2083 | L42: =IF(L30,0,IF($A22<>1,0,IF(L29,-SUM(L39:L41),-MIN(SUM(L39:L41),IFERROR(PMT(L47/Ts_Mths_In_Yr,SUM(L32:$V32)+IF($V31,$V31-IF($H23<>$H29,1-DAY($H23)/DAY($H29),0),0),-SUM(L39:L40))-L49,0))))) -> -4842.299081 | M42: =IF(M30,0,IF($A22<>1,0,IF(M29,-SUM(M39:M41),-MIN(SUM(M39:M41),IFERROR(PMT(M47/Ts_Mths_In_Yr,SUM(M32:$V32)+IF($V31,$V31-IF($H23<>$H29,1-DAY($H23)/DAY($H29),0),0),-SUM(M39:M40))-M49,0))))) -> -4860.457702 | N42: =IF(N30,0,IF($A22<>1,0,IF(N29,-SUM(N39:N41),-MIN(SUM(N39:N41),IFERROR(PMT(N47/Ts_Mths_In_Yr,SUM(N32:$V32)+IF($V31,$V31-IF($H23<>$H29,1-DAY($H23)/DAY($H29),0),0),-SUM(N39:N40))-N49,0))))) -> -4878.684419 | O42: =IF(O30,0,IF($A22<>1,0,IF(O29,-SUM(O39:O41),-MIN(SUM(O39:O41),IFERROR(PMT(O47/Ts_Mths_In_Yr,SUM(O32:$V32)+IF($V31,$V31-IF($H23<>$H29,1-DAY($H23)/DAY($H29),0),0),-SUM(O39:O40))-O49,0))))) -> -4896.979485 | P42: =IF(P30,0,IF($A22<>1,0,IF(P29,-SUM(P39:P41),-MIN(SUM(P39:P41),IFERROR(PMT(P47/Ts_Mths_In_Yr,SUM(P32:$V32)+IF($V31,$V31-IF($H23<>$H29,1-DAY($H23)/DAY($H29),0),0),-SUM(P39:P40))-P49,0))))) -> -4915.343158 | Q42: =IF(Q30,0,IF($A22<>1,0,IF(Q29,-SUM(Q39:Q41),-MIN(SUM(Q39:Q41),IFERROR(PMT(Q47/Ts_Mths_In_Yr,SUM(Q32:$V32)+IF($V31,$V31-IF($H23<>$H29,1-DAY($H23)/DAY($H29),0),0),-SUM(Q39:Q40))-Q49,0))))) -> -4933.775695 | R42: =IF(R30,0,IF($A22<>1,0,IF(R29,-SUM(R39:R41),-MIN(SUM(R39:R41),IFERROR(PMT(R47/Ts_Mths_In_Yr,SUM(R32:$V32)+IF($V31,$V31-IF($H23<>$H29,1-DAY($H23)/DAY($H29),0),0),-SUM(R39:R40))-R49,0))))) -> -4952.277354 | S42: =IF(S30,0,IF($A22<>1,0,IF(S29,-SUM(S39:S41),-MIN(SUM(S39:S41),IFERROR(PMT(S47/Ts_Mths_In_Yr,SUM(S32:$V32)+IF($V31,$V31-IF($H23<>$H29,1-DAY($H23)/DAY($H29),0),0),-SUM(S39:S40))-S49,0))))) -> -4970.848394 | T42: =IF(T30,0,IF($A22<>1,0,IF(T29,-SUM(T39:T41),-MIN(SUM(T39:T41),IFERROR(PMT(T47/Ts_Mths_In_Yr,SUM(T32:$V32)+IF($V31,$V31-IF($H23<>$H29,1-DAY($H23)/DAY($H29),0),0),-SUM(T39:T40))-T49,0))))) -> -4989.489075 | U42: =IF(U30,0,IF($A22<>1,0,IF(U29,-SUM(U39:U41),-MIN(SUM(U39:U41),IFERROR(PMT(U47/Ts_Mths_In_Yr,SUM(U32:$V32)+IF($V31,$V31-IF($H23<>$H29,1-DAY($H23)/DAY($H29),0),0),-SUM(U39:U40))-U49,0))))) -> -5008.19966 | V42: =IF(V30,0,IF($A22<>1,0,IF(V29,-SUM(V39:V41),-MIN(SUM(V39:V41),IFERROR(PMT(V47/Ts_Mths_In_Yr,SUM(V32:$V32)+IF($V31,$V31-IF($H23<>$H29,1-DAY($H23)/DAY($H29),0),0),-SUM(V39:V40))-V49,0))))) -> -5026.980408
B43: Repayments (Automatic - Custom) | J43: =IF(OR($A22=1,J29<>1),0,-SUM(J39:J41)) -> 0 | K43: 0 | L43: 0 | M43: 0 | N43: 0 | O43: 0 | P43: 0 | Q43: 0 | R43: 0 | S43: 0 | T43: 0 | U43: 0 | V43: 0
B44: Closing Balance | J44: =IF(J$8<=DD_Ts_Last_Hist_Mth,0,SUM(J39:J43)) -> 0 | K44: 95175.7917 | L44: 90333.49262 | M44: 85473.03492 | N44: 80594.3505 | O44: 75697.37101 | P44: 70782.02786 | Q44: 65848.25216 | R44: 60895.97481 | S44: 55925.12641 | T44: 50935.63734 | U44: 45927.43768 | V44: 40900.45727
B46: Interest Payable
B47: All-in Interest Rate (% p.a.) | H47: =Questionnaire!K40 -> 0.045 | J47: =$H47 -> 0.045 | K47: 0.045 | L47: 0.045 | M47: 0.045 | N47: 0.045 | O47: 0.045 | P47: 0.045 | Q47: 0.045 | R47: 0.045 | S47: 0.045 | T47: 0.045 | U47: 0.045 | V47: 0.045
B49: Interest Expense | J49: =J32 * SUM(J39:J40) * J47/Ts_Mths_In_Yr -> 0 | K49: 375 | L49: 356.9092189 | M49: 338.7505973 | N49: 320.5238809 | O49: 302.2288144 | P49: 283.8651413 | Q49: 265.4326045 | R49: 246.9309456 | S49: 228.3599055 | T49: 209.719224 | U49: 191.00864 | V49: 172.2278913
B50: Interest Paid | J50: =-J49 -> 0 | K50: -375 | L50: -356.9092189 | M50: -338.7505973 | N50: -320.5238809 | O50: -302.2288144 | P50: -283.8651413 | Q50: -265.4326045 | R50: -246.9309456 | S50: -228.3599055 | T50: -209.719224 | U50: -191.00864 | V50: -172.2278913
B52: =H55 -> Ovedraft
B54: General Information
B55: Category Name | H55: ='FS Opening'!B128 -> Ovedraft
A56: =IFERROR(MATCH(H56,LU_Debt_Repayment_Profile,0),1) -> 2 | B56: Repayment Profile | G56: 1 | H56: =Questionnaire!J43 -> Interest Only
B57: Maturity Date | H57: =EOMONTH(Questionnaire!K44,H60*Ts_Mths_In_Yr-1) -> 2020-11-30
B58: Business Support Loan | H58: 0
B59: Payment Deferral Period | H59: 0
B60: Loan Term | H60: 0
B61: Sensitivity | H61: 0
B63: Flag - Maturity Period | H63: =EOMONTH(H57,0) -> 2020-11-30 | J63: =N(AND($H57>=J$6,$H57<=J$7)) -> 0 | K63: 0 | L63: 0 | M63: 0 | N63: 0 | O63: 0 | P63: 0 | Q63: 0 | R63: 1 | S63: 0 | T63: 0 | U63: 0 | V63: 0
B64: Flag - Matured Periods | J64: =IF(J63,0,N(OR(J$6>$H57,SUM($J63:J63)>0))) -> 0 | K64: =IF(K63,0,N(OR(K$6>$H57,SUM($J63:K63)>0))) -> 0 | L64: =IF(L63,0,N(OR(L$6>$H57,SUM($J63:L63)>0))) -> 0 | M64: =IF(M63,0,N(OR(M$6>$H57,SUM($J63:M63)>0))) -> 0 | N64: =IF(N63,0,N(OR(N$6>$H57,SUM($J63:N63)>0))) -> 0 | O64: =IF(O63,0,N(OR(O$6>$H57,SUM($J63:O63)>0))) -> 0 | P64: =IF(P63,0,N(OR(P$6>$H57,SUM($J63:P63)>0))) -> 0 | Q64: =IF(Q63,0,N(OR(Q$6>$H57,SUM($J63:Q63)>0))) -> 0 | R64: =IF(R63,0,N(OR(R$6>$H57,SUM($J63:R63)>0))) -> 0 | S64: =IF(S63,0,N(OR(S$6>$H57,SUM($J63:S63)>0))) -> 1 | T64: =IF(T63,0,N(OR(T$6>$H57,SUM($J63:T63)>0))) -> 1 | U64: =IF(U63,0,N(OR(U$6>$H57,SUM($J63:U63)>0))) -> 1 | V64: =IF(V63,0,N(OR(V$6>$H57,SUM($J63:V63)>0))) -> 1
B65: Counter - Periods to Maturity | J65: =IF(J$10,MAX(YEAR($H57)*Ts_Mths_In_Yr+MONTH($H57)-YEAR(J$7)*Ts_Mths_In_Yr-MONTH(J$7),0),0) -> 0 | K65: 7 | L65: 6 | M65: 5 | N65: 4 | O65: 3 | P65: 2 | Q65: 1 | R65: 0 | S65: 0 | T65: 0 | U65: 0 | V65: 0
B66: % of Period Active | J66: =IF(J65,1, IF(J63,($H57-J$6+1)/(J$7-J$6+1),0)) -> 0 | K66: 1 | L66: 1 | M66: 1 | N66: 1 | O66: 1 | P66: 1 | Q66: 1 | R66: 1 | S66: 0 | T66: 0 | U66: 0 | V66: 0
B68: Drawdown & Repayment Assumptions
B69: Drawdowns | J69: =IF(J$8<=DD_Ts_Last_Hist_Mth,0,IF(J$8=DD_Ts_Last_Hist_Mth+1,$H58,0)) -> 0 | K69: 0 | L69: 0 | M69: 0 | N69: 0 | O69: 0 | P69: 0 | Q69: 0 | R69: 0 | S69: 0 | T69: 0 | U69: 0 | V69: 0
B70: Repayments | J70: 0 | K70: 0 | L70: 0 | M70: 0 | N70: 0 | O70: 0 | P70: 0 | Q70: 0 | R70: 0 | S70: 0 | T70: 0 | U70: 0 | V70: 0
B72: Funds Drawn | H72: =TEXT(Ts_Last_Hist_Mth_End_Date+1,"d-mmm-yy") -> 1-Apr-20
B73: Opening Balance | H73: =OFFSET('FS Opening'!J128,0,DD_Ts_Last_Hist_Mth-1) -> 10000 | J73: =IF(J$8<=DD_Ts_Last_Hist_Mth,0,IF(J$8=DD_Ts_Last_Hist_Mth+1,$H73,I78)) -> 0 | K73: 10000 | L73: 10000 | M73: 10000 | N73: 10000 | O73: 10000 | P73: 10000 | Q73: 10000 | R73: 10000 | S73: 0 | T73: 0 | U73: 0 | V73: 0
B74: =B69&" (Manual)" -> Drawdowns (Manual) | J74: =IF(OR(J$8<=DD_Ts_Last_Hist_Mth,J64),0,J69) -> 0 | K74: 0 | L74: 0 | M74: 0 | N74: 0 | O74: 0 | P74: 0 | Q74: 0 | R74: 0 | S74: 0 | T74: 0 | U74: 0 | V74: 0
B75: =B70&" (Manual)" -> Repayments (Manual) | J75: =IF(OR(J$8<=DD_Ts_Last_Hist_Mth,J64),0,-MIN(J70,SUM(J73:J74))) -> 0 | K75: 0 | L75: 0 | M75: 0 | N75: 0 | O75: 0 | P75: 0 | Q75: 0 | R75: 0 | S75: 0 | T75: 0 | U75: 0 | V75: 0
B76: Repayments (Automatic - Credit Foncier) | J76: =IF(J64,0,IF($A56<>1,0,IF(J63,-SUM(J73:J75),-MIN(SUM(J73:J75),IFERROR(PMT(J81/Ts_Mths_In_Yr,SUM(J66:$V66)+IF($V65,$V65-IF($H57<>$H63,1-DAY($H57)/DAY($H63),0),0),-SUM(J73:J74))-J83,0))))) -> 0 | K76: =IF(K64,0,IF($A56<>1,0,IF(K63,-SUM(K73:K75),-MIN(SUM(K73:K75),IFERROR(PMT(K81/Ts_Mths_In_Yr,SUM(K66:$V66)+IF($V65,$V65-IF($H57<>$H63,1-DAY($H57)/DAY($H63),0),0),-SUM(K73:K74))-K83,0))))) -> 0 | L76: =IF(L64,0,IF($A56<>1,0,IF(L63,-SUM(L73:L75),-MIN(SUM(L73:L75),IFERROR(PMT(L81/Ts_Mths_In_Yr,SUM(L66:$V66)+IF($V65,$V65-IF($H57<>$H63,1-DAY($H57)/DAY($H63),0),0),-SUM(L73:L74))-L83,0))))) -> 0 | M76: =IF(M64,0,IF($A56<>1,0,IF(M63,-SUM(M73:M75),-MIN(SUM(M73:M75),IFERROR(PMT(M81/Ts_Mths_In_Yr,SUM(M66:$V66)+IF($V65,$V65-IF($H57<>$H63,1-DAY($H57)/DAY($H63),0),0),-SUM(M73:M74))-M83,0))))) -> 0 | N76: =IF(N64,0,IF($A56<>1,0,IF(N63,-SUM(N73:N75),-MIN(SUM(N73:N75),IFERROR(PMT(N81/Ts_Mths_In_Yr,SUM(N66:$V66)+IF($V65,$V65-IF($H57<>$H63,1-DAY($H57)/DAY($H63),0),0),-SUM(N73:N74))-N83,0))))) -> 0 | O76: =IF(O64,0,IF($A56<>1,0,IF(O63,-SUM(O73:O75),-MIN(SUM(O73:O75),IFERROR(PMT(O81/Ts_Mths_In_Yr,SUM(O66:$V66)+IF($V65,$V65-IF($H57<>$H63,1-DAY($H57)/DAY($H63),0),0),-SUM(O73:O74))-O83,0))))) -> 0 | P76: =IF(P64,0,IF($A56<>1,0,IF(P63,-SUM(P73:P75),-MIN(SUM(P73:P75),IFERROR(PMT(P81/Ts_Mths_In_Yr,SUM(P66:$V66)+IF($V65,$V65-IF($H57<>$H63,1-DAY($H57)/DAY($H63),0),0),-SUM(P73:P74))-P83,0))))) -> 0 | Q76: =IF(Q64,0,IF($A56<>1,0,IF(Q63,-SUM(Q73:Q75),-MIN(SUM(Q73:Q75),IFERROR(PMT(Q81/Ts_Mths_In_Yr,SUM(Q66:$V66)+IF($V65,$V65-IF($H57<>$H63,1-DAY($H57)/DAY($H63),0),0),-SUM(Q73:Q74))-Q83,0))))) -> 0 | R76: =IF(R64,0,IF($A56<>1,0,IF(R63,-SUM(R73:R75),-MIN(SUM(R73:R75),IFERROR(PMT(R81/Ts_Mths_In_Yr,SUM(R66:$V66)+IF($V65,$V65-IF($H57<>$H63,1-DAY($H57)/DAY($H63),0),0),-SUM(R73:R74))-R83,0))))) -> 0 | S76: =IF(S64,0,IF($A56<>1,0,IF(S63,-SUM(S73:S75),-MIN(SUM(S73:S75),IFERROR(PMT(S81/Ts_Mths_In_Yr,SUM(S66:$V66)+IF($V65,$V65-IF($H57<>$H63,1-DAY($H57)/DAY($H63),0),0),-SUM(S73:S74))-S83,0))))) -> 0 | T76: =IF(T64,0,IF($A56<>1,0,IF(T63,-SUM(T73:T75),-MIN(SUM(T73:T75),IFERROR(PMT(T81/Ts_Mths_In_Yr,SUM(T66:$V66)+IF($V65,$V65-IF($H57<>$H63,1-DAY($H57)/DAY($H63),0),0),-SUM(T73:T74))-T83,0))))) -> 0 | U76: =IF(U64,0,IF($A56<>1,0,IF(U63,-SUM(U73:U75),-MIN(SUM(U73:U75),IFERROR(PMT(U81/Ts_Mths_In_Yr,SUM(U66:$V66)+IF($V65,$V65-IF($H57<>$H63,1-DAY($H57)/DAY($H63),0),0),-SUM(U73:U74))-U83,0))))) -> 0 | V76: =IF(V64,0,IF($A56<>1,0,IF(V63,-SUM(V73:V75),-MIN(SUM(V73:V75),IFERROR(PMT(V81/Ts_Mths_In_Yr,SUM(V66:$V66)+IF($V65,$V65-IF($H57<>$H63,1-DAY($H57)/DAY($H63),0),0),-SUM(V73:V74))-V83,0))))) -> 0
B77: Repayments (Automatic - Custom) | J77: =IF(OR($A56=1,J63<>1),0,-SUM(J73:J75)) -> 0 | K77: 0 | L77: 0 | M77: 0 | N77: 0 | O77: 0 | P77: 0 | Q77: 0 | R77: -10000 | S77: 0 | T77: 0 | U77: 0 | V77: 0
B78: Closing Balance | J78: =IF(J$8<=DD_Ts_Last_Hist_Mth,0,SUM(J73:J77)) -> 0 | K78: 10000 | L78: 10000 | M78: 10000 | N78: 10000 | O78: 10000 | P78: 10000 | Q78: 10000 | R78: 0 | S78: 0 | T78: 0 | U78: 0 | V78: 0
B80: Interest Payable
B81: All-in Interest Rate (% p.a.) | H81: =Questionnaire!K46 -> 0.08 | J81: =$H81 -> 0.08 | K81: 0.08 | L81: 0.08 | M81: 0.08 | N81: 0.08 | O81: 0.08 | P81: 0.08 | Q81: 0.08 | R81: 0.08 | S81: 0.08 | T81: 0.08 | U81: 0.08 | V81: 0.08
B83: Interest Expense | J83: =J66 * SUM(J73:J74) * J81/Ts_Mths_In_Yr -> 0 | K83: 66.66666667 | L83: 66.66666667 | M83: 66.66666667 | N83: 66.66666667 | O83: 66.66666667 | P83: 66.66666667 | Q83: 66.66666667 | R83: 66.66666667 | S83: 0 | T83: 0 | U83: 0 | V83: 0
B84: Interest Paid | J84: =-J83 -> 0 | K84: -66.66666667 | L84: -66.66666667 | M84: -66.66666667 | N84: -66.66666667 | O84: -66.66666667 | P84: -66.66666667 | Q84: -66.66666667 | R84: -66.66666667 | S84: 0 | T84: 0 | U84: 0 | V84: 0
B86: =H89 -> Business Support Loan
B88: General Information
B89: Category Name | H89: ='FS Opening'!B129 -> Business Support Loan
A90: =IFERROR(MATCH(H90,LU_Debt_Repayment_Profile,0),1) -> 1 | B90: Repayment Profile | G90: 1 | H90: =Questionnaire!J49 -> Principal & Interest
B91: Maturity Date | H91: =EOMONTH(Questionnaire!K50,H94*Ts_Mths_In_Yr-1) -> 2020-03-31
B92: Business Support Loan | H92: =Questionnaire!L65 -> 0
B93: Payment Deferral Period | H93: =Questionnaire!L67 -> 0
B94: Loan Term | H94: =Questionnaire!L68 -> 0
B95: Sensitivity | H95: 0
B97: Flag - Maturity Period | H97: =EOMONTH(H91,0) -> 2020-03-31 | J97: =N(AND($H91>=J$6,$H91<=J$7)) -> 1 | K97: 0 | L97: 0 | M97: 0 | N97: 0 | O97: 0 | P97: 0 | Q97: 0 | R97: 0 | S97: 0 | T97: 0 | U97: 0 | V97: 0
B98: Flag - Matured Periods | J98: =IF(J97,0,N(OR(J$6>$H91,SUM($J97:J97)>0))) -> 0 | K98: =IF(K97,0,N(OR(K$6>$H91,SUM($J97:K97)>0))) -> 1 | L98: =IF(L97,0,N(OR(L$6>$H91,SUM($J97:L97)>0))) -> 1 | M98: =IF(M97,0,N(OR(M$6>$H91,SUM($J97:M97)>0))) -> 1 | N98: =IF(N97,0,N(OR(N$6>$H91,SUM($J97:N97)>0))) -> 1 | O98: =IF(O97,0,N(OR(O$6>$H91,SUM($J97:O97)>0))) -> 1 | P98: =IF(P97,0,N(OR(P$6>$H91,SUM($J97:P97)>0))) -> 1 | Q98: =IF(Q97,0,N(OR(Q$6>$H91,SUM($J97:Q97)>0))) -> 1 | R98: =IF(R97,0,N(OR(R$6>$H91,SUM($J97:R97)>0))) -> 1 | S98: =IF(S97,0,N(OR(S$6>$H91,SUM($J97:S97)>0))) -> 1 | T98: =IF(T97,0,N(OR(T$6>$H91,SUM($J97:T97)>0))) -> 1 | U98: =IF(U97,0,N(OR(U$6>$H91,SUM($J97:U97)>0))) -> 1 | V98: =IF(V97,0,N(OR(V$6>$H91,SUM($J97:V97)>0))) -> 1
B99: Counter - Periods to Maturity | J99: =IF(J$10,MAX(YEAR($H91)*Ts_Mths_In_Yr+MONTH($H91)-YEAR(J$7)*Ts_Mths_In_Yr-MONTH(J$7),0),0) -> 0 | K99: 0 | L99: 0 | M99: 0 | N99: 0 | O99: 0 | P99: 0 | Q99: 0 | R99: 0 | S99: 0 | T99: 0 | U99: 0 | V99: 0
B100: % of Period Active | J100: =IF(J99,1, IF(J97,($H91-J$6+1)/(J$7-J$6+1),0)) -> 1 | K100: 0 | L100: 0 | M100: 0 | N100: 0 | O100: 0 | P100: 0 | Q100: 0 | R100: 0 | S100: 0 | T100: 0 | U100: 0 | V100: 0
B102: Drawdown & Repayment Assumptions
B103: Drawdowns | J103: =IF(J$8<=DD_Ts_Last_Hist_Mth,0,IF(J$8=DD_Ts_Last_Hist_Mth+1,$H92,0)) -> 0 | K103: 0 | L103: 0 | M103: 0 | N103: 0 | O103: 0 | P103: 0 | Q103: 0 | R103: 0 | S103: 0 | T103: 0 | U103: 0 | V103: 0
B104: Repayments | J104: 0 | K104: 0 | L104: 0 | M104: 0 | N104: 0 | O104: 0 | P104: 0 | Q104: 0 | R104: 0 | S104: 0 | T104: 0 | U104: 0 | V104: 0
B106: Funds Drawn | H106: =TEXT(Ts_Last_Hist_Mth_End_Date+1,"d-mmm-yy") -> 1-Apr-20
B107: Opening Balance | H107: =OFFSET('FS Opening'!J129,0,DD_Ts_Last_Hist_Mth-1) -> 0 | J107: =IF(J$8<=DD_Ts_Last_Hist_Mth,0,IF(J$8=DD_Ts_Last_Hist_Mth+1,$H107,I112)) -> 0 | K107: 0 | L107: 0 | M107: 0 | N107: 0 | O107: 0 | P107: 0 | Q107: 0 | R107: 0 | S107: 0 | T107: 0 | U107: 0 | V107: 0
B108: =B103&" (Manual)" -> Drawdowns (Manual) | J108: =IF(OR(J$8<=DD_Ts_Last_Hist_Mth,J98),0,J103) -> 0 | K108: 0 | L108: 0 | M108: 0 | N108: 0 | O108: 0 | P108: 0 | Q108: 0 | R108: 0 | S108: 0 | T108: 0 | U108: 0 | V108: 0
B109: =B104&" (Manual)" -> Repayments (Manual) | J109: =IF(OR(J$8<=DD_Ts_Last_Hist_Mth,J98),0,-MIN(J104,SUM(J107:J108))) -> 0 | K109: 0 | L109: 0 | M109: 0 | N109: 0 | O109: 0 | P109: 0 | Q109: 0 | R109: 0 | S109: 0 | T109: 0 | U109: 0 | V109: 0
B110: Repayments (Automatic - Credit Foncier) | J110: =IF(J98,0,IF($A90<>1,0,IF(J97,-SUM(J107:J109),-MIN(SUM(J107:J109),IFERROR(PMT(J115/Ts_Mths_In_Yr,SUM(J100:$V100)+IF($V99,$V99-IF($H91<>$H97,1-DAY($H91)/DAY($H97),0),0),-SUM(J107:J108))-J117,0))))) -> 0 | K110: =IF(K98,0,IF($A90<>1,0,IF(K97,-SUM(K107:K109),-MIN(SUM(K107:K109),IFERROR(PMT(K115/Ts_Mths_In_Yr,SUM(K100:$V100)+IF($V99,$V99-IF($H91<>$H97,1-DAY($H91)/DAY($H97),0),0),-SUM(K107:K108))-K117,0))))) -> 0 | L110: =IF(L98,0,IF($A90<>1,0,IF(L97,-SUM(L107:L109),-MIN(SUM(L107:L109),IFERROR(PMT(L115/Ts_Mths_In_Yr,SUM(L100:$V100)+IF($V99,$V99-IF($H91<>$H97,1-DAY($H91)/DAY($H97),0),0),-SUM(L107:L108))-L117,0))))) -> 0 | M110: =IF(M98,0,IF($A90<>1,0,IF(M97,-SUM(M107:M109),-MIN(SUM(M107:M109),IFERROR(PMT(M115/Ts_Mths_In_Yr,SUM(M100:$V100)+IF($V99,$V99-IF($H91<>$H97,1-DAY($H91)/DAY($H97),0),0),-SUM(M107:M108))-M117,0))))) -> 0 | N110: =IF(N98,0,IF($A90<>1,0,IF(N97,-SUM(N107:N109),-MIN(SUM(N107:N109),IFERROR(PMT(N115/Ts_Mths_In_Yr,SUM(N100:$V100)+IF($V99,$V99-IF($H91<>$H97,1-DAY($H91)/DAY($H97),0),0),-SUM(N107:N108))-N117,0))))) -> 0 | O110: =IF(O98,0,IF($A90<>1,0,IF(O97,-SUM(O107:O109),-MIN(SUM(O107:O109),IFERROR(PMT(O115/Ts_Mths_In_Yr,SUM(O100:$V100)+IF($V99,$V99-IF($H91<>$H97,1-DAY($H91)/DAY($H97),0),0),-SUM(O107:O108))-O117,0))))) -> 0 | P110: =IF(P98,0,IF($A90<>1,0,IF(P97,-SUM(P107:P109),-MIN(SUM(P107:P109),IFERROR(PMT(P115/Ts_Mths_In_Yr,SUM(P100:$V100)+IF($V99,$V99-IF($H91<>$H97,1-DAY($H91)/DAY($H97),0),0),-SUM(P107:P108))-P117,0))))) -> 0 | Q110: =IF(Q98,0,IF($A90<>1,0,IF(Q97,-SUM(Q107:Q109),-MIN(SUM(Q107:Q109),IFERROR(PMT(Q115/Ts_Mths_In_Yr,SUM(Q100:$V100)+IF($V99,$V99-IF($H91<>$H97,1-DAY($H91)/DAY($H97),0),0),-SUM(Q107:Q108))-Q117,0))))) -> 0 | R110: =IF(R98,0,IF($A90<>1,0,IF(R97,-SUM(R107:R109),-MIN(SUM(R107:R109),IFERROR(PMT(R115/Ts_Mths_In_Yr,SUM(R100:$V100)+IF($V99,$V99-IF($H91<>$H97,1-DAY($H91)/DAY($H97),0),0),-SUM(R107:R108))-R117,0))))) -> 0 | S110: =IF(S98,0,IF($A90<>1,0,IF(S97,-SUM(S107:S109),-MIN(SUM(S107:S109),IFERROR(PMT(S115/Ts_Mths_In_Yr,SUM(S100:$V100)+IF($V99,$V99-IF($H91<>$H97,1-DAY($H91)/DAY($H97),0),0),-SUM(S107:S108))-S117,0))))) -> 0 | T110: =IF(T98,0,IF($A90<>1,0,IF(T97,-SUM(T107:T109),-MIN(SUM(T107:T109),IFERROR(PMT(T115/Ts_Mths_In_Yr,SUM(T100:$V100)+IF($V99,$V99-IF($H91<>$H97,1-DAY($H91)/DAY($H97),0),0),-SUM(T107:T108))-T117,0))))) -> 0 | U110: =IF(U98,0,IF($A90<>1,0,IF(U97,-SUM(U107:U109),-MIN(SUM(U107:U109),IFERROR(PMT(U115/Ts_Mths_In_Yr,SUM(U100:$V100)+IF($V99,$V99-IF($H91<>$H97,1-DAY($H91)/DAY($H97),0),0),-SUM(U107:U108))-U117,0))))) -> 0 | V110: =IF(V98,0,IF($A90<>1,0,IF(V97,-SUM(V107:V109),-MIN(SUM(V107:V109),IFERROR(PMT(V115/Ts_Mths_In_Yr,SUM(V100:$V100)+IF($V99,$V99-IF($H91<>$H97,1-DAY($H91)/DAY($H97),0),0),-SUM(V107:V108))-V117,0))))) -> 0
B111: Repayments (Automatic - Custom) | J111: =IF(OR($A90=1,J97<>1),0,-SUM(J107:J109)) -> 0 | K111: 0 | L111: 0 | M111: 0 | N111: 0 | O111: 0 | P111: 0 | Q111: 0 | R111: 0 | S111: 0 | T111: 0 | U111: 0 | V111: 0
B112: Closing Balance | J112: =IF(J$8<=DD_Ts_Last_Hist_Mth,0,SUM(J107:J111)) -> 0 | K112: 0 | L112: 0 | M112: 0 | N112: 0 | O112: 0 | P112: 0 | Q112: 0 | R112: 0 | S112: 0 | T112: 0 | U112: 0 | V112: 0
B114: Interest Payable
B115: All-in Interest Rate (% p.a.) | H115: =Questionnaire!K52 -> 0 | J115: =$H115 -> 0 | K115: 0 | L115: 0 | M115: 0 | N115: 0 | O115: 0 | P115: 0 | Q115: 0 | R115: 0 | S115: 0 | T115: 0 | U115: 0 | V115: 0
B117: Interest Expense | J117: =J100 * SUM(J107:J108) * J115/Ts_Mths_In_Yr -> 0 | K117: 0 | L117: 0 | M117: 0 | N117: 0 | O117: 0 | P117: 0 | Q117: 0 | R117: 0 | S117: 0 | T117: 0 | U117: 0 | V117: 0
B118: Interest Paid | J118: =-J117 -> 0 | K118: 0 | L118: 0 | M118: 0 | N118: 0 | O118: 0 | P118: 0 | Q118: 0 | R118: 0 | S118: 0 | T118: 0 | U118: 0 | V118: 0
B120: Debt - Summary
B122: Summary of Funds Drawn
B123: =H21 -> Business Loan | J123: =IF(J$8<=DD_Ts_Last_Hist_Mth,I138,J39) -> 0 | K123: 100000 | L123: 95175.7917 | M123: 90333.49262 | N123: 85473.03492 | O123: 80594.3505 | P123: 75697.37101 | Q123: 70782.02786 | R123: 65848.25216 | S123: 60895.97481 | T123: 55925.12641 | U123: 50935.63734 | V123: 45927.43768
B124: =H55 -> Ovedraft | J124: =IF(J$8<=DD_Ts_Last_Hist_Mth,I139,J73) -> 0 | K124: 10000 | L124: 10000 | M124: 10000 | N124: 10000 | O124: 10000 | P124: 10000 | Q124: 10000 | R124: 10000 | S124: 0 | T124: 0 | U124: 0 | V124: 0
B125: =H89 -> Business Support Loan | J125: =IF(J$8<=DD_Ts_Last_Hist_Mth,I140,J107) -> 0 | K125: 0 | L125: 0 | M125: 0 | N125: 0 | O125: 0 | P125: 0 | Q125: 0 | R125: 0 | S125: 0 | T125: 0 | U125: 0 | V125: 0
B126: Opening Balance | J126: =SUM(J123:J125) -> 0 | K126: 110000 | L126: 105175.7917 | M126: 100333.4926 | N126: 95473.03492 | O126: 90594.3505 | P126: 85697.37101 | Q126: 80782.02786 | R126: 75848.25216 | S126: 60895.97481 | T126: 55925.12641 | U126: 50935.63734 | V126: 45927.43768
B128: =H21 -> Business Loan | J128: =IF(J$8<=DD_Ts_Last_Hist_Mth,MAX(0,J138-J123),J40) -> 100000 | K128: 0 | L128: 0 | M128: 0 | N128: 0 | O128: 0 | P128: 0 | Q128: 0 | R128: 0 | S128: 0 | T128: 0 | U128: 0 | V128: 0
B129: =H55 -> Ovedraft | J129: =IF(J$8<=DD_Ts_Last_Hist_Mth,MAX(0,J139-J124),J74) -> 10000 | K129: 0 | L129: 0 | M129: 0 | N129: 0 | O129: 0 | P129: 0 | Q129: 0 | R129: 0 | S129: 0 | T129: 0 | U129: 0 | V129: 0
B130: =H89 -> Business Support Loan | J130: =IF(J$8<=DD_Ts_Last_Hist_Mth,MAX(0,J140-J125),J108) -> 0 | K130: 0 | L130: 0 | M130: 0 | N130: 0 | O130: 0 | P130: 0 | Q130: 0 | R130: 0 | S130: 0 | T130: 0 | U130: 0 | V130: 0
B131: Debt Drawdowns | J131: =SUM(J128:J130) -> 110000 | K131: 0 | L131: 0 | M131: 0 | N131: 0 | O131: 0 | P131: 0 | Q131: 0 | R131: 0 | S131: 0 | T131: 0 | U131: 0 | V131: 0
B133: =H21 -> Business Loan | J133: =IF(J$8<=DD_Ts_Last_Hist_Mth,MIN(0,J138-J123),SUM(J41:J43)) -> 0 | K133: -4824.2083 | L133: -4842.299081 | M133: -4860.457702 | N133: -4878.684419 | O133: -4896.979485 | P133: -4915.343158 | Q133: -4933.775695 | R133: -4952.277354 | S133: -4970.848394 | T133: -4989.489075 | U133: -5008.19966 | V133: -5026.980408
B134: =H55 -> Ovedraft | J134: =IF(J$8<=DD_Ts_Last_Hist_Mth,MIN(0,J139-J124),SUM(J75:J77)) -> 0 | K134: 0 | L134: 0 | M134: 0 | N134: 0 | O134: 0 | P134: 0 | Q134: 0 | R134: -10000 | S134: 0 | T134: 0 | U134: 0 | V134: 0
B135: =H89 -> Business Support Loan | J135: =IF(J$8<=DD_Ts_Last_Hist_Mth,MIN(0,J140-J125),SUM(J109:J111)) -> 0 | K135: 0 | L135: 0 | M135: 0 | N135: 0 | O135: 0 | P135: 0 | Q135: 0 | R135: 0 | S135: 0 | T135: 0 | U135: 0 | V135: 0
B136: Debt Repayments | J136: =SUM(J133:J135) -> 0 | K136: -4824.2083 | L136: -4842.299081 | M136: -4860.457702 | N136: -4878.684419 | O136: -4896.979485 | P136: -4915.343158 | Q136: -4933.775695 | R136: -14952.27735 | S136: -4970.848394 | T136: -4989.489075 | U136: -5008.19966 | V136: -5026.980408
B138: =H21 -> Business Loan | J138: =IF(J$8<=DD_Ts_Last_Hist_Mth,'FS Opening'!J127,J44) -> 100000 | K138: =IF(K$8<=DD_Ts_Last_Hist_Mth,'FS Opening'!K127,K44) -> 95175.7917 | L138: =IF(L$8<=DD_Ts_Last_Hist_Mth,'FS Opening'!L127,L44) -> 90333.49262 | M138: =IF(M$8<=DD_Ts_Last_Hist_Mth,'FS Opening'!M127,M44) -> 85473.03492 | N138: =IF(N$8<=DD_Ts_Last_Hist_Mth,'FS Opening'!N127,N44) -> 80594.3505 | O138: =IF(O$8<=DD_Ts_Last_Hist_Mth,'FS Opening'!O127,O44) -> 75697.37101 | P138: =IF(P$8<=DD_Ts_Last_Hist_Mth,'FS Opening'!P127,P44) -> 70782.02786 | Q138: =IF(Q$8<=DD_Ts_Last_Hist_Mth,'FS Opening'!Q127,Q44) -> 65848.25216 | R138: =IF(R$8<=DD_Ts_Last_Hist_Mth,'FS Opening'!R127,R44) -> 60895.97481 | S138: =IF(S$8<=DD_Ts_Last_Hist_Mth,'FS Opening'!S127,S44) -> 55925.12641 | T138: =IF(T$8<=DD_Ts_Last_Hist_Mth,'FS Opening'!T127,T44) -> 50935.63734 | U138: =IF(U$8<=DD_Ts_Last_Hist_Mth,'FS Opening'!U127,U44) -> 45927.43768 | V138: =IF(V$8<=DD_Ts_Last_Hist_Mth,'FS Opening'!V127,V44) -> 40900.45727
B139: =H55 -> Ovedraft | J139: =IF(J$8<=DD_Ts_Last_Hist_Mth,'FS Opening'!J128,J78) -> 10000 | K139: =IF(K$8<=DD_Ts_Last_Hist_Mth,'FS Opening'!K128,K78) -> 10000 | L139: =IF(L$8<=DD_Ts_Last_Hist_Mth,'FS Opening'!L128,L78) -> 10000 | M139: =IF(M$8<=DD_Ts_Last_Hist_Mth,'FS Opening'!M128,M78) -> 10000 | N139: =IF(N$8<=DD_Ts_Last_Hist_Mth,'FS Opening'!N128,N78) -> 10000 | O139: =IF(O$8<=DD_Ts_Last_Hist_Mth,'FS Opening'!O128,O78) -> 10000 | P139: =IF(P$8<=DD_Ts_Last_Hist_Mth,'FS Opening'!P128,P78) -> 10000 | Q139: =IF(Q$8<=DD_Ts_Last_Hist_Mth,'FS Opening'!Q128,Q78) -> 10000 | R139: =IF(R$8<=DD_Ts_Last_Hist_Mth,'FS Opening'!R128,R78) -> 0 | S139: =IF(S$8<=DD_Ts_Last_Hist_Mth,'FS Opening'!S128,S78) -> 0 | T139: =IF(T$8<=DD_Ts_Last_Hist_Mth,'FS Opening'!T128,T78) -> 0 | U139: =IF(U$8<=DD_Ts_Last_Hist_Mth,'FS Opening'!U128,U78) -> 0 | V139: =IF(V$8<=DD_Ts_Last_Hist_Mth,'FS Opening'!V128,V78) -> 0
B140: =H89 -> Business Support Loan | J140: =IF(J$8<=DD_Ts_Last_Hist_Mth,'FS Opening'!J129,J112) -> 0 | K140: =IF(K$8<=DD_Ts_Last_Hist_Mth,'FS Opening'!K129,K112) -> 0 | L140: =IF(L$8<=DD_Ts_Last_Hist_Mth,'FS Opening'!L129,L112) -> 0 | M140: =IF(M$8<=DD_Ts_Last_Hist_Mth,'FS Opening'!M129,M112) -> 0 | N140: =IF(N$8<=DD_Ts_Last_Hist_Mth,'FS Opening'!N129,N112) -> 0 | O140: =IF(O$8<=DD_Ts_Last_Hist_Mth,'FS Opening'!O129,O112) -> 0 | P140: =IF(P$8<=DD_Ts_Last_Hist_Mth,'FS Opening'!P129,P112) -> 0 | Q140: =IF(Q$8<=DD_Ts_Last_Hist_Mth,'FS Opening'!Q129,Q112) -> 0 | R140: =IF(R$8<=DD_Ts_Last_Hist_Mth,'FS Opening'!R129,R112) -> 0 | S140: =IF(S$8<=DD_Ts_Last_Hist_Mth,'FS Opening'!S129,S112) -> 0 | T140: =IF(T$8<=DD_Ts_Last_Hist_Mth,'FS Opening'!T129,T112) -> 0 | U140: =IF(U$8<=DD_Ts_Last_Hist_Mth,'FS Opening'!U129,U112) -> 0 | V140: =IF(V$8<=DD_Ts_Last_Hist_Mth,'FS Opening'!V129,V112) -> 0
B141: Closing Balance | J141: =SUM(J138:J140) -> 110000 | K141: 105175.7917 | L141: 100333.4926 | M141: 95473.03492 | N141: 90594.3505 | O141: 85697.37101 | P141: 80782.02786 | Q141: 75848.25216 | R141: 60895.97481 | S141: 55925.12641 | T141: 50935.63734 | U141: 45927.43768 | V141: 40900.45727
B143: Summary of Interest Payable
B144: =H21 -> Business Loan | J144: =J49 -> 0 | K144: 375 | L144: 356.9092189 | M144: 338.7505973 | N144: 320.5238809 | O144: 302.2288144 | P144: 283.8651413 | Q144: 265.4326045 | R144: 246.9309456 | S144: 228.3599055 | T144: 209.719224 | U144: 191.00864 | V144: 172.2278913
B145: =H55 -> Ovedraft | J145: =J83 -> 0 | K145: 66.66666667 | L145: 66.66666667 | M145: 66.66666667 | N145: 66.66666667 | O145: 66.66666667 | P145: 66.66666667 | Q145: 66.66666667 | R145: 66.66666667 | S145: 0 | T145: 0 | U145: 0 | V145: 0
B146: =H89 -> Business Support Loan | J146: =J117 -> 0 | K146: 0 | L146: 0 | M146: 0 | N146: 0 | O146: 0 | P146: 0 | Q146: 0 | R146: 0 | S146: 0 | T146: 0 | U146: 0 | V146: 0
B147: Interest Expense | J147: =SUM(J144:J146) -> 0 | K147: 441.6666667 | L147: 423.5758855 | M147: 405.417264 | N147: 387.1905476 | O147: 368.895481 | P147: 350.531808 | Q147: 332.0992711 | R147: 313.5976123 | S147: 228.3599055 | T147: 209.719224 | U147: 191.00864 | V147: 172.2278913
B149: =H21 -> Business Loan | J149: =J50 -> 0 | K149: -375 | L149: -356.9092189 | M149: -338.7505973 | N149: -320.5238809 | O149: -302.2288144 | P149: -283.8651413 | Q149: -265.4326045 | R149: -246.9309456 | S149: -228.3599055 | T149: -209.719224 | U149: -191.00864 | V149: -172.2278913
B150: =H55 -> Ovedraft | J150: =J84 -> 0 | K150: -66.66666667 | L150: -66.66666667 | M150: -66.66666667 | N150: -66.66666667 | O150: -66.66666667 | P150: -66.66666667 | Q150: -66.66666667 | R150: -66.66666667 | S150: 0 | T150: 0 | U150: 0 | V150: 0
B151: =H89 -> Business Support Loan | J151: =J118 -> 0 | K151: 0 | L151: 0 | M151: 0 | N151: 0 | O151: 0 | P151: 0 | Q151: 0 | R151: 0 | S151: 0 | T151: 0 | U151: 0 | V151: 0
B152: Interest Paid | J152: =SUM(J149:J151) -> 0 | K152: -441.6666667 | L152: -423.5758855 | M152: -405.417264 | N152: -387.1905476 | O152: -368.895481 | P152: -350.531808 | Q152: -332.0992711 | R152: -313.5976123 | S152: -228.3599055 | T152: -209.719224 | U152: -191.00864 | V152: -172.2278913
C154: Other Historical Items
C156: ='FS Opening'!B51 -> Interest Expense | J156: =IF(J$8<=DD_Ts_Last_Hist_Mth,'FS Opening'!J51,0) -> 0 | K156: =IF(K$8<=DD_Ts_Last_Hist_Mth,'FS Opening'!K51,0) -> 0 | L156: =IF(L$8<=DD_Ts_Last_Hist_Mth,'FS Opening'!L51,0) -> 0 | M156: =IF(M$8<=DD_Ts_Last_Hist_Mth,'FS Opening'!M51,0) -> 0 | N156: =IF(N$8<=DD_Ts_Last_Hist_Mth,'FS Opening'!N51,0) -> 0 | O156: =IF(O$8<=DD_Ts_Last_Hist_Mth,'FS Opening'!O51,0) -> 0 | P156: =IF(P$8<=DD_Ts_Last_Hist_Mth,'FS Opening'!P51,0) -> 0 | Q156: =IF(Q$8<=DD_Ts_Last_Hist_Mth,'FS Opening'!Q51,0) -> 0 | R156: =IF(R$8<=DD_Ts_Last_Hist_Mth,'FS Opening'!R51,0) -> 0 | S156: =IF(S$8<=DD_Ts_Last_Hist_Mth,'FS Opening'!S51,0) -> 0 | T156: =IF(T$8<=DD_Ts_Last_Hist_Mth,'FS Opening'!T51,0) -> 0 | U156: =IF(U$8<=DD_Ts_Last_Hist_Mth,'FS Opening'!U51,0) -> 0 | V156: =IF(V$8<=DD_Ts_Last_Hist_Mth,'FS Opening'!V51,0) -> 0
C157: Total Historical Interest Expense | J157: =SUM(J156:J156) -> 0 | K157: 0 | L157: 0 | M157: 0 | N157: 0 | O157: 0 | P157: 0 | Q157: 0 | R157: 0 | S157: 0 | T157: 0 | U157: 0 | V157: 0
C159: ='FS Opening'!B113 -> Interest Payable | J159: =IF(J$8<=DD_Ts_Last_Hist_Mth,'FS Opening'!J113,0) -> 0 | K159: =IF(K$8<=DD_Ts_Last_Hist_Mth,'FS Opening'!K113,0) -> 0 | L159: =IF(L$8<=DD_Ts_Last_Hist_Mth,'FS Opening'!L113,0) -> 0 | M159: =IF(M$8<=DD_Ts_Last_Hist_Mth,'FS Opening'!M113,0) -> 0 | N159: =IF(N$8<=DD_Ts_Last_Hist_Mth,'FS Opening'!N113,0) -> 0 | O159: =IF(O$8<=DD_Ts_Last_Hist_Mth,'FS Opening'!O113,0) -> 0 | P159: =IF(P$8<=DD_Ts_Last_Hist_Mth,'FS Opening'!P113,0) -> 0 | Q159: =IF(Q$8<=DD_Ts_Last_Hist_Mth,'FS Opening'!Q113,0) -> 0 | R159: =IF(R$8<=DD_Ts_Last_Hist_Mth,'FS Opening'!R113,0) -> 0 | S159: =IF(S$8<=DD_Ts_Last_Hist_Mth,'FS Opening'!S113,0) -> 0 | T159: =IF(T$8<=DD_Ts_Last_Hist_Mth,'FS Opening'!T113,0) -> 0 | U159: =IF(U$8<=DD_Ts_Last_Hist_Mth,'FS Opening'!U113,0) -> 0 | V159: =IF(V$8<=DD_Ts_Last_Hist_Mth,'FS Opening'!V113,0) -> 0
C160: Total Historical Interest Payable | J160: =SUM(J159:J159) -> 0 | K160: 0 | L160: 0 | M160: 0 | N160: 0 | O160: 0 | P160: 0 | Q160: 0 | R160: 0 | S160: 0 | T160: 0 | U160: 0 | V160: 0
C162: =C159 -> Interest Payable | J162: =J159-I159 -> 0 | K162: 0 | L162: 0 | M162: 0 | N162: 0 | O162: 0 | P162: 0 | Q162: 0 | R162: 0 | S162: 0 | T162: 0 | U162: 0 | V162: 0
C163: Total Movement in Historical Interest Payable | J163: =SUM(J162:J162) -> 0 | K163: 0 | L163: 0 | M163: 0 | N163: 0 | O163: 0 | P163: 0 | Q163: 0 | R163: 0 | S163: 0 | T163: 0 | U163: 0 | V163: 0
C165: Error Values | J165: =IF(ISERROR(SUM(J126,J131,J136,J141,J147,J152,J157,J160,J163)),1,0) -> 0 | K165: 0 | L165: 0 | M165: 0 | N165: 0 | O165: 0 | P165: 0 | Q165: 0 | R165: 0 | S165: 0 | T165: 0 | U165: 0 | V165: 0
C166: Funds Drawn Balance Check | J166: =IF(J165<>0,0,IF(J$8<=DD_Ts_Last_Hist_Mth,0,IF(ROUND(J126+J131+J136-J141,5)<>0,1,0))) -> 0 | K166: 0 | L166: 0 | M166: 0 | N166: 0 | O166: 0 | P166: 0 | Q166: 0 | R166: 0 | S166: 0 | T166: 0 | U166: 0 | V166: 0
C167: Interest Payable Balance Check | J167: =IF(J165<>0,0,IF(J$8<=DD_Ts_Last_Hist_Mth,0,IF(ROUND(J147+J152,5)<>0,1,0))) -> 0 | K167: 0 | L167: 0 | M167: 0 | N167: 0 | O167: 0 | P167: 0 | Q167: 0 | R167: 0 | S167: 0 | T167: 0 | U167: 0 | V167: 0
B168: Total Error Checks Result | I168: =IF(ISERROR(SUM(J168:V168)),1,MIN(SUM(J168:V168),1)) -> 0 | J168: =MIN(SUM(J165:J167),1) -> 0 | K168: 0 | L168: 0 | M168: 0 | N168: 0 | O168: 0 | P168: 0 | Q168: 0 | R168: 0 | S168: 0 | T168: 0 | U168: 0 | V168: 0
C170: Negative Closing Debt Balance | J170: =IF(J$8<=DD_Ts_Last_Hist_Mth,0,IF(J168<>0,0,IF(ROUND(MIN(J138:J140),5)<0,1,0))) -> 0 | K170: 0 | L170: 0 | M170: 0 | N170: 0 | O170: 0 | P170: 0 | Q170: 0 | R170: 0 | S170: 0 | T170: 0 | U170: 0 | V170: 0
C171: Negative Interest Expense | J171: =IF(J$8<=DD_Ts_Last_Hist_Mth,0,IF(J168<>0,0,IF(ROUND(MIN(J144:J146),5)<0,1,0))) -> 0 | K171: 0 | L171: 0 | M171: 0 | N171: 0 | O171: 0 | P171: 0 | Q171: 0 | R171: 0 | S171: 0 | T171: 0 | U171: 0 | V171: 0
B172: Total Alert Checks Result | I172: =IF(ISERROR(SUM(J172:V172)),1,MIN(SUM(J172:V172),1)) -> 0 | J172: =MIN(SUM(J170:J171),1) -> 0 | K172: 0 | L172: 0 | M172: 0 | N172: 0 | O172: 0 | P172: 0 | Q172: 0 | R172: 0 | S172: 0 | T172: 0 | U172: 0 | V172: 0
B174: Ordinary Equity
B176: Ordinary Equity Balances
B177: Opening Balance | J177: =J189 -> 0 | K177: 0 | L177: 0 | M177: 0 | N177: 0 | O177: 0 | P177: 0 | Q177: 0 | R177: 0 | S177: 0 | T177: 0 | U177: 0 | V177: 0
B178: Equity Raisings | J178: 0 | K178: 0 | L178: 0 | M178: 0 | N178: 0 | O178: 0 | P178: 0 | Q178: 0 | R178: 0 | S178: 0 | T178: 0 | U178: 0 | V178: 0
B179: Equity Buybacks | J179: 0 | K179: 0 | L179: 0 | M179: 0 | N179: 0 | O179: 0 | P179: 0 | Q179: 0 | R179: 0 | S179: 0 | T179: 0 | U179: 0 | V179: 0
B180: Closing Balance | J180: =J192 -> 0 | K180: 0 | L180: 0 | M180: 0 | N180: 0 | O180: 0 | P180: 0 | Q180: 0 | R180: 0 | S180: 0 | T180: 0 | U180: 0 | V180: 0
B182: Dividends
B183: Opening Dividends Payable | J183: =J195 -> 0 | K183: 0 | L183: 0 | M183: 0 | N183: 0 | O183: 0 | P183: 0 | Q183: 0 | R183: 0 | S183: 0 | T183: 0 | U183: 0 | V183: 0
B184: Dividends Declared | J184: 0 | K184: 0 | L184: 0 | M184: 0 | N184: 0 | O184: 0 | P184: 0 | Q184: 0 | R184: 0 | S184: 0 | T184: 0 | U184: 0 | V184: 0
B185: Dividends Paid | J185: 0 | K185: 0 | L185: 0 | M185: 0 | N185: 0 | O185: 0 | P185: 0 | Q185: 0 | R185: 0 | S185: 0 | T185: 0 | U185: 0 | V185: 0
B186: Closing Dividends Payable | J186: =J198 -> 0 | K186: 0 | L186: 0 | M186: 0 | N186: 0 | O186: 0 | P186: 0 | Q186: 0 | R186: 0 | S186: 0 | T186: 0 | U186: 0 | V186: 0
B188: =B176 -> Ordinary Equity Balances
B189: =B177 -> Opening Balance | J189: =I192 -> 0 | K189: 0 | L189: 0 | M189: 0 | N189: 0 | O189: 0 | P189: 0 | Q189: 0 | R189: 0 | S189: 0 | T189: 0 | U189: 0 | V189: 0
B190: =B178 -> Equity Raisings | J190: =IF(J$8<=DD_Ts_Last_Hist_Mth,MAX(0,J192-J189),J178) -> 0 | K190: 0 | L190: 0 | M190: 0 | N190: 0 | O190: 0 | P190: 0 | Q190: 0 | R190: 0 | S190: 0 | T190: 0 | U190: 0 | V190: 0
B191: =B179 -> Equity Buybacks | J191: =IF(J$8<=DD_Ts_Last_Hist_Mth,MIN(0,J192-J189),-J179) -> 0 | K191: 0 | L191: 0 | M191: 0 | N191: 0 | O191: 0 | P191: 0 | Q191: 0 | R191: 0 | S191: 0 | T191: 0 | U191: 0 | V191: 0
B192: =B180 -> Closing Balance | J192: =IF(J$8<=DD_Ts_Last_Hist_Mth,'FS Opening'!J141,SUM(J189:J191)) -> 0 | K192: =IF(K$8<=DD_Ts_Last_Hist_Mth,'FS Opening'!K141,SUM(K189:K191)) -> 0 | L192: =IF(L$8<=DD_Ts_Last_Hist_Mth,'FS Opening'!L141,SUM(L189:L191)) -> 0 | M192: =IF(M$8<=DD_Ts_Last_Hist_Mth,'FS Opening'!M141,SUM(M189:M191)) -> 0 | N192: =IF(N$8<=DD_Ts_Last_Hist_Mth,'FS Opening'!N141,SUM(N189:N191)) -> 0 | O192: =IF(O$8<=DD_Ts_Last_Hist_Mth,'FS Opening'!O141,SUM(O189:O191)) -> 0 | P192: =IF(P$8<=DD_Ts_Last_Hist_Mth,'FS Opening'!P141,SUM(P189:P191)) -> 0 | Q192: =IF(Q$8<=DD_Ts_Last_Hist_Mth,'FS Opening'!Q141,SUM(Q189:Q191)) -> 0 | R192: =IF(R$8<=DD_Ts_Last_Hist_Mth,'FS Opening'!R141,SUM(R189:R191)) -> 0 | S192: =IF(S$8<=DD_Ts_Last_Hist_Mth,'FS Opening'!S141,SUM(S189:S191)) -> 0 | T192: =IF(T$8<=DD_Ts_Last_Hist_Mth,'FS Opening'!T141,SUM(T189:T191)) -> 0 | U192: =IF(U$8<=DD_Ts_Last_Hist_Mth,'FS Opening'!U141,SUM(U189:U191)) -> 0 | V192: =IF(V$8<=DD_Ts_Last_Hist_Mth,'FS Opening'!V141,SUM(V189:V191)) -> 0
B194: =B182 -> Dividends
B195: =B183 -> Opening Dividends Payable | J195: =IF(J$8<=DD_Ts_Last_Hist_Mth,0,IF(J$8=DD_Ts_Last_Hist_Mth+1,OFFSET('FS Opening'!J116,0,-1),I198)) -> 0 | K195: =IF(K$8<=DD_Ts_Last_Hist_Mth,0,IF(K$8=DD_Ts_Last_Hist_Mth+1,OFFSET('FS Opening'!K116,0,-1),J198)) -> 0 | L195: =IF(L$8<=DD_Ts_Last_Hist_Mth,0,IF(L$8=DD_Ts_Last_Hist_Mth+1,OFFSET('FS Opening'!L116,0,-1),K198)) -> 0 | M195: =IF(M$8<=DD_Ts_Last_Hist_Mth,0,IF(M$8=DD_Ts_Last_Hist_Mth+1,OFFSET('FS Opening'!M116,0,-1),L198)) -> 0 | N195: =IF(N$8<=DD_Ts_Last_Hist_Mth,0,IF(N$8=DD_Ts_Last_Hist_Mth+1,OFFSET('FS Opening'!N116,0,-1),M198)) -> 0 | O195: =IF(O$8<=DD_Ts_Last_Hist_Mth,0,IF(O$8=DD_Ts_Last_Hist_Mth+1,OFFSET('FS Opening'!O116,0,-1),N198)) -> 0 | P195: =IF(P$8<=DD_Ts_Last_Hist_Mth,0,IF(P$8=DD_Ts_Last_Hist_Mth+1,OFFSET('FS Opening'!P116,0,-1),O198)) -> 0 | Q195: =IF(Q$8<=DD_Ts_Last_Hist_Mth,0,IF(Q$8=DD_Ts_Last_Hist_Mth+1,OFFSET('FS Opening'!Q116,0,-1),P198)) -> 0 | R195: =IF(R$8<=DD_Ts_Last_Hist_Mth,0,IF(R$8=DD_Ts_Last_Hist_Mth+1,OFFSET('FS Opening'!R116,0,-1),Q198)) -> 0 | S195: =IF(S$8<=DD_Ts_Last_Hist_Mth,0,IF(S$8=DD_Ts_Last_Hist_Mth+1,OFFSET('FS Opening'!S116,0,-1),R198)) -> 0 | T195: =IF(T$8<=DD_Ts_Last_Hist_Mth,0,IF(T$8=DD_Ts_Last_Hist_Mth+1,OFFSET('FS Opening'!T116,0,-1),S198)) -> 0 | U195: =IF(U$8<=DD_Ts_Last_Hist_Mth,0,IF(U$8=DD_Ts_Last_Hist_Mth+1,OFFSET('FS Opening'!U116,0,-1),T198)) -> 0 | V195: =IF(V$8<=DD_Ts_Last_Hist_Mth,0,IF(V$8=DD_Ts_Last_Hist_Mth+1,OFFSET('FS Opening'!V116,0,-1),U198)) -> 0
B196: =B184 -> Dividends Declared | J196: =IF(J$8<=DD_Ts_Last_Hist_Mth,0,J184) -> 0 | K196: 0 | L196: 0 | M196: 0 | N196: 0 | O196: 0 | P196: 0 | Q196: 0 | R196: 0 | S196: 0 | T196: 0 | U196: 0 | V196: 0
B197: =B185 -> Dividends Paid | J197: =IF(J$8<=DD_Ts_Last_Hist_Mth,0,-J185) -> 0 | K197: 0 | L197: 0 | M197: 0 | N197: 0 | O197: 0 | P197: 0 | Q197: 0 | R197: 0 | S197: 0 | T197: 0 | U197: 0 | V197: 0
B198: =B186 -> Closing Dividends Payable | J198: =IF(J$8<=DD_Ts_Last_Hist_Mth,'FS Opening'!J116,SUM(J195:J197)) -> 0 | K198: =IF(K$8<=DD_Ts_Last_Hist_Mth,'FS Opening'!K116,SUM(K195:K197)) -> 0 | L198: =IF(L$8<=DD_Ts_Last_Hist_Mth,'FS Opening'!L116,SUM(L195:L197)) -> 0 | M198: =IF(M$8<=DD_Ts_Last_Hist_Mth,'FS Opening'!M116,SUM(M195:M197)) -> 0 | N198: =IF(N$8<=DD_Ts_Last_Hist_Mth,'FS Opening'!N116,SUM(N195:N197)) -> 0 | O198: =IF(O$8<=DD_Ts_Last_Hist_Mth,'FS Opening'!O116,SUM(O195:O197)) -> 0 | P198: =IF(P$8<=DD_Ts_Last_Hist_Mth,'FS Opening'!P116,SUM(P195:P197)) -> 0 | Q198: =IF(Q$8<=DD_Ts_Last_Hist_Mth,'FS Opening'!Q116,SUM(Q195:Q197)) -> 0 | R198: =IF(R$8<=DD_Ts_Last_Hist_Mth,'FS Opening'!R116,SUM(R195:R197)) -> 0 | S198: =IF(S$8<=DD_Ts_Last_Hist_Mth,'FS Opening'!S116,SUM(S195:S197)) -> 0 | T198: =IF(T$8<=DD_Ts_Last_Hist_Mth,'FS Opening'!T116,SUM(T195:T197)) -> 0 | U198: =IF(U$8<=DD_Ts_Last_Hist_Mth,'FS Opening'!U116,SUM(U195:U197)) -> 0 | V198: =IF(V$8<=DD_Ts_Last_Hist_Mth,'FS Opening'!V116,SUM(V195:V197)) -> 0
B200: Movement in Historical Dividends Payable | J200: =IF(J$8<=DD_Ts_Last_Hist_Mth,J198-I198,0) -> 0 | K200: 0 | L200: 0 | M200: 0 | N200: 0 | O200: 0 | P200: 0 | Q200: 0 | R200: 0 | S200: 0 | T200: 0 | U200: 0 | V200: 0
C202: Error Values | J202: =IF(ISERROR(SUM(J192,J198,J200)),1,0) -> 0 | K202: 0 | L202: 0 | M202: 0 | N202: 0 | O202: 0 | P202: 0 | Q202: 0 | R202: 0 | S202: 0 | T202: 0 | U202: 0 | V202: 0
C203: Ordinary Equity Balance Check | J203: =IF(J202<>0,0,IF(J$8<=DD_Ts_Last_Hist_Mth,0,IF(ROUND(J192-SUM(J189:J191),5)<>0,1,0))) -> 0 | K203: 0 | L203: 0 | M203: 0 | N203: 0 | O203: 0 | P203: 0 | Q203: 0 | R203: 0 | S203: 0 | T203: 0 | U203: 0 | V203: 0
C204: Dividends Payable Balance Check | J204: =IF(J202<>0,0,IF(J$8<=DD_Ts_Last_Hist_Mth,0,IF(ROUND(J198-SUM(J195:J197),5)<>0,1,0))) -> 0 | K204: 0 | L204: 0 | M204: 0 | N204: 0 | O204: 0 | P204: 0 | Q204: 0 | R204: 0 | S204: 0 | T204: 0 | U204: 0 | V204: 0
B205: Total Error Checks Result | I205: =IF(ISERROR(SUM(J205:V205)),1,MIN(SUM(J205:V205),1)) -> 0 | J205: =MIN(SUM(J202:J204),1) -> 0 | K205: 0 | L205: 0 | M205: 0 | N205: 0 | O205: 0 | P205: 0 | Q205: 0 | R205: 0 | S205: 0 | T205: 0 | U205: 0 | V205: 0
C207: Negative Balance | J207: =IF(J$8<=DD_Ts_Last_Hist_Mth,0,IF(J205<>0,0,IF(ROUND(J192,5)<0,1,0))) -> 0 | K207: 0 | L207: 0 | M207: 0 | N207: 0 | O207: 0 | P207: 0 | Q207: 0 | R207: 0 | S207: 0 | T207: 0 | U207: 0 | V207: 0
C208: Negative Dividends Payable Balance | J208: =IF(J$8<=DD_Ts_Last_Hist_Mth,0,IF(J205<>0,0,IF(ROUND(J198,5)<0,1,0))) -> 0 | K208: 0 | L208: 0 | M208: 0 | N208: 0 | O208: 0 | P208: 0 | Q208: 0 | R208: 0 | S208: 0 | T208: 0 | U208: 0 | V208: 0
B209: Total Alert Checks Result | I209: =IF(ISERROR(SUM(J209:V209)),1,MIN(SUM(J209:V209),1)) -> 0 | J209: =MIN(SUM(J207:J208),1) -> 0 | K209: 0 | L209: 0 | M209: 0 | N209: 0 | O209: 0 | P209: 0 | Q209: 0 | R209: 0 | S209: 0 | T209: 0 | U209: 0 | V209: 0

Sheet Tax (hidden)
A1: ± | B1: Taxation
B2: =Model_Name -> High Level 3-Way Financial Model
B4: Month Ending | J4: =TEXT(J7,"mmm-yy") -> Mar-20 | K4: Apr-20 | L4: May-20 | M4: Jun-20 | N4: Jul-20 | O4: Aug-20 | P4: Sep-20 | Q4: Oct-20 | R4: Nov-20 | S4: Dec-20 | T4: Jan-21 | U4: Feb-21 | V4: Mar-21
B5: Month | J5: ="M"&J11&IF(J8>DD_Ts_Last_Hist_Mth,Ts_Fcast_Per_ID,Ts_Hist_Per_ID) -> M9 (H) | K5: M10 (F) | L5: M11 (F) | M5: M12 (F) | N5: M1 (F) | O5: M2 (F) | P5: M3 (F) | Q5: M4 (F) | R5: M5 (F) | S5: M6 (F) | T5: M7 (F) | U5: M8 (F) | V5: M9 (F)
B6: Period Start Date | J6: =EDATE(Ts_Start_Date,J8-1) -> 2020-03-01 | K6: 2020-04-01 | L6: 2020-05-01 | M6: 2020-06-01 | N6: 2020-07-01 | O6: 2020-08-01 | P6: 2020-09-01 | Q6: 2020-10-01 | R6: 2020-11-01 | S6: 2020-12-01 | T6: 2021-01-01 | U6: 2021-02-01 | V6: 2021-03-01
B7: Period End Date | J7: =EDATE(Ts_Start_Date,J8)-1 -> 2020-03-31 | K7: 2020-04-30 | L7: 2020-05-31 | M7: 2020-06-30 | N7: 2020-07-31 | O7: 2020-08-31 | P7: 2020-09-30 | Q7: 2020-10-31 | R7: 2020-11-30 | S7: 2020-12-31 | T7: 2021-01-31 | U7: 2021-02-28 | V7: 2021-03-31
B8: Counter | J8: =COLUMNS($J8:J8) -> 1 | K8: =COLUMNS($J8:K8) -> 2 | L8: =COLUMNS($J8:L8) -> 3 | M8: =COLUMNS($J8:M8) -> 4 | N8: =COLUMNS($J8:N8) -> 5 | O8: =COLUMNS($J8:O8) -> 6 | P8: =COLUMNS($J8:P8) -> 7 | Q8: =COLUMNS($J8:Q8) -> 8 | R8: =COLUMNS($J8:R8) -> 9 | S8: =COLUMNS($J8:S8) -> 10 | T8: =COLUMNS($J8:T8) -> 11 | U8: =COLUMNS($J8:U8) -> 12 | V8: =COLUMNS($J8:V8) -> 13
B9: Financial Year | J9: =YEAR(J7)+IF(MONTH(J7)>DD_Ts_Fin_Yr_End_Mth,1,0) -> 2020 | K9: 2020 | L9: 2020 | M9: 2020 | N9: 2021 | O9: 2021 | P9: 2021 | Q9: 2021 | R9: 2021 | S9: 2021 | T9: 2021 | U9: 2021 | V9: 2021
B10: Active Column Number | J10: =IF(AND(J8>DD_Ts_Last_Hist_Mth,J8<=Ts_Term),J8-DD_Ts_Last_Hist_Mth,0) -> 0 | K10: 1 | L10: 2 | M10: 3 | N10: 4 | O10: 5 | P10: 6 | Q10: 7 | R10: 8 | S10: 9 | T10: 10 | U10: 11 | V10: 12
B11: Month Number | J11: =MOD(MONTH(J7)-DD_Ts_Fin_Yr_End_Mth-1,Ts_Mths_In_Yr)+1 -> 9 | K11: 10 | L11: 11 | M11: 12 | N11: 1 | O11: 2 | P11: 3 | Q11: 4 | R11: 5 | S11: 6 | T11: 7 | U11: 8 | V11: 9
B12: Month Key | J12: ="M"&J11&"-"&J9 -> M9-2020 | K12: M10-2020 | L12: M11-2020 | M12: M12-2020 | N12: M1-2021 | O12: M2-2021 | P12: M3-2021 | Q12: M4-2021 | R12: M5-2021 | S12: M6-2021 | T12: M7-2021 | U12: M8-2021 | V12: M9-2021
B13: Quarter Key | J13: ="Q"&INT((J11-1)/Ts_Mths_In_Qtr)+1&"-"&J9 -> Q3-2020 | K13: Q4-2020 | L13: Q4-2020 | M13: Q4-2020 | N13: Q1-2021 | O13: Q1-2021 | P13: Q1-2021 | Q13: Q2-2021 | R13: Q2-2021 | S13: Q2-2021 | T13: Q3-2021 | U13: Q3-2021 | V13: Q3-2021
B14: Half Key | J14: ="H"&INT((J11-1)/Ts_Mths_In_Half)+1&"-"&J9 -> H2-2020 | K14: H2-2020 | L14: H2-2020 | M14: H2-2020 | N14: H1-2021 | O14: H1-2021 | P14: H1-2021 | Q14: H1-2021 | R14: H1-2021 | S14: H1-2021 | T14: H2-2021 | U14: H2-2021 | V14: H2-2021
B16: Payroll Tax
B18: Assumptions
B20: Relief Package Eligibility | I20: =Questionnaire!L61 -> 1
B22: Opening Payroll Tax | I22: =TEXT(Ts_Last_Hist_Mth_End_Date,"mmm-yy")&Ts_Hist_Per_ID -> Mar-20 (H)
B23: Opening Payroll Tax Payable | I23: =OFFSET('FS Opening'!J109,0,DD_Ts_Last_Hist_Mth-1) -> 2000 | J23: =-J78 -> 0 | K23: 0 | L23: 0 | M23: 0 | N23: 0 | O23: 0 | P23: 0 | Q23: 0 | R23: 0 | S23: 0 | T23: 0 | U23: 0 | V23: 0
B24: Payment Delay (Months) | I24: 1
B25: ="% Paid During "&TEXT(EDATE(Ts_Start_Date,DD_Ts_Last_Hist_Mth+I24-1),"mmmm yyyy") -> % Paid During April 2020 | I25: 1
B27: =RevExp!B80 -> Salaries & Wages | J27: =RevExp!J80 -> 0 | K27: =RevExp!K80 -> 17520 | L27: =RevExp!L80 -> 17520 | M27: =RevExp!M80 -> 17520 | N27: =RevExp!N80 -> 17520 | O27: =RevExp!O80 -> 17520 | P27: =RevExp!P80 -> 17520 | Q27: =RevExp!Q80 -> 17520 | R27: =RevExp!R80 -> 17520 | S27: =RevExp!S80 -> 17520 | T27: =RevExp!T80 -> 17520 | U27: =RevExp!U80 -> 17520 | V27: =RevExp!V80 -> 17520
B28: =RevExp!B81 -> Casuals | J28: =RevExp!J81 -> 0 | K28: =RevExp!K81 -> 1095 | L28: =RevExp!L81 -> 1095 | M28: =RevExp!M81 -> 1095 | N28: =RevExp!N81 -> 1095 | O28: =RevExp!O81 -> 1095 | P28: =RevExp!P81 -> 1095 | Q28: =RevExp!Q81 -> 1095 | R28: =RevExp!R81 -> 1095 | S28: =RevExp!S81 -> 1095 | T28: =RevExp!T81 -> 1095 | U28: =RevExp!U81 -> 1095 | V28: =RevExp!V81 -> 1095
B29: Applicable Salaries & Wages | J29: =SUM(J27:J28) -> 0 | K29: 18615 | L29: 18615 | M29: 18615 | N29: 18615 | O29: 18615 | P29: 18615 | Q29: 18615 | R29: 18615 | S29: 18615 | T29: 18615 | U29: 18615 | V29: 18615
B30: Other/Adjustments | J30: 0 | K30: 0 | L30: 0 | M30: 0 | N30: 0 | O30: 0 | P30: 0 | Q30: 0 | R30: 0 | S30: 0 | T30: 0 | U30: 0 | V30: 0
B31: Total Applicable Monthly Salaries & Wages | J31: =IF(J$8<=DD_Ts_Last_Hist_Mth,0,J29+J30) -> 0 | K31: 18615 | L31: 18615 | M31: 18615 | N31: 18615 | O31: 18615 | P31: 18615 | Q31: 18615 | R31: 18615 | S31: 18615 | T31: 18615 | U31: 18615 | V31: 18615
B33: Rates & Payment Timing | I33: Year End
A34: =IFERROR(MATCH(I34,LU_Payroll_Tax_Payroll_Tax_Yr_End_Mth,0),0) -> 6 | B34: Payroll Tax Year | I34: June | J34: =IF(J$8<=DD_Ts_Last_Hist_Mth,0,YEAR(J$7)+IF(MONTH(J$7)>$A$34,1,0)) -> 0 | K34: 2020 | L34: 2020 | M34: 2020 | N34: 2021 | O34: 2021 | P34: 2021 | Q34: 2021 | R34: 2021 | S34: 2021 | T34: 2021 | U34: 2021 | V34: 2021
B35: ="Annual Deduction Threshold ("&Ts_Currency&")" -> Annual Deduction Threshold ($) | J35: 0 | K35: 650000 | L35: 650000 | M35: 650000 | N35: 650000 | O35: 650000 | P35: 650000 | Q35: 650000 | R35: 650000 | S35: 650000 | T35: 650000 | U35: 650000 | V35: 650000
B36: Allocate Annual Deduction Threshold Based On | J36: Months | K36: Months | L36: Months | M36: Months | N36: Months | O36: Months | P36: Months | Q36: Months | R36: Months | S36: Months | T36: Months | U36: Months | V36: Months
B37: Payroll Tax Rate | J37: 0 | K37: 0.0485 | L37: 0.0485 | M37: 0.0485 | N37: 0.0485 | O37: 0.0485 | P37: 0.0485 | Q37: 0.0485 | R37: 0.0485 | S37: 0.0485 | T37: 0.0485 | U37: 0.0485 | V37: 0.0485
B38: Payroll Tax Payment Delay (Months) | J38: 1 | K38: 1 | L38: 1 | M38: 1 | N38: 1 | O38: 1 | P38: 1 | Q38: 1 | R38: 1 | S38: 1 | T38: 1 | U38: 1 | V38: 1
B40: Outputs
B42: Helper Information
B43: Payroll Tax Year Month Number | J43: =IF(J$8<=DD_Ts_Last_Hist_Mth,0,MOD(MONTH(J$7)-$A$34-1,Ts_Mths_In_Yr)+1) -> 0 | K43: 10 | L43: 11 | M43: 12 | N43: 1 | O43: 2 | P43: 3 | Q43: 4 | R43: 5 | S43: 6 | T43: 7 | U43: 8 | V43: 9
B44: Days in Payroll Tax Year | J44: =IF(J$8<=DD_Ts_Last_Hist_Mth,0,EOMONTH(DATE(J34,$A$34,1),0)-EOMONTH(DATE(J34-1,$A$34,1),0)) -> 0 | K44: 366 | L44: 366 | M44: 366 | N44: 365 | O44: 365 | P44: 365 | Q44: 365 | R44: 365 | S44: 365 | T44: 365 | U44: 365 | V44: 365
B45: Days in Month | J45: =IF(J$8<=DD_Ts_Last_Hist_Mth,0,(J$7-J$6+1)) -> 0 | K45: 30 | L45: 31 | M45: 30 | N45: 31 | O45: 31 | P45: 30 | Q45: 31 | R45: 30 | S45: 31 | T45: 31 | U45: 28 | V45: 31
B46: Payroll Tax Year First Period Number | J46: =IF(J$8<=DD_Ts_Last_Hist_Mth,0,MATCH(J34,$J34:J34,0)) -> 0 | K46: =IF(K$8<=DD_Ts_Last_Hist_Mth,0,MATCH(K34,$J34:K34,0)) -> 2 | L46: =IF(L$8<=DD_Ts_Last_Hist_Mth,0,MATCH(L34,$J34:L34,0)) -> 2 | M46: =IF(M$8<=DD_Ts_Last_Hist_Mth,0,MATCH(M34,$J34:M34,0)) -> 2 | N46: =IF(N$8<=DD_Ts_Last_Hist_Mth,0,MATCH(N34,$J34:N34,0)) -> 5 | O46: =IF(O$8<=DD_Ts_Last_Hist_Mth,0,MATCH(O34,$J34:O34,0)) -> 5 | P46: =IF(P$8<=DD_Ts_Last_Hist_Mth,0,MATCH(P34,$J34:P34,0)) -> 5 | Q46: =IF(Q$8<=DD_Ts_Last_Hist_Mth,0,MATCH(Q34,$J34:Q34,0)) -> 5 | R46: =IF(R$8<=DD_Ts_Last_Hist_Mth,0,MATCH(R34,$J34:R34,0)) -> 5 | S46: =IF(S$8<=DD_Ts_Last_Hist_Mth,0,MATCH(S34,$J34:S34,0)) -> 5 | T46: =IF(T$8<=DD_Ts_Last_Hist_Mth,0,MATCH(T34,$J34:T34,0)) -> 5 | U46: =IF(U$8<=DD_Ts_Last_Hist_Mth,0,MATCH(U34,$J34:U34,0)) -> 5 | V46: =IF(V$8<=DD_Ts_Last_Hist_Mth,0,MATCH(V34,$J34:V34,0)) -> 5
B48: Monthly Payroll Tax
B49: Annual Deduction Threshold | J49: =IF(J$8<=DD_Ts_Last_Hist_Mth,0,INDEX($J35:J35,1,J46)/Ts_Denom_Conv_Fact) -> 0 | K49: =IF(K$8<=DD_Ts_Last_Hist_Mth,0,INDEX($J35:K35,1,K46)/Ts_Denom_Conv_Fact) -> 650000 | L49: =IF(L$8<=DD_Ts_Last_Hist_Mth,0,INDEX($J35:L35,1,L46)/Ts_Denom_Conv_Fact) -> 650000 | M49: =IF(M$8<=DD_Ts_Last_Hist_Mth,0,INDEX($J35:M35,1,M46)/Ts_Denom_Conv_Fact) -> 650000 | N49: =IF(N$8<=DD_Ts_Last_Hist_Mth,0,INDEX($J35:N35,1,N46)/Ts_Denom_Conv_Fact) -> 650000 | O49: =IF(O$8<=DD_Ts_Last_Hist_Mth,0,INDEX($J35:O35,1,O46)/Ts_Denom_Conv_Fact) -> 650000 | P49: =IF(P$8<=DD_Ts_Last_Hist_Mth,0,INDEX($J35:P35,1,P46)/Ts_Denom_Conv_Fact) -> 650000 | Q49: =IF(Q$8<=DD_Ts_Last_Hist_Mth,0,INDEX($J35:Q35,1,Q46)/Ts_Denom_Conv_Fact) -> 650000 | R49: =IF(R$8<=DD_Ts_Last_Hist_Mth,0,INDEX($J35:R35,1,R46)/Ts_Denom_Conv_Fact) -> 650000 | S49: =IF(S$8<=DD_Ts_Last_Hist_Mth,0,INDEX($J35:S35,1,S46)/Ts_Denom_Conv_Fact) -> 650000 | T49: =IF(T$8<=DD_Ts_Last_Hist_Mth,0,INDEX($J35:T35,1,T46)/Ts_Denom_Conv_Fact) -> 650000 | U49: =IF(U$8<=DD_Ts_Last_Hist_Mth,0,INDEX($J35:U35,1,U46)/Ts_Denom_Conv_Fact) -> 650000 | V49: =IF(V$8<=DD_Ts_Last_Hist_Mth,0,INDEX($J35:V35,1,V46)/Ts_Denom_Conv_Fact) -> 650000
B50: =B36 -> Allocate Annual Deduction Threshold Based On | J50: =IF(J$8<=DD_Ts_Last_Hist_Mth,"-",INDEX($J36:J36,1,J46)) -> - | K50: =IF(K$8<=DD_Ts_Last_Hist_Mth,"-",INDEX($J36:K36,1,K46)) -> Months | L50: =IF(L$8<=DD_Ts_Last_Hist_Mth,"-",INDEX($J36:L36,1,L46)) -> Months | M50: =IF(M$8<=DD_Ts_Last_Hist_Mth,"-",INDEX($J36:M36,1,M46)) -> Months | N50: =IF(N$8<=DD_Ts_Last_Hist_Mth,"-",INDEX($J36:N36,1,N46)) -> Months | O50: =IF(O$8<=DD_Ts_Last_Hist_Mth,"-",INDEX($J36:O36,1,O46)) -> Months | P50: =IF(P$8<=DD_Ts_Last_Hist_Mth,"-",INDEX($J36:P36,1,P46)) -> Months | Q50: =IF(Q$8<=DD_Ts_Last_Hist_Mth,"-",INDEX($J36:Q36,1,Q46)) -> Months | R50: =IF(R$8<=DD_Ts_Last_Hist_Mth,"-",INDEX($J36:R36,1,R46)) -> Months | S50: =IF(S$8<=DD_Ts_Last_Hist_Mth,"-",INDEX($J36:S36,1,S46)) -> Months | T50: =IF(T$8<=DD_Ts_Last_Hist_Mth,"-",INDEX($J36:T36,1,T46)) -> Months | U50: =IF(U$8<=DD_Ts_Last_Hist_Mth,"-",INDEX($J36:U36,1,U46)) -> Months | V50: =IF(V$8<=DD_Ts_Last_Hist_Mth,"-",INDEX($J36:V36,1,V46)) -> Months
B51: Equivalent Monthly Deduction Threshold | J51: =IF(J$8<=DD_Ts_Last_Hist_Mth,0,J49*IF(J50=Payroll_Tax_Threshold_Alloc_Meth_Days,J45/J44,1/Ts_Mths_In_Yr)) -> 0 | K51: 54166.66667 | L51: 54166.66667 | M51: 54166.66667 | N51: 54166.66667 | O51: 54166.66667 | P51: 54166.66667 | Q51: 54166.66667 | R51: 54166.66667 | S51: 54166.66667 | T51: 54166.66667 | U51: 54166.66667 | V51: 54166.66667
B52: Post-Deduction Applicable Monthly Salaries & Wages | J52: =IF(J$8<=DD_Ts_Last_Hist_Mth,0,MAX(0,J31-J51)) -> 0 | K52: 0 | L52: 0 | M52: 0 | N52: 0 | O52: 0 | P52: 0 | Q52: 0 | R52: 0 | S52: 0 | T52: 0 | U52: 0 | V52: 0
B53: =B37 -> Payroll Tax Rate | J53: =IF(J$8<=DD_Ts_Last_Hist_Mth,0,INDEX($J37:J37,1,J46)) -> 0 | K53: =IF(K$8<=DD_Ts_Last_Hist_Mth,0,INDEX($J37:K37,1,K46)) -> 0.0485 | L53: =IF(L$8<=DD_Ts_Last_Hist_Mth,0,INDEX($J37:L37,1,L46)) -> 0.0485 | M53: =IF(M$8<=DD_Ts_Last_Hist_Mth,0,INDEX($J37:M37,1,M46)) -> 0.0485 | N53: =IF(N$8<=DD_Ts_Last_Hist_Mth,0,INDEX($J37:N37,1,N46)) -> 0.0485 | O53: =IF(O$8<=DD_Ts_Last_Hist_Mth,0,INDEX($J37:O37,1,O46)) -> 0.0485 | P53: =IF(P$8<=DD_Ts_Last_Hist_Mth,0,INDEX($J37:P37,1,P46)) -> 0.0485 | Q53: =IF(Q$8<=DD_Ts_Last_Hist_Mth,0,INDEX($J37:Q37,1,Q46)) -> 0.0485 | R53: =IF(R$8<=DD_Ts_Last_Hist_Mth,0,INDEX($J37:R37,1,R46)) -> 0.0485 | S53: =IF(S$8<=DD_Ts_Last_Hist_Mth,0,INDEX($J37:S37,1,S46)) -> 0.0485 | T53: =IF(T$8<=DD_Ts_Last_Hist_Mth,0,INDEX($J37:T37,1,T46)) -> 0.0485 | U53: =IF(U$8<=DD_Ts_Last_Hist_Mth,0,INDEX($J37:U37,1,U46)) -> 0.0485 | V53: =IF(V$8<=DD_Ts_Last_Hist_Mth,0,INDEX($J37:V37,1,V46)) -> 0.0485
B54: =B48&" Payable" -> Monthly Payroll Tax Payable | J54: =IF(J$8<=DD_Ts_Last_Hist_Mth,0,J52*J53) -> 0 | K54: 0 | L54: 0 | M54: 0 | N54: 0 | O54: 0 | P54: 0 | Q54: 0 | R54: 0 | S54: 0 | T54: 0 | U54: 0 | V54: 0
B55: =B38 -> Payroll Tax Payment Delay (Months) | J55: =IF(J$8<=DD_Ts_Last_Hist_Mth,0,INDEX($J38:J38,1,J46)) -> 0 | K55: =IF(K$8<=DD_Ts_Last_Hist_Mth,0,INDEX($J38:K38,1,K46)) -> 1 | L55: =IF(L$8<=DD_Ts_Last_Hist_Mth,0,INDEX($J38:L38,1,L46)) -> 1 | M55: =IF(M$8<=DD_Ts_Last_Hist_Mth,0,INDEX($J38:M38,1,M46)) -> 1 | N55: =IF(N$8<=DD_Ts_Last_Hist_Mth,0,INDEX($J38:N38,1,N46)) -> 1 | O55: =IF(O$8<=DD_Ts_Last_Hist_Mth,0,INDEX($J38:O38,1,O46)) -> 1 | P55: =IF(P$8<=DD_Ts_Last_Hist_Mth,0,INDEX($J38:P38,1,P46)) -> 1 | Q55: =IF(Q$8<=DD_Ts_Last_Hist_Mth,0,INDEX($J38:Q38,1,Q46)) -> 1 | R55: =IF(R$8<=DD_Ts_Last_Hist_Mth,0,INDEX($J38:R38,1,R46)) -> 1 | S55: =IF(S$8<=DD_Ts_Last_Hist_Mth,0,INDEX($J38:S38,1,S46)) -> 1 | T55: =IF(T$8<=DD_Ts_Last_Hist_Mth,0,INDEX($J38:T38,1,T46)) -> 1 | U55: =IF(U$8<=DD_Ts_Last_Hist_Mth,0,INDEX($J38:U38,1,U46)) -> 1 | V55: =IF(V$8<=DD_Ts_Last_Hist_Mth,0,INDEX($J38:V38,1,V46)) -> 1
B56: Monthly Payroll Tax - Payment Month | J56: =IF(J$8<=DD_Ts_Last_Hist_Mth,0,EDATE(J$6,1+J55)-1) -> 00:00:00 | K56: 2020-05-31 | L56: 2020-06-30 | M56: 2020-07-31 | N56: 2020-08-31 | O56: 2020-09-30 | P56: 2020-10-31 | Q56: 2020-11-30 | R56: 2020-12-31 | S56: 2021-01-31 | T56: 2021-02-28 | U56: 2021-03-31 | V56: 2021-04-30
B57: Monthly Payroll Tax Payment | H57: Note: Manual | J57: =IF(OR($I$20<>0,J$8<=DD_Ts_Last_Hist_Mth),0,SUMIF($J56:J56,J$7,$J54:J54)) -> 0 | K57: =IF(OR($I$20<>0,K$8<=DD_Ts_Last_Hist_Mth),0,SUMIF($J56:K56,K$7,$J54:K54)) -> 0 | L57: =IF(OR($I$20<>0,L$8<=DD_Ts_Last_Hist_Mth),0,SUMIF($J56:L56,L$7,$J54:L54)) -> 0 | M57: =IF(OR($I$20<>0,M$8<=DD_Ts_Last_Hist_Mth),0,SUMIF($J56:M56,M$7,$J54:M54)) -> 0 | N57: =IF(OR($I$20<>0,N$8<=DD_Ts_Last_Hist_Mth),0,SUMIF($J56:N56,N$7,$J54:N54)) -> 0 | O57: =IF(OR($I$20<>0,O$8<=DD_Ts_Last_Hist_Mth),0,SUMIF($J56:O56,O$7,$J54:O54)) -> 0 | P57: =IF(OR($I$20<>0,P$8<=DD_Ts_Last_Hist_Mth),0,SUMIF($J56:P56,P$7,$J54:P54)) -> 0 | Q57: =IF(OR($I$20<>0,Q$8<=DD_Ts_Last_Hist_Mth),0,SUMIF($J56:Q56,Q$7,$J54:Q54)) -> 0 | R57: =IF(OR($I$20<>0,R$8<=DD_Ts_Last_Hist_Mth),0,SUMIF($J56:R56,R$7,$J54:R54)) -> 0 | S57: =IF(OR($I$20<>0,S$8<=DD_Ts_Last_Hist_Mth),0,SUMIF($J56:S56,S$7,$J54:S54)) -> 0 | T57: =IF(OR($I$20<>0,T$8<=DD_Ts_Last_Hist_Mth),0,SUMIF($J56:T56,T$7,$J54:T54)) -> 0 | U57: =IF(OR($I$20<>0,U$8<=DD_Ts_Last_Hist_Mth),0,SUMIF($J56:U56,U$7,$J54:U54)) -> 0 | V57: =IF(OR($I$20<>0,V$8<=DD_Ts_Last_Hist_Mth),0,SUMIF($J56:V56,V$7,$J54:V54)) -> 0
B59: Annual Payroll Tax Reconciliation
B60: Reconciliation Period | J60: =IF(J$8<=DD_Ts_Last_Hist_Mth,"-",IF(J43=Ts_Mths_In_Yr,Payroll_Tax_Yes,Payroll_Tax_No)) -> - | K60: No | L60: No | M60: Yes | N60: No | O60: No | P60: No | Q60: No | R60: No | S60: No | T60: No | U60: No | V60: No
B61: Months in Reconciliation Period | J61: =IF(J$8<=DD_Ts_Last_Hist_Mth,0,IF(J60=Payroll_Tax_No,0,COUNTIF($J34:J34,J34))) -> 0 | K61: =IF(K$8<=DD_Ts_Last_Hist_Mth,0,IF(K60=Payroll_Tax_No,0,COUNTIF($J34:K34,K34))) -> 0 | L61: =IF(L$8<=DD_Ts_Last_Hist_Mth,0,IF(L60=Payroll_Tax_No,0,COUNTIF($J34:L34,L34))) -> 0 | M61: =IF(M$8<=DD_Ts_Last_Hist_Mth,0,IF(M60=Payroll_Tax_No,0,COUNTIF($J34:M34,M34))) -> 3 | N61: =IF(N$8<=DD_Ts_Last_Hist_Mth,0,IF(N60=Payroll_Tax_No,0,COUNTIF($J34:N34,N34))) -> 0 | O61: =IF(O$8<=DD_Ts_Last_Hist_Mth,0,IF(O60=Payroll_Tax_No,0,COUNTIF($J34:O34,O34))) -> 0 | P61: =IF(P$8<=DD_Ts_Last_Hist_Mth,0,IF(P60=Payroll_Tax_No,0,COUNTIF($J34:P34,P34))) -> 0 | Q61: =IF(Q$8<=DD_Ts_Last_Hist_Mth,0,IF(Q60=Payroll_Tax_No,0,COUNTIF($J34:Q34,Q34))) -> 0 | R61: =IF(R$8<=DD_Ts_Last_Hist_Mth,0,IF(R60=Payroll_Tax_No,0,COUNTIF($J34:R34,R34))) -> 0 | S61: =IF(S$8<=DD_Ts_Last_Hist_Mth,0,IF(S60=Payroll_Tax_No,0,COUNTIF($J34:S34,S34))) -> 0 | T61: =IF(T$8<=DD_Ts_Last_Hist_Mth,0,IF(T60=Payroll_Tax_No,0,COUNTIF($J34:T34,T34))) -> 0 | U61: =IF(U$8<=DD_Ts_Last_Hist_Mth,0,IF(U60=Payroll_Tax_No,0,COUNTIF($J34:U34,U34))) -> 0 | V61: =IF(V$8<=DD_Ts_Last_Hist_Mth,0,IF(V60=Payroll_Tax_No,0,COUNTIF($J34:V34,V34))) -> 0
B62: Total Applicable Annual Salaries & Wages | J62: =IF(J$8<=DD_Ts_Last_Hist_Mth,0,IF(J60=Payroll_Tax_No,0,SUMIF($J34:J34,J34,$J31:J31))) -> 0 | K62: =IF(K$8<=DD_Ts_Last_Hist_Mth,0,IF(K60=Payroll_Tax_No,0,SUMIF($J34:K34,K34,$J31:K31))) -> 0 | L62: =IF(L$8<=DD_Ts_Last_Hist_Mth,0,IF(L60=Payroll_Tax_No,0,SUMIF($J34:L34,L34,$J31:L31))) -> 0 | M62: =IF(M$8<=DD_Ts_Last_Hist_Mth,0,IF(M60=Payroll_Tax_No,0,SUMIF($J34:M34,M34,$J31:M31))) -> 55845 | N62: =IF(N$8<=DD_Ts_Last_Hist_Mth,0,IF(N60=Payroll_Tax_No,0,SUMIF($J34:N34,N34,$J31:N31))) -> 0 | O62: =IF(O$8<=DD_Ts_Last_Hist_Mth,0,IF(O60=Payroll_Tax_No,0,SUMIF($J34:O34,O34,$J31:O31))) -> 0 | P62: =IF(P$8<=DD_Ts_Last_Hist_Mth,0,IF(P60=Payroll_Tax_No,0,SUMIF($J34:P34,P34,$J31:P31))) -> 0 | Q62: =IF(Q$8<=DD_Ts_Last_Hist_Mth,0,IF(Q60=Payroll_Tax_No,0,SUMIF($J34:Q34,Q34,$J31:Q31))) -> 0 | R62: =IF(R$8<=DD_Ts_Last_Hist_Mth,0,IF(R60=Payroll_Tax_No,0,SUMIF($J34:R34,R34,$J31:R31))) -> 0 | S62: =IF(S$8<=DD_Ts_Last_Hist_Mth,0,IF(S60=Payroll_Tax_No,0,SUMIF($J34:S34,S34,$J31:S31))) -> 0 | T62: =IF(T$8<=DD_Ts_Last_Hist_Mth,0,IF(T60=Payroll_Tax_No,0,SUMIF($J34:T34,T34,$J31:T31))) -> 0 | U62: =IF(U$8<=DD_Ts_Last_Hist_Mth,0,IF(U60=Payroll_Tax_No,0,SUMIF($J34:U34,U34,$J31:U31))) -> 0 | V62: =IF(V$8<=DD_Ts_Last_Hist_Mth,0,IF(V60=Payroll_Tax_No,0,SUMIF($J34:V34,V34,$J31:V31))) -> 0
B63: =B49 -> Annual Deduction Threshold | J63: =IF(J$8<=DD_Ts_Last_Hist_Mth,0,IF(J60=Payroll_Tax_No,0,J49)) -> 0 | K63: 0 | L63: 0 | M63: 650000 | N63: 0 | O63: 0 | P63: 0 | Q63: 0 | R63: 0 | S63: 0 | T63: 0 | U63: 0 | V63: 0
B64: =B36 -> Allocate Annual Deduction Threshold Based On | J64: =IF(J$8<=DD_Ts_Last_Hist_Mth,"-",IF(J60=Payroll_Tax_No,"-",J50)) -> - | K64: - | L64: - | M64: Months | N64: - | O64: - | P64: - | Q64: - | R64: - | S64: - | T64: - | U64: - | V64: -
B65: Partial Year-Adjusted Threshold | J65: =IF(J$8<=DD_Ts_Last_Hist_Mth,0,IF(J60=Payroll_Tax_No,0,J63*IF(J64=Payroll_Tax_Threshold_Alloc_Meth_Days,SUMIF($J34:J34,J34,$J45:J45)/J44,J61/Ts_Mths_In_Yr))) -> 0 | K65: =IF(K$8<=DD_Ts_Last_Hist_Mth,0,IF(K60=Payroll_Tax_No,0,K63*IF(K64=Payroll_Tax_Threshold_Alloc_Meth_Days,SUMIF($J34:K34,K34,$J45:K45)/K44,K61/Ts_Mths_In_Yr))) -> 0 | L65: =IF(L$8<=DD_Ts_Last_Hist_Mth,0,IF(L60=Payroll_Tax_No,0,L63*IF(L64=Payroll_Tax_Threshold_Alloc_Meth_Days,SUMIF($J34:L34,L34,$J45:L45)/L44,L61/Ts_Mths_In_Yr))) -> 0 | M65: =IF(M$8<=DD_Ts_Last_Hist_Mth,0,IF(M60=Payroll_Tax_No,0,M63*IF(M64=Payroll_Tax_Threshold_Alloc_Meth_Days,SUMIF($J34:M34,M34,$J45:M45)/M44,M61/Ts_Mths_In_Yr))) -> 162500 | N65: =IF(N$8<=DD_Ts_Last_Hist_Mth,0,IF(N60=Payroll_Tax_No,0,N63*IF(N64=Payroll_Tax_Threshold_Alloc_Meth_Days,SUMIF($J34:N34,N34,$J45:N45)/N44,N61/Ts_Mths_In_Yr))) -> 0 | O65: =IF(O$8<=DD_Ts_Last_Hist_Mth,0,IF(O60=Payroll_Tax_No,0,O63*IF(O64=Payroll_Tax_Threshold_Alloc_Meth_Days,SUMIF($J34:O34,O34,$J45:O45)/O44,O61/Ts_Mths_In_Yr))) -> 0 | P65: =IF(P$8<=DD_Ts_Last_Hist_Mth,0,IF(P60=Payroll_Tax_No,0,P63*IF(P64=Payroll_Tax_Threshold_Alloc_Meth_Days,SUMIF($J34:P34,P34,$J45:P45)/P44,P61/Ts_Mths_In_Yr))) -> 0 | Q65: =IF(Q$8<=DD_Ts_Last_Hist_Mth,0,IF(Q60=Payroll_Tax_No,0,Q63*IF(Q64=Payroll_Tax_Threshold_Alloc_Meth_Days,SUMIF($J34:Q34,Q34,$J45:Q45)/Q44,Q61/Ts_Mths_In_Yr))) -> 0 | R65: =IF(R$8<=DD_Ts_Last_Hist_Mth,0,IF(R60=Payroll_Tax_No,0,R63*IF(R64=Payroll_Tax_Threshold_Alloc_Meth_Days,SUMIF($J34:R34,R34,$J45:R45)/R44,R61/Ts_Mths_In_Yr))) -> 0 | S65: =IF(S$8<=DD_Ts_Last_Hist_Mth,0,IF(S60=Payroll_Tax_No,0,S63*IF(S64=Payroll_Tax_Threshold_Alloc_Meth_Days,SUMIF($J34:S34,S34,$J45:S45)/S44,S61/Ts_Mths_In_Yr))) -> 0 | T65: =IF(T$8<=DD_Ts_Last_Hist_Mth,0,IF(T60=Payroll_Tax_No,0,T63*IF(T64=Payroll_Tax_Threshold_Alloc_Meth_Days,SUMIF($J34:T34,T34,$J45:T45)/T44,T61/Ts_Mths_In_Yr))) -> 0 | U65: =IF(U$8<=DD_Ts_Last_Hist_Mth,0,IF(U60=Payroll_Tax_No,0,U63*IF(U64=Payroll_Tax_Threshold_Alloc_Meth_Days,SUMIF($J34:U34,U34,$J45:U45)/U44,U61/Ts_Mths_In_Yr))) -> 0 | V65: =IF(V$8<=DD_Ts_Last_Hist_Mth,0,IF(V60=Payroll_Tax_No,0,V63*IF(V64=Payroll_Tax_Threshold_Alloc_Meth_Days,SUMIF($J34:V34,V34,$J45:V45)/V44,V61/Ts_Mths_In_Yr))) -> 0
B66: Post-Deduction Applicable Annual Salaries & Wages | J66: =IF(J$8<=DD_Ts_Last_Hist_Mth,0,IF(J60=Payroll_Tax_No,0,MAX(0,J62-J65))) -> 0 | K66: 0 | L66: 0 | M66: 0 | N66: 0 | O66: 0 | P66: 0 | Q66: 0 | R66: 0 | S66: 0 | T66: 0 | U66: 0 | V66: 0
B67: =B37 -> Payroll Tax Rate | J67: =IF(J$8<=DD_Ts_Last_Hist_Mth,0,IF(J60=Payroll_Tax_No,0,J53)) -> 0 | K67: 0 | L67: 0 | M67: 0.0485 | N67: 0 | O67: 0 | P67: 0 | Q67: 0 | R67: 0 | S67: 0 | T67: 0 | U67: 0 | V67: 0
B68: Annual Payroll Tax Payable | J68: =IF(J$8<=DD_Ts_Last_Hist_Mth,0,IF(J60=Payroll_Tax_No,0,J66*J67)) -> 0 | K68: 0 | L68: 0 | M68: 0 | N68: 0 | O68: 0 | P68: 0 | Q68: 0 | R68: 0 | S68: 0 | T68: 0 | U68: 0 | V68: 0
B69: ="(Less) Total "&B54 -> (Less) Total Monthly Payroll Tax Payable | J69: =IF(J$8<=DD_Ts_Last_Hist_Mth,0,IF(J60=Payroll_Tax_No,0,-SUMIF($J34:J34,J34,$J54:J54))) -> 0 | K69: =IF(K$8<=DD_Ts_Last_Hist_Mth,0,IF(K60=Payroll_Tax_No,0,-SUMIF($J34:K34,K34,$J54:K54))) -> 0 | L69: =IF(L$8<=DD_Ts_Last_Hist_Mth,0,IF(L60=Payroll_Tax_No,0,-SUMIF($J34:L34,L34,$J54:L54))) -> 0 | M69: =IF(M$8<=DD_Ts_Last_Hist_Mth,0,IF(M60=Payroll_Tax_No,0,-SUMIF($J34:M34,M34,$J54:M54))) -> 0 | N69: =IF(N$8<=DD_Ts_Last_Hist_Mth,0,IF(N60=Payroll_Tax_No,0,-SUMIF($J34:N34,N34,$J54:N54))) -> 0 | O69: =IF(O$8<=DD_Ts_Last_Hist_Mth,0,IF(O60=Payroll_Tax_No,0,-SUMIF($J34:O34,O34,$J54:O54))) -> 0 | P69: =IF(P$8<=DD_Ts_Last_Hist_Mth,0,IF(P60=Payroll_Tax_No,0,-SUMIF($J34:P34,P34,$J54:P54))) -> 0 | Q69: =IF(Q$8<=DD_Ts_Last_Hist_Mth,0,IF(Q60=Payroll_Tax_No,0,-SUMIF($J34:Q34,Q34,$J54:Q54))) -> 0 | R69: =IF(R$8<=DD_Ts_Last_Hist_Mth,0,IF(R60=Payroll_Tax_No,0,-SUMIF($J34:R34,R34,$J54:R54))) -> 0 | S69: =IF(S$8<=DD_Ts_Last_Hist_Mth,0,IF(S60=Payroll_Tax_No,0,-SUMIF($J34:S34,S34,$J54:S54))) -> 0 | T69: =IF(T$8<=DD_Ts_Last_Hist_Mth,0,IF(T60=Payroll_Tax_No,0,-SUMIF($J34:T34,T34,$J54:T54))) -> 0 | U69: =IF(U$8<=DD_Ts_Last_Hist_Mth,0,IF(U60=Payroll_Tax_No,0,-SUMIF($J34:U34,U34,$J54:U54))) -> 0 | V69: =IF(V$8<=DD_Ts_Last_Hist_Mth,0,IF(V60=Payroll_Tax_No,0,-SUMIF($J34:V34,V34,$J54:V54))) -> 0
B70: Reconciliation Payroll Tax Payable/(Receivable) | J70: =IF(J$8<=DD_Ts_Last_Hist_Mth,0,IF(J60=Payroll_Tax_No,0,SUM(J68:J69))) -> 0 | K70: 0 | L70: 0 | M70: 0 | N70: 0 | O70: 0 | P70: 0 | Q70: 0 | R70: 0 | S70: 0 | T70: 0 | U70: 0 | V70: 0
B71: =B38 -> Payroll Tax Payment Delay (Months) | J71: =IF(J$8<=DD_Ts_Last_Hist_Mth,0,IF(J60=Payroll_Tax_No,0,J55)) -> 0 | K71: 0 | L71: 0 | M71: 1 | N71: 0 | O71: 0 | P71: 0 | Q71: 0 | R71: 0 | S71: 0 | T71: 0 | U71: 0 | V71: 0
B72: Annual Reconciliation - Payment/Receipt Month | J72: =IF(J$8<=DD_Ts_Last_Hist_Mth,0,IF(J60=Payroll_Tax_No,0,EDATE(J$6,1+J71)-1)) -> 00:00:00 | K72: 00:00:00 | L72: 00:00:00 | M72: 2020-07-31 | N72: 00:00:00 | O72: 00:00:00 | P72: 00:00:00 | Q72: 00:00:00 | R72: 00:00:00 | S72: 00:00:00 | T72: 00:00:00 | U72: 00:00:00 | V72: 00:00:00
B73: Payroll Tax Reconciliations - Payroll Tax Paid | J73: =IF(J$8<=DD_Ts_Last_Hist_Mth,0,SUMIF($J72:J72,J$7,$J70:J70)) -> 0 | K73: =IF(K$8<=DD_Ts_Last_Hist_Mth,0,SUMIF($J72:K72,K$7,$J70:K70)) -> 0 | L73: =IF(L$8<=DD_Ts_Last_Hist_Mth,0,SUMIF($J72:L72,L$7,$J70:L70)) -> 0 | M73: =IF(M$8<=DD_Ts_Last_Hist_Mth,0,SUMIF($J72:M72,M$7,$J70:M70)) -> 0 | N73: =IF(N$8<=DD_Ts_Last_Hist_Mth,0,SUMIF($J72:N72,N$7,$J70:N70)) -> 0 | O73: =IF(O$8<=DD_Ts_Last_Hist_Mth,0,SUMIF($J72:O72,O$7,$J70:O70)) -> 0 | P73: =IF(P$8<=DD_Ts_Last_Hist_Mth,0,SUMIF($J72:P72,P$7,$J70:P70)) -> 0 | Q73: =IF(Q$8<=DD_Ts_Last_Hist_Mth,0,SUMIF($J72:Q72,Q$7,$J70:Q70)) -> 0 | R73: =IF(R$8<=DD_Ts_Last_Hist_Mth,0,SUMIF($J72:R72,R$7,$J70:R70)) -> 0 | S73: =IF(S$8<=DD_Ts_Last_Hist_Mth,0,SUMIF($J72:S72,S$7,$J70:S70)) -> 0 | T73: =IF(T$8<=DD_Ts_Last_Hist_Mth,0,SUMIF($J72:T72,T$7,$J70:T70)) -> 0 | U73: =IF(U$8<=DD_Ts_Last_Hist_Mth,0,SUMIF($J72:U72,U$7,$J70:U70)) -> 0 | V73: =IF(V$8<=DD_Ts_Last_Hist_Mth,0,SUMIF($J72:V72,V$7,$J70:V70)) -> 0
B75: Forecast Summary
B76: Opening Balance | J76: =IF(J$8<=DD_Ts_Last_Hist_Mth,0,IF(J$8=DD_Ts_Last_Hist_Mth+1,$I$23,I81)) -> 0 | K76: 2000 | L76: 2000 | M76: 2000 | N76: 2000 | O76: 2000 | P76: 2000 | Q76: 2000 | R76: 2000 | S76: 2000 | T76: 2000 | U76: 2000 | V76: 2000
B77: Payroll Tax Payable - Created During Period | J77: =IF(J$8<=DD_Ts_Last_Hist_Mth,0,J54+J70) -> 0 | K77: 0 | L77: 0 | M77: 0 | N77: 0 | O77: 0 | P77: 0 | Q77: 0 | R77: 0 | S77: 0 | T77: 0 | U77: 0 | V77: 0
C78: Opening Payroll Tax Payable - Payments | H78: Note: Manual | J78: =IF(OR($I$20<>0,J$8<=DD_Ts_Last_Hist_Mth),0,IF(J$8=DD_Ts_Last_Hist_Mth+$I$24,-OFFSET($J76,0,DD_Ts_Last_Hist_Mth)*$I$25,IF(J$8=DD_Ts_Last_Hist_Mth+$I$24+1,-(OFFSET($J76,0,DD_Ts_Last_Hist_Mth)+SUM($I78:I78)),0))) -> 0 | K78: =IF(OR($I$20<>0,K$8<=DD_Ts_Last_Hist_Mth),0,IF(K$8=DD_Ts_Last_Hist_Mth+$I$24,-OFFSET($J76,0,DD_Ts_Last_Hist_Mth)*$I$25,IF(K$8=DD_Ts_Last_Hist_Mth+$I$24+1,-(OFFSET($J76,0,DD_Ts_Last_Hist_Mth)+SUM($I78:J78)),0))) -> 0 | L78: =IF(OR($I$20<>0,L$8<=DD_Ts_Last_Hist_Mth),0,IF(L$8=DD_Ts_Last_Hist_Mth+$I$24,-OFFSET($J76,0,DD_Ts_Last_Hist_Mth)*$I$25,IF(L$8=DD_Ts_Last_Hist_Mth+$I$24+1,-(OFFSET($J76,0,DD_Ts_Last_Hist_Mth)+SUM($I78:K78)),0))) -> 0 | M78: =IF(OR($I$20<>0,M$8<=DD_Ts_Last_Hist_Mth),0,IF(M$8=DD_Ts_Last_Hist_Mth+$I$24,-OFFSET($J76,0,DD_Ts_Last_Hist_Mth)*$I$25,IF(M$8=DD_Ts_Last_Hist_Mth+$I$24+1,-(OFFSET($J76,0,DD_Ts_Last_Hist_Mth)+SUM($I78:L78)),0))) -> 0 | N78: =IF(OR($I$20<>0,N$8<=DD_Ts_Last_Hist_Mth),0,IF(N$8=DD_Ts_Last_Hist_Mth+$I$24,-OFFSET($J76,0,DD_Ts_Last_Hist_Mth)*$I$25,IF(N$8=DD_Ts_Last_Hist_Mth+$I$24+1,-(OFFSET($J76,0,DD_Ts_Last_Hist_Mth)+SUM($I78:M78)),0))) -> 0 | O78: =IF(OR($I$20<>0,O$8<=DD_Ts_Last_Hist_Mth),0,IF(O$8=DD_Ts_Last_Hist_Mth+$I$24,-OFFSET($J76,0,DD_Ts_Last_Hist_Mth)*$I$25,IF(O$8=DD_Ts_Last_Hist_Mth+$I$24+1,-(OFFSET($J76,0,DD_Ts_Last_Hist_Mth)+SUM($I78:N78)),0))) -> 0 | P78: =IF(OR($I$20<>0,P$8<=DD_Ts_Last_Hist_Mth),0,IF(P$8=DD_Ts_Last_Hist_Mth+$I$24,-OFFSET($J76,0,DD_Ts_Last_Hist_Mth)*$I$25,IF(P$8=DD_Ts_Last_Hist_Mth+$I$24+1,-(OFFSET($J76,0,DD_Ts_Last_Hist_Mth)+SUM($I78:O78)),0))) -> 0 | Q78: =IF(OR($I$20<>0,Q$8<=DD_Ts_Last_Hist_Mth),0,IF(Q$8=DD_Ts_Last_Hist_Mth+$I$24,-OFFSET($J76,0,DD_Ts_Last_Hist_Mth)*$I$25,IF(Q$8=DD_Ts_Last_Hist_Mth+$I$24+1,-(OFFSET($J76,0,DD_Ts_Last_Hist_Mth)+SUM($I78:P78)),0))) -> 0 | R78: =IF(OR($I$20<>0,R$8<=DD_Ts_Last_Hist_Mth),0,IF(R$8=DD_Ts_Last_Hist_Mth+$I$24,-OFFSET($J76,0,DD_Ts_Last_Hist_Mth)*$I$25,IF(R$8=DD_Ts_Last_Hist_Mth+$I$24+1,-(OFFSET($J76,0,DD_Ts_Last_Hist_Mth)+SUM($I78:Q78)),0))) -> 0 | S78: =IF(OR($I$20<>0,S$8<=DD_Ts_Last_Hist_Mth),0,IF(S$8=DD_Ts_Last_Hist_Mth+$I$24,-OFFSET($J76,0,DD_Ts_Last_Hist_Mth)*$I$25,IF(S$8=DD_Ts_Last_Hist_Mth+$I$24+1,-(OFFSET($J76,0,DD_Ts_Last_Hist_Mth)+SUM($I78:R78)),0))) -> 0 | T78: =IF(OR($I$20<>0,T$8<=DD_Ts_Last_Hist_Mth),0,IF(T$8=DD_Ts_Last_Hist_Mth+$I$24,-OFFSET($J76,0,DD_Ts_Last_Hist_Mth)*$I$25,IF(T$8=DD_Ts_Last_Hist_Mth+$I$24+1,-(OFFSET($J76,0,DD_Ts_Last_Hist_Mth)+SUM($I78:S78)),0))) -> 0 | U78: =IF(OR($I$20<>0,U$8<=DD_Ts_Last_Hist_Mth),0,IF(U$8=DD_Ts_Last_Hist_Mth+$I$24,-OFFSET($J76,0,DD_Ts_Last_Hist_Mth)*$I$25,IF(U$8=DD_Ts_Last_Hist_Mth+$I$24+1,-(OFFSET($J76,0,DD_Ts_Last_Hist_Mth)+SUM($I78:T78)),0))) -> 0 | V78: =IF(OR($I$20<>0,V$8<=DD_Ts_Last_Hist_Mth),0,IF(V$8=DD_Ts_Last_Hist_Mth+$I$24,-OFFSET($J76,0,DD_Ts_Last_Hist_Mth)*$I$25,IF(V$8=DD_Ts_Last_Hist_Mth+$I$24+1,-(OFFSET($J76,0,DD_Ts_Last_Hist_Mth)+SUM($I78:U78)),0))) -> 0
C79: Periodic Payroll Tax Payable - Payments | J79: =IF(J$8<=DD_Ts_Last_Hist_Mth,0,-J57-J73) -> 0 | K79: 0 | L79: 0 | M79: 0 | N79: 0 | O79: 0 | P79: 0 | Q79: 0 | R79: 0 | S79: 0 | T79: 0 | U79: 0 | V79: 0
B80: Payroll Tax Payable - Paid During Period | J80: =IF(J$8<=DD_Ts_Last_Hist_Mth,0,SUM(J78:J79)) -> 0 | K80: 0 | L80: 0 | M80: 0 | N80: 0 | O80: 0 | P80: 0 | Q80: 0 | R80: 0 | S80: 0 | T80: 0 | U80: 0 | V80: 0
B81: Closing Payroll Tax Payable | J81: =IF(J$8<=DD_Ts_Last_Hist_Mth,0,SUM(J76:J77,J80)) -> 0 | K81: 2000 | L81: 2000 | M81: 2000 | N81: 2000 | O81: 2000 | P81: 2000 | Q81: 2000 | R81: 2000 | S81: 2000 | T81: 2000 | U81: 2000 | V81: 2000
B83: Summary
B85: =B76 -> Opening Balance | J85: =IF(J$8<=DD_Ts_Last_Hist_Mth,I88,J76) -> 0 | K85: 2000 | L85: 2000 | M85: 2000 | N85: 2000 | O85: 2000 | P85: 2000 | Q85: 2000 | R85: 2000 | S85: 2000 | T85: 2000 | U85: 2000 | V85: 2000
B86: =B77 -> Payroll Tax Payable - Created During Period | J86: =IF(J$8<=DD_Ts_Last_Hist_Mth,'FS Opening'!J34,J77) -> 0 | K86: =IF(K$8<=DD_Ts_Last_Hist_Mth,'FS Opening'!K34,K77) -> 0 | L86: =IF(L$8<=DD_Ts_Last_Hist_Mth,'FS Opening'!L34,L77) -> 0 | M86: =IF(M$8<=DD_Ts_Last_Hist_Mth,'FS Opening'!M34,M77) -> 0 | N86: =IF(N$8<=DD_Ts_Last_Hist_Mth,'FS Opening'!N34,N77) -> 0 | O86: =IF(O$8<=DD_Ts_Last_Hist_Mth,'FS Opening'!O34,O77) -> 0 | P86: =IF(P$8<=DD_Ts_Last_Hist_Mth,'FS Opening'!P34,P77) -> 0 | Q86: =IF(Q$8<=DD_Ts_Last_Hist_Mth,'FS Opening'!Q34,Q77) -> 0 | R86: =IF(R$8<=DD_Ts_Last_Hist_Mth,'FS Opening'!R34,R77) -> 0 | S86: =IF(S$8<=DD_Ts_Last_Hist_Mth,'FS Opening'!S34,S77) -> 0 | T86: =IF(T$8<=DD_Ts_Last_Hist_Mth,'FS Opening'!T34,T77) -> 0 | U86: =IF(U$8<=DD_Ts_Last_Hist_Mth,'FS Opening'!U34,U77) -> 0 | V86: =IF(V$8<=DD_Ts_Last_Hist_Mth,'FS Opening'!V34,V77) -> 0
B87: =B80 -> Payroll Tax Payable - Paid During Period | J87: =IF(J$8<=DD_Ts_Last_Hist_Mth,J88-SUM(J85:J86),J80) -> 2000 | K87: 0 | L87: 0 | M87: 0 | N87: 0 | O87: 0 | P87: 0 | Q87: 0 | R87: 0 | S87: 0 | T87: 0 | U87: 0 | V87: 0
B88: Payroll Tax Payable | J88: =IF(J$8<=DD_Ts_Last_Hist_Mth,'FS Opening'!J109,J81) -> 2000 | K88: =IF(K$8<=DD_Ts_Last_Hist_Mth,'FS Opening'!K109,K81) -> 2000 | L88: =IF(L$8<=DD_Ts_Last_Hist_Mth,'FS Opening'!L109,L81) -> 2000 | M88: =IF(M$8<=DD_Ts_Last_Hist_Mth,'FS Opening'!M109,M81) -> 2000 | N88: =IF(N$8<=DD_Ts_Last_Hist_Mth,'FS Opening'!N109,N81) -> 2000 | O88: =IF(O$8<=DD_Ts_Last_Hist_Mth,'FS Opening'!O109,O81) -> 2000 | P88: =IF(P$8<=DD_Ts_Last_Hist_Mth,'FS Opening'!P109,P81) -> 2000 | Q88: =IF(Q$8<=DD_Ts_Last_Hist_Mth,'FS Opening'!Q109,Q81) -> 2000 | R88: =IF(R$8<=DD_Ts_Last_Hist_Mth,'FS Opening'!R109,R81) -> 2000 | S88: =IF(S$8<=DD_Ts_Last_Hist_Mth,'FS Opening'!S109,S81) -> 2000 | T88: =IF(T$8<=DD_Ts_Last_Hist_Mth,'FS Opening'!T109,T81) -> 2000 | U88: =IF(U$8<=DD_Ts_Last_Hist_Mth,'FS Opening'!U109,U81) -> 2000 | V88: =IF(V$8<=DD_Ts_Last_Hist_Mth,'FS Opening'!V109,V81) -> 2000
C90: Error Values | J90: =IF(ISERROR(J88),1,0) -> 0 | K90: 0 | L90: 0 | M90: 0 | N90: 0 | O90: 0 | P90: 0 | Q90: 0 | R90: 0 | S90: 0 | T90: 0 | U90: 0 | V90: 0
C91: Payroll Tax Payable Balance Check | J91: =IF(J90<>0,0,IF(J$8<=DD_Ts_Last_Hist_Mth,0,IF(ROUND(J88-SUM(J85:J87),5)<>0,1,0))) -> 0 | K91: 0 | L91: 0 | M91: 0 | N91: 0 | O91: 0 | P91: 0 | Q91: 0 | R91: 0 | S91: 0 | T91: 0 | U91: 0 | V91: 0
B92: Total Error Checks Result | I92: =IF(ISERROR(SUM(J92:V92)),1,MIN(SUM(J92:V92),1)) -> 0 | J92: =MIN(SUM(J90:J91),1) -> 0 | K92: 0 | L92: 0 | M92: 0 | N92: 0 | O92: 0 | P92: 0 | Q92: 0 | R92: 0 | S92: 0 | T92: 0 | U92: 0 | V92: 0
B94: GST
B96: Assumptions - General
B98: Opening GST | I98: =TEXT(Ts_Last_Hist_Mth_End_Date,"mmm-yy")&Ts_Hist_Per_ID -> Mar-20 (H)
B99: Opening GST Payable | I99: =OFFSET('FS Opening'!J110,0,DD_Ts_Last_Hist_Mth-1) -> 1500 | J99: =-J244 -> 0 | K99: 1500 | L99: 0 | M99: 0 | N99: 0 | O99: 0 | P99: 0 | Q99: 0 | R99: 0 | S99: 0 | T99: 0 | U99: 0 | V99: 0
B100: =B99&" Payment Delay (Months)" -> Opening GST Payable Payment Delay (Months) | I100: 1
B101: ="% Paid During "&TEXT(EDATE(Ts_Start_Date,DD_Ts_Last_Hist_Mth+I100-1),"mmmm yyyy") -> % Paid During April 2020 | I101: 1
B103: Assessment Periods | I103: Year End
A104: =IFERROR(MATCH(I104,LU_GST_Yr_End_Mth,0),0) -> 6 | B104: =B180 -> GST Year | I104: June | J104: =J180 -> 0 | K104: 2020 | L104: 2020 | M104: 2020 | N104: 2021 | O104: 2021 | P104: 2021 | Q104: 2021 | R104: 2021 | S104: 2021 | T104: 2021 | U104: 2021 | V104: 2021
B105: GST Rate (%) | I105: 0.1 | J105: =IF(J$8<=DD_Ts_Last_Hist_Mth,0,$I105) -> 0 | K105: 0.1 | L105: 0.1 | M105: 0.1 | N105: 0.1 | O105: 0.1 | P105: 0.1 | Q105: 0.1 | R105: 0.1 | S105: 0.1 | T105: 0.1 | U105: 0.1 | V105: 0.1
B106: =B181 -> GST Year Month Number | J106: =J181 -> 0 | K106: 10 | L106: 11 | M106: 12 | N106: 1 | O106: 2 | P106: 3 | Q106: 4 | R106: 5 | S106: 6 | T106: 7 | U106: 8 | V106: 9
B107: GST Assessment Frequency (Year-Specific) | J107: Quarterly | K107: Quarterly | L107: Quarterly | M107: Quarterly | N107: Quarterly | O107: Quarterly | P107: Quarterly | Q107: Quarterly | R107: Quarterly | S107: Quarterly | T107: Quarterly | U107: Quarterly | V107: Quarterly
B109: Assessments
B110: =B195 -> Assessment Period | J110: =J195 -> - | K110: No | L110: No | M110: Yes | N110: No | O110: No | P110: Yes | Q110: No | R110: No | S110: Yes | T110: No | U110: No | V110: Yes
B111: GST Payment Basis | J111: Cash | K111: Cash | L111: Cash | M111: Cash | N111: Cash | O111: Cash | P111: Cash | Q111: Cash | R111: Cash | S111: Cash | T111: Cash | U111: Cash | V111: Cash
B112: =B201 -> Assessment GST Payable | J112: =J201 -> 0 | K112: 0 | L112: 0 | M112: 3926.225806 | N112: 0 | O112: 0 | P112: 5623.107527 | Q112: 0 | R112: 0 | S112: 5418.053763 | T112: 0 | U112: 0 | V112: 5827.83871
B113: GST Payment Delay (Months) | J113: 1 | K113: 4 | L113: 1 | M113: 1 | N113: 1 | O113: 1 | P113: 1 | Q113: 1 | R113: 1 | S113: 1 | T113: 1 | U113: 1 | V113: 1
B115: Cash Receipts & Payments
B116: Average Revenue Cash Receipt Delay (Days) | J116: 0 | K116: 0 | L116: 0 | M116: 0 | N116: 0 | O116: 0 | P116: 0 | Q116: 0 | R116: 0 | S116: 0 | T116: 0 | U116: 0 | V116: 0
B117: Average Expenses Cash Receipt Delay (Days) | J117: 0 | K117: 0 | L117: 0 | M117: 0 | N117: 0 | O117: 0 | P117: 0 | Q117: 0 | R117: 0 | S117: 0 | T117: 0 | U117: 0 | V117: 0
B119: Assumptions - GST Applicable
B121: Categories | I121: GST Applicable | J121: =" "&INDEX(LU_Ts_Denom,DD_Ts_Denom)&" (Excluding GST)" -> $ (Excluding GST)
B122: =IS_Map!B24 -> Revenue | H122: Rev | I122: 1 | J122: =IF(J$8<=DD_Ts_Last_Hist_Mth,0,IS_Map!J24) -> 0 | K122: =IF(K$8<=DD_Ts_Last_Hist_Mth,0,IS_Map!K24) -> 40000 | L122: =IF(L$8<=DD_Ts_Last_Hist_Mth,0,IS_Map!L24) -> 40000 | M122: =IF(M$8<=DD_Ts_Last_Hist_Mth,0,IS_Map!M24) -> 40000 | N122: =IF(N$8<=DD_Ts_Last_Hist_Mth,0,IS_Map!N24) -> 40000 | O122: =IF(O$8<=DD_Ts_Last_Hist_Mth,0,IS_Map!O24) -> 40000 | P122: =IF(P$8<=DD_Ts_Last_Hist_Mth,0,IS_Map!P24) -> 40000 | Q122: =IF(Q$8<=DD_Ts_Last_Hist_Mth,0,IS_Map!Q24) -> 40000 | R122: =IF(R$8<=DD_Ts_Last_Hist_Mth,0,IS_Map!R24) -> 40000 | S122: =IF(S$8<=DD_Ts_Last_Hist_Mth,0,IS_Map!S24) -> 40000 | T122: =IF(T$8<=DD_Ts_Last_Hist_Mth,0,IS_Map!T24) -> 40000 | U122: =IF(U$8<=DD_Ts_Last_Hist_Mth,0,IS_Map!U24) -> 40000 | V122: =IF(V$8<=DD_Ts_Last_Hist_Mth,0,IS_Map!V24) -> 40000
B123: Revenue | J123: =IF(J$8<=DD_Ts_Last_Hist_Mth,0,SUM(J122:J122)) -> 0 | K123: 40000 | L123: 40000 | M123: 40000 | N123: 40000 | O123: 40000 | P123: 40000 | Q123: 40000 | R123: 40000 | S123: 40000 | T123: 40000 | U123: 40000 | V123: 40000
B125: =IS_Map!B57 -> Other Revenue | H125: Oth.Rev | I125: 1 | J125: =IF(J$8<=DD_Ts_Last_Hist_Mth,0,IS_Map!J57) -> 0 | K125: =IF(K$8<=DD_Ts_Last_Hist_Mth,0,IS_Map!K57) -> 0 | L125: =IF(L$8<=DD_Ts_Last_Hist_Mth,0,IS_Map!L57) -> 0 | M125: =IF(M$8<=DD_Ts_Last_Hist_Mth,0,IS_Map!M57) -> 0 | N125: =IF(N$8<=DD_Ts_Last_Hist_Mth,0,IS_Map!N57) -> 0 | O125: =IF(O$8<=DD_Ts_Last_Hist_Mth,0,IS_Map!O57) -> 0 | P125: =IF(P$8<=DD_Ts_Last_Hist_Mth,0,IS_Map!P57) -> 0 | Q125: =IF(Q$8<=DD_Ts_Last_Hist_Mth,0,IS_Map!Q57) -> 0 | R125: =IF(R$8<=DD_Ts_Last_Hist_Mth,0,IS_Map!R57) -> 0 | S125: =IF(S$8<=DD_Ts_Last_Hist_Mth,0,IS_Map!S57) -> 0 | T125: =IF(T$8<=DD_Ts_Last_Hist_Mth,0,IS_Map!T57) -> 0 | U125: =IF(U$8<=DD_Ts_Last_Hist_Mth,0,IS_Map!U57) -> 0 | V125: =IF(V$8<=DD_Ts_Last_Hist_Mth,0,IS_Map!V57) -> 0
B126: =IS_Map!B58 -> Other Revenue (Non GST) | H126: Oth.Rev | I126: 0 | J126: =IF(J$8<=DD_Ts_Last_Hist_Mth,0,IS_Map!J58) -> 0 | K126: =IF(K$8<=DD_Ts_Last_Hist_Mth,0,IS_Map!K58) -> 10000 | L126: =IF(L$8<=DD_Ts_Last_Hist_Mth,0,IS_Map!L58) -> 0 | M126: =IF(M$8<=DD_Ts_Last_Hist_Mth,0,IS_Map!M58) -> 14025 | N126: =IF(N$8<=DD_Ts_Last_Hist_Mth,0,IS_Map!N58) -> 12012.5 | O126: =IF(O$8<=DD_Ts_Last_Hist_Mth,0,IS_Map!O58) -> 0 | P126: =IF(P$8<=DD_Ts_Last_Hist_Mth,0,IS_Map!P58) -> 0 | Q126: =IF(Q$8<=DD_Ts_Last_Hist_Mth,0,IS_Map!Q58) -> 12012.5 | R126: =IF(R$8<=DD_Ts_Last_Hist_Mth,0,IS_Map!R58) -> 0 | S126: =IF(S$8<=DD_Ts_Last_Hist_Mth,0,IS_Map!S58) -> 0 | T126: =IF(T$8<=DD_Ts_Last_Hist_Mth,0,IS_Map!T58) -> 0 | U126: =IF(U$8<=DD_Ts_Last_Hist_Mth,0,IS_Map!U58) -> 0 | V126: =IF(V$8<=DD_Ts_Last_Hist_Mth,0,IS_Map!V58) -> 0
B127: Other Revenue | J127: =IF(J$8<=DD_Ts_Last_Hist_Mth,0,SUM(J125:J126)) -> 0 | K127: 10000 | L127: 0 | M127: 14025 | N127: 12012.5 | O127: 0 | P127: 0 | Q127: 12012.5 | R127: 0 | S127: 0 | T127: 0 | U127: 0 | V127: 0
B129: =IS_Map!B40 -> Cost of Sales | H129: CoS | I129: 0 | J129: =IF(J$8<=DD_Ts_Last_Hist_Mth,0,IS_Map!J40) -> 0 | K129: =IF(K$8<=DD_Ts_Last_Hist_Mth,0,IS_Map!K40) -> 16000 | L129: =IF(L$8<=DD_Ts_Last_Hist_Mth,0,IS_Map!L40) -> 16000 | M129: =IF(M$8<=DD_Ts_Last_Hist_Mth,0,IS_Map!M40) -> 16000 | N129: =IF(N$8<=DD_Ts_Last_Hist_Mth,0,IS_Map!N40) -> 16000 | O129: =IF(O$8<=DD_Ts_Last_Hist_Mth,0,IS_Map!O40) -> 16000 | P129: =IF(P$8<=DD_Ts_Last_Hist_Mth,0,IS_Map!P40) -> 16000 | Q129: =IF(Q$8<=DD_Ts_Last_Hist_Mth,0,IS_Map!Q40) -> 16000 | R129: =IF(R$8<=DD_Ts_Last_Hist_Mth,0,IS_Map!R40) -> 16000 | S129: =IF(S$8<=DD_Ts_Last_Hist_Mth,0,IS_Map!S40) -> 16000 | T129: =IF(T$8<=DD_Ts_Last_Hist_Mth,0,IS_Map!T40) -> 16000 | U129: =IF(U$8<=DD_Ts_Last_Hist_Mth,0,IS_Map!U40) -> 16000 | V129: =IF(V$8<=DD_Ts_Last_Hist_Mth,0,IS_Map!V40) -> 16000
B130: Cost of Sales | J130: =IF(J$8<=DD_Ts_Last_Hist_Mth,0,SUM(J129:J129)) -> 0 | K130: 16000 | L130: 16000 | M130: 16000 | N130: 16000 | O130: 16000 | P130: 16000 | Q130: 16000 | R130: 16000 | S130: 16000 | T130: 16000 | U130: 16000 | V130: 16000
B132: =WorkCap!A94 -> Inventory | H132: Inv | I132: 1 | J132: =IF(J$8<=DD_Ts_Last_Hist_Mth,0,WorkCap!J94) -> 0 | K132: =IF(K$8<=DD_Ts_Last_Hist_Mth,0,WorkCap!K94) -> 32466.66667 | L132: =IF(L$8<=DD_Ts_Last_Hist_Mth,0,WorkCap!L94) -> 16017.2043 | M132: =IF(M$8<=DD_Ts_Last_Hist_Mth,0,WorkCap!M94) -> 15483.87097 | N132: =IF(N$8<=DD_Ts_Last_Hist_Mth,0,WorkCap!N94) -> 16498.92473 | O132: =IF(O$8<=DD_Ts_Last_Hist_Mth,0,WorkCap!O94) -> 16017.2043 | P132: =IF(P$8<=DD_Ts_Last_Hist_Mth,0,WorkCap!P94) -> 15982.7957 | Q132: =IF(Q$8<=DD_Ts_Last_Hist_Mth,0,WorkCap!Q94) -> 16017.2043 | R132: =IF(R$8<=DD_Ts_Last_Hist_Mth,0,WorkCap!R94) -> 15483.87097 | S132: =IF(S$8<=DD_Ts_Last_Hist_Mth,0,WorkCap!S94) -> 17548.3871 | T132: =IF(T$8<=DD_Ts_Last_Hist_Mth,0,WorkCap!T94) -> 16000 | U132: =IF(U$8<=DD_Ts_Last_Hist_Mth,0,WorkCap!U94) -> 16026.24385 | V132: =IF(V$8<=DD_Ts_Last_Hist_Mth,0,WorkCap!V94) -> 14425.36905
B133: Inventory Purchases | J133: =IF(J$8<=DD_Ts_Last_Hist_Mth,0,SUM(J132:J132)) -> 0 | K133: 32466.66667 | L133: 16017.2043 | M133: 15483.87097 | N133: 16498.92473 | O133: 16017.2043 | P133: 15982.7957 | Q133: 16017.2043 | R133: 15483.87097 | S133: 17548.3871 | T133: 16000 | U133: 16026.24385 | V133: 14425.36905
B135: =IS_Map!B109 -> Operating Expenditure | H135: Opex. | I135: 1 | J135: =IF(J$8<=DD_Ts_Last_Hist_Mth,0,IS_Map!J109) -> 0 | K135: =IF(K$8<=DD_Ts_Last_Hist_Mth,0,IS_Map!K109) -> 5090 | L135: =IF(L$8<=DD_Ts_Last_Hist_Mth,0,IS_Map!L109) -> 6590 | M135: =IF(M$8<=DD_Ts_Last_Hist_Mth,0,IS_Map!M109) -> 5090 | N135: =IF(N$8<=DD_Ts_Last_Hist_Mth,0,IS_Map!N109) -> 5090 | O135: =IF(O$8<=DD_Ts_Last_Hist_Mth,0,IS_Map!O109) -> 5090 | P135: =IF(P$8<=DD_Ts_Last_Hist_Mth,0,IS_Map!P109) -> 5090 | Q135: =IF(Q$8<=DD_Ts_Last_Hist_Mth,0,IS_Map!Q109) -> 5090 | R135: =IF(R$8<=DD_Ts_Last_Hist_Mth,0,IS_Map!R109) -> 5090 | S135: =IF(S$8<=DD_Ts_Last_Hist_Mth,0,IS_Map!S109) -> 6590 | T135: =IF(T$8<=DD_Ts_Last_Hist_Mth,0,IS_Map!T109) -> 5090 | U135: =IF(U$8<=DD_Ts_Last_Hist_Mth,0,IS_Map!U109) -> 5090 | V135: =IF(V$8<=DD_Ts_Last_Hist_Mth,0,IS_Map!V109) -> 5090
B136: Operating Expenditure | J136: =IF(J$8<=DD_Ts_Last_Hist_Mth,0,SUM(J135:J135)) -> 0 | K136: 5090 | L136: 6590 | M136: 5090 | N136: 5090 | O136: 5090 | P136: 5090 | Q136: 5090 | R136: 5090 | S136: 6590 | T136: 5090 | U136: 5090 | V136: 5090
B138: =IS_Map!B125 -> Other Expenses | H138: Oth.Exp | I138: 1 | J138: =IF(J$8<=DD_Ts_Last_Hist_Mth,0,IS_Map!J125) -> 0 | K138: =IF(K$8<=DD_Ts_Last_Hist_Mth,0,IS_Map!K125) -> 0 | L138: =IF(L$8<=DD_Ts_Last_Hist_Mth,0,IS_Map!L125) -> 0 | M138: =IF(M$8<=DD_Ts_Last_Hist_Mth,0,IS_Map!M125) -> 0 | N138: =IF(N$8<=DD_Ts_Last_Hist_Mth,0,IS_Map!N125) -> 0 | O138: =IF(O$8<=DD_Ts_Last_Hist_Mth,0,IS_Map!O125) -> 0 | P138: =IF(P$8<=DD_Ts_Last_Hist_Mth,0,IS_Map!P125) -> 0 | Q138: =IF(Q$8<=DD_Ts_Last_Hist_Mth,0,IS_Map!Q125) -> 0 | R138: =IF(R$8<=DD_Ts_Last_Hist_Mth,0,IS_Map!R125) -> 0 | S138: =IF(S$8<=DD_Ts_Last_Hist_Mth,0,IS_Map!S125) -> 0 | T138: =IF(T$8<=DD_Ts_Last_Hist_Mth,0,IS_Map!T125) -> 0 | U138: =IF(U$8<=DD_Ts_Last_Hist_Mth,0,IS_Map!U125) -> 0 | V138: =IF(V$8<=DD_Ts_Last_Hist_Mth,0,IS_Map!V125) -> 0
B139: =IS_Map!B126 -> Other Expenses (Non GST) | H139: Oth.Exp | I139: 0 | J139: =IF(J$8<=DD_Ts_Last_Hist_Mth,0,IS_Map!J126) -> 0 | K139: =IF(K$8<=DD_Ts_Last_Hist_Mth,0,IS_Map!K126) -> 0 | L139: =IF(L$8<=DD_Ts_Last_Hist_Mth,0,IS_Map!L126) -> -5000 | M139: =IF(M$8<=DD_Ts_Last_Hist_Mth,0,IS_Map!M126) -> 0 | N139: =IF(N$8<=DD_Ts_Last_Hist_Mth,0,IS_Map!N126) -> 0 | O139: =IF(O$8<=DD_Ts_Last_Hist_Mth,0,IS_Map!O126) -> 0 | P139: =IF(P$8<=DD_Ts_Last_Hist_Mth,0,IS_Map!P126) -> 0 | Q139: =IF(Q$8<=DD_Ts_Last_Hist_Mth,0,IS_Map!Q126) -> 0 | R139: =IF(R$8<=DD_Ts_Last_Hist_Mth,0,IS_Map!R126) -> 0 | S139: =IF(S$8<=DD_Ts_Last_Hist_Mth,0,IS_Map!S126) -> 0 | T139: =IF(T$8<=DD_Ts_Last_Hist_Mth,0,IS_Map!T126) -> 0 | U139: =IF(U$8<=DD_Ts_Last_Hist_Mth,0,IS_Map!U126) -> 0 | V139: =IF(V$8<=DD_Ts_Last_Hist_Mth,0,IS_Map!V126) -> 0
B140: Other Expenses | J140: =IF(J$8<=DD_Ts_Last_Hist_Mth,0,SUM(J138:J139)) -> 0 | K140: 0 | L140: -5000 | M140: 0 | N140: 0 | O140: 0 | P140: 0 | Q140: 0 | R140: 0 | S140: 0 | T140: 0 | U140: 0 | V140: 0
B142: =Assets!B44 -> Fixed Assets | H142: FA | I142: 1 | J142: =IF(J$8<=DD_Ts_Last_Hist_Mth,0,Assets!J44) -> 0 | K142: =IF(K$8<=DD_Ts_Last_Hist_Mth,0,Assets!K44) -> 0 | L142: =IF(L$8<=DD_Ts_Last_Hist_Mth,0,Assets!L44) -> 0 | M142: =IF(M$8<=DD_Ts_Last_Hist_Mth,0,Assets!M44) -> 0 | N142: =IF(N$8<=DD_Ts_Last_Hist_Mth,0,Assets!N44) -> 0 | O142: =IF(O$8<=DD_Ts_Last_Hist_Mth,0,Assets!O44) -> 0 | P142: =IF(P$8<=DD_Ts_Last_Hist_Mth,0,Assets!P44) -> 0 | Q142: =IF(Q$8<=DD_Ts_Last_Hist_Mth,0,Assets!Q44) -> 0 | R142: =IF(R$8<=DD_Ts_Last_Hist_Mth,0,Assets!R44) -> 0 | S142: =IF(S$8<=DD_Ts_Last_Hist_Mth,0,Assets!S44) -> 0 | T142: =IF(T$8<=DD_Ts_Last_Hist_Mth,0,Assets!T44) -> 0 | U142: =IF(U$8<=DD_Ts_Last_Hist_Mth,0,Assets!U44) -> 0 | V142: =IF(V$8<=DD_Ts_Last_Hist_Mth,0,Assets!V44) -> 0
B143: Assets Capex. | J143: =IF(J$8<=DD_Ts_Last_Hist_Mth,0,SUM(J142:J142)) -> 0 | K143: 0 | L143: 0 | M143: 0 | N143: 0 | O143: 0 | P143: 0 | Q143: 0 | R143: 0 | S143: 0 | T143: 0 | U143: 0 | V143: 0
B145: =Assets!B99 -> Intangible Assets | H145: Intangible | I145: 1 | J145: =IF(J$8<=DD_Ts_Last_Hist_Mth,0,Assets!J99) -> 0 | K145: =IF(K$8<=DD_Ts_Last_Hist_Mth,0,Assets!K99) -> 0 | L145: =IF(L$8<=DD_Ts_Last_Hist_Mth,0,Assets!L99) -> 0 | M145: =IF(M$8<=DD_Ts_Last_Hist_Mth,0,Assets!M99) -> 0 | N145: =IF(N$8<=DD_Ts_Last_Hist_Mth,0,Assets!N99) -> 0 | O145: =IF(O$8<=DD_Ts_Last_Hist_Mth,0,Assets!O99) -> 0 | P145: =IF(P$8<=DD_Ts_Last_Hist_Mth,0,Assets!P99) -> 0 | Q145: =IF(Q$8<=DD_Ts_Last_Hist_Mth,0,Assets!Q99) -> 0 | R145: =IF(R$8<=DD_Ts_Last_Hist_Mth,0,Assets!R99) -> 0 | S145: =IF(S$8<=DD_Ts_Last_Hist_Mth,0,Assets!S99) -> 0 | T145: =IF(T$8<=DD_Ts_Last_Hist_Mth,0,Assets!T99) -> 0 | U145: =IF(U$8<=DD_Ts_Last_Hist_Mth,0,Assets!U99) -> 0 | V145: =IF(V$8<=DD_Ts_Last_Hist_Mth,0,Assets!V99) -> 0
B146: Intangibles Capex. | J146: =IF(J$8<=DD_Ts_Last_Hist_Mth,0,SUM(J145:J145)) -> 0 | K146: 0 | L146: 0 | M146: 0 | N146: 0 | O146: 0 | P146: 0 | Q146: 0 | R146: 0 | S146: 0 | T146: 0 | U146: 0 | V146: 0
B148: Outputs - GST Applicable
B150: =B121 -> Categories | J150: =" "&INDEX(LU_Ts_Denom,DD_Ts_Denom)&" (Including GST)" -> $ (Including GST)
B151: =B122 -> Revenue | J151: =IF(J$8<=DD_Ts_Last_Hist_Mth,0,J122*(1+$I122*J$105)) -> 0 | K151: 44000 | L151: 44000 | M151: 44000 | N151: 44000 | O151: 44000 | P151: 44000 | Q151: 44000 | R151: 44000 | S151: 44000 | T151: 44000 | U151: 44000 | V151: 44000
B152: =B123 -> Revenue | J152: =SUM(J151:J151) -> 0 | K152: 44000 | L152: 44000 | M152: 44000 | N152: 44000 | O152: 44000 | P152: 44000 | Q152: 44000 | R152: 44000 | S152: 44000 | T152: 44000 | U152: 44000 | V152: 44000
B154: =B125 -> Other Revenue | J154: =IF(J$8<=DD_Ts_Last_Hist_Mth,0,J125*(1+$I125*J$105)) -> 0 | K154: 0 | L154: 0 | M154: 0 | N154: 0 | O154: 0 | P154: 0 | Q154: 0 | R154: 0 | S154: 0 | T154: 0 | U154: 0 | V154: 0
B155: =B126 -> Other Revenue (Non GST) | J155: =IF(J$8<=DD_Ts_Last_Hist_Mth,0,J126*(1+$I126*J$105)) -> 0 | K155: 10000 | L155: 0 | M155: 14025 | N155: 12012.5 | O155: 0 | P155: 0 | Q155: 12012.5 | R155: 0 | S155: 0 | T155: 0 | U155: 0 | V155: 0
B156: =B127 -> Other Revenue | J156: =SUM(J154:J155) -> 0 | K156: 10000 | L156: 0 | M156: 14025 | N156: 12012.5 | O156: 0 | P156: 0 | Q156: 12012.5 | R156: 0 | S156: 0 | T156: 0 | U156: 0 | V156: 0
B158: =B129 -> Cost of Sales | J158: =IF(J$8<=DD_Ts_Last_Hist_Mth,0,J129*(1+$I129*J$105)) -> 0 | K158: 16000 | L158: 16000 | M158: 16000 | N158: 16000 | O158: 16000 | P158: 16000 | Q158: 16000 | R158: 16000 | S158: 16000 | T158: 16000 | U158: 16000 | V158: 16000
B159: =B130 -> Cost of Sales | J159: =SUM(J158:J158) -> 0 | K159: 16000 | L159: 16000 | M159: 16000 | N159: 16000 | O159: 16000 | P159: 16000 | Q159: 16000 | R159: 16000 | S159: 16000 | T159: 16000 | U159: 16000 | V159: 16000
B161: =B132 -> Inventory | J161: =IF(J$8<=DD_Ts_Last_Hist_Mth,0,J132*(1+$I132*J$105)) -> 0 | K161: 35713.33333 | L161: 17618.92473 | M161: 17032.25806 | N161: 18148.8172 | O161: 17618.92473 | P161: 17581.07527 | Q161: 17618.92473 | R161: 17032.25806 | S161: 19303.22581 | T161: 17600 | U161: 17628.86823 | V161: 15867.90596
B162: =B133 -> Inventory Purchases | J162: =SUM(J161:J161) -> 0 | K162: 35713.33333 | L162: 17618.92473 | M162: 17032.25806 | N162: 18148.8172 | O162: 17618.92473 | P162: 17581.07527 | Q162: 17618.92473 | R162: 17032.25806 | S162: 19303.22581 | T162: 17600 | U162: 17628.86823 | V162: 15867.90596
B164: =B135 -> Operating Expenditure | J164: =IF(J$8<=DD_Ts_Last_Hist_Mth,0,J135*(1+$I135*J$105)) -> 0 | K164: 5599 | L164: 7249 | M164: 5599 | N164: 5599 | O164: 5599 | P164: 5599 | Q164: 5599 | R164: 5599 | S164: 7249 | T164: 5599 | U164: 5599 | V164: 5599
B165: =B136 -> Operating Expenditure | J165: =SUM(J164:J164) -> 0 | K165: 5599 | L165: 7249 | M165: 5599 | N165: 5599 | O165: 5599 | P165: 5599 | Q165: 5599 | R165: 5599 | S165: 7249 | T165: 5599 | U165: 5599 | V165: 5599
B167: =B138 -> Other Expenses | J167: =IF(J$8<=DD_Ts_Last_Hist_Mth,0,J138*(1+$I138*J$105)) -> 0 | K167: 0 | L167: 0 | M167: 0 | N167: 0 | O167: 0 | P167: 0 | Q167: 0 | R167: 0 | S167: 0 | T167: 0 | U167: 0 | V167: 0
B168: Other Expenses (Non GST) | J168: =IF(J$8<=DD_Ts_Last_Hist_Mth,0,J139*(1+$I139*J$105)) -> 0 | K168: 0 | L168: -5000 | M168: 0 | N168: 0 | O168: 0 | P168: 0 | Q168: 0 | R168: 0 | S168: 0 | T168: 0 | U168: 0 | V168: 0
B169: =B140 -> Other Expenses | J169: =SUM(J167:J168) -> 0 | K169: 0 | L169: -5000 | M169: 0 | N169: 0 | O169: 0 | P169: 0 | Q169: 0 | R169: 0 | S169: 0 | T169: 0 | U169: 0 | V169: 0
B171: =B142 -> Fixed Assets | J171: =IF(J$8<=DD_Ts_Last_Hist_Mth,0,J142*(1+$I142*J$105)) -> 0 | K171: 0 | L171: 0 | M171: 0 | N171: 0 | O171: 0 | P171: 0 | Q171: 0 | R171: 0 | S171: 0 | T171: 0 | U171: 0 | V171: 0
B172: =B143 -> Assets Capex. | J172: =SUM(J171:J171) -> 0 | K172: 0 | L172: 0 | M172: 0 | N172: 0 | O172: 0 | P172: 0 | Q172: 0 | R172: 0 | S172: 0 | T172: 0 | U172: 0 | V172: 0
B174: =B145 -> Intangible Assets | J174: =IF(J$8<=DD_Ts_Last_Hist_Mth,0,J145*(1+$I145*J$105)) -> 0 | K174: 0 | L174: 0 | M174: 0 | N174: 0 | O174: 0 | P174: 0 | Q174: 0 | R174: 0 | S174: 0 | T174: 0 | U174: 0 | V174: 0
B175: =B146 -> Intangibles Capex. | J175: =SUM(J174:J174) -> 0 | K175: 0 | L175: 0 | M175: 0 | N175: 0 | O175: 0 | P175: 0 | Q175: 0 | R175: 0 | S175: 0 | T175: 0 | U175: 0 | V175: 0
B177: Outputs - GST Assessments
B179: Assessment Timing
B180: GST Year | J180: =IF(J$8<=DD_Ts_Last_Hist_Mth,0,YEAR(J$7)+IF(MONTH(J$7)>$A$104,1,0)) -> 0 | K180: 2020 | L180: 2020 | M180: 2020 | N180: 2021 | O180: 2021 | P180: 2021 | Q180: 2021 | R180: 2021 | S180: 2021 | T180: 2021 | U180: 2021 | V180: 2021
B181: GST Year Month Number | J181: =IF(J$8<=DD_Ts_Last_Hist_Mth,0,MOD(MONTH(J$7)-$A$104-1,Ts_Mths_In_Yr)+1) -> 0 | K181: 10 | L181: 11 | M181: 12 | N181: 1 | O181: 2 | P181: 3 | Q181: 4 | R181: 5 | S181: 6 | T181: 7 | U181: 8 | V181: 9
B182: =B107 -> GST Assessment Frequency (Year-Specific) | J182: =IF(J$8<=DD_Ts_Last_Hist_Mth,"-",INDEX($J107:J107,1,MATCH(J180,$J180:J180,0))) -> - | K182: =IF(K$8<=DD_Ts_Last_Hist_Mth,"-",INDEX($J107:K107,1,MATCH(K180,$J180:K180,0))) -> Quarterly | L182: =IF(L$8<=DD_Ts_Last_Hist_Mth,"-",INDEX($J107:L107,1,MATCH(L180,$J180:L180,0))) -> Quarterly | M182: =IF(M$8<=DD_Ts_Last_Hist_Mth,"-",INDEX($J107:M107,1,MATCH(M180,$J180:M180,0))) -> Quarterly | N182: =IF(N$8<=DD_Ts_Last_Hist_Mth,"-",INDEX($J107:N107,1,MATCH(N180,$J180:N180,0))) -> Quarterly | O182: =IF(O$8<=DD_Ts_Last_Hist_Mth,"-",INDEX($J107:O107,1,MATCH(O180,$J180:O180,0))) -> Quarterly | P182: =IF(P$8<=DD_Ts_Last_Hist_Mth,"-",INDEX($J107:P107,1,MATCH(P180,$J180:P180,0))) -> Quarterly | Q182: =IF(Q$8<=DD_Ts_Last_Hist_Mth,"-",INDEX($J107:Q107,1,MATCH(Q180,$J180:Q180,0))) -> Quarterly | R182: =IF(R$8<=DD_Ts_Last_Hist_Mth,"-",INDEX($J107:R107,1,MATCH(R180,$J180:R180,0))) -> Quarterly | S182: =IF(S$8<=DD_Ts_Last_Hist_Mth,"-",INDEX($J107:S107,1,MATCH(S180,$J180:S180,0))) -> Quarterly | T182: =IF(T$8<=DD_Ts_Last_Hist_Mth,"-",INDEX($J107:T107,1,MATCH(T180,$J180:T180,0))) -> Quarterly | U182: =IF(U$8<=DD_Ts_Last_Hist_Mth,"-",INDEX($J107:U107,1,MATCH(U180,$J180:U180,0))) -> Quarterly | V182: =IF(V$8<=DD_Ts_Last_Hist_Mth,"-",INDEX($J107:V107,1,MATCH(V180,$J180:V180,0))) -> Quarterly
B184: GST Assessments
B185: ="GST on "&B123 -> GST on Revenue | J185: =J152-J123 -> 0 | K185: 4000 | L185: 4000 | M185: 4000 | N185: 4000 | O185: 4000 | P185: 4000 | Q185: 4000 | R185: 4000 | S185: 4000 | T185: 4000 | U185: 4000 | V185: 4000
B186: ="GST on "&B127 -> GST on Other Revenue | J186: =J156-J127 -> 0 | K186: 0 | L186: 0 | M186: 0 | N186: 0 | O186: 0 | P186: 0 | Q186: 0 | R186: 0 | S186: 0 | T186: 0 | U186: 0 | V186: 0
B187: ="(Less) GST on "&B130 -> (Less) GST on Cost of Sales | J187: =-(J159-J130) -> 0 | K187: 0 | L187: 0 | M187: 0 | N187: 0 | O187: 0 | P187: 0 | Q187: 0 | R187: 0 | S187: 0 | T187: 0 | U187: 0 | V187: 0
B188: ="(Less) GST on "&B133 -> (Less) GST on Inventory Purchases | J188: =-(J162-J133) -> 0 | K188: -3246.666667 | L188: -1601.72043 | M188: -1548.387097 | N188: -1649.892473 | O188: -1601.72043 | P188: -1598.27957 | Q188: -1601.72043 | R188: -1548.387097 | S188: -1754.83871 | T188: -1600 | U188: -1602.624385 | V188: -1442.536905
B189: ="(Less) GST on "&B136 -> (Less) GST on Operating Expenditure | J189: =-(J165-J136) -> 0 | K189: -509 | L189: -659 | M189: -509 | N189: -509 | O189: -509 | P189: -509 | Q189: -509 | R189: -509 | S189: -659 | T189: -509 | U189: -509 | V189: -509
B190: ="(Less) GST on "&B140 -> (Less) GST on Other Expenses | J190: =-(J169-J140) -> 0 | K190: 0 | L190: 0 | M190: 0 | N190: 0 | O190: 0 | P190: 0 | Q190: 0 | R190: 0 | S190: 0 | T190: 0 | U190: 0 | V190: 0
B191: ="(Less) GST on "&B143 -> (Less) GST on Assets Capex. | J191: =-(J172-J143) -> 0 | K191: 0 | L191: 0 | M191: 0 | N191: 0 | O191: 0 | P191: 0 | Q191: 0 | R191: 0 | S191: 0 | T191: 0 | U191: 0 | V191: 0
B192: ="(Less) GST on "&B146 -> (Less) GST on Intangibles Capex. | J192: =-(J175-J146) -> 0 | K192: 0 | L192: 0 | M192: 0 | N192: 0 | O192: 0 | P192: 0 | Q192: 0 | R192: 0 | S192: 0 | T192: 0 | U192: 0 | V192: 0
B193: Net GST on Accrued Revenues & Expenses | J193: =SUM(J185:J192) -> 0 | K193: 244.3333333 | L193: 1739.27957 | M193: 1942.612903 | N193: 1841.107527 | O193: 1889.27957 | P193: 1892.72043 | Q193: 1889.27957 | R193: 1942.612903 | S193: 1586.16129 | T193: 1891 | U193: 1888.375615 | V193: 2048.463095
B195: Assessment Period | J195: =IF(J$8<=DD_Ts_Last_Hist_Mth,"-",IF(J182=GST_Assess_Freq_Mthly,GST_Yes,IF(J182=GST_Assess_Freq_Qtrly,IF(MOD(J181,Ts_Mths_In_Qtr)=0,GST_Yes,GST_No),IF(J182=GST_Assess_Freq_Semi_Ann,IF(MOD(J181,Ts_Mths_In_Half)=0,GST_Yes,GST_No),IF(J181=Ts_Mths_In_Yr,GST_Yes,GST_No))))) -> - | K195: No | L195: No | M195: Yes | N195: No | O195: No | P195: Yes | Q195: No | R195: No | S195: Yes | T195: No | U195: No | V195: Yes
B196: Assessment Period Number | J196: =IF(J$8<=DD_Ts_Last_Hist_Mth,0,IF(J182=GST_Assess_Freq_Mthly,J181,IF(J182=GST_Assess_Freq_Qtrly,INT((J181-1)/Ts_Mths_In_Qtr)+1,IF(J182=GST_Assess_Freq_Semi_Ann,INT((J181-1)/Ts_Mths_In_Half)+1,1)))) -> 0 | K196: 4 | L196: 4 | M196: 4 | N196: 1 | O196: 1 | P196: 1 | Q196: 2 | R196: 2 | S196: 2 | T196: 3 | U196: 3 | V196: 3
B197: Interim Assessment Period Key | J197: =IF(J$8<=DD_Ts_Last_Hist_Mth,"-",J180&"-"&J196) -> - | K197: 2020-4 | L197: 2020-4 | M197: 2020-4 | N197: 2021-1 | O197: 2021-1 | P197: 2021-1 | Q197: 2021-2 | R197: 2021-2 | S197: 2021-2 | T197: 2021-3 | U197: 2021-3 | V197: 2021-3
B198: =B193 -> Net GST on Accrued Revenues & Expenses | J198: =J193 -> 0 | K198: 244.3333333 | L198: 1739.27957 | M198: 1942.612903 | N198: 1841.107527 | O198: 1889.27957 | P198: 1892.72043 | Q198: 1889.27957 | R198: 1942.612903 | S198: 1586.16129 | T198: 1891 | U198: 1888.375615 | V198: 2048.463095
B199: =B238 -> Net GST on Cash Receipts & Payments | J199: =J238 -> 0 | K199: 244.3333333 | L199: 1739.27957 | M199: 1942.612903 | N199: 1841.107527 | O199: 1889.27957 | P199: 1892.72043 | Q199: 1889.27957 | R199: 1942.612903 | S199: 1586.16129 | T199: 1891 | U199: 1888.375615 | V199: 2048.463095
B200: =B111 -> GST Payment Basis | J200: =IF(J195<>GST_Yes,0,J111) -> 0 | K200: 0 | L200: 0 | M200: Cash | N200: 0 | O200: 0 | P200: Cash | Q200: 0 | R200: 0 | S200: Cash | T200: 0 | U200: 0 | V200: Cash
B201: Assessment GST Payable | J201: =IF(J195<>GST_Yes,0,SUMIF($J197:J197,J197,IF(J200=GST_Cash,$J199:J199,$J198:J198))) -> 0 | K201: =IF(K195<>GST_Yes,0,SUMIF($J197:K197,K197,IF(K200=GST_Cash,$J199:K199,$J198:K198))) -> 0 | L201: =IF(L195<>GST_Yes,0,SUMIF($J197:L197,L197,IF(L200=GST_Cash,$J199:L199,$J198:L198))) -> 0 | M201: =IF(M195<>GST_Yes,0,SUMIF($J197:M197,M197,IF(M200=GST_Cash,$J199:M199,$J198:M198))) -> 3926.225806 | N201: =IF(N195<>GST_Yes,0,SUMIF($J197:N197,N197,IF(N200=GST_Cash,$J199:N199,$J198:N198))) -> 0 | O201: =IF(O195<>GST_Yes,0,SUMIF($J197:O197,O197,IF(O200=GST_Cash,$J199:O199,$J198:O198))) -> 0 | P201: =IF(P195<>GST_Yes,0,SUMIF($J197:P197,P197,IF(P200=GST_Cash,$J199:P199,$J198:P198))) -> 5623.107527 | Q201: =IF(Q195<>GST_Yes,0,SUMIF($J197:Q197,Q197,IF(Q200=GST_Cash,$J199:Q199,$J198:Q198))) -> 0 | R201: =IF(R195<>GST_Yes,0,SUMIF($J197:R197,R197,IF(R200=GST_Cash,$J199:R199,$J198:R198))) -> 0 | S201: =IF(S195<>GST_Yes,0,SUMIF($J197:S197,S197,IF(S200=GST_Cash,$J199:S199,$J198:S198))) -> 5418.053763 | T201: =IF(T195<>GST_Yes,0,SUMIF($J197:T197,T197,IF(T200=GST_Cash,$J199:T199,$J198:T198))) -> 0 | U201: =IF(U195<>GST_Yes,0,SUMIF($J197:U197,U197,IF(U200=GST_Cash,$J199:U199,$J198:U198))) -> 0 | V201: =IF(V195<>GST_Yes,0,SUMIF($J197:V197,V197,IF(V200=GST_Cash,$J199:V199,$J198:V198))) -> 5827.83871
B202: =B113 -> GST Payment Delay (Months) | J202: =IF(J195<>GST_Yes,0,J113) -> 0 | K202: 0 | L202: 0 | M202: 1 | N202: 0 | O202: 0 | P202: 1 | Q202: 0 | R202: 0 | S202: 1 | T202: 0 | U202: 0 | V202: 1
B203: Interim Assessment - Tax Payment Month | J203: =IF(J195<>GST_Yes,0,EDATE(J$6,1+J202)-1) -> 00:00:00 | K203: 00:00:00 | L203: 00:00:00 | M203: 2020-07-31 | N203: 00:00:00 | O203: 00:00:00 | P203: 2020-10-31 | Q203: 00:00:00 | R203: 00:00:00 | S203: 2021-01-31 | T203: 00:00:00 | U203: 00:00:00 | V203: 2021-04-30
B204: GST Paid/(Refunded) | J204: =IF(J$8<=DD_Ts_Last_Hist_Mth,0,SUMIF($J203:J203,J$7,$J201:J201)) -> 0 | K204: =IF(K$8<=DD_Ts_Last_Hist_Mth,0,SUMIF($J203:K203,K$7,$J201:K201)) -> 0 | L204: =IF(L$8<=DD_Ts_Last_Hist_Mth,0,SUMIF($J203:L203,L$7,$J201:L201)) -> 0 | M204: =IF(M$8<=DD_Ts_Last_Hist_Mth,0,SUMIF($J203:M203,M$7,$J201:M201)) -> 0 | N204: =IF(N$8<=DD_Ts_Last_Hist_Mth,0,SUMIF($J203:N203,N$7,$J201:N201)) -> 3926.225806 | O204: =IF(O$8<=DD_Ts_Last_Hist_Mth,0,SUMIF($J203:O203,O$7,$J201:O201)) -> 0 | P204: =IF(P$8<=DD_Ts_Last_Hist_Mth,0,SUMIF($J203:P203,P$7,$J201:P201)) -> 0 | Q204: =IF(Q$8<=DD_Ts_Last_Hist_Mth,0,SUMIF($J203:Q203,Q$7,$J201:Q201)) -> 5623.107527 | R204: =IF(R$8<=DD_Ts_Last_Hist_Mth,0,SUMIF($J203:R203,R$7,$J201:R201)) -> 0 | S204: =IF(S$8<=DD_Ts_Last_Hist_Mth,0,SUMIF($J203:S203,S$7,$J201:S201)) -> 0 | T204: =IF(T$8<=DD_Ts_Last_Hist_Mth,0,SUMIF($J203:T203,T$7,$J201:T201)) -> 5418.053763 | U204: =IF(U$8<=DD_Ts_Last_Hist_Mth,0,SUMIF($J203:U203,U$7,$J201:U201)) -> 0 | V204: =IF(V$8<=DD_Ts_Last_Hist_Mth,0,SUMIF($J203:V203,V$7,$J201:V201)) -> 0
B206: Outputs - Cash Basis Net GST Estimate
B208: Days in Period | J208: =IF(J$8<=DD_Ts_Last_Hist_Mth,0,J$7-J$6+1) -> 0 | K208: 30 | L208: 31 | M208: 30 | N208: 31 | O208: 31 | P208: 30 | Q208: 31 | R208: 30 | S208: 31 | T208: 31 | U208: 28 | V208: 31
B209: Period Start Timing | J209: =IF(J$8=DD_Ts_Last_Hist_Mth+1,0,I210) -> 0 | K209: 0 | L209: 30 | M209: 61 | N209: 91 | O209: 122 | P209: 153 | Q209: 183 | R209: 214 | S209: 244 | T209: 275 | U209: 306 | V209: 334
B210: Period End Timing | J210: =J209+J208 -> 0 | K210: 30 | L210: 61 | M210: 91 | N210: 122 | O210: 153 | P210: 183 | Q210: 214 | R210: 244 | S210: 275 | T210: 306 | U210: 334 | V210: 365
B212: Revenue GST Cash Receipts
B213: Total GST on Revenue | J213: =SUM(J185:J186) -> 0 | K213: 4000 | L213: 4000 | M213: 4000 | N213: 4000 | O213: 4000 | P213: 4000 | Q213: 4000 | R213: 4000 | S213: 4000 | T213: 4000 | U213: 4000 | V213: 4000
B214: =B116 -> Average Revenue Cash Receipt Delay (Days) | J214: =IF(J$8<=DD_Ts_Last_Hist_Mth,0,J116) -> 0 | K214: 0 | L214: 0 | M214: 0 | N214: 0 | O214: 0 | P214: 0 | Q214: 0 | R214: 0 | S214: 0 | T214: 0 | U214: 0 | V214: 0
B215: Cash Receipts Start Time | J215: =J$209+J214 -> 0 | K215: 0 | L215: 30 | M215: 61 | N215: 91 | O215: 122 | P215: 153 | Q215: 183 | R215: 214 | S215: 244 | T215: 275 | U215: 306 | V215: 334
B216: Cash Receipts End Time | J216: =J215+J$208 -> 0 | K216: 30 | L216: 61 | M216: 91 | N216: 122 | O216: 153 | P216: 183 | Q216: 214 | R216: 244 | S216: 275 | T216: 306 | U216: 334 | V216: 365
B217: Cash Receipts Period 1 - Period Number | J217: =IF(J$8<=DD_Ts_Last_Hist_Mth,0,IF(J215>MAX($J$210:$V$210),0,MATCH(J215,$J$209:$V$209,1))) -> 0 | K217: 2 | L217: 3 | M217: 4 | N217: 5 | O217: 6 | P217: 7 | Q217: 8 | R217: 9 | S217: 10 | T217: 11 | U217: 12 | V217: 13
B218: Cash Receipts Period 2 - Period Number | J218: =IF(J$8<=DD_Ts_Last_Hist_Mth,0,IF(J217<1,0,IF(J217>=COLUMNS($J217:$V217),0,J217+1))) -> 0 | K218: 3 | L218: 4 | M218: 5 | N218: 6 | O218: 7 | P218: 8 | Q218: 9 | R218: 10 | S218: 11 | T218: 12 | U218: 13 | V218: 0
B219: Cash Receipts Period 3 - Period Number | J219: 0 | K219: 4 | L219: 5 | M219: 6 | N219: 7 | O219: 8 | P219: 9 | Q219: 10 | R219: 11 | S219: 12 | T219: 13 | U219: 0 | V219: 0
B220: Cash Receipts Period 1 - Cash Received | J220: =IF(J$8<=DD_Ts_Last_Hist_Mth,0,J213/J$208*MAX(MIN(INDEX($J$210:$V$210,J217),J216)-J215,0)) -> 0 | K220: 4000 | L220: 4000 | M220: 4000 | N220: 4000 | O220: 4000 | P220: 4000 | Q220: 4000 | R220: 4000 | S220: 4000 | T220: 4000 | U220: 4000 | V220: 4000
B221: Cash Receipts Period 2 - Cash Received | J221: =IF(J$8<=DD_Ts_Last_Hist_Mth,0,J213/J$208*MAX(MIN(INDEX($J$210:$V$210,J218),J216)-INDEX($J$209:$V$209,J218),0)) -> 0 | K221: 0 | L221: 0 | M221: 0 | N221: 0 | O221: 0 | P221: 0 | Q221: 0 | R221: 0 | S221: 0 | T221: 0 | U221: 0 | V221: 0
B222: Cash Receipts Period 3 - Cash Received | J222: =IF(J$8<=DD_Ts_Last_Hist_Mth,0,J213/J$208*MAX(MIN(INDEX($J$210:$V$210,J219),J216)-INDEX($J$209:$V$209,J219),0)) -> 0 | K222: 0 | L222: 0 | M222: 0 | N222: 0 | O222: 0 | P222: 0 | Q222: 0 | R222: 0 | S222: 0 | T222: 0 | U222: 0 | V222: 0
B223: =B212 -> Revenue GST Cash Receipts | J223: =IF(J$8<=DD_Ts_Last_Hist_Mth,0,SUMPRODUCT((($J217:$V219)=J$8)*$J220:$V222)) -> 0 | K223: 4000 | L223: 4000 | M223: 4000 | N223: 4000 | O223: 4000 | P223: 4000 | Q223: 4000 | R223: 4000 | S223: 4000 | T223: 4000 | U223: 4000 | V223: 4000
B225: Expenses GST Cash Payments
B226: Total GST on Expenses | J226: =SUM(J187:J192) -> 0 | K226: -3755.666667 | L226: -2260.72043 | M226: -2057.387097 | N226: -2158.892473 | O226: -2110.72043 | P226: -2107.27957 | Q226: -2110.72043 | R226: -2057.387097 | S226: -2413.83871 | T226: -2109 | U226: -2111.624385 | V226: -1951.536905
B227: =B117 -> Average Expenses Cash Receipt Delay (Days) | J227: =IF(J$8<=DD_Ts_Last_Hist_Mth,0,J117) -> 0 | K227: 0 | L227: 0 | M227: 0 | N227: 0 | O227: 0 | P227: 0 | Q227: 0 | R227: 0 | S227: 0 | T227: 0 | U227: 0 | V227: 0
B228: Cash Payments Start Time | J228: =J$209+J227 -> 0 | K228: 0 | L228: 30 | M228: 61 | N228: 91 | O228: 122 | P228: 153 | Q228: 183 | R228: 214 | S228: 244 | T228: 275 | U228: 306 | V228: 334
B229: Cash Payments End Time | J229: =J228+J$208 -> 0 | K229: 30 | L229: 61 | M229: 91 | N229: 122 | O229: 153 | P229: 183 | Q229: 214 | R229: 244 | S229: 275 | T229: 306 | U229: 334 | V229: 365
B230: Cash Payments Period 1 - Period Number | J230: =IF(J$8<=DD_Ts_Last_Hist_Mth,0,IF(J228>MAX($J$210:$V$210),0,MATCH(J228,$J$209:$V$209,1))) -> 0 | K230: 2 | L230: 3 | M230: 4 | N230: 5 | O230: 6 | P230: 7 | Q230: 8 | R230: 9 | S230: 10 | T230: 11 | U230: 12 | V230: 13
B231: Cash Payments Period 2 - Period Number | J231: =IF(J$8<=DD_Ts_Last_Hist_Mth,0,IF(J230<1,0,IF(J230>=COLUMNS($J230:$V230),0,J230+1))) -> 0 | K231: 3 | L231: 4 | M231: 5 | N231: 6 | O231: 7 | P231: 8 | Q231: 9 | R231: 10 | S231: 11 | T231: 12 | U231: 13 | V231: 0
B232: Cash Payments Period 3 - Period Number | J232: 0 | K232: 4 | L232: 5 | M232: 6 | N232: 7 | O232: 8 | P232: 9 | Q232: 10 | R232: 11 | S232: 12 | T232: 13 | U232: 0 | V232: 0
B233: Cash Payments Period 1 - Cash Paid | J233: =IF(J$8<=DD_Ts_Last_Hist_Mth,0,J226/J$208*MAX(MIN(INDEX($J$210:$V$210,J230),J229)-J228,0)) -> 0 | K233: -3755.666667 | L233: -2260.72043 | M233: -2057.387097 | N233: -2158.892473 | O233: -2110.72043 | P233: -2107.27957 | Q233: -2110.72043 | R233: -2057.387097 | S233: -2413.83871 | T233: -2109 | U233: -2111.624385 | V233: -1951.536905
B234: Cash Payments Period 2 - Cash Paid | J234: =IF(J$8<=DD_Ts_Last_Hist_Mth,0,J226/J$208*MAX(MIN(INDEX($J$210:$V$210,J231),J229)-INDEX($J$209:$V$209,J231),0)) -> 0 | K234: 0 | L234: 0 | M234: 0 | N234: 0 | O234: 0 | P234: 0 | Q234: 0 | R234: 0 | S234: 0 | T234: 0 | U234: 0 | V234: 0
B235: Cash Payments Period 3 - Cash Paid | J235: =IF(J$8<=DD_Ts_Last_Hist_Mth,0,J226/J$208*MAX(MIN(INDEX($J$210:$V$210,J232),J229)-INDEX($J$209:$V$209,J232),0)) -> 0 | K235: 0 | L235: 0 | M235: 0 | N235: 0 | O235: 0 | P235: 0 | Q235: 0 | R235: 0 | S235: 0 | T235: 0 | U235: 0 | V235: 0
B236: =B225 -> Expenses GST Cash Payments | J236: =IF(J$8<=DD_Ts_Last_Hist_Mth,0,SUMPRODUCT((($J230:$V232)=J$8)*$J233:$V235)) -> 0 | K236: -3755.666667 | L236: -2260.72043 | M236: -2057.387097 | N236: -2158.892473 | O236: -2110.72043 | P236: -2107.27957 | Q236: -2110.72043 | R236: -2057.387097 | S236: -2413.83871 | T236: -2109 | U236: -2111.624385 | V236: -1951.536905
B238: Net GST on Cash Receipts & Payments | J238: =J223+J236 -> 0 | K238: 244.3333333 | L238: 1739.27957 | M238: 1942.612903 | N238: 1841.107527 | O238: 1889.27957 | P238: 1892.72043 | Q238: 1889.27957 | R238: 1942.612903 | S238: 1586.16129 | T238: 1891 | U238: 1888.375615 | V238: 2048.463095
B240: Outputs - GST Payable & Paid
B242: Opening Balance | J242: =IF(J$8<=DD_Ts_Last_Hist_Mth,0,IF(J$8=DD_Ts_Last_Hist_Mth+1,$I$99,I247)) -> 0 | K242: 1500 | L242: 244.3333333 | M242: 1983.612903 | N242: 3926.225806 | O242: 1841.107527 | P242: 3730.387097 | Q242: 5623.107527 | R242: 1889.27957 | S242: 3831.892473 | T242: 5418.053763 | U242: 1891 | V242: 3779.375615
B243: GST Payable - Created During Period | J243: =J193 -> 0 | K243: 244.3333333 | L243: 1739.27957 | M243: 1942.612903 | N243: 1841.107527 | O243: 1889.27957 | P243: 1892.72043 | Q243: 1889.27957 | R243: 1942.612903 | S243: 1586.16129 | T243: 1891 | U243: 1888.375615 | V243: 2048.463095
C244: Opening GST Payable - Payments | J244: =IF(J$8<=DD_Ts_Last_Hist_Mth,0,IF(J$8=DD_Ts_Last_Hist_Mth+$I$100,-OFFSET($J242,0,DD_Ts_Last_Hist_Mth)*$I$101,IF(AND(J$8>DD_Ts_Last_Hist_Mth+$I$100,NOT(ISERROR(MATCH(J$7,$J203:J203,0)))),-(OFFSET($J242,0,DD_Ts_Last_Hist_Mth)+SUM($I244:I244)),0))) -> 0 | K244: =IF(K$8<=DD_Ts_Last_Hist_Mth,0,IF(K$8=DD_Ts_Last_Hist_Mth+$I$100,-OFFSET($J242,0,DD_Ts_Last_Hist_Mth)*$I$101,IF(AND(K$8>DD_Ts_Last_Hist_Mth+$I$100,NOT(ISERROR(MATCH(K$7,$J203:K203,0)))),-(OFFSET($J242,0,DD_Ts_Last_Hist_Mth)+SUM($I244:J244)),0))) -> -1500 | L244: =IF(L$8<=DD_Ts_Last_Hist_Mth,0,IF(L$8=DD_Ts_Last_Hist_Mth+$I$100,-OFFSET($J242,0,DD_Ts_Last_Hist_Mth)*$I$101,IF(AND(L$8>DD_Ts_Last_Hist_Mth+$I$100,NOT(ISERROR(MATCH(L$7,$J203:L203,0)))),-(OFFSET($J242,0,DD_Ts_Last_Hist_Mth)+SUM($I244:K244)),0))) -> 0 | M244: =IF(M$8<=DD_Ts_Last_Hist_Mth,0,IF(M$8=DD_Ts_Last_Hist_Mth+$I$100,-OFFSET($J242,0,DD_Ts_Last_Hist_Mth)*$I$101,IF(AND(M$8>DD_Ts_Last_Hist_Mth+$I$100,NOT(ISERROR(MATCH(M$7,$J203:M203,0)))),-(OFFSET($J242,0,DD_Ts_Last_Hist_Mth)+SUM($I244:L244)),0))) -> 0 | N244: =IF(N$8<=DD_Ts_Last_Hist_Mth,0,IF(N$8=DD_Ts_Last_Hist_Mth+$I$100,-OFFSET($J242,0,DD_Ts_Last_Hist_Mth)*$I$101,IF(AND(N$8>DD_Ts_Last_Hist_Mth+$I$100,NOT(ISERROR(MATCH(N$7,$J203:N203,0)))),-(OFFSET($J242,0,DD_Ts_Last_Hist_Mth)+SUM($I244:M244)),0))) -> 0 | O244: =IF(O$8<=DD_Ts_Last_Hist_Mth,0,IF(O$8=DD_Ts_Last_Hist_Mth+$I$100,-OFFSET($J242,0,DD_Ts_Last_Hist_Mth)*$I$101,IF(AND(O$8>DD_Ts_Last_Hist_Mth+$I$100,NOT(ISERROR(MATCH(O$7,$J203:O203,0)))),-(OFFSET($J242,0,DD_Ts_Last_Hist_Mth)+SUM($I244:N244)),0))) -> 0 | P244: =IF(P$8<=DD_Ts_Last_Hist_Mth,0,IF(P$8=DD_Ts_Last_Hist_Mth+$I$100,-OFFSET($J242,0,DD_Ts_Last_Hist_Mth)*$I$101,IF(AND(P$8>DD_Ts_Last_Hist_Mth+$I$100,NOT(ISERROR(MATCH(P$7,$J203:P203,0)))),-(OFFSET($J242,0,DD_Ts_Last_Hist_Mth)+SUM($I244:O244)),0))) -> 0 | Q244: =IF(Q$8<=DD_Ts_Last_Hist_Mth,0,IF(Q$8=DD_Ts_Last_Hist_Mth+$I$100,-OFFSET($J242,0,DD_Ts_Last_Hist_Mth)*$I$101,IF(AND(Q$8>DD_Ts_Last_Hist_Mth+$I$100,NOT(ISERROR(MATCH(Q$7,$J203:Q203,0)))),-(OFFSET($J242,0,DD_Ts_Last_Hist_Mth)+SUM($I244:P244)),0))) -> 0 | R244: =IF(R$8<=DD_Ts_Last_Hist_Mth,0,IF(R$8=DD_Ts_Last_Hist_Mth+$I$100,-OFFSET($J242,0,DD_Ts_Last_Hist_Mth)*$I$101,IF(AND(R$8>DD_Ts_Last_Hist_Mth+$I$100,NOT(ISERROR(MATCH(R$7,$J203:R203,0)))),-(OFFSET($J242,0,DD_Ts_Last_Hist_Mth)+SUM($I244:Q244)),0))) -> 0 | S244: =IF(S$8<=DD_Ts_Last_Hist_Mth,0,IF(S$8=DD_Ts_Last_Hist_Mth+$I$100,-OFFSET($J242,0,DD_Ts_Last_Hist_Mth)*$I$101,IF(AND(S$8>DD_Ts_Last_Hist_Mth+$I$100,NOT(ISERROR(MATCH(S$7,$J203:S203,0)))),-(OFFSET($J242,0,DD_Ts_Last_Hist_Mth)+SUM($I244:R244)),0))) -> 0 | T244: =IF(T$8<=DD_Ts_Last_Hist_Mth,0,IF(T$8=DD_Ts_Last_Hist_Mth+$I$100,-OFFSET($J242,0,DD_Ts_Last_Hist_Mth)*$I$101,IF(AND(T$8>DD_Ts_Last_Hist_Mth+$I$100,NOT(ISERROR(MATCH(T$7,$J203:T203,0)))),-(OFFSET($J242,0,DD_Ts_Last_Hist_Mth)+SUM($I244:S244)),0))) -> 0 | U244: =IF(U$8<=DD_Ts_Last_Hist_Mth,0,IF(U$8=DD_Ts_Last_Hist_Mth+$I$100,-OFFSET($J242,0,DD_Ts_Last_Hist_Mth)*$I$101,IF(AND(U$8>DD_Ts_Last_Hist_Mth+$I$100,NOT(ISERROR(MATCH(U$7,$J203:U203,0)))),-(OFFSET($J242,0,DD_Ts_Last_Hist_Mth)+SUM($I244:T244)),0))) -> 0 | V244: =IF(V$8<=DD_Ts_Last_Hist_Mth,0,IF(V$8=DD_Ts_Last_Hist_Mth+$I$100,-OFFSET($J242,0,DD_Ts_Last_Hist_Mth)*$I$101,IF(AND(V$8>DD_Ts_Last_Hist_Mth+$I$100,NOT(ISERROR(MATCH(V$7,$J203:V203,0)))),-(OFFSET($J242,0,DD_Ts_Last_Hist_Mth)+SUM($I244:U244)),0))) -> 0
C245: Periodic GST Payable - Payments | J245: =-J204 -> 0 | K245: 0 | L245: 0 | M245: 0 | N245: -3926.225806 | O245: 0 | P245: 0 | Q245: -5623.107527 | R245: 0 | S245: 0 | T245: -5418.053763 | U245: 0 | V245: 0
B246: GST Payable - Paid During Period | J246: =SUM(J244:J245) -> 0 | K246: -1500 | L246: 0 | M246: 0 | N246: -3926.225806 | O246: 0 | P246: 0 | Q246: -5623.107527 | R246: 0 | S246: 0 | T246: -5418.053763 | U246: 0 | V246: 0
B247: Closing GST Payable | J247: =SUM(J242:J243,J246) -> 0 | K247: 244.3333333 | L247: 1983.612903 | M247: 3926.225806 | N247: 1841.107527 | O247: 3730.387097 | P247: 5623.107527 | Q247: 1889.27957 | R247: 3831.892473 | S247: 5418.053763 | T247: 1891 | U247: 3779.375615 | V247: 5827.83871
B249: Summary
B251: =B242 -> Opening Balance | J251: =J242 -> 0 | K251: 1500 | L251: 244.3333333 | M251: 1983.612903 | N251: 3926.225806 | O251: 1841.107527 | P251: 3730.387097 | Q251: 5623.107527 | R251: 1889.27957 | S251: 3831.892473 | T251: 5418.053763 | U251: 1891 | V251: 3779.375615
B252: =B243 -> GST Payable - Created During Period | J252: =J243 -> 0 | K252: 244.3333333 | L252: 1739.27957 | M252: 1942.612903 | N252: 1841.107527 | O252: 1889.27957 | P252: 1892.72043 | Q252: 1889.27957 | R252: 1942.612903 | S252: 1586.16129 | T252: 1891 | U252: 1888.375615 | V252: 2048.463095
... 159 more rows

Sheet IS_Map (hidden)
A1: ± | B1: Mapping - Income Statement
B2: =Model_Name -> High Level 3-Way Financial Model
B4: Month Ending | J4: =TEXT(J7,"mmm-yy") -> Mar-20 | K4: Apr-20 | L4: May-20 | M4: Jun-20 | N4: Jul-20 | O4: Aug-20 | P4: Sep-20 | Q4: Oct-20 | R4: Nov-20 | S4: Dec-20 | T4: Jan-21 | U4: Feb-21 | V4: Mar-21
B5: Month | J5: ="M"&J11&IF(J8>DD_Ts_Last_Hist_Mth,Ts_Fcast_Per_ID,Ts_Hist_Per_ID) -> M9 (H) | K5: M10 (F) | L5: M11 (F) | M5: M12 (F) | N5: M1 (F) | O5: M2 (F) | P5: M3 (F) | Q5: M4 (F) | R5: M5 (F) | S5: M6 (F) | T5: M7 (F) | U5: M8 (F) | V5: M9 (F)
B6: Period Start Date | J6: =EDATE(Ts_Start_Date,J8-1) -> 2020-03-01 | K6: 2020-04-01 | L6: 2020-05-01 | M6: 2020-06-01 | N6: 2020-07-01 | O6: 2020-08-01 | P6: 2020-09-01 | Q6: 2020-10-01 | R6: 2020-11-01 | S6: 2020-12-01 | T6: 2021-01-01 | U6: 2021-02-01 | V6: 2021-03-01
B7: Period End Date | J7: =EDATE(Ts_Start_Date,J8)-1 -> 2020-03-31 | K7: 2020-04-30 | L7: 2020-05-31 | M7: 2020-06-30 | N7: 2020-07-31 | O7: 2020-08-31 | P7: 2020-09-30 | Q7: 2020-10-31 | R7: 2020-11-30 | S7: 2020-12-31 | T7: 2021-01-31 | U7: 2021-02-28 | V7: 2021-03-31
B8: Counter | J8: =COLUMNS($J8:J8) -> 1 | K8: =COLUMNS($J8:K8) -> 2 | L8: =COLUMNS($J8:L8) -> 3 | M8: =COLUMNS($J8:M8) -> 4 | N8: =COLUMNS($J8:N8) -> 5 | O8: =COLUMNS($J8:O8) -> 6 | P8: =COLUMNS($J8:P8) -> 7 | Q8: =COLUMNS($J8:Q8) -> 8 | R8: =COLUMNS($J8:R8) -> 9 | S8: =COLUMNS($J8:S8) -> 10 | T8: =COLUMNS($J8:T8) -> 11 | U8: =COLUMNS($J8:U8) -> 12 | V8: =COLUMNS($J8:V8) -> 13
B9: Financial Year | J9: =YEAR(J7)+IF(MONTH(J7)>DD_Ts_Fin_Yr_End_Mth,1,0) -> 2020 | K9: 2020 | L9: 2020 | M9: 2020 | N9: 2021 | O9: 2021 | P9: 2021 | Q9: 2021 | R9: 2021 | S9: 2021 | T9: 2021 | U9: 2021 | V9: 2021
B10: Active Column Number | J10: =IF(AND(J8>DD_Ts_Last_Hist_Mth,J8<=Ts_Term),J8-DD_Ts_Last_Hist_Mth,0) -> 0 | K10: 1 | L10: 2 | M10: 3 | N10: 4 | O10: 5 | P10: 6 | Q10: 7 | R10: 8 | S10: 9 | T10: 10 | U10: 11 | V10: 12
B11: Month Number | J11: =MOD(MONTH(J7)-DD_Ts_Fin_Yr_End_Mth-1,Ts_Mths_In_Yr)+1 -> 9 | K11: 10 | L11: 11 | M11: 12 | N11: 1 | O11: 2 | P11: 3 | Q11: 4 | R11: 5 | S11: 6 | T11: 7 | U11: 8 | V11: 9
B12: Month Key | J12: ="M"&J11&"-"&J9 -> M9-2020 | K12: M10-2020 | L12: M11-2020 | M12: M12-2020 | N12: M1-2021 | O12: M2-2021 | P12: M3-2021 | Q12: M4-2021 | R12: M5-2021 | S12: M6-2021 | T12: M7-2021 | U12: M8-2021 | V12: M9-2021
B13: Quarter Key | J13: ="Q"&INT((J11-1)/Ts_Mths_In_Qtr)+1&"-"&J9 -> Q3-2020 | K13: Q4-2020 | L13: Q4-2020 | M13: Q4-2020 | N13: Q1-2021 | O13: Q1-2021 | P13: Q1-2021 | Q13: Q2-2021 | R13: Q2-2021 | S13: Q2-2021 | T13: Q3-2021 | U13: Q3-2021 | V13: Q3-2021
B14: Half Key | J14: ="H"&INT((J11-1)/Ts_Mths_In_Half)+1&"-"&J9 -> H2-2020 | K14: H2-2020 | L14: H2-2020 | M14: H2-2020 | N14: H1-2021 | O14: H1-2021 | P14: H1-2021 | Q14: H1-2021 | R14: H1-2021 | S14: H1-2021 | T14: H2-2021 | U14: H2-2021 | V14: H2-2021
B16: Revenue Mapping
B18: Forecast Categories | H18: Map to Account
B19: =RevExp!B21 -> Revenue Category 1 | H19: Revenue | J19: =IF(J$8<=DD_Ts_Last_Hist_Mth,0,RevExp!J21) -> 0 | K19: =IF(K$8<=DD_Ts_Last_Hist_Mth,0,RevExp!K21) -> 20000 | L19: =IF(L$8<=DD_Ts_Last_Hist_Mth,0,RevExp!L21) -> 20000 | M19: =IF(M$8<=DD_Ts_Last_Hist_Mth,0,RevExp!M21) -> 20000 | N19: =IF(N$8<=DD_Ts_Last_Hist_Mth,0,RevExp!N21) -> 20000 | O19: =IF(O$8<=DD_Ts_Last_Hist_Mth,0,RevExp!O21) -> 20000 | P19: =IF(P$8<=DD_Ts_Last_Hist_Mth,0,RevExp!P21) -> 20000 | Q19: =IF(Q$8<=DD_Ts_Last_Hist_Mth,0,RevExp!Q21) -> 20000 | R19: =IF(R$8<=DD_Ts_Last_Hist_Mth,0,RevExp!R21) -> 20000 | S19: =IF(S$8<=DD_Ts_Last_Hist_Mth,0,RevExp!S21) -> 20000 | T19: =IF(T$8<=DD_Ts_Last_Hist_Mth,0,RevExp!T21) -> 20000 | U19: =IF(U$8<=DD_Ts_Last_Hist_Mth,0,RevExp!U21) -> 20000 | V19: =IF(V$8<=DD_Ts_Last_Hist_Mth,0,RevExp!V21) -> 20000
B20: =RevExp!B22 -> Revenue Category 2 | H20: Revenue | J20: =IF(J$8<=DD_Ts_Last_Hist_Mth,0,RevExp!J22) -> 0 | K20: =IF(K$8<=DD_Ts_Last_Hist_Mth,0,RevExp!K22) -> 20000 | L20: =IF(L$8<=DD_Ts_Last_Hist_Mth,0,RevExp!L22) -> 20000 | M20: =IF(M$8<=DD_Ts_Last_Hist_Mth,0,RevExp!M22) -> 20000 | N20: =IF(N$8<=DD_Ts_Last_Hist_Mth,0,RevExp!N22) -> 20000 | O20: =IF(O$8<=DD_Ts_Last_Hist_Mth,0,RevExp!O22) -> 20000 | P20: =IF(P$8<=DD_Ts_Last_Hist_Mth,0,RevExp!P22) -> 20000 | Q20: =IF(Q$8<=DD_Ts_Last_Hist_Mth,0,RevExp!Q22) -> 20000 | R20: =IF(R$8<=DD_Ts_Last_Hist_Mth,0,RevExp!R22) -> 20000 | S20: =IF(S$8<=DD_Ts_Last_Hist_Mth,0,RevExp!S22) -> 20000 | T20: =IF(T$8<=DD_Ts_Last_Hist_Mth,0,RevExp!T22) -> 20000 | U20: =IF(U$8<=DD_Ts_Last_Hist_Mth,0,RevExp!U22) -> 20000 | V20: =IF(V$8<=DD_Ts_Last_Hist_Mth,0,RevExp!V22) -> 20000
B21: Total Revenue | J21: =SUM(J19:J20) -> 0 | K21: 40000 | L21: 40000 | M21: 40000 | N21: 40000 | O21: 40000 | P21: 40000 | Q21: 40000 | R21: 40000 | S21: 40000 | T21: 40000 | U21: 40000 | V21: 40000
B23: Historical Categories
A24: =B24 -> Revenue | B24: ='FS Opening'!B18 -> Revenue | J24: =IF(J$8<=DD_Ts_Last_Hist_Mth,'FS Opening'!J18,SUMIF($H$19:$I$20,$B24,J$19:J$20)) -> 0 | K24: =IF(K$8<=DD_Ts_Last_Hist_Mth,'FS Opening'!K18,SUMIF($H$19:$I$20,$B24,K$19:K$20)) -> 40000 | L24: =IF(L$8<=DD_Ts_Last_Hist_Mth,'FS Opening'!L18,SUMIF($H$19:$I$20,$B24,L$19:L$20)) -> 40000 | M24: =IF(M$8<=DD_Ts_Last_Hist_Mth,'FS Opening'!M18,SUMIF($H$19:$I$20,$B24,M$19:M$20)) -> 40000 | N24: =IF(N$8<=DD_Ts_Last_Hist_Mth,'FS Opening'!N18,SUMIF($H$19:$I$20,$B24,N$19:N$20)) -> 40000 | O24: =IF(O$8<=DD_Ts_Last_Hist_Mth,'FS Opening'!O18,SUMIF($H$19:$I$20,$B24,O$19:O$20)) -> 40000 | P24: =IF(P$8<=DD_Ts_Last_Hist_Mth,'FS Opening'!P18,SUMIF($H$19:$I$20,$B24,P$19:P$20)) -> 40000 | Q24: =IF(Q$8<=DD_Ts_Last_Hist_Mth,'FS Opening'!Q18,SUMIF($H$19:$I$20,$B24,Q$19:Q$20)) -> 40000 | R24: =IF(R$8<=DD_Ts_Last_Hist_Mth,'FS Opening'!R18,SUMIF($H$19:$I$20,$B24,R$19:R$20)) -> 40000 | S24: =IF(S$8<=DD_Ts_Last_Hist_Mth,'FS Opening'!S18,SUMIF($H$19:$I$20,$B24,S$19:S$20)) -> 40000 | T24: =IF(T$8<=DD_Ts_Last_Hist_Mth,'FS Opening'!T18,SUMIF($H$19:$I$20,$B24,T$19:T$20)) -> 40000 | U24: =IF(U$8<=DD_Ts_Last_Hist_Mth,'FS Opening'!U18,SUMIF($H$19:$I$20,$B24,U$19:U$20)) -> 40000 | V24: =IF(V$8<=DD_Ts_Last_Hist_Mth,'FS Opening'!V18,SUMIF($H$19:$I$20,$B24,V$19:V$20)) -> 40000
B25: =B21 -> Total Revenue | J25: =SUM(J24:J24) -> 0 | K25: 40000 | L25: 40000 | M25: 40000 | N25: 40000 | O25: 40000 | P25: 40000 | Q25: 40000 | R25: 40000 | S25: 40000 | T25: 40000 | U25: 40000 | V25: 40000
C27: Error Values | J27: =IF(ISERROR(J25),1,0) -> 0 | K27: 0 | L27: 0 | M27: 0 | N27: 0 | O27: 0 | P27: 0 | Q27: 0 | R27: 0 | S27: 0 | T27: 0 | U27: 0 | V27: 0
C28: Unmapped Forecasts | J28: =IF(J$8<=DD_Ts_Last_Hist_Mth,0,IF(J27<>0,0,IF(ROUND(J21-J25,4)<>0,1,0))) -> 0 | K28: 0 | L28: 0 | M28: 0 | N28: 0 | O28: 0 | P28: 0 | Q28: 0 | R28: 0 | S28: 0 | T28: 0 | U28: 0 | V28: 0
B29: Total Error Checks Result | I29: =IF(ISERROR(SUM(J29:V29)),1,MIN(SUM(J29:V29),1)) -> 0 | J29: =MIN(SUM(J27:J28),1) -> 0 | K29: 0 | L29: 0 | M29: 0 | N29: 0 | O29: 0 | P29: 0 | Q29: 0 | R29: 0 | S29: 0 | T29: 0 | U29: 0 | V29: 0
B30: Alert Check (Negative Amounts) | I30: =IF(ISERROR(SUM(J30:V30)),1,MIN(SUM(J30:V30),1)) -> 0 | J30: =IF(J$8<=DD_Ts_Last_Hist_Mth,0,IF(J29<>0,0,IF(MIN(J19:J20)<0,1,0))) -> 0 | K30: 0 | L30: 0 | M30: 0 | N30: 0 | O30: 0 | P30: 0 | Q30: 0 | R30: 0 | S30: 0 | T30: 0 | U30: 0 | V30: 0
B32: Cost of Sales Mapping
B34: Forecast Categories | H34: Map to Account
B35: =RevExp!B34 -> Cost of Sales Category 1 | H35: Cost of Sales | J35: =IF(J$8<=DD_Ts_Last_Hist_Mth,0,RevExp!J34) -> 0 | K35: =IF(K$8<=DD_Ts_Last_Hist_Mth,0,RevExp!K34) -> 8000 | L35: =IF(L$8<=DD_Ts_Last_Hist_Mth,0,RevExp!L34) -> 8000 | M35: =IF(M$8<=DD_Ts_Last_Hist_Mth,0,RevExp!M34) -> 8000 | N35: =IF(N$8<=DD_Ts_Last_Hist_Mth,0,RevExp!N34) -> 8000 | O35: =IF(O$8<=DD_Ts_Last_Hist_Mth,0,RevExp!O34) -> 8000 | P35: =IF(P$8<=DD_Ts_Last_Hist_Mth,0,RevExp!P34) -> 8000 | Q35: =IF(Q$8<=DD_Ts_Last_Hist_Mth,0,RevExp!Q34) -> 8000 | R35: =IF(R$8<=DD_Ts_Last_Hist_Mth,0,RevExp!R34) -> 8000 | S35: =IF(S$8<=DD_Ts_Last_Hist_Mth,0,RevExp!S34) -> 8000 | T35: =IF(T$8<=DD_Ts_Last_Hist_Mth,0,RevExp!T34) -> 8000 | U35: =IF(U$8<=DD_Ts_Last_Hist_Mth,0,RevExp!U34) -> 8000 | V35: =IF(V$8<=DD_Ts_Last_Hist_Mth,0,RevExp!V34) -> 8000
B36: =RevExp!B35 -> Cost of Sales Category 2 | H36: Cost of Sales | J36: =IF(J$8<=DD_Ts_Last_Hist_Mth,0,RevExp!J35) -> 0 | K36: =IF(K$8<=DD_Ts_Last_Hist_Mth,0,RevExp!K35) -> 8000 | L36: =IF(L$8<=DD_Ts_Last_Hist_Mth,0,RevExp!L35) -> 8000 | M36: =IF(M$8<=DD_Ts_Last_Hist_Mth,0,RevExp!M35) -> 8000 | N36: =IF(N$8<=DD_Ts_Last_Hist_Mth,0,RevExp!N35) -> 8000 | O36: =IF(O$8<=DD_Ts_Last_Hist_Mth,0,RevExp!O35) -> 8000 | P36: =IF(P$8<=DD_Ts_Last_Hist_Mth,0,RevExp!P35) -> 8000 | Q36: =IF(Q$8<=DD_Ts_Last_Hist_Mth,0,RevExp!Q35) -> 8000 | R36: =IF(R$8<=DD_Ts_Last_Hist_Mth,0,RevExp!R35) -> 8000 | S36: =IF(S$8<=DD_Ts_Last_Hist_Mth,0,RevExp!S35) -> 8000 | T36: =IF(T$8<=DD_Ts_Last_Hist_Mth,0,RevExp!T35) -> 8000 | U36: =IF(U$8<=DD_Ts_Last_Hist_Mth,0,RevExp!U35) -> 8000 | V36: =IF(V$8<=DD_Ts_Last_Hist_Mth,0,RevExp!V35) -> 8000
B37: Total Cost of Sales | J37: =SUM(J35:J36) -> 0 | K37: 16000 | L37: 16000 | M37: 16000 | N37: 16000 | O37: 16000 | P37: 16000 | Q37: 16000 | R37: 16000 | S37: 16000 | T37: 16000 | U37: 16000 | V37: 16000
B39: Historical Categories
A40: =B40 -> Cost of Sales | B40: ='FS Opening'!B21 -> Cost of Sales | J40: =IF(J$8<=DD_Ts_Last_Hist_Mth,'FS Opening'!J21,SUMIF($H$35:$I$36,$B40,J$35:J$36)) -> 0 | K40: =IF(K$8<=DD_Ts_Last_Hist_Mth,'FS Opening'!K21,SUMIF($H$35:$I$36,$B40,K$35:K$36)) -> 16000 | L40: =IF(L$8<=DD_Ts_Last_Hist_Mth,'FS Opening'!L21,SUMIF($H$35:$I$36,$B40,L$35:L$36)) -> 16000 | M40: =IF(M$8<=DD_Ts_Last_Hist_Mth,'FS Opening'!M21,SUMIF($H$35:$I$36,$B40,M$35:M$36)) -> 16000 | N40: =IF(N$8<=DD_Ts_Last_Hist_Mth,'FS Opening'!N21,SUMIF($H$35:$I$36,$B40,N$35:N$36)) -> 16000 | O40: =IF(O$8<=DD_Ts_Last_Hist_Mth,'FS Opening'!O21,SUMIF($H$35:$I$36,$B40,O$35:O$36)) -> 16000 | P40: =IF(P$8<=DD_Ts_Last_Hist_Mth,'FS Opening'!P21,SUMIF($H$35:$I$36,$B40,P$35:P$36)) -> 16000 | Q40: =IF(Q$8<=DD_Ts_Last_Hist_Mth,'FS Opening'!Q21,SUMIF($H$35:$I$36,$B40,Q$35:Q$36)) -> 16000 | R40: =IF(R$8<=DD_Ts_Last_Hist_Mth,'FS Opening'!R21,SUMIF($H$35:$I$36,$B40,R$35:R$36)) -> 16000 | S40: =IF(S$8<=DD_Ts_Last_Hist_Mth,'FS Opening'!S21,SUMIF($H$35:$I$36,$B40,S$35:S$36)) -> 16000 | T40: =IF(T$8<=DD_Ts_Last_Hist_Mth,'FS Opening'!T21,SUMIF($H$35:$I$36,$B40,T$35:T$36)) -> 16000 | U40: =IF(U$8<=DD_Ts_Last_Hist_Mth,'FS Opening'!U21,SUMIF($H$35:$I$36,$B40,U$35:U$36)) -> 16000 | V40: =IF(V$8<=DD_Ts_Last_Hist_Mth,'FS Opening'!V21,SUMIF($H$35:$I$36,$B40,V$35:V$36)) -> 16000
B41: =B37 -> Total Cost of Sales | J41: =SUM(J40:J40) -> 0 | K41: 16000 | L41: 16000 | M41: 16000 | N41: 16000 | O41: 16000 | P41: 16000 | Q41: 16000 | R41: 16000 | S41: 16000 | T41: 16000 | U41: 16000 | V41: 16000
C43: Error Values | J43: =IF(ISERROR(J41),1,0) -> 0 | K43: 0 | L43: 0 | M43: 0 | N43: 0 | O43: 0 | P43: 0 | Q43: 0 | R43: 0 | S43: 0 | T43: 0 | U43: 0 | V43: 0
C44: Unmapped Forecasts | J44: =IF(J$8<=DD_Ts_Last_Hist_Mth,0,IF(J43<>0,0,IF(ROUND(J37-J41,4)<>0,1,0))) -> 0 | K44: 0 | L44: 0 | M44: 0 | N44: 0 | O44: 0 | P44: 0 | Q44: 0 | R44: 0 | S44: 0 | T44: 0 | U44: 0 | V44: 0
B45: Total Error Checks Result | I45: =IF(ISERROR(SUM(J45:V45)),1,MIN(SUM(J45:V45),1)) -> 0 | J45: =MIN(SUM(J43:J44),1) -> 0 | K45: 0 | L45: 0 | M45: 0 | N45: 0 | O45: 0 | P45: 0 | Q45: 0 | R45: 0 | S45: 0 | T45: 0 | U45: 0 | V45: 0
B46: Alert Check (Negative Amounts) | I46: =IF(ISERROR(SUM(J46:V46)),1,MIN(SUM(J46:V46),1)) -> 0 | J46: =IF(J$8<=DD_Ts_Last_Hist_Mth,0,IF(J45<>0,0,IF(MIN(J35:J36)<0,1,0))) -> 0 | K46: 0 | L46: 0 | M46: 0 | N46: 0 | O46: 0 | P46: 0 | Q46: 0 | R46: 0 | S46: 0 | T46: 0 | U46: 0 | V46: 0
B48: Other Revenue Mapping
B50: Forecast Categories | H50: Map to Account
B51: =RevExp!B120 -> Other Revenue | H51: Other Revenue | J51: =RevExp!J120 -> 0 | K51: =RevExp!K120 -> 0 | L51: =RevExp!L120 -> 0 | M51: =RevExp!M120 -> 0 | N51: =RevExp!N120 -> 0 | O51: =RevExp!O120 -> 0 | P51: =RevExp!P120 -> 0 | Q51: =RevExp!Q120 -> 0 | R51: =RevExp!R120 -> 0 | S51: =RevExp!S120 -> 0 | T51: =RevExp!T120 -> 0 | U51: =RevExp!U120 -> 0 | V51: =RevExp!V120 -> 0
B52: =GovtStimulus!B33 -> JobKeeper Payment | H52: Other Revenue (Non GST) | J52: =GovtStimulus!J33 -> 0 | K52: =GovtStimulus!K33 -> 0 | L52: =GovtStimulus!L33 -> 0 | M52: =GovtStimulus!M33 -> 0 | N52: =GovtStimulus!N33 -> 0 | O52: =GovtStimulus!O33 -> 0 | P52: =GovtStimulus!P33 -> 0 | Q52: =GovtStimulus!Q33 -> 0 | R52: =GovtStimulus!R33 -> 0 | S52: =GovtStimulus!S33 -> 0 | T52: =GovtStimulus!T33 -> 0 | U52: =GovtStimulus!U33 -> 0 | V52: =GovtStimulus!V33 -> 0
B53: =GovtStimulus!B66 -> Cashflow Boost Payment | H53: Other Revenue (Non GST) | J53: =GovtStimulus!J66 -> 0 | K53: =GovtStimulus!K66 -> 10000 | L53: =GovtStimulus!L66 -> 0 | M53: =GovtStimulus!M66 -> 14025 | N53: =GovtStimulus!N66 -> 12012.5 | O53: =GovtStimulus!O66 -> 0 | P53: =GovtStimulus!P66 -> 0 | Q53: =GovtStimulus!Q66 -> 12012.5 | R53: =GovtStimulus!R66 -> 0 | S53: =GovtStimulus!S66 -> 0 | T53: =GovtStimulus!T66 -> 0 | U53: =GovtStimulus!U66 -> 0 | V53: =GovtStimulus!V66 -> 0
B54: Total Other Revenue | J54: =SUM(J51:J53) -> 0 | K54: 10000 | L54: 0 | M54: 14025 | N54: 12012.5 | O54: 0 | P54: 0 | Q54: 12012.5 | R54: 0 | S54: 0 | T54: 0 | U54: 0 | V54: 0
B56: Historical Categories | H56: Cash Flow Impact
A57: =B57 -> Other Revenue | B57: ='FS Opening'!B24 -> Other Revenue | H57: Cash Receipts | J57: =IF(J$8<=DD_Ts_Last_Hist_Mth,'FS Opening'!J24,SUMIF($H$51:$I$53,$B57,J$51:J$53)) -> 0 | K57: =IF(K$8<=DD_Ts_Last_Hist_Mth,'FS Opening'!K24,SUMIF($H$51:$I$53,$B57,K$51:K$53)) -> 0 | L57: =IF(L$8<=DD_Ts_Last_Hist_Mth,'FS Opening'!L24,SUMIF($H$51:$I$53,$B57,L$51:L$53)) -> 0 | M57: =IF(M$8<=DD_Ts_Last_Hist_Mth,'FS Opening'!M24,SUMIF($H$51:$I$53,$B57,M$51:M$53)) -> 0 | N57: =IF(N$8<=DD_Ts_Last_Hist_Mth,'FS Opening'!N24,SUMIF($H$51:$I$53,$B57,N$51:N$53)) -> 0 | O57: =IF(O$8<=DD_Ts_Last_Hist_Mth,'FS Opening'!O24,SUMIF($H$51:$I$53,$B57,O$51:O$53)) -> 0 | P57: =IF(P$8<=DD_Ts_Last_Hist_Mth,'FS Opening'!P24,SUMIF($H$51:$I$53,$B57,P$51:P$53)) -> 0 | Q57: =IF(Q$8<=DD_Ts_Last_Hist_Mth,'FS Opening'!Q24,SUMIF($H$51:$I$53,$B57,Q$51:Q$53)) -> 0 | R57: =IF(R$8<=DD_Ts_Last_Hist_Mth,'FS Opening'!R24,SUMIF($H$51:$I$53,$B57,R$51:R$53)) -> 0 | S57: =IF(S$8<=DD_Ts_Last_Hist_Mth,'FS Opening'!S24,SUMIF($H$51:$I$53,$B57,S$51:S$53)) -> 0 | T57: =IF(T$8<=DD_Ts_Last_Hist_Mth,'FS Opening'!T24,SUMIF($H$51:$I$53,$B57,T$51:T$53)) -> 0 | U57: =IF(U$8<=DD_Ts_Last_Hist_Mth,'FS Opening'!U24,SUMIF($H$51:$I$53,$B57,U$51:U$53)) -> 0 | V57: =IF(V$8<=DD_Ts_Last_Hist_Mth,'FS Opening'!V24,SUMIF($H$51:$I$53,$B57,V$51:V$53)) -> 0
A58: Other Revenue (Non GST) | B58: ='FS Opening'!B25 -> Other Revenue (Non GST) | H58: Cash Receipts | J58: =IF(J$8<=DD_Ts_Last_Hist_Mth,'FS Opening'!J25,SUMIF($H$51:$I$53,$B58,J$51:J$53)) -> 0 | K58: =IF(K$8<=DD_Ts_Last_Hist_Mth,'FS Opening'!K25,SUMIF($H$51:$I$53,$B58,K$51:K$53)) -> 10000 | L58: =IF(L$8<=DD_Ts_Last_Hist_Mth,'FS Opening'!L25,SUMIF($H$51:$I$53,$B58,L$51:L$53)) -> 0 | M58: =IF(M$8<=DD_Ts_Last_Hist_Mth,'FS Opening'!M25,SUMIF($H$51:$I$53,$B58,M$51:M$53)) -> 14025 | N58: =IF(N$8<=DD_Ts_Last_Hist_Mth,'FS Opening'!N25,SUMIF($H$51:$I$53,$B58,N$51:N$53)) -> 12012.5 | O58: =IF(O$8<=DD_Ts_Last_Hist_Mth,'FS Opening'!O25,SUMIF($H$51:$I$53,$B58,O$51:O$53)) -> 0 | P58: =IF(P$8<=DD_Ts_Last_Hist_Mth,'FS Opening'!P25,SUMIF($H$51:$I$53,$B58,P$51:P$53)) -> 0 | Q58: =IF(Q$8<=DD_Ts_Last_Hist_Mth,'FS Opening'!Q25,SUMIF($H$51:$I$53,$B58,Q$51:Q$53)) -> 12012.5 | R58: =IF(R$8<=DD_Ts_Last_Hist_Mth,'FS Opening'!R25,SUMIF($H$51:$I$53,$B58,R$51:R$53)) -> 0 | S58: =IF(S$8<=DD_Ts_Last_Hist_Mth,'FS Opening'!S25,SUMIF($H$51:$I$53,$B58,S$51:S$53)) -> 0 | T58: =IF(T$8<=DD_Ts_Last_Hist_Mth,'FS Opening'!T25,SUMIF($H$51:$I$53,$B58,T$51:T$53)) -> 0 | U58: =IF(U$8<=DD_Ts_Last_Hist_Mth,'FS Opening'!U25,SUMIF($H$51:$I$53,$B58,U$51:U$53)) -> 0 | V58: =IF(V$8<=DD_Ts_Last_Hist_Mth,'FS Opening'!V25,SUMIF($H$51:$I$53,$B58,V$51:V$53)) -> 0
B59: =B54 -> Total Other Revenue | J59: =SUM(J57:J58) -> 0 | K59: 10000 | L59: 0 | M59: 14025 | N59: 12012.5 | O59: 0 | P59: 0 | Q59: 12012.5 | R59: 0 | S59: 0 | T59: 0 | U59: 0 | V59: 0
B61: Other Revenue - Cash Receipts | H61: Cash Receipts | J61: =SUMIF($H$57:$H$58,$H61,J$57:J$58) -> 0 | K61: 10000 | L61: 0 | M61: 14025 | N61: 12012.5 | O61: 0 | P61: 0 | Q61: 12012.5 | R61: 0 | S61: 0 | T61: 0 | U61: 0 | V61: 0
B62: Other Revenue - Cash Payments | H62: Cash Payments | J62: =SUMIF($H$57:$H$58,$H62,J$57:J$58) -> 0 | K62: 0 | L62: 0 | M62: 0 | N62: 0 | O62: 0 | P62: 0 | Q62: 0 | R62: 0 | S62: 0 | T62: 0 | U62: 0 | V62: 0
B63: Other Revenue - Operating Cash Flows | H63: Operating Cash Flows | J63: =SUMIF($H$57:$H$58,$H63,J$57:J$58) -> 0 | K63: 0 | L63: 0 | M63: 0 | N63: 0 | O63: 0 | P63: 0 | Q63: 0 | R63: 0 | S63: 0 | T63: 0 | U63: 0 | V63: 0
B64: Other Revenue - Investing Cash Flows | H64: Investing Cash Flows | J64: =SUMIF($H$57:$H$58,$H64,J$57:J$58) -> 0 | K64: 0 | L64: 0 | M64: 0 | N64: 0 | O64: 0 | P64: 0 | Q64: 0 | R64: 0 | S64: 0 | T64: 0 | U64: 0 | V64: 0
B65: Other Revenue - Financing Cash Flows | H65: Financing Cash Flows | J65: =SUMIF($H$57:$H$58,$H65,J$57:J$58) -> 0 | K65: 0 | L65: 0 | M65: 0 | N65: 0 | O65: 0 | P65: 0 | Q65: 0 | R65: 0 | S65: 0 | T65: 0 | U65: 0 | V65: 0
B66: Cash Flow Statement Impacts | J66: =SUM(J61:J65) -> 0 | K66: 10000 | L66: 0 | M66: 14025 | N66: 12012.5 | O66: 0 | P66: 0 | Q66: 12012.5 | R66: 0 | S66: 0 | T66: 0 | U66: 0 | V66: 0
C68: Error Values | J68: =IF(ISERROR(J59),1,0) -> 0 | K68: 0 | L68: 0 | M68: 0 | N68: 0 | O68: 0 | P68: 0 | Q68: 0 | R68: 0 | S68: 0 | T68: 0 | U68: 0 | V68: 0
C69: Unmapped Forecasts | J69: =IF(J$8<=DD_Ts_Last_Hist_Mth,0,IF(J68<>0,0,IF(ROUND(J54-J59,4)<>0,1,0))) -> 0 | K69: 0 | L69: 0 | M69: 0 | N69: 0 | O69: 0 | P69: 0 | Q69: 0 | R69: 0 | S69: 0 | T69: 0 | U69: 0 | V69: 0
C70: CFS Impacts Reconciliation | J70: =IF(J68<>0,0,IF(ROUND(J59-J66,4)<>0,1,0)) -> 0 | K70: 0 | L70: 0 | M70: 0 | N70: 0 | O70: 0 | P70: 0 | Q70: 0 | R70: 0 | S70: 0 | T70: 0 | U70: 0 | V70: 0
B71: Total Error Checks Result | I71: =IF(ISERROR(SUM(J71:V71)),1,MIN(SUM(J71:V71),1)) -> 0 | J71: =MIN(SUM(J68:J70),1) -> 0 | K71: 0 | L71: 0 | M71: 0 | N71: 0 | O71: 0 | P71: 0 | Q71: 0 | R71: 0 | S71: 0 | T71: 0 | U71: 0 | V71: 0
B72: Alert Check (Negative Amounts) | I72: =IF(ISERROR(SUM(J72:V72)),1,MIN(SUM(J72:V72),1)) -> 0 | J72: =IF(J$8<=DD_Ts_Last_Hist_Mth,0,IF(J71<>0,0,IF(MIN(J51:J53)<0,1,0))) -> 0 | K72: 0 | L72: 0 | M72: 0 | N72: 0 | O72: 0 | P72: 0 | Q72: 0 | R72: 0 | S72: 0 | T72: 0 | U72: 0 | V72: 0
B74: Salaries & Wages Mapping
B76: Forecast Categories | H76: Map to Account
B77: =RevExp!B57 -> Total Base Salaries & Wages | H77: Salaries & Wages | J77: =IF(J$8<=DD_Ts_Last_Hist_Mth,0,RevExp!J57) -> 0 | K77: =IF(K$8<=DD_Ts_Last_Hist_Mth,0,RevExp!K57) -> 17000 | L77: =IF(L$8<=DD_Ts_Last_Hist_Mth,0,RevExp!L57) -> 17000 | M77: =IF(M$8<=DD_Ts_Last_Hist_Mth,0,RevExp!M57) -> 17000 | N77: =IF(N$8<=DD_Ts_Last_Hist_Mth,0,RevExp!N57) -> 17000 | O77: =IF(O$8<=DD_Ts_Last_Hist_Mth,0,RevExp!O57) -> 17000 | P77: =IF(P$8<=DD_Ts_Last_Hist_Mth,0,RevExp!P57) -> 17000 | Q77: =IF(Q$8<=DD_Ts_Last_Hist_Mth,0,RevExp!Q57) -> 17000 | R77: =IF(R$8<=DD_Ts_Last_Hist_Mth,0,RevExp!R57) -> 17000 | S77: =IF(S$8<=DD_Ts_Last_Hist_Mth,0,RevExp!S57) -> 17000 | T77: =IF(T$8<=DD_Ts_Last_Hist_Mth,0,RevExp!T57) -> 17000 | U77: =IF(U$8<=DD_Ts_Last_Hist_Mth,0,RevExp!U57) -> 17000 | V77: =IF(V$8<=DD_Ts_Last_Hist_Mth,0,RevExp!V57) -> 17000
B78: =RevExp!B75 -> Total Superannuation Withheld | H78: Superannuation | J78: =IF(J$8<=DD_Ts_Last_Hist_Mth,0,RevExp!J75) -> 0 | K78: =IF(K$8<=DD_Ts_Last_Hist_Mth,0,RevExp!K75) -> 1615 | L78: =IF(L$8<=DD_Ts_Last_Hist_Mth,0,RevExp!L75) -> 1615 | M78: =IF(M$8<=DD_Ts_Last_Hist_Mth,0,RevExp!M75) -> 1615 | N78: =IF(N$8<=DD_Ts_Last_Hist_Mth,0,RevExp!N75) -> 1615 | O78: =IF(O$8<=DD_Ts_Last_Hist_Mth,0,RevExp!O75) -> 1615 | P78: =IF(P$8<=DD_Ts_Last_Hist_Mth,0,RevExp!P75) -> 1615 | Q78: =IF(Q$8<=DD_Ts_Last_Hist_Mth,0,RevExp!Q75) -> 1615 | R78: =IF(R$8<=DD_Ts_Last_Hist_Mth,0,RevExp!R75) -> 1615 | S78: =IF(S$8<=DD_Ts_Last_Hist_Mth,0,RevExp!S75) -> 1615 | T78: =IF(T$8<=DD_Ts_Last_Hist_Mth,0,RevExp!T75) -> 1615 | U78: =IF(U$8<=DD_Ts_Last_Hist_Mth,0,RevExp!U75) -> 1615 | V78: =IF(V$8<=DD_Ts_Last_Hist_Mth,0,RevExp!V75) -> 1615
B79: Total Salaries & Wages | J79: =SUM(J77:J78) -> 0 | K79: 18615 | L79: 18615 | M79: 18615 | N79: 18615 | O79: 18615 | P79: 18615 | Q79: 18615 | R79: 18615 | S79: 18615 | T79: 18615 | U79: 18615 | V79: 18615
B81: Historical Categories
A82: =B82 -> Salaries & Wages | B82: ='FS Opening'!B28 -> Salaries & Wages | J82: =IF(J$8<=DD_Ts_Last_Hist_Mth,'FS Opening'!J28,SUMIF($H$77:$I$78,$B82,J$77:J$78)) -> 0 | K82: =IF(K$8<=DD_Ts_Last_Hist_Mth,'FS Opening'!K28,SUMIF($H$77:$I$78,$B82,K$77:K$78)) -> 17000 | L82: =IF(L$8<=DD_Ts_Last_Hist_Mth,'FS Opening'!L28,SUMIF($H$77:$I$78,$B82,L$77:L$78)) -> 17000 | M82: =IF(M$8<=DD_Ts_Last_Hist_Mth,'FS Opening'!M28,SUMIF($H$77:$I$78,$B82,M$77:M$78)) -> 17000 | N82: =IF(N$8<=DD_Ts_Last_Hist_Mth,'FS Opening'!N28,SUMIF($H$77:$I$78,$B82,N$77:N$78)) -> 17000 | O82: =IF(O$8<=DD_Ts_Last_Hist_Mth,'FS Opening'!O28,SUMIF($H$77:$I$78,$B82,O$77:O$78)) -> 17000 | P82: =IF(P$8<=DD_Ts_Last_Hist_Mth,'FS Opening'!P28,SUMIF($H$77:$I$78,$B82,P$77:P$78)) -> 17000 | Q82: =IF(Q$8<=DD_Ts_Last_Hist_Mth,'FS Opening'!Q28,SUMIF($H$77:$I$78,$B82,Q$77:Q$78)) -> 17000 | R82: =IF(R$8<=DD_Ts_Last_Hist_Mth,'FS Opening'!R28,SUMIF($H$77:$I$78,$B82,R$77:R$78)) -> 17000 | S82: =IF(S$8<=DD_Ts_Last_Hist_Mth,'FS Opening'!S28,SUMIF($H$77:$I$78,$B82,S$77:S$78)) -> 17000 | T82: =IF(T$8<=DD_Ts_Last_Hist_Mth,'FS Opening'!T28,SUMIF($H$77:$I$78,$B82,T$77:T$78)) -> 17000 | U82: =IF(U$8<=DD_Ts_Last_Hist_Mth,'FS Opening'!U28,SUMIF($H$77:$I$78,$B82,U$77:U$78)) -> 17000 | V82: =IF(V$8<=DD_Ts_Last_Hist_Mth,'FS Opening'!V28,SUMIF($H$77:$I$78,$B82,V$77:V$78)) -> 17000
A83: Superannuation | B83: ='FS Opening'!B29 -> Superannuation | J83: =IF(J$8<=DD_Ts_Last_Hist_Mth,'FS Opening'!J29,SUMIF($H$77:$I$78,$B83,J$77:J$78)) -> 0 | K83: =IF(K$8<=DD_Ts_Last_Hist_Mth,'FS Opening'!K29,SUMIF($H$77:$I$78,$B83,K$77:K$78)) -> 1615 | L83: =IF(L$8<=DD_Ts_Last_Hist_Mth,'FS Opening'!L29,SUMIF($H$77:$I$78,$B83,L$77:L$78)) -> 1615 | M83: =IF(M$8<=DD_Ts_Last_Hist_Mth,'FS Opening'!M29,SUMIF($H$77:$I$78,$B83,M$77:M$78)) -> 1615 | N83: =IF(N$8<=DD_Ts_Last_Hist_Mth,'FS Opening'!N29,SUMIF($H$77:$I$78,$B83,N$77:N$78)) -> 1615 | O83: =IF(O$8<=DD_Ts_Last_Hist_Mth,'FS Opening'!O29,SUMIF($H$77:$I$78,$B83,O$77:O$78)) -> 1615 | P83: =IF(P$8<=DD_Ts_Last_Hist_Mth,'FS Opening'!P29,SUMIF($H$77:$I$78,$B83,P$77:P$78)) -> 1615 | Q83: =IF(Q$8<=DD_Ts_Last_Hist_Mth,'FS Opening'!Q29,SUMIF($H$77:$I$78,$B83,Q$77:Q$78)) -> 1615 | R83: =IF(R$8<=DD_Ts_Last_Hist_Mth,'FS Opening'!R29,SUMIF($H$77:$I$78,$B83,R$77:R$78)) -> 1615 | S83: =IF(S$8<=DD_Ts_Last_Hist_Mth,'FS Opening'!S29,SUMIF($H$77:$I$78,$B83,S$77:S$78)) -> 1615 | T83: =IF(T$8<=DD_Ts_Last_Hist_Mth,'FS Opening'!T29,SUMIF($H$77:$I$78,$B83,T$77:T$78)) -> 1615 | U83: =IF(U$8<=DD_Ts_Last_Hist_Mth,'FS Opening'!U29,SUMIF($H$77:$I$78,$B83,U$77:U$78)) -> 1615 | V83: =IF(V$8<=DD_Ts_Last_Hist_Mth,'FS Opening'!V29,SUMIF($H$77:$I$78,$B83,V$77:V$78)) -> 1615
B84: =B79 -> Total Salaries & Wages | J84: =SUM(J82:J83) -> 0 | K84: 18615 | L84: 18615 | M84: 18615 | N84: 18615 | O84: 18615 | P84: 18615 | Q84: 18615 | R84: 18615 | S84: 18615 | T84: 18615 | U84: 18615 | V84: 18615
C86: Error Values | J86: =IF(ISERROR(J84),1,0) -> 0 | K86: 0 | L86: 0 | M86: 0 | N86: 0 | O86: 0 | P86: 0 | Q86: 0 | R86: 0 | S86: 0 | T86: 0 | U86: 0 | V86: 0
C87: Unmapped Forecasts | J87: =IF(J$8<=DD_Ts_Last_Hist_Mth,0,IF(J86<>0,0,IF(ROUND(J79-J84,4)<>0,1,0))) -> 0 | K87: 0 | L87: 0 | M87: 0 | N87: 0 | O87: 0 | P87: 0 | Q87: 0 | R87: 0 | S87: 0 | T87: 0 | U87: 0 | V87: 0
B88: Total Error Checks Result | I88: =IF(ISERROR(SUM(J88:V88)),1,MIN(SUM(J88:V88),1)) -> 0 | J88: =MIN(SUM(J86:J87),1) -> 0 | K88: 0 | L88: 0 | M88: 0 | N88: 0 | O88: 0 | P88: 0 | Q88: 0 | R88: 0 | S88: 0 | T88: 0 | U88: 0 | V88: 0
B89: Alert Check (Negative Amounts) | I89: =IF(ISERROR(SUM(J89:V89)),1,MIN(SUM(J89:V89),1)) -> 0 | J89: =IF(J$8<=DD_Ts_Last_Hist_Mth,0,IF(J88<>0,0,IF(MIN(J77:J78)<0,1,0))) -> 0 | K89: 0 | L89: 0 | M89: 0 | N89: 0 | O89: 0 | P89: 0 | Q89: 0 | R89: 0 | S89: 0 | T89: 0 | U89: 0 | V89: 0
B91: Operating Expenditure Mapping
B93: Forecast Categories | H93: Map to Account
B94: =RevExp!B89 -> Advertising | H94: Operating Expenditure | J94: =IF(J$8<=DD_Ts_Last_Hist_Mth,0,RevExp!J89) -> 0 | K94: =IF(K$8<=DD_Ts_Last_Hist_Mth,0,RevExp!K89) -> 1500 | L94: =IF(L$8<=DD_Ts_Last_Hist_Mth,0,RevExp!L89) -> 1500 | M94: =IF(M$8<=DD_Ts_Last_Hist_Mth,0,RevExp!M89) -> 1500 | N94: =IF(N$8<=DD_Ts_Last_Hist_Mth,0,RevExp!N89) -> 1500 | O94: =IF(O$8<=DD_Ts_Last_Hist_Mth,0,RevExp!O89) -> 1500 | P94: =IF(P$8<=DD_Ts_Last_Hist_Mth,0,RevExp!P89) -> 1500 | Q94: =IF(Q$8<=DD_Ts_Last_Hist_Mth,0,RevExp!Q89) -> 1500 | R94: =IF(R$8<=DD_Ts_Last_Hist_Mth,0,RevExp!R89) -> 1500 | S94: =IF(S$8<=DD_Ts_Last_Hist_Mth,0,RevExp!S89) -> 1500 | T94: =IF(T$8<=DD_Ts_Last_Hist_Mth,0,RevExp!T89) -> 1500 | U94: =IF(U$8<=DD_Ts_Last_Hist_Mth,0,RevExp!U89) -> 1500 | V94: =IF(V$8<=DD_Ts_Last_Hist_Mth,0,RevExp!V89) -> 1500
B95: =RevExp!B90 -> Accounting & Bookkeeping | H95: Operating Expenditure | J95: =IF(J$8<=DD_Ts_Last_Hist_Mth,0,RevExp!J90) -> 0 | K95: =IF(K$8<=DD_Ts_Last_Hist_Mth,0,RevExp!K90) -> 300 | L95: =IF(L$8<=DD_Ts_Last_Hist_Mth,0,RevExp!L90) -> 300 | M95: =IF(M$8<=DD_Ts_Last_Hist_Mth,0,RevExp!M90) -> 300 | N95: =IF(N$8<=DD_Ts_Last_Hist_Mth,0,RevExp!N90) -> 300 | O95: =IF(O$8<=DD_Ts_Last_Hist_Mth,0,RevExp!O90) -> 300 | P95: =IF(P$8<=DD_Ts_Last_Hist_Mth,0,RevExp!P90) -> 300 | Q95: =IF(Q$8<=DD_Ts_Last_Hist_Mth,0,RevExp!Q90) -> 300 | R95: =IF(R$8<=DD_Ts_Last_Hist_Mth,0,RevExp!R90) -> 300 | S95: =IF(S$8<=DD_Ts_Last_Hist_Mth,0,RevExp!S90) -> 300 | T95: =IF(T$8<=DD_Ts_Last_Hist_Mth,0,RevExp!T90) -> 300 | U95: =IF(U$8<=DD_Ts_Last_Hist_Mth,0,RevExp!U90) -> 300 | V95: =IF(V$8<=DD_Ts_Last_Hist_Mth,0,RevExp!V90) -> 300
B96: =RevExp!B91 -> Bank Fees | H96: Operating Expenditure | J96: =IF(J$8<=DD_Ts_Last_Hist_Mth,0,RevExp!J91) -> 0 | K96: =IF(K$8<=DD_Ts_Last_Hist_Mth,0,RevExp!K91) -> 30 | L96: =IF(L$8<=DD_Ts_Last_Hist_Mth,0,RevExp!L91) -> 30 | M96: =IF(M$8<=DD_Ts_Last_Hist_Mth,0,RevExp!M91) -> 30 | N96: =IF(N$8<=DD_Ts_Last_Hist_Mth,0,RevExp!N91) -> 30 | O96: =IF(O$8<=DD_Ts_Last_Hist_Mth,0,RevExp!O91) -> 30 | P96: =IF(P$8<=DD_Ts_Last_Hist_Mth,0,RevExp!P91) -> 30 | Q96: =IF(Q$8<=DD_Ts_Last_Hist_Mth,0,RevExp!Q91) -> 30 | R96: =IF(R$8<=DD_Ts_Last_Hist_Mth,0,RevExp!R91) -> 30 | S96: =IF(S$8<=DD_Ts_Last_Hist_Mth,0,RevExp!S91) -> 30 | T96: =IF(T$8<=DD_Ts_Last_Hist_Mth,0,RevExp!T91) -> 30 | U96: =IF(U$8<=DD_Ts_Last_Hist_Mth,0,RevExp!U91) -> 30 | V96: =IF(V$8<=DD_Ts_Last_Hist_Mth,0,RevExp!V91) -> 30
B97: =RevExp!B92 -> Insurance | H97: Operating Expenditure | J97: =IF(J$8<=DD_Ts_Last_Hist_Mth,0,RevExp!J92) -> 0 | K97: =IF(K$8<=DD_Ts_Last_Hist_Mth,0,RevExp!K92) -> 300 | L97: =IF(L$8<=DD_Ts_Last_Hist_Mth,0,RevExp!L92) -> 300 | M97: =IF(M$8<=DD_Ts_Last_Hist_Mth,0,RevExp!M92) -> 300 | N97: =IF(N$8<=DD_Ts_Last_Hist_Mth,0,RevExp!N92) -> 300 | O97: =IF(O$8<=DD_Ts_Last_Hist_Mth,0,RevExp!O92) -> 300 | P97: =IF(P$8<=DD_Ts_Last_Hist_Mth,0,RevExp!P92) -> 300 | Q97: =IF(Q$8<=DD_Ts_Last_Hist_Mth,0,RevExp!Q92) -> 300 | R97: =IF(R$8<=DD_Ts_Last_Hist_Mth,0,RevExp!R92) -> 300 | S97: =IF(S$8<=DD_Ts_Last_Hist_Mth,0,RevExp!S92) -> 300 | T97: =IF(T$8<=DD_Ts_Last_Hist_Mth,0,RevExp!T92) -> 300 | U97: =IF(U$8<=DD_Ts_Last_Hist_Mth,0,RevExp!U92) -> 300 | V97: =IF(V$8<=DD_Ts_Last_Hist_Mth,0,RevExp!V92) -> 300
B98: =RevExp!B93 -> Legal Expenses | H98: Operating Expenditure | J98: =IF(J$8<=DD_Ts_Last_Hist_Mth,0,RevExp!J93) -> 0 | K98: =IF(K$8<=DD_Ts_Last_Hist_Mth,0,RevExp!K93) -> 0 | L98: =IF(L$8<=DD_Ts_Last_Hist_Mth,0,RevExp!L93) -> 1500 | M98: =IF(M$8<=DD_Ts_Last_Hist_Mth,0,RevExp!M93) -> 0 | N98: =IF(N$8<=DD_Ts_Last_Hist_Mth,0,RevExp!N93) -> 0 | O98: =IF(O$8<=DD_Ts_Last_Hist_Mth,0,RevExp!O93) -> 0 | P98: =IF(P$8<=DD_Ts_Last_Hist_Mth,0,RevExp!P93) -> 0 | Q98: =IF(Q$8<=DD_Ts_Last_Hist_Mth,0,RevExp!Q93) -> 0 | R98: =IF(R$8<=DD_Ts_Last_Hist_Mth,0,RevExp!R93) -> 0 | S98: =IF(S$8<=DD_Ts_Last_Hist_Mth,0,RevExp!S93) -> 1500 | T98: =IF(T$8<=DD_Ts_Last_Hist_Mth,0,RevExp!T93) -> 0 | U98: =IF(U$8<=DD_Ts_Last_Hist_Mth,0,RevExp!U93) -> 0 | V98: =IF(V$8<=DD_Ts_Last_Hist_Mth,0,RevExp!V93) -> 0
B99: =RevExp!B94 -> Motor Vehicle Expenses | H99: Operating Expenditure | J99: =IF(J$8<=DD_Ts_Last_Hist_Mth,0,RevExp!J94) -> 0 | K99: =IF(K$8<=DD_Ts_Last_Hist_Mth,0,RevExp!K94) -> 100 | L99: =IF(L$8<=DD_Ts_Last_Hist_Mth,0,RevExp!L94) -> 100 | M99: =IF(M$8<=DD_Ts_Last_Hist_Mth,0,RevExp!M94) -> 100 | N99: =IF(N$8<=DD_Ts_Last_Hist_Mth,0,RevExp!N94) -> 100 | O99: =IF(O$8<=DD_Ts_Last_Hist_Mth,0,RevExp!O94) -> 100 | P99: =IF(P$8<=DD_Ts_Last_Hist_Mth,0,RevExp!P94) -> 100 | Q99: =IF(Q$8<=DD_Ts_Last_Hist_Mth,0,RevExp!Q94) -> 100 | R99: =IF(R$8<=DD_Ts_Last_Hist_Mth,0,RevExp!R94) -> 100 | S99: =IF(S$8<=DD_Ts_Last_Hist_Mth,0,RevExp!S94) -> 100 | T99: =IF(T$8<=DD_Ts_Last_Hist_Mth,0,RevExp!T94) -> 100 | U99: =IF(U$8<=DD_Ts_Last_Hist_Mth,0,RevExp!U94) -> 100 | V99: =IF(V$8<=DD_Ts_Last_Hist_Mth,0,RevExp!V94) -> 100
B100: =RevExp!B95 -> Office Expenses | H100: Operating Expenditure | J100: =IF(J$8<=DD_Ts_Last_Hist_Mth,0,RevExp!J95) -> 0 | K100: =IF(K$8<=DD_Ts_Last_Hist_Mth,0,RevExp!K95) -> 50 | L100: =IF(L$8<=DD_Ts_Last_Hist_Mth,0,RevExp!L95) -> 50 | M100: =IF(M$8<=DD_Ts_Last_Hist_Mth,0,RevExp!M95) -> 50 | N100: =IF(N$8<=DD_Ts_Last_Hist_Mth,0,RevExp!N95) -> 50 | O100: =IF(O$8<=DD_Ts_Last_Hist_Mth,0,RevExp!O95) -> 50 | P100: =IF(P$8<=DD_Ts_Last_Hist_Mth,0,RevExp!P95) -> 50 | Q100: =IF(Q$8<=DD_Ts_Last_Hist_Mth,0,RevExp!Q95) -> 50 | R100: =IF(R$8<=DD_Ts_Last_Hist_Mth,0,RevExp!R95) -> 50 | S100: =IF(S$8<=DD_Ts_Last_Hist_Mth,0,RevExp!S95) -> 50 | T100: =IF(T$8<=DD_Ts_Last_Hist_Mth,0,RevExp!T95) -> 50 | U100: =IF(U$8<=DD_Ts_Last_Hist_Mth,0,RevExp!U95) -> 50 | V100: =IF(V$8<=DD_Ts_Last_Hist_Mth,0,RevExp!V95) -> 50
B101: =RevExp!B96 -> Printing & Stationery | H101: Operating Expenditure | J101: =IF(J$8<=DD_Ts_Last_Hist_Mth,0,RevExp!J96) -> 0 | K101: =IF(K$8<=DD_Ts_Last_Hist_Mth,0,RevExp!K96) -> 10 | L101: =IF(L$8<=DD_Ts_Last_Hist_Mth,0,RevExp!L96) -> 10 | M101: =IF(M$8<=DD_Ts_Last_Hist_Mth,0,RevExp!M96) -> 10 | N101: =IF(N$8<=DD_Ts_Last_Hist_Mth,0,RevExp!N96) -> 10 | O101: =IF(O$8<=DD_Ts_Last_Hist_Mth,0,RevExp!O96) -> 10 | P101: =IF(P$8<=DD_Ts_Last_Hist_Mth,0,RevExp!P96) -> 10 | Q101: =IF(Q$8<=DD_Ts_Last_Hist_Mth,0,RevExp!Q96) -> 10 | R101: =IF(R$8<=DD_Ts_Last_Hist_Mth,0,RevExp!R96) -> 10 | S101: =IF(S$8<=DD_Ts_Last_Hist_Mth,0,RevExp!S96) -> 10 | T101: =IF(T$8<=DD_Ts_Last_Hist_Mth,0,RevExp!T96) -> 10 | U101: =IF(U$8<=DD_Ts_Last_Hist_Mth,0,RevExp!U96) -> 10 | V101: =IF(V$8<=DD_Ts_Last_Hist_Mth,0,RevExp!V96) -> 10
B102: =RevExp!B97 -> Rent | H102: Operating Expenditure | J102: =IF(J$8<=DD_Ts_Last_Hist_Mth,0,RevExp!J97) -> 0 | K102: =IF(K$8<=DD_Ts_Last_Hist_Mth,0,RevExp!K97) -> 2000 | L102: =IF(L$8<=DD_Ts_Last_Hist_Mth,0,RevExp!L97) -> 2000 | M102: =IF(M$8<=DD_Ts_Last_Hist_Mth,0,RevExp!M97) -> 2000 | N102: =IF(N$8<=DD_Ts_Last_Hist_Mth,0,RevExp!N97) -> 2000 | O102: =IF(O$8<=DD_Ts_Last_Hist_Mth,0,RevExp!O97) -> 2000 | P102: =IF(P$8<=DD_Ts_Last_Hist_Mth,0,RevExp!P97) -> 2000 | Q102: =IF(Q$8<=DD_Ts_Last_Hist_Mth,0,RevExp!Q97) -> 2000 | R102: =IF(R$8<=DD_Ts_Last_Hist_Mth,0,RevExp!R97) -> 2000 | S102: =IF(S$8<=DD_Ts_Last_Hist_Mth,0,RevExp!S97) -> 2000 | T102: =IF(T$8<=DD_Ts_Last_Hist_Mth,0,RevExp!T97) -> 2000 | U102: =IF(U$8<=DD_Ts_Last_Hist_Mth,0,RevExp!U97) -> 2000 | V102: =IF(V$8<=DD_Ts_Last_Hist_Mth,0,RevExp!V97) -> 2000
B103: =RevExp!B98 -> Subscriptions | H103: Operating Expenditure | J103: =IF(J$8<=DD_Ts_Last_Hist_Mth,0,RevExp!J98) -> 0 | K103: =IF(K$8<=DD_Ts_Last_Hist_Mth,0,RevExp!K98) -> 300 | L103: =IF(L$8<=DD_Ts_Last_Hist_Mth,0,RevExp!L98) -> 300 | M103: =IF(M$8<=DD_Ts_Last_Hist_Mth,0,RevExp!M98) -> 300 | N103: =IF(N$8<=DD_Ts_Last_Hist_Mth,0,RevExp!N98) -> 300 | O103: =IF(O$8<=DD_Ts_Last_Hist_Mth,0,RevExp!O98) -> 300 | P103: =IF(P$8<=DD_Ts_Last_Hist_Mth,0,RevExp!P98) -> 300 | Q103: =IF(Q$8<=DD_Ts_Last_Hist_Mth,0,RevExp!Q98) -> 300 | R103: =IF(R$8<=DD_Ts_Last_Hist_Mth,0,RevExp!R98) -> 300 | S103: =IF(S$8<=DD_Ts_Last_Hist_Mth,0,RevExp!S98) -> 300 | T103: =IF(T$8<=DD_Ts_Last_Hist_Mth,0,RevExp!T98) -> 300 | U103: =IF(U$8<=DD_Ts_Last_Hist_Mth,0,RevExp!U98) -> 300 | V103: =IF(V$8<=DD_Ts_Last_Hist_Mth,0,RevExp!V98) -> 300
B104: =RevExp!B99 -> Telephone & Internet | H104: Operating Expenditure | J104: =IF(J$8<=DD_Ts_Last_Hist_Mth,0,RevExp!J99) -> 0 | K104: =IF(K$8<=DD_Ts_Last_Hist_Mth,0,RevExp!K99) -> 200 | L104: =IF(L$8<=DD_Ts_Last_Hist_Mth,0,RevExp!L99) -> 200 | M104: =IF(M$8<=DD_Ts_Last_Hist_Mth,0,RevExp!M99) -> 200 | N104: =IF(N$8<=DD_Ts_Last_Hist_Mth,0,RevExp!N99) -> 200 | O104: =IF(O$8<=DD_Ts_Last_Hist_Mth,0,RevExp!O99) -> 200 | P104: =IF(P$8<=DD_Ts_Last_Hist_Mth,0,RevExp!P99) -> 200 | Q104: =IF(Q$8<=DD_Ts_Last_Hist_Mth,0,RevExp!Q99) -> 200 | R104: =IF(R$8<=DD_Ts_Last_Hist_Mth,0,RevExp!R99) -> 200 | S104: =IF(S$8<=DD_Ts_Last_Hist_Mth,0,RevExp!S99) -> 200 | T104: =IF(T$8<=DD_Ts_Last_Hist_Mth,0,RevExp!T99) -> 200 | U104: =IF(U$8<=DD_Ts_Last_Hist_Mth,0,RevExp!U99) -> 200 | V104: =IF(V$8<=DD_Ts_Last_Hist_Mth,0,RevExp!V99) -> 200
B105: =RevExp!B100 -> Travel | H105: Operating Expenditure | J105: =IF(J$8<=DD_Ts_Last_Hist_Mth,0,RevExp!J100) -> 0 | K105: =IF(K$8<=DD_Ts_Last_Hist_Mth,0,RevExp!K100) -> 300 | L105: =IF(L$8<=DD_Ts_Last_Hist_Mth,0,RevExp!L100) -> 300 | M105: =IF(M$8<=DD_Ts_Last_Hist_Mth,0,RevExp!M100) -> 300 | N105: =IF(N$8<=DD_Ts_Last_Hist_Mth,0,RevExp!N100) -> 300 | O105: =IF(O$8<=DD_Ts_Last_Hist_Mth,0,RevExp!O100) -> 300 | P105: =IF(P$8<=DD_Ts_Last_Hist_Mth,0,RevExp!P100) -> 300 | Q105: =IF(Q$8<=DD_Ts_Last_Hist_Mth,0,RevExp!Q100) -> 300 | R105: =IF(R$8<=DD_Ts_Last_Hist_Mth,0,RevExp!R100) -> 300 | S105: =IF(S$8<=DD_Ts_Last_Hist_Mth,0,RevExp!S100) -> 300 | T105: =IF(T$8<=DD_Ts_Last_Hist_Mth,0,RevExp!T100) -> 300 | U105: =IF(U$8<=DD_Ts_Last_Hist_Mth,0,RevExp!U100) -> 300 | V105: =IF(V$8<=DD_Ts_Last_Hist_Mth,0,RevExp!V100) -> 300
B106: Total Operating Expenditure | J106: =SUM(J94:J105) -> 0 | K106: 5090 | L106: 6590 | M106: 5090 | N106: 5090 | O106: 5090 | P106: 5090 | Q106: 5090 | R106: 5090 | S106: 6590 | T106: 5090 | U106: 5090 | V106: 5090
B108: Historical Categories
A109: =B109 -> Operating Expenditure | B109: ='FS Opening'!B36 -> Operating Expenditure | J109: =IF(J$8<=DD_Ts_Last_Hist_Mth,'FS Opening'!J36,SUMIF($H$94:$I$105,$B109,J$94:J$105)) -> 0 | K109: =IF(K$8<=DD_Ts_Last_Hist_Mth,'FS Opening'!K36,SUMIF($H$94:$I$105,$B109,K$94:K$105)) -> 5090 | L109: =IF(L$8<=DD_Ts_Last_Hist_Mth,'FS Opening'!L36,SUMIF($H$94:$I$105,$B109,L$94:L$105)) -> 6590 | M109: =IF(M$8<=DD_Ts_Last_Hist_Mth,'FS Opening'!M36,SUMIF($H$94:$I$105,$B109,M$94:M$105)) -> 5090 | N109: =IF(N$8<=DD_Ts_Last_Hist_Mth,'FS Opening'!N36,SUMIF($H$94:$I$105,$B109,N$94:N$105)) -> 5090 | O109: =IF(O$8<=DD_Ts_Last_Hist_Mth,'FS Opening'!O36,SUMIF($H$94:$I$105,$B109,O$94:O$105)) -> 5090 | P109: =IF(P$8<=DD_Ts_Last_Hist_Mth,'FS Opening'!P36,SUMIF($H$94:$I$105,$B109,P$94:P$105)) -> 5090 | Q109: =IF(Q$8<=DD_Ts_Last_Hist_Mth,'FS Opening'!Q36,SUMIF($H$94:$I$105,$B109,Q$94:Q$105)) -> 5090 | R109: =IF(R$8<=DD_Ts_Last_Hist_Mth,'FS Opening'!R36,SUMIF($H$94:$I$105,$B109,R$94:R$105)) -> 5090 | S109: =IF(S$8<=DD_Ts_Last_Hist_Mth,'FS Opening'!S36,SUMIF($H$94:$I$105,$B109,S$94:S$105)) -> 6590 | T109: =IF(T$8<=DD_Ts_Last_Hist_Mth,'FS Opening'!T36,SUMIF($H$94:$I$105,$B109,T$94:T$105)) -> 5090 | U109: =IF(U$8<=DD_Ts_Last_Hist_Mth,'FS Opening'!U36,SUMIF($H$94:$I$105,$B109,U$94:U$105)) -> 5090 | V109: =IF(V$8<=DD_Ts_Last_Hist_Mth,'FS Opening'!V36,SUMIF($H$94:$I$105,$B109,V$94:V$105)) -> 5090
B110: =B106 -> Total Operating Expenditure | J110: =SUM(J109:J109) -> 0 | K110: 5090 | L110: 6590 | M110: 5090 | N110: 5090 | O110: 5090 | P110: 5090 | Q110: 5090 | R110: 5090 | S110: 6590 | T110: 5090 | U110: 5090 | V110: 5090
C112: Error Values | J112: =IF(ISERROR(J110),1,0) -> 0 | K112: 0 | L112: 0 | M112: 0 | N112: 0 | O112: 0 | P112: 0 | Q112: 0 | R112: 0 | S112: 0 | T112: 0 | U112: 0 | V112: 0
C113: Unmapped Forecasts | J113: =IF(J$8<=DD_Ts_Last_Hist_Mth,0,IF(J112<>0,0,IF(ROUND(J106-J110,4)<>0,1,0))) -> 0 | K113: 0 | L113: 0 | M113: 0 | N113: 0 | O113: 0 | P113: 0 | Q113: 0 | R113: 0 | S113: 0 | T113: 0 | U113: 0 | V113: 0
B114: Total Error Checks Result | I114: =IF(ISERROR(SUM(J114:V114)),1,MIN(SUM(J114:V114),1)) -> 0 | J114: =MIN(SUM(J112:J113),1) -> 0 | K114: 0 | L114: 0 | M114: 0 | N114: 0 | O114: 0 | P114: 0 | Q114: 0 | R114: 0 | S114: 0 | T114: 0 | U114: 0 | V114: 0
B115: Alert Check (Negative Amounts) | I115: =IF(ISERROR(SUM(J115:V115)),1,MIN(SUM(J115:V115),1)) -> 0 | J115: =IF(J$8<=DD_Ts_Last_Hist_Mth,0,IF(J114<>0,0,IF(MIN(J94:J105)<0,1,0))) -> 0 | K115: 0 | L115: 0 | M115: 0 | N115: 0 | O115: 0 | P115: 0 | Q115: 0 | R115: 0 | S115: 0 | T115: 0 | U115: 0 | V115: 0
B117: Other Expenses Mapping
B119: Forecast Categories | H119: Map to Account
B120: =RevExp!B126 -> Other Expenses | H120: Other Expenses | J120: =IF(J$8<=DD_Ts_Last_Hist_Mth,0,RevExp!J126) -> 0 | K120: =IF(K$8<=DD_Ts_Last_Hist_Mth,0,RevExp!K126) -> 0 | L120: =IF(L$8<=DD_Ts_Last_Hist_Mth,0,RevExp!L126) -> 0 | M120: =IF(M$8<=DD_Ts_Last_Hist_Mth,0,RevExp!M126) -> 0 | N120: =IF(N$8<=DD_Ts_Last_Hist_Mth,0,RevExp!N126) -> 0 | O120: =IF(O$8<=DD_Ts_Last_Hist_Mth,0,RevExp!O126) -> 0 | P120: =IF(P$8<=DD_Ts_Last_Hist_Mth,0,RevExp!P126) -> 0 | Q120: =IF(Q$8<=DD_Ts_Last_Hist_Mth,0,RevExp!Q126) -> 0 | R120: =IF(R$8<=DD_Ts_Last_Hist_Mth,0,RevExp!R126) -> 0 | S120: =IF(S$8<=DD_Ts_Last_Hist_Mth,0,RevExp!S126) -> 0 | T120: =IF(T$8<=DD_Ts_Last_Hist_Mth,0,RevExp!T126) -> 0 | U120: =IF(U$8<=DD_Ts_Last_Hist_Mth,0,RevExp!U126) -> 0 | V120: =IF(V$8<=DD_Ts_Last_Hist_Mth,0,RevExp!V126) -> 0
B121: =GovtStimulus!B74 -> Payroll Tax Paid Refund | H121: Other Expenses (Non GST) | J121: =IF(J$8<=DD_Ts_Last_Hist_Mth,0,-GovtStimulus!J74) -> 0 | K121: =IF(K$8<=DD_Ts_Last_Hist_Mth,0,-GovtStimulus!K74) -> 0 | L121: =IF(L$8<=DD_Ts_Last_Hist_Mth,0,-GovtStimulus!L74) -> -5000 | M121: =IF(M$8<=DD_Ts_Last_Hist_Mth,0,-GovtStimulus!M74) -> 0 | N121: =IF(N$8<=DD_Ts_Last_Hist_Mth,0,-GovtStimulus!N74) -> 0 | O121: =IF(O$8<=DD_Ts_Last_Hist_Mth,0,-GovtStimulus!O74) -> 0 | P121: =IF(P$8<=DD_Ts_Last_Hist_Mth,0,-GovtStimulus!P74) -> 0 | Q121: =IF(Q$8<=DD_Ts_Last_Hist_Mth,0,-GovtStimulus!Q74) -> 0 | R121: =IF(R$8<=DD_Ts_Last_Hist_Mth,0,-GovtStimulus!R74) -> 0 | S121: =IF(S$8<=DD_Ts_Last_Hist_Mth,0,-GovtStimulus!S74) -> 0 | T121: =IF(T$8<=DD_Ts_Last_Hist_Mth,0,-GovtStimulus!T74) -> 0 | U121: =IF(U$8<=DD_Ts_Last_Hist_Mth,0,-GovtStimulus!U74) -> 0 | V121: =IF(V$8<=DD_Ts_Last_Hist_Mth,0,-GovtStimulus!V74) -> 0
B122: Total Other Revenue | J122: =SUM(J120:J121) -> 0 | K122: 0 | L122: -5000 | M122: 0 | N122: 0 | O122: 0 | P122: 0 | Q122: 0 | R122: 0 | S122: 0 | T122: 0 | U122: 0 | V122: 0
B124: Historical Categories | H124: Cash Flow Impact
A125: =B125 -> Other Expenses | B125: ='FS Opening'!B39 -> Other Expenses | H125: Cash Payments | J125: =IF(J$8<=DD_Ts_Last_Hist_Mth,'FS Opening'!J39,SUMIF($H$120:$I$121,$B125,J$120:J$121)) -> 0 | K125: =IF(K$8<=DD_Ts_Last_Hist_Mth,'FS Opening'!K39,SUMIF($H$120:$I$121,$B125,K$120:K$121)) -> 0 | L125: =IF(L$8<=DD_Ts_Last_Hist_Mth,'FS Opening'!L39,SUMIF($H$120:$I$121,$B125,L$120:L$121)) -> 0 | M125: =IF(M$8<=DD_Ts_Last_Hist_Mth,'FS Opening'!M39,SUMIF($H$120:$I$121,$B125,M$120:M$121)) -> 0 | N125: =IF(N$8<=DD_Ts_Last_Hist_Mth,'FS Opening'!N39,SUMIF($H$120:$I$121,$B125,N$120:N$121)) -> 0 | O125: =IF(O$8<=DD_Ts_Last_Hist_Mth,'FS Opening'!O39,SUMIF($H$120:$I$121,$B125,O$120:O$121)) -> 0 | P125: =IF(P$8<=DD_Ts_Last_Hist_Mth,'FS Opening'!P39,SUMIF($H$120:$I$121,$B125,P$120:P$121)) -> 0 | Q125: =IF(Q$8<=DD_Ts_Last_Hist_Mth,'FS Opening'!Q39,SUMIF($H$120:$I$121,$B125,Q$120:Q$121)) -> 0 | R125: =IF(R$8<=DD_Ts_Last_Hist_Mth,'FS Opening'!R39,SUMIF($H$120:$I$121,$B125,R$120:R$121)) -> 0 | S125: =IF(S$8<=DD_Ts_Last_Hist_Mth,'FS Opening'!S39,SUMIF($H$120:$I$121,$B125,S$120:S$121)) -> 0 | T125: =IF(T$8<=DD_Ts_Last_Hist_Mth,'FS Opening'!T39,SUMIF($H$120:$I$121,$B125,T$120:T$121)) -> 0 | U125: =IF(U$8<=DD_Ts_Last_Hist_Mth,'FS Opening'!U39,SUMIF($H$120:$I$121,$B125,U$120:U$121)) -> 0 | V125: =IF(V$8<=DD_Ts_Last_Hist_Mth,'FS Opening'!V39,SUMIF($H$120:$I$121,$B125,V$120:V$121)) -> 0
A126: Other Expenses (Non GST) | B126: ='FS Opening'!B40 -> Other Expenses (Non GST) | H126: Cash Payments | J126: =IF(J$8<=DD_Ts_Last_Hist_Mth,'FS Opening'!J40,SUMIF($H$120:$I$121,$B126,J$120:J$121)) -> 0 | K126: =IF(K$8<=DD_Ts_Last_Hist_Mth,'FS Opening'!K40,SUMIF($H$120:$I$121,$B126,K$120:K$121)) -> 0 | L126: =IF(L$8<=DD_Ts_Last_Hist_Mth,'FS Opening'!L40,SUMIF($H$120:$I$121,$B126,L$120:L$121)) -> -5000 | M126: =IF(M$8<=DD_Ts_Last_Hist_Mth,'FS Opening'!M40,SUMIF($H$120:$I$121,$B126,M$120:M$121)) -> 0 | N126: =IF(N$8<=DD_Ts_Last_Hist_Mth,'FS Opening'!N40,SUMIF($H$120:$I$121,$B126,N$120:N$121)) -> 0 | O126: =IF(O$8<=DD_Ts_Last_Hist_Mth,'FS Opening'!O40,SUMIF($H$120:$I$121,$B126,O$120:O$121)) -> 0 | P126: =IF(P$8<=DD_Ts_Last_Hist_Mth,'FS Opening'!P40,SUMIF($H$120:$I$121,$B126,P$120:P$121)) -> 0 | Q126: =IF(Q$8<=DD_Ts_Last_Hist_Mth,'FS Opening'!Q40,SUMIF($H$120:$I$121,$B126,Q$120:Q$121)) -> 0 | R126: =IF(R$8<=DD_Ts_Last_Hist_Mth,'FS Opening'!R40,SUMIF($H$120:$I$121,$B126,R$120:R$121)) -> 0 | S126: =IF(S$8<=DD_Ts_Last_Hist_Mth,'FS Opening'!S40,SUMIF($H$120:$I$121,$B126,S$120:S$121)) -> 0 | T126: =IF(T$8<=DD_Ts_Last_Hist_Mth,'FS Opening'!T40,SUMIF($H$120:$I$121,$B126,T$120:T$121)) -> 0 | U126: =IF(U$8<=DD_Ts_Last_Hist_Mth,'FS Opening'!U40,SUMIF($H$120:$I$121,$B126,U$120:U$121)) -> 0 | V126: =IF(V$8<=DD_Ts_Last_Hist_Mth,'FS Opening'!V40,SUMIF($H$120:$I$121,$B126,V$120:V$121)) -> 0
B127: =B122 -> Total Other Revenue | J127: =SUM(J125:J126) -> 0 | K127: 0 | L127: -5000 | M127: 0 | N127: 0 | O127: 0 | P127: 0 | Q127: 0 | R127: 0 | S127: 0 | T127: 0 | U127: 0 | V127: 0
B129: Other Expenses - Cash Receipts | H129: Cash Receipts | J129: =-SUMIF($H$125:$H$126,$H129,J$125:J$126) -> 0 | K129: 0 | L129: 0 | M129: 0 | N129: 0 | O129: 0 | P129: 0 | Q129: 0 | R129: 0 | S129: 0 | T129: 0 | U129: 0 | V129: 0
B130: Other Expenses - Cash Payments | H130: Cash Payments | J130: =-SUMIF($H$125:$H$126,$H130,J$125:J$126) -> 0 | K130: 0 | L130: 5000 | M130: 0 | N130: 0 | O130: 0 | P130: 0 | Q130: 0 | R130: 0 | S130: 0 | T130: 0 | U130: 0 | V130: 0
B131: Other Expenses - Operating Cash Flows | H131: Operating Cash Flows | J131: =-SUMIF($H$125:$H$126,$H131,J$125:J$126) -> 0 | K131: 0 | L131: 0 | M131: 0 | N131: 0 | O131: 0 | P131: 0 | Q131: 0 | R131: 0 | S131: 0 | T131: 0 | U131: 0 | V131: 0
B132: Other Expenses - Investing Cash Flows | H132: Investing Cash Flows | J132: =-SUMIF($H$125:$H$126,$H132,J$125:J$126) -> 0 | K132: 0 | L132: 0 | M132: 0 | N132: 0 | O132: 0 | P132: 0 | Q132: 0 | R132: 0 | S132: 0 | T132: 0 | U132: 0 | V132: 0
B133: Other Expenses - Financing Cash Flows | H133: Financing Cash Flows | J133: =-SUMIF($H$125:$H$126,$H133,J$125:J$126) -> 0 | K133: 0 | L133: 0 | M133: 0 | N133: 0 | O133: 0 | P133: 0 | Q133: 0 | R133: 0 | S133: 0 | T133: 0 | U133: 0 | V133: 0
B134: Cash Flow Statement Impacts | J134: =SUM(J129:J133) -> 0 | K134: 0 | L134: 5000 | M134: 0 | N134: 0 | O134: 0 | P134: 0 | Q134: 0 | R134: 0 | S134: 0 | T134: 0 | U134: 0 | V134: 0
C136: Error Values | J136: =IF(ISERROR(J127),1,0) -> 0 | K136: 0 | L136: 0 | M136: 0 | N136: 0 | O136: 0 | P136: 0 | Q136: 0 | R136: 0 | S136: 0 | T136: 0 | U136: 0 | V136: 0
C137: Unmapped Forecasts | J137: =IF(J$8<=DD_Ts_Last_Hist_Mth,0,IF(J136<>0,0,IF(ROUND(J122-J127,4)<>0,1,0))) -> 0 | K137: 0 | L137: 0 | M137: 0 | N137: 0 | O137: 0 | P137: 0 | Q137: 0 | R137: 0 | S137: 0 | T137: 0 | U137: 0 | V137: 0
C138: CFS Impacts Reconciliation | J138: =IF(J136<>0,0,IF(ROUND(J127+J134,4)<>0,1,0)) -> 0 | K138: 0 | L138: 0 | M138: 0 | N138: 0 | O138: 0 | P138: 0 | Q138: 0 | R138: 0 | S138: 0 | T138: 0 | U138: 0 | V138: 0
B139: Total Error Checks Result | I139: =IF(ISERROR(SUM(J139:V139)),1,MIN(SUM(J139:V139),1)) -> 0 | J139: =MIN(SUM(J136:J138),1) -> 0 | K139: 0 | L139: 0 | M139: 0 | N139: 0 | O139: 0 | P139: 0 | Q139: 0 | R139: 0 | S139: 0 | T139: 0 | U139: 0 | V139: 0
B140: Alert Check (Negative Amounts) | I140: =IF(ISERROR(SUM(J140:V140)),1,MIN(SUM(J140:V140),1)) -> 1 | J140: =IF(J$8<=DD_Ts_Last_Hist_Mth,0,IF(J139<>0,0,IF(MIN(J120:J121)<0,1,0))) -> 0 | K140: 0 | L140: 1 | M140: 0 | N140: 0 | O140: 0 | P140: 0 | Q140: 0 | R140: 0 | S140: 0 | T140: 0 | U140: 0 | V140: 0

Sheet BS_Map (hidden)
A1: ± | B1: Mapping - Balance Sheet
A2: x | B2: =Model_Name -> High Level 3-Way Financial Model
B4: Month Ending | J4: =TEXT(J7,"mmm-yy") -> Mar-20 | K4: Apr-20 | L4: May-20 | M4: Jun-20 | N4: Jul-20 | O4: Aug-20 | P4: Sep-20 | Q4: Oct-20 | R4: Nov-20 | S4: Dec-20 | T4: Jan-21 | U4: Feb-21 | V4: Mar-21
B5: Month | J5: ="M"&J11&IF(J8>DD_Ts_Last_Hist_Mth,Ts_Fcast_Per_ID,Ts_Hist_Per_ID) -> M9 (H) | K5: M10 (F) | L5: M11 (F) | M5: M12 (F) | N5: M1 (F) | O5: M2 (F) | P5: M3 (F) | Q5: M4 (F) | R5: M5 (F) | S5: M6 (F) | T5: M7 (F) | U5: M8 (F) | V5: M9 (F)
B6: Period Start Date | J6: =EDATE(Ts_Start_Date,J8-1) -> 2020-03-01 | K6: 2020-04-01 | L6: 2020-05-01 | M6: 2020-06-01 | N6: 2020-07-01 | O6: 2020-08-01 | P6: 2020-09-01 | Q6: 2020-10-01 | R6: 2020-11-01 | S6: 2020-12-01 | T6: 2021-01-01 | U6: 2021-02-01 | V6: 2021-03-01
B7: Period End Date | J7: =EDATE(Ts_Start_Date,J8)-1 -> 2020-03-31 | K7: 2020-04-30 | L7: 2020-05-31 | M7: 2020-06-30 | N7: 2020-07-31 | O7: 2020-08-31 | P7: 2020-09-30 | Q7: 2020-10-31 | R7: 2020-11-30 | S7: 2020-12-31 | T7: 2021-01-31 | U7: 2021-02-28 | V7: 2021-03-31
B8: Counter | J8: =COLUMNS($J8:J8) -> 1 | K8: =COLUMNS($J8:K8) -> 2 | L8: =COLUMNS($J8:L8) -> 3 | M8: =COLUMNS($J8:M8) -> 4 | N8: =COLUMNS($J8:N8) -> 5 | O8: =COLUMNS($J8:O8) -> 6 | P8: =COLUMNS($J8:P8) -> 7 | Q8: =COLUMNS($J8:Q8) -> 8 | R8: =COLUMNS($J8:R8) -> 9 | S8: =COLUMNS($J8:S8) -> 10 | T8: =COLUMNS($J8:T8) -> 11 | U8: =COLUMNS($J8:U8) -> 12 | V8: =COLUMNS($J8:V8) -> 13
B9: Financial Year | J9: =YEAR(J7)+IF(MONTH(J7)>DD_Ts_Fin_Yr_End_Mth,1,0) -> 2020 | K9: 2020 | L9: 2020 | M9: 2020 | N9: 2021 | O9: 2021 | P9: 2021 | Q9: 2021 | R9: 2021 | S9: 2021 | T9: 2021 | U9: 2021 | V9: 2021
B10: Active Column Number | J10: =IF(AND(J8>DD_Ts_Last_Hist_Mth,J8<=Ts_Term),J8-DD_Ts_Last_Hist_Mth,0) -> 0 | K10: 1 | L10: 2 | M10: 3 | N10: 4 | O10: 5 | P10: 6 | Q10: 7 | R10: 8 | S10: 9 | T10: 10 | U10: 11 | V10: 12
B11: Month Number | J11: =MOD(MONTH(J7)-DD_Ts_Fin_Yr_End_Mth-1,Ts_Mths_In_Yr)+1 -> 9 | K11: 10 | L11: 11 | M11: 12 | N11: 1 | O11: 2 | P11: 3 | Q11: 4 | R11: 5 | S11: 6 | T11: 7 | U11: 8 | V11: 9
B12: Month Key | J12: ="M"&J11&"-"&J9 -> M9-2020 | K12: M10-2020 | L12: M11-2020 | M12: M12-2020 | N12: M1-2021 | O12: M2-2021 | P12: M3-2021 | Q12: M4-2021 | R12: M5-2021 | S12: M6-2021 | T12: M7-2021 | U12: M8-2021 | V12: M9-2021
B13: Quarter Key | J13: ="Q"&INT((J11-1)/Ts_Mths_In_Qtr)+1&"-"&J9 -> Q3-2020 | K13: Q4-2020 | L13: Q4-2020 | M13: Q4-2020 | N13: Q1-2021 | O13: Q1-2021 | P13: Q1-2021 | Q13: Q2-2021 | R13: Q2-2021 | S13: Q2-2021 | T13: Q3-2021 | U13: Q3-2021 | V13: Q3-2021
B14: Half Key | J14: ="H"&INT((J11-1)/Ts_Mths_In_Half)+1&"-"&J9 -> H2-2020 | K14: H2-2020 | L14: H2-2020 | M14: H2-2020 | N14: H1-2021 | O14: H1-2021 | P14: H1-2021 | Q14: H1-2021 | R14: H1-2021 | S14: H1-2021 | T14: H2-2021 | U14: H2-2021 | V14: H2-2021
B16: Other Current Assets Mapping
B18: Mapping
B20: Forecast Categories | H20: Map to Account | J20: Increase/(Decrease)
B21: OCA Drivers Category 1 | H21: [Select Account] | J21: 0 | K21: 0 | L21: 0 | M21: 0 | N21: 0 | O21: 0 | P21: 0 | Q21: 0 | R21: 0 | S21: 0 | T21: 0 | U21: 0 | V21: 0
B22: OCA Drivers Category 2 | H22: [Select Account] | J22: 0 | K22: 0 | L22: 0 | M22: 0 | N22: 0 | O22: 0 | P22: 0 | Q22: 0 | R22: 0 | S22: 0 | T22: 0 | U22: 0 | V22: 0
B23: Net Change in OCA | J23: =SUM(J21:J22) -> 0 | K23: 0 | L23: 0 | M23: 0 | N23: 0 | O23: 0 | P23: 0 | Q23: 0 | R23: 0 | S23: 0 | T23: 0 | U23: 0 | V23: 0
B25: Historical Categories | H25: Cash Flow Impact | J25: Increase/(Decrease)
A26: =B26 -> Other Current Assets | B26: ='FS Opening'!B82 -> Other Current Assets | H26: Operating Cash Flows | J26: =IF(J$8<=DD_Ts_Last_Hist_Mth,J38-J32,SUMIF($H$21:$I$22,$B26,J$21:J$22)) -> 0 | K26: 0 | L26: 0 | M26: 0 | N26: 0 | O26: 0 | P26: 0 | Q26: 0 | R26: 0 | S26: 0 | T26: 0 | U26: 0 | V26: 0
B27: =B23 -> Net Change in OCA | J27: =SUM(J26:J26) -> 0 | K27: 0 | L27: 0 | M27: 0 | N27: 0 | O27: 0 | P27: 0 | Q27: 0 | R27: 0 | S27: 0 | T27: 0 | U27: 0 | V27: 0
B29: Summary
B31: Other Current Assets | H31: =TEXT(Ts_Last_Hist_Mth_End_Date,"mmm-yy")&Ts_Hist_Per_ID -> Mar-20 (H)
B32: =B26 -> Other Current Assets | J32: =I38 -> 0 | K32: 0 | L32: 0 | M32: 0 | N32: 0 | O32: 0 | P32: 0 | Q32: 0 | R32: 0 | S32: 0 | T32: 0 | U32: 0 | V32: 0
B33: Opening Balance | J33: =SUM(J32:J32) -> 0 | K33: 0 | L33: 0 | M33: 0 | N33: 0 | O33: 0 | P33: 0 | Q33: 0 | R33: 0 | S33: 0 | T33: 0 | U33: 0 | V33: 0
B35: =B26 -> Other Current Assets | J35: =IF(J$8<=DD_Ts_Last_Hist_Mth,J38-J32,J26) -> 0 | K35: 0 | L35: 0 | M35: 0 | N35: 0 | O35: 0 | P35: 0 | Q35: 0 | R35: 0 | S35: 0 | T35: 0 | U35: 0 | V35: 0
B36: Net Change in OCA | J36: =SUM(J35:J35) -> 0 | K36: 0 | L36: 0 | M36: 0 | N36: 0 | O36: 0 | P36: 0 | Q36: 0 | R36: 0 | S36: 0 | T36: 0 | U36: 0 | V36: 0
B38: =B26 -> Other Current Assets | H38: =INDEX($J38:$V38,DD_Ts_Last_Hist_Mth) -> 0 | J38: =IF(J$8<=DD_Ts_Last_Hist_Mth,'FS Opening'!J82,J32+J35) -> 0 | K38: =IF(K$8<=DD_Ts_Last_Hist_Mth,'FS Opening'!K82,K32+K35) -> 0 | L38: =IF(L$8<=DD_Ts_Last_Hist_Mth,'FS Opening'!L82,L32+L35) -> 0 | M38: =IF(M$8<=DD_Ts_Last_Hist_Mth,'FS Opening'!M82,M32+M35) -> 0 | N38: =IF(N$8<=DD_Ts_Last_Hist_Mth,'FS Opening'!N82,N32+N35) -> 0 | O38: =IF(O$8<=DD_Ts_Last_Hist_Mth,'FS Opening'!O82,O32+O35) -> 0 | P38: =IF(P$8<=DD_Ts_Last_Hist_Mth,'FS Opening'!P82,P32+P35) -> 0 | Q38: =IF(Q$8<=DD_Ts_Last_Hist_Mth,'FS Opening'!Q82,Q32+Q35) -> 0 | R38: =IF(R$8<=DD_Ts_Last_Hist_Mth,'FS Opening'!R82,R32+R35) -> 0 | S38: =IF(S$8<=DD_Ts_Last_Hist_Mth,'FS Opening'!S82,S32+S35) -> 0 | T38: =IF(T$8<=DD_Ts_Last_Hist_Mth,'FS Opening'!T82,T32+T35) -> 0 | U38: =IF(U$8<=DD_Ts_Last_Hist_Mth,'FS Opening'!U82,U32+U35) -> 0 | V38: =IF(V$8<=DD_Ts_Last_Hist_Mth,'FS Opening'!V82,V32+V35) -> 0
B39: Closing Balance | H39: =SUM(H38:H38) -> 0 | J39: =SUM(J38:J38) -> 0 | K39: 0 | L39: 0 | M39: 0 | N39: 0 | O39: 0 | P39: 0 | Q39: 0 | R39: 0 | S39: 0 | T39: 0 | U39: 0 | V39: 0
B41: OCA - Cash Receipts | H41: Cash Receipts | J41: =-SUMIF($H$26:$H$26,$H41,J$26:J$26) -> 0 | K41: 0 | L41: 0 | M41: 0 | N41: 0 | O41: 0 | P41: 0 | Q41: 0 | R41: 0 | S41: 0 | T41: 0 | U41: 0 | V41: 0
B42: OCA - Cash Payments | H42: Cash Payments | J42: =-SUMIF($H$26:$H$26,$H42,J$26:J$26) -> 0 | K42: 0 | L42: 0 | M42: 0 | N42: 0 | O42: 0 | P42: 0 | Q42: 0 | R42: 0 | S42: 0 | T42: 0 | U42: 0 | V42: 0
B43: OCA - Operating Cash Flows | H43: Operating Cash Flows | J43: =-SUMIF($H$26:$H$26,$H43,J$26:J$26) -> 0 | K43: 0 | L43: 0 | M43: 0 | N43: 0 | O43: 0 | P43: 0 | Q43: 0 | R43: 0 | S43: 0 | T43: 0 | U43: 0 | V43: 0
B44: OCA - Investing Cash Flows | H44: Investing Cash Flows | J44: =-SUMIF($H$26:$H$26,$H44,J$26:J$26) -> 0 | K44: 0 | L44: 0 | M44: 0 | N44: 0 | O44: 0 | P44: 0 | Q44: 0 | R44: 0 | S44: 0 | T44: 0 | U44: 0 | V44: 0
B45: OCA - Financing Cash Flows | H45: Financing Cash Flows | J45: =-SUMIF($H$26:$H$26,$H45,J$26:J$26) -> 0 | K45: 0 | L45: 0 | M45: 0 | N45: 0 | O45: 0 | P45: 0 | Q45: 0 | R45: 0 | S45: 0 | T45: 0 | U45: 0 | V45: 0
B46: Cash Flow Statement Impacts | J46: =SUM(J41:J45) -> 0 | K46: 0 | L46: 0 | M46: 0 | N46: 0 | O46: 0 | P46: 0 | Q46: 0 | R46: 0 | S46: 0 | T46: 0 | U46: 0 | V46: 0
C48: Error Values | J48: =IF(ISERROR(J27),1,0) -> 0 | K48: 0 | L48: 0 | M48: 0 | N48: 0 | O48: 0 | P48: 0 | Q48: 0 | R48: 0 | S48: 0 | T48: 0 | U48: 0 | V48: 0
C49: Unmapped Forecasts | J49: =IF(J$8<=DD_Ts_Last_Hist_Mth,0,IF(J48<>0,0,IF(ROUND(J23-J27,4)<>0,1,0))) -> 0 | K49: 0 | L49: 0 | M49: 0 | N49: 0 | O49: 0 | P49: 0 | Q49: 0 | R49: 0 | S49: 0 | T49: 0 | U49: 0 | V49: 0
C50: CFS Reconciliation | J50: =IF(J$8<=DD_Ts_Last_Hist_Mth,0,IF(J48<>0,0,IF(ROUND(J27+J46,4)<>0,1,0))) -> 0 | K50: 0 | L50: 0 | M50: 0 | N50: 0 | O50: 0 | P50: 0 | Q50: 0 | R50: 0 | S50: 0 | T50: 0 | U50: 0 | V50: 0
B51: Total Error Checks Result | I51: =IF(ISERROR(SUM(J51:V51)),1,MIN(SUM(J51:V51),1)) -> 0 | J51: =MIN(SUM(J48:J50),1) -> 0 | K51: 0 | L51: 0 | M51: 0 | N51: 0 | O51: 0 | P51: 0 | Q51: 0 | R51: 0 | S51: 0 | T51: 0 | U51: 0 | V51: 0
B53: Other Non-Current Assets Mapping
B55: Mapping
B57: Forecast Categories | H57: Map to Account | J57: Increase/(Decrease)
B58: ONCA Drivers Category 1 | H58: [Select Account] | J58: 0 | K58: 0 | L58: 0 | M58: 0 | N58: 0 | O58: 0 | P58: 0 | Q58: 0 | R58: 0 | S58: 0 | T58: 0 | U58: 0 | V58: 0
B59: ONCA Drivers Category 2 | H59: [Select Account] | J59: 0 | K59: 0 | L59: 0 | M59: 0 | N59: 0 | O59: 0 | P59: 0 | Q59: 0 | R59: 0 | S59: 0 | T59: 0 | U59: 0 | V59: 0
